Workbook

Sheet Change Log
B1: Depreciation Model
B2: Change Log
B4: Model change log
C6: Starting model name ----> | D6: AER - Draft decision - JGN 2025–30 - Depreciation tracking model - November 2024 - Public.xlsb
C8: Model changes to above model
C10: Model sheet | D10: Reference | E10: Cell reference | F10: Type | G10: Legend | H10: Comments
C12: Capital base input | D12: 1 | E12: Q14, Q17 | F12: Input | H12: Updated inputs to align with RFM
C13: Capital base input | D13: =D12+1 -> 2 | E13: P27:Q75 | F13: Input | H13: Updated for FY24 actuals and FY25 forecasts
C14: Capital base input | D14: =+D13+1 -> 3 | E14: P81:Q129 | F14: Input | H14: Updated for FY24 actuals and FY25 forecasts
C15: Capital base input | D15: =+D14+1 -> 4 | E15: P135:Q183 | F15: Input | H15: Updated for FY24 actuals and FY25 forecasts
C16: Capital base input | D16: =+D15+1 -> 5 | E16: Q250:Q262 | F16: Input | H16: Accelerated depreciation update for revised proposal
C17: Capital base input | D17: =+D16+1 -> 6 | E17: Q304 | F17: Input | H17: Revised remaining life for revised proposal
C18: Capital base input | D18: =+D17+1 -> 7 | E18: Q404:Q453 | F18: Input | H18: Updated RAB closing balance to align with RFM
B20: End

Sheet Intro
G2: Gas distribution service provider
I3: RFM - Depreciation tracking module
L4: Version: | M4: 1.1
L5: Date: | M5: May 2022
B8: Introduction | J8: Gas distribution module
C14: This attachment to the RFM is used by the AER to determine the forecast capital base and tax asset base (TAB) depreciation for a gas distribution service provider.
C15: It also calculates the actual tax depreciation for use in the RFM.
C17: INSTRUCTIONS FOR USE
C18: The RFM - depreciation tracking module handbook, which contains information on this depreciation tracking module, is available on the AER website at http://www.aer.gov.au
C20: a. Fill out input cells on the 'Capital base input' and 'TAB input' sheets. These input cells are highlighted blue.
C21: This provides the data for the depreciation tracking calculations.
C22: In general, input expenditure data should be valued in nominal dollar terms of the year indicated.
C23: Units and basis for entry are specified where required for each data table.
C24: Not all input cells require an input - be sure to read and follow the instructions contained within the comments for each section heading.
C25: All relevant inputs are to be filled on an ongoing basis, with the details of past expenditure and asset lives to be preserved.
C27: b. The values in the 'Tracking output' sheet
C28: This sheet summarises the key outputs of the year-by-year tracking approach, which includes forecast capital base and TAB depreciation to be input into the PTRM
C29: as well as actual tax depreciation for the current access arrangement period to be input into the RFM.
C31: VERSION RECORD
C33: Version | D33: Date | F33: Description
C34: 1 | D34: April 2020 | F34: Initial module
C36: 1.1 | D36: May 2022 | F36: Fixed minor error in 'Tracking output' sheet, Forecast TAB depreciation section for formula reference - asset classes 40 and 41

Sheet AER amendments
A1: No. | B1: Sheet | C1: Cell | D1: Changes
A2: 1 | B2: Capital base input | C2: E49 | D2: Add asset class for adjusting the 2024-25 tax depreciation for the 'Existing pigging and inspection costs tax depreciation' asset class
A3: 2 | B3: TAB input | C3: E40 | D3: Add asset class for adjusting the 2024-25 tax depreciation for the 'Existing pigging and inspection costs tax depreciation' asset class
A4: 3 | B4: TAB input | C4: K40 | D4: Add adjustment capex value for the 2024-25 tax depreciation for the 'Existing pigging and inspection costs tax depreciation' asset class
A5: 4 | B5: TAB input | C5: H202 | D5: Assign 1 year tax asset life for the adjustment capex value for the 2024-25 tax depreciation for the 'Existing pigging and inspection costs tax depreciation' asset class
A6: 5 | B6: TAB input | C6: L305 | D6: Add final year adjustment value for the 2024-25 tax depreciation for the 'Existing pigging and inspection costs tax depreciation' asset class
A7: 6 | B7: TAB input | C7: G468, H468 | D7: Assign SL tax depreciation method for the adjustment capex value for the 2024-25 tax depreciation for the 'Existing pigging and inspection costs tax depreciation' asset class
A8: 7 | B8: Capital base input | C8: O46 | D8: Remove the immaterial amount (less than 1 cent) and set the value 0 to be consistent with the 2022-23 annual RIN
A9: 8 | B9: TAB input | C9: G202 | D9: Assign n/a TAB remaining asset life for the adjustment capex value for the 2024-25 tax depreciation for the 'Existing pigging and inspection costs tax depreciation' asset class
A10: 9 | B10: TAB input | C10: L359 | D10: Assign 1 year asset adjustment TAB remaining asset life for the 'Existing pigging and inspection costs' asset class
A11: 1 | B11: Capital base input | C11: Q14 | D11: Updated 2024-25 estimated inflation rate
A12: 12 | B12: Capital base input | C12: Q250 | D12: Updated 2024-25 final year capital base adjustment for 'MP Services' asset class
A13: 13 | B13: Capital base input | C13: Q262 | D13: Updated 2024-25 final year capital base adjustment for 'Future of Gas MP Services' asset class
A14: 14 | B14: Capital base input | C14: Q304 | D14: Updated remaining life of 2024-25 final year capital base adjustment for 'MP Services' asset class
A15: 15 | B15: Capital base input | C15: Q404:Q453 | D15: Updated RFM closing capital base as at 2024-25
A16: 16 | B16: Capital base input | C16: Q17 | D16: Updated 2024-25 nominal vanilla WACC (fixed real time varrying)
A18: The AER's draft decision amendments are highlighted in green unless noted.

Sheet Capital base input
E2: =IF($F$8='TAB input'!$F$8, $F$8, 'TAB input'!$F$8)&" - Capital base input - Gas DNSP "&Intro!$I$3&" - version "& Intro!$M$4 -> JGN - Capital base input - Gas DNSP RFM - Depreciation tracking module - version 1.1 | J2: Input cells in blue
E4: Year | F4: =IF(LEN($H$9)>4, CONCATENATE(LEFT($H$9, 4)-2 & "-" & IF(AND(RIGHT($H$9, 2)<"12", RIGHT($H$9, 2)>"01"), "0", "") & IF(RIGHT($H$9, 2)="00", "98", IF(RIGHT($H$9, 2)="01", "99", RIGHT($H$9, 2)-2))), $H$9-2) -> 2013-14 | G4: =IF(LEN(F4)>4,CONCATENATE(LEFT(F4,4)+1&"-"&IF(RIGHT(F4, 2)<"09", "0","")&IF(RIGHT(F4, 2)="99", "00", RIGHT(F4,2)+1)),F4+1) -> 2014-15 | H4: =IF(LEN(G4)>4,CONCATENATE(LEFT(G4,4)+1&"-"&IF(RIGHT(G4, 2)<"09", "0","")&IF(RIGHT(G4, 2)="99", "00", RIGHT(G4,2)+1)),G4+1) -> 2015-16 | I4: 2016-17 | J4: 2017-18 | K4: 2018-19 | L4: 2019-20 | M4: 2020-21 | N4: 2021-22 | O4: 2022-23 | P4: 2023-24 | Q4: 2024-25 | R4: 2025-26 | S4: 2026-27 | T4: 2027-28 | U4: 2028-29 | V4: 2029-30 | W4: 2030-31 | X4: 2031-32 | Y4: 2032-33 | Z4: 2033-34 | AA4: 2034-35 | AB4: 2035-36 | AC4: 2036-37 | AD4: 2037-38 | AE4: 2038-39 | AF4: 2039-40 | AG4: 2040-41 | AH4: 2041-42 | AI4: 2042-43 | AJ4: 2043-44 | AK4: 2044-45 | AL4: 2045-46 | AM4: 2046-47 | AN4: 2047-48 | AO4: 2048-49 | AP4: 2049-50 | AQ4: 2050-51 | AR4: 2051-52 | AS4: 2052-53 | AT4: 2053-54 | AU4: 2054-55 | AV4: 2055-56 | AW4: 2056-57 | AX4: 2057-58 | AY4: 2058-59 | AZ4: 2059-60 | BA4: 2060-61 | BB4: 2061-62 | BC4: 2062-63 | BD4: 2063-64 | BE4: 2064-65 | BF4: 2065-66 | BG4: 2066-67 | BH4: 2067-68 | BI4: 2068-69 | BJ4: 2069-70 | BK4: 2070-71 | BL4: 2071-72 | BM4: 2072-73 | BN4: 2073-74 | BO4: 2074-75 | BP4: 2075-76 | BQ4: 2076-77 | BR4: 2077-78 | BS4: 2078-79 | BT4: =IF(LEN(BS4)>4,CONCATENATE(LEFT(BS4,4)+1&"-"&IF(RIGHT(BS4, 2)<"09", "0","")&IF(RIGHT(BS4, 2)="99", "00", RIGHT(BS4,2)+1)),BS4+1) -> 2079-80 | BU4: 2080-81 | BV4: 2081-82 | BW4: 2082-83 | BX4: 2083-84 | BY4: 2084-85 | BZ4: 2085-86 | CA4: 2086-87 | CB4: 2087-88 | CC4: 2088-89 | CD4: 2089-90 | CE4: 2090-91 | CF4: 2091-92 | CG4: 2092-93 | CH4: 2093-94 | CI4: 2094-95 | CJ4: 2095-96 | CK4: 2096-97 | CL4: 2097-98 | CM4: 2098-99 | CN4: 2099-00 | CO4: 2100-01 | CP4: =IF(LEN(CO4)>4,CONCATENATE(LEFT(CO4,4)+1&"-"&IF(RIGHT(CO4, 2)<"09", "0","")&IF(RIGHT(CO4, 2)="99", "00", RIGHT(CO4,2)+1)),CO4+1) -> 2101-02 | CQ4: 2102-03 | CR4: 2103-04 | CS4: 2104-05 | CT4: 2105-06 | CU4: 2106-07
D6: General information
E8: Business name | F8: JGN
E9: First regulatory year for tracking | H9: 2015-16 | I9: =IF(SUM($11:$11)=COUNTA($H$9:H$9), "Input for next period", "") ->  | J9: =IF(SUM($11:$11)=COUNTA($H$9:I$9), "Input for next period", "") ->  | K9: =IF(SUM($11:$11)=COUNTA($H$9:J$9), "Input for next period", "") ->  | L9: =IF(SUM($11:$11)=COUNTA($H$9:K$9), "Input for next period", "") ->  | M9: =IF(SUM($11:$11)=COUNTA($H$9:L$9), "Input for next period", "") ->  | N9: =IF(SUM($11:$11)=COUNTA($H$9:M$9), "Input for next period", "") ->  | O9: =IF(SUM($11:$11)=COUNTA($H$9:N$9), "Input for next period", "") ->  | P9: =IF(SUM($11:$11)=COUNTA($H$9:O$9), "Input for next period", "") ->  | Q9: =IF(SUM($11:$11)=COUNTA($H$9:P$9), "Input for next period", "") ->  | R9: =IF(SUM($11:$11)=COUNTA($H$9:Q$9), "Input for next period", "") -> Input for next period | S9: =IF(SUM($11:$11)=COUNTA($H$9:R$9), "Input for next period", "") ->  | T9: =IF(SUM($11:$11)=COUNTA($H$9:S$9), "Input for next period", "") ->  | U9: =IF(SUM($11:$11)=COUNTA($H$9:T$9), "Input for next period", "") ->  | V9: =IF(SUM($11:$11)=COUNTA($H$9:U$9), "Input for next period", "") ->  | W9: =IF(SUM($11:$11)=COUNTA($H$9:V$9), "Input for next period", "") ->  | X9: =IF(SUM($11:$11)=COUNTA($H$9:W$9), "Input for next period", "") ->  | Y9: =IF(SUM($11:$11)=COUNTA($H$9:X$9), "Input for next period", "") ->  | Z9: =IF(SUM($11:$11)=COUNTA($H$9:Y$9), "Input for next period", "") ->  | AA9: =IF(SUM($11:$11)=COUNTA($H$9:Z$9), "Input for next period", "") ->  | AB9: =IF(SUM($11:$11)=COUNTA($H$9:AA$9), "Input for next period", "") ->  | AC9: =IF(SUM($11:$11)=COUNTA($H$9:AB$9), "Input for next period", "") ->  | AD9: =IF(SUM($11:$11)=COUNTA($H$9:AC$9), "Input for next period", "") ->  | AE9: =IF(SUM($11:$11)=COUNTA($H$9:AD$9), "Input for next period", "") ->  | AF9: =IF(SUM($11:$11)=COUNTA($H$9:AE$9), "Input for next period", "") ->  | AG9: =IF(SUM($11:$11)=COUNTA($H$9:AF$9), "Input for next period", "") ->  | AH9: =IF(SUM($11:$11)=COUNTA($H$9:AG$9), "Input for next period", "") ->  | AI9: =IF(SUM($11:$11)=COUNTA($H$9:AH$9), "Input for next period", "") ->  | AJ9: =IF(SUM($11:$11)=COUNTA($H$9:AI$9), "Input for next period", "") ->  | AK9: =IF(SUM($11:$11)=COUNTA($H$9:AJ$9), "Input for next period", "") ->  | AL9: =IF(SUM($11:$11)=COUNTA($H$9:AK$9), "Input for next period", "") ->  | AM9: =IF(SUM($11:$11)=COUNTA($H$9:AL$9), "Input for next period", "") ->  | AN9: =IF(SUM($11:$11)=COUNTA($H$9:AM$9), "Input for next period", "") ->  | AO9: =IF(SUM($11:$11)=COUNTA($H$9:AN$9), "Input for next period", "") ->  | AP9: =IF(SUM($11:$11)=COUNTA($H$9:AO$9), "Input for next period", "") ->  | AQ9: =IF(SUM($11:$11)=COUNTA($H$9:AP$9), "Input for next period", "") ->  | AR9: =IF(SUM($11:$11)=COUNTA($H$9:AQ$9), "Input for next period", "") ->  | AS9: =IF(SUM($11:$11)=COUNTA($H$9:AR$9), "Input for next period", "") ->  | AT9: =IF(SUM($11:$11)=COUNTA($H$9:AS$9), "Input for next period", "") ->  | AU9: =IF(SUM($11:$11)=COUNTA($H$9:AT$9), "Input for next period", "") ->  | AV9: =IF(SUM($11:$11)=COUNTA($H$9:AU$9), "Input for next period", "") ->  | AW9: =IF(SUM($11:$11)=COUNTA($H$9:AV$9), "Input for next period", "") ->  | AX9: =IF(SUM($11:$11)=COUNTA($H$9:AW$9), "Input for next period", "") ->  | AY9: =IF(SUM($11:$11)=COUNTA($H$9:AX$9), "Input for next period", "") ->  | AZ9: =IF(SUM($11:$11)=COUNTA($H$9:AY$9), "Input for next period", "") ->  | BA9: =IF(SUM($11:$11)=COUNTA($H$9:AZ$9), "Input for next period", "") ->  | BB9: =IF(SUM($11:$11)=COUNTA($H$9:BA$9), "Input for next period", "") ->  | BC9: =IF(SUM($11:$11)=COUNTA($H$9:BB$9), "Input for next period", "") ->  | BD9: =IF(SUM($11:$11)=COUNTA($H$9:BC$9), "Input for next period", "") ->  | BE9: =IF(SUM($11:$11)=COUNTA($H$9:BD$9), "Input for next period", "") ->  | BF9: =IF(SUM($11:$11)=COUNTA($H$9:BE$9), "Input for next period", "") ->  | BG9: =IF(SUM($11:$11)=COUNTA($H$9:BF$9), "Input for next period", "") ->  | BH9: =IF(SUM($11:$11)=COUNTA($H$9:BG$9), "Input for next period", "") ->  | BI9: =IF(SUM($11:$11)=COUNTA($H$9:BH$9), "Input for next period", "") ->  | BJ9: =IF(SUM($11:$11)=COUNTA($H$9:BI$9), "Input for next period", "") ->  | BK9: =IF(SUM($11:$11)=COUNTA($H$9:BJ$9), "Input for next period", "") ->  | BL9: =IF(SUM($11:$11)=COUNTA($H$9:BK$9), "Input for next period", "") ->  | BM9: =IF(SUM($11:$11)=COUNTA($H$9:BL$9), "Input for next period", "") ->  | BN9: =IF(SUM($11:$11)=COUNTA($H$9:BM$9), "Input for next period", "") ->  | BO9: =IF(SUM($11:$11)=COUNTA($H$9:BN$9), "Input for next period", "") ->  | BP9: =IF(SUM($11:$11)=COUNTA($H$9:BO$9), "Input for next period", "") ->  | BQ9: =IF(SUM($11:$11)=COUNTA($H$9:BP$9), "Input for next period", "") ->  | BR9: =IF(SUM($11:$11)=COUNTA($H$9:BQ$9), "Input for next period", "") ->  | BS9: =IF(SUM($11:$11)=COUNTA($H$9:BR$9), "Input for next period", "") ->  | BT9: =IF(SUM($11:$11)=COUNTA($H$9:BS$9), "Input for next period", "") ->  | BU9: =IF(SUM($11:$11)=COUNTA($H$9:BT$9), "Input for next period", "") ->  | BV9: =IF(SUM($11:$11)=COUNTA($H$9:BU$9), "Input for next period", "") ->  | BW9: =IF(SUM($11:$11)=COUNTA($H$9:BV$9), "Input for next period", "") ->  | BX9: =IF(SUM($11:$11)=COUNTA($H$9:BW$9), "Input for next period", "") ->  | BY9: =IF(SUM($11:$11)=COUNTA($H$9:BX$9), "Input for next period", "") ->  | BZ9: =IF(SUM($11:$11)=COUNTA($H$9:BY$9), "Input for next period", "") ->  | CA9: =IF(SUM($11:$11)=COUNTA($H$9:BZ$9), "Input for next period", "") ->  | CB9: =IF(SUM($11:$11)=COUNTA($H$9:CA$9), "Input for next period", "") ->  | CC9: =IF(SUM($11:$11)=COUNTA($H$9:CB$9), "Input for next period", "") ->  | CD9: =IF(SUM($11:$11)=COUNTA($H$9:CC$9), "Input for next period", "") ->  | CE9: =IF(SUM($11:$11)=COUNTA($H$9:CD$9), "Input for next period", "") ->  | CF9: =IF(SUM($11:$11)=COUNTA($H$9:CE$9), "Input for next period", "") ->  | CG9: =IF(SUM($11:$11)=COUNTA($H$9:CF$9), "Input for next period", "") ->  | CH9: =IF(SUM($11:$11)=COUNTA($H$9:CG$9), "Input for next period", "") ->  | CI9: =IF(SUM($11:$11)=COUNTA($H$9:CH$9), "Input for next period", "") ->  | CJ9: =IF(SUM($11:$11)=COUNTA($H$9:CI$9), "Input for next period", "") ->  | CK9: =IF(SUM($11:$11)=COUNTA($H$9:CJ$9), "Input for next period", "") ->  | CL9: =IF(SUM($11:$11)=COUNTA($H$9:CK$9), "Input for next period", "") ->  | CM9: =IF(SUM($11:$11)=COUNTA($H$9:CL$9), "Input for next period", "") ->  | CN9: =IF(SUM($11:$11)=COUNTA($H$9:CM$9), "Input for next period", "") ->  | CO9: =IF(SUM($11:$11)=COUNTA($H$9:CN$9), "Input for next period", "") ->  | CP9: =IF(SUM($11:$11)=COUNTA($H$9:CO$9), "Input for next period", "") ->  | CQ9: =IF(SUM($11:$11)=COUNTA($H$9:CP$9), "Input for next period", "") ->  | CR9: =IF(SUM($11:$11)=COUNTA($H$9:CQ$9), "Input for next period", "") ->  | CS9: =IF(SUM($11:$11)=COUNTA($H$9:CR$9), "Input for next period", "") ->  | CT9: =IF(SUM($11:$11)=COUNTA($H$9:CS$9), "Input for next period", "") ->  | CU9: =IF(SUM($11:$11)=COUNTA($H$9:CT$9), "Input for next period", "") -> 
E10: Regulatory period | H10: 2015-20 | M10: 2020-25
E11: Years in regulatory period | H11: 5 | M11: 5
E13: Lagged inflation approach | F13: All-lagged
E14: =IF($F$13="All-lagged", "Lagged actual", "Actual")& " CPI inflation rate" -> Lagged actual CPI inflation rate | G14: 0.01717557252 | H14: 0.01688555347 | I14: 0.0147601476 | J14: 0.01909090909 | K14: 0.0178412132 | L14: 0.01840490798 | M14: 0.008605851979 | N14: 0.03498293515 | O14: 0.07831821929 | P14: 0.04051987768 | Q14: 0.026
E15: Actual CPI (one year lagged) | F15: =G15/IF($F$13="Partially-lagged", (1+F14), (1+G14)) -> 0.9831144465 | G15: 1 | H15: =G15*(1+IF($F$13="Partially-lagged",G14,H14)) -> 1.016885553 | I15: 1.031894934 | J15: 1.051594747 | K15: 1.070356473 | L15: 1.090056285 | M15: 1.099437148 | N15: 1.137898687 | O15: 1.227016886 | P15: =O15*(1+IF($F$13="Partially-lagged",O14,P14)) -> 1.27673546 | Q15: 1.309930582 | R15: 1.309930582 | S15: 1.309930582 | T15: 1.309930582 | U15: 1.309930582 | V15: 1.309930582 | W15: 1.309930582 | X15: 1.309930582 | Y15: 1.309930582 | Z15: 1.309930582 | AA15: 1.309930582 | AB15: 1.309930582 | AC15: 1.309930582 | AD15: 1.309930582 | AE15: 1.309930582 | AF15: 1.309930582 | AG15: 1.309930582 | AH15: 1.309930582 | AI15: 1.309930582 | AJ15: 1.309930582 | AK15: 1.309930582 | AL15: 1.309930582 | AM15: 1.309930582 | AN15: =AM15*(1+IF($F$13="Partially-lagged",AM14,AN14)) -> 1.309930582 | AO15: 1.309930582 | AP15: 1.309930582 | AQ15: 1.309930582 | AR15: 1.309930582 | AS15: 1.309930582 | AT15: 1.309930582 | AU15: 1.309930582 | AV15: 1.309930582 | AW15: 1.309930582 | AX15: 1.309930582 | AY15: 1.309930582 | AZ15: 1.309930582 | BA15: 1.309930582 | BB15: 1.309930582 | BC15: 1.309930582 | BD15: 1.309930582 | BE15: 1.309930582 | BF15: 1.309930582 | BG15: 1.309930582 | BH15: 1.309930582 | BI15: 1.309930582 | BJ15: 1.309930582 | BK15: 1.309930582 | BL15: 1.309930582 | BM15: 1.309930582 | BN15: 1.309930582 | BO15: 1.309930582 | BP15: 1.309930582 | BQ15: 1.309930582 | BR15: 1.309930582 | BS15: 1.309930582 | BT15: =BS15*(1+IF($F$13="Partially-lagged",BS14,BT14)) -> 1.309930582 | BU15: 1.309930582 | BV15: 1.309930582 | BW15: 1.309930582 | BX15: 1.309930582 | BY15: 1.309930582 | BZ15: 1.309930582 | CA15: 1.309930582 | CB15: 1.309930582 | CC15: 1.309930582 | CD15: 1.309930582 | CE15: 1.309930582 | CF15: 1.309930582 | CG15: 1.309930582 | CH15: 1.309930582 | CI15: 1.309930582 | CJ15: 1.309930582 | CK15: 1.309930582 | CL15: 1.309930582 | CM15: 1.309930582 | CN15: 1.309930582 | CO15: 1.309930582 | CP15: =CO15*(1+IF($F$13="Partially-lagged",CO14,CP14)) -> 1.309930582 | CQ15: 1.309930582 | CR15: 1.309930582 | CS15: 1.309930582 | CT15: 1.309930582 | CU15: 1.309930582
E17: Nominal vanilla WACC (fixed real time varying) | G17: 0.09482195735 | H17: 0.04518717396 | I17: 0.04368484196 | J17: 0.04861315192 | K17: 0.04750581004 | L17: 0.04808593348 | M17: 0.03041529996 | N17: 0.05612097384 | O17: 0.1000802166 | P17: 0.06272176733 | Q17: 0.04883124871
E18: Nominal vanilla WACC index | F18: =G18/(1+G17) -> 0.9133905228 | G18: 1 | H18: =G18*(1+H17) -> 1.045187174 | I18: 1.09084601 | J18: 1.143875473 | K18: 1.198216204 | L18: 1.255833549 | M18: 1.294030103 | N18: 1.366652333 | O18: 1.503427194 | P18: 1.597724805 | Q18: 1.675743702
E19: Real vanilla WACC | G19: 0.07633528265 | H19: 0.02783166738 | I19: 0.02850397153 | J19: 0.02896919456 | K19: 0.02914462143 | L19: 0.02914462143 | M19: 0.02162336054 | N19: 0.02042356252 | O19: 0.02018142411 | P19: 0.02133730468 | Q19: 0.02225267906
E20: Real vanilla WACC index | F20: =G20/(1+G19) -> 0.929078528 | G20: 1 | H20: =G20*(1+H19) -> 1.027831667 | I20: 1.057128952 | J20: 1.087753126 | K20: 1.119455279 | L20: 1.15208138 | M20: 1.176993251 | N20: 1.201031646 | O20: 1.225270175 | P20: 1.251414138 | Q20: 1.279261455 | R20: 1.279261455 | S20: 1.279261455 | T20: 1.279261455 | U20: 1.279261455 | V20: 1.279261455 | W20: 1.279261455 | X20: 1.279261455 | Y20: 1.279261455 | Z20: 1.279261455 | AA20: 1.279261455 | AB20: 1.279261455 | AC20: 1.279261455 | AD20: 1.279261455 | AE20: 1.279261455 | AF20: 1.279261455 | AG20: 1.279261455 | AH20: 1.279261455 | AI20: 1.279261455 | AJ20: 1.279261455 | AK20: 1.279261455 | AL20: 1.279261455 | AM20: 1.279261455 | AN20: 1.279261455 | AO20: 1.279261455 | AP20: 1.279261455 | AQ20: 1.279261455 | AR20: 1.279261455 | AS20: 1.279261455 | AT20: 1.279261455 | AU20: 1.279261455 | AV20: 1.279261455 | AW20: 1.279261455 | AX20: 1.279261455 | AY20: 1.279261455 | AZ20: 1.279261455 | BA20: 1.279261455 | BB20: 1.279261455 | BC20: 1.279261455 | BD20: 1.279261455 | BE20: 1.279261455 | BF20: 1.279261455 | BG20: 1.279261455 | BH20: 1.279261455 | BI20: 1.279261455 | BJ20: 1.279261455 | BK20: 1.279261455 | BL20: 1.279261455 | BM20: 1.279261455 | BN20: 1.279261455 | BO20: 1.279261455 | BP20: 1.279261455 | BQ20: 1.279261455 | BR20: 1.279261455 | BS20: 1.279261455 | BT20: =BS20*(1+BT19) -> 1.279261455 | BU20: 1.279261455 | BV20: 1.279261455 | BW20: 1.279261455 | BX20: 1.279261455 | BY20: 1.279261455 | BZ20: 1.279261455 | CA20: 1.279261455 | CB20: 1.279261455 | CC20: 1.279261455 | CD20: 1.279261455 | CE20: 1.279261455 | CF20: 1.279261455 | CG20: 1.279261455 | CH20: 1.279261455 | CI20: 1.279261455 | CJ20: 1.279261455 | CK20: 1.279261455 | CL20: 1.279261455 | CM20: 1.279261455 | CN20: 1.279261455 | CO20: 1.279261455 | CP20: =CO20*(1+CP19) -> 1.279261455 | CQ20: 1.279261455 | CR20: 1.279261455 | CS20: 1.279261455 | CT20: 1.279261455 | CU20: 1.279261455
E22: Depreciation timing - year after incurred capex | H22: No | I22: No | J22: No | K22: No | L22: No
D24: Starting capital base and actual gross capex - As incurred ($m, nominal)
E25: Asset class | G25: ="Capital base (closing as at "&$G$4&")" -> Capital base (closing as at 2014-15) | H25: ="Actual gross capex ("&H4&")" -> Actual gross capex (2015-16) | I25: =IF(COUNTA($H$25:H$25)<SUM($11:$11), "Actual gross capex ("&I4&")", "") -> Actual gross capex (2016-17) | J25: =IF(COUNTA($H$25:I$25)<SUM($11:$11), "Actual gross capex ("&J4&")", "") -> Actual gross capex (2017-18) | K25: =IF(COUNTA($H$25:J$25)<SUM($11:$11), "Actual gross capex ("&K4&")", "") -> Actual gross capex (2018-19) | L25: =IF(COUNTA($H$25:K$25)<SUM($11:$11), "Actual gross capex ("&L4&")", "") -> Actual gross capex (2019-20) | M25: =IF(COUNTA($H$25:L$25)<SUM($11:$11), "Actual gross capex ("&M4&")", "") -> Actual gross capex (2020-21) | N25: =IF(COUNTA($H$25:M$25)<SUM($11:$11), "Actual gross capex ("&N4&")", "") -> Actual gross capex (2021-22) | O25: =IF(COUNTA($H$25:N$25)<SUM($11:$11), "Actual gross capex ("&O4&")", "") -> Actual gross capex (2022-23) | P25: =IF(COUNTA($H$25:O$25)<SUM($11:$11), "Actual gross capex ("&P4&")", "") -> Actual gross capex (2023-24) | Q25: =IF(COUNTA($H$25:P$25)<SUM($11:$11), "Actual gross capex ("&Q4&")", "") -> Actual gross capex (2024-25) | R25: =IF(COUNTA($H$25:Q$25)<SUM($11:$11), "Actual gross capex ("&R4&")", "") ->  | S25: =IF(COUNTA($H$25:R$25)<SUM($11:$11), "Actual gross capex ("&S4&")", "") ->  | T25: =IF(COUNTA($H$25:S$25)<SUM($11:$11), "Actual gross capex ("&T4&")", "") ->  | U25: =IF(COUNTA($H$25:T$25)<SUM($11:$11), "Actual gross capex ("&U4&")", "") ->  | V25: =IF(COUNTA($H$25:U$25)<SUM($11:$11), "Actual gross capex ("&V4&")", "") ->  | W25: =IF(COUNTA($H$25:V$25)<SUM($11:$11), "Actual gross capex ("&W4&")", "") ->  | X25: =IF(COUNTA($H$25:W$25)<SUM($11:$11), "Actual gross capex ("&X4&")", "") ->  | Y25: =IF(COUNTA($H$25:X$25)<SUM($11:$11), "Actual gross capex ("&Y4&")", "") ->  | Z25: =IF(COUNTA($H$25:Y$25)<SUM($11:$11), "Actual gross capex ("&Z4&")", "") ->  | AA25: =IF(COUNTA($H$25:Z$25)<SUM($11:$11), "Actual gross capex ("&AA4&")", "") ->  | AB25: =IF(COUNTA($H$25:AA$25)<SUM($11:$11), "Actual gross capex ("&AB4&")", "") ->  | AC25: =IF(COUNTA($H$25:AB$25)<SUM($11:$11), "Actual gross capex ("&AC4&")", "") ->  | AD25: =IF(COUNTA($H$25:AC$25)<SUM($11:$11), "Actual gross capex ("&AD4&")", "") ->  | AE25: =IF(COUNTA($H$25:AD$25)<SUM($11:$11), "Actual gross capex ("&AE4&")", "") ->  | AF25: =IF(COUNTA($H$25:AE$25)<SUM($11:$11), "Actual gross capex ("&AF4&")", "") ->  | AG25: =IF(COUNTA($H$25:AF$25)<SUM($11:$11), "Actual gross capex ("&AG4&")", "") ->  | AH25: =IF(COUNTA($H$25:AG$25)<SUM($11:$11), "Actual gross capex ("&AH4&")", "") ->  | AI25: =IF(COUNTA($H$25:AH$25)<SUM($11:$11), "Actual gross capex ("&AI4&")", "") ->  | AJ25: =IF(COUNTA($H$25:AI$25)<SUM($11:$11), "Actual gross capex ("&AJ4&")", "") ->  | AK25: =IF(COUNTA($H$25:AJ$25)<SUM($11:$11), "Actual gross capex ("&AK4&")", "") ->  | AL25: =IF(COUNTA($H$25:AK$25)<SUM($11:$11), "Actual gross capex ("&AL4&")", "") ->  | AM25: =IF(COUNTA($H$25:AL$25)<SUM($11:$11), "Actual gross capex ("&AM4&")", "") ->  | AN25: =IF(COUNTA($H$25:AM$25)<SUM($11:$11), "Actual gross capex ("&AN4&")", "") ->  | AO25: =IF(COUNTA($H$25:AN$25)<SUM($11:$11), "Actual gross capex ("&AO4&")", "") ->  | AP25: =IF(COUNTA($H$25:AO$25)<SUM($11:$11), "Actual gross capex ("&AP4&")", "") ->  | AQ25: =IF(COUNTA($H$25:AP$25)<SUM($11:$11), "Actual gross capex ("&AQ4&")", "") ->  | AR25: =IF(COUNTA($H$25:AQ$25)<SUM($11:$11), "Actual gross capex ("&AR4&")", "") ->  | AS25: =IF(COUNTA($H$25:AR$25)<SUM($11:$11), "Actual gross capex ("&AS4&")", "") ->  | AT25: =IF(COUNTA($H$25:AS$25)<SUM($11:$11), "Actual gross capex ("&AT4&")", "") ->  | AU25: =IF(COUNTA($H$25:AT$25)<SUM($11:$11), "Actual gross capex ("&AU4&")", "") ->  | AV25: =IF(COUNTA($H$25:AU$25)<SUM($11:$11), "Actual gross capex ("&AV4&")", "") ->  | AW25: =IF(COUNTA($H$25:AV$25)<SUM($11:$11), "Actual gross capex ("&AW4&")", "") ->  | AX25: =IF(COUNTA($H$25:AW$25)<SUM($11:$11), "Actual gross capex ("&AX4&")", "") ->  | AY25: =IF(COUNTA($H$25:AX$25)<SUM($11:$11), "Actual gross capex ("&AY4&")", "") ->  | AZ25: =IF(COUNTA($H$25:AY$25)<SUM($11:$11), "Actual gross capex ("&AZ4&")", "") ->  | BA25: =IF(COUNTA($H$25:AZ$25)<SUM($11:$11), "Actual gross capex ("&BA4&")", "") ->  | BB25: =IF(COUNTA($H$25:BA$25)<SUM($11:$11), "Actual gross capex ("&BB4&")", "") ->  | BC25: =IF(COUNTA($H$25:BB$25)<SUM($11:$11), "Actual gross capex ("&BC4&")", "") ->  | BD25: =IF(COUNTA($H$25:BC$25)<SUM($11:$11), "Actual gross capex ("&BD4&")", "") ->  | BE25: =IF(COUNTA($H$25:BD$25)<SUM($11:$11), "Actual gross capex ("&BE4&")", "") ->  | BF25: =IF(COUNTA($H$25:BE$25)<SUM($11:$11), "Actual gross capex ("&BF4&")", "") ->  | BG25: =IF(COUNTA($H$25:BF$25)<SUM($11:$11), "Actual gross capex ("&BG4&")", "") ->  | BH25: =IF(COUNTA($H$25:BG$25)<SUM($11:$11), "Actual gross capex ("&BH4&")", "") ->  | BI25: =IF(COUNTA($H$25:BH$25)<SUM($11:$11), "Actual gross capex ("&BI4&")", "") ->  | BJ25: =IF(COUNTA($H$25:BI$25)<SUM($11:$11), "Actual gross capex ("&BJ4&")", "") ->  | BK25: =IF(COUNTA($H$25:BJ$25)<SUM($11:$11), "Actual gross capex ("&BK4&")", "") ->  | BL25: =IF(COUNTA($H$25:BK$25)<SUM($11:$11), "Actual gross capex ("&BL4&")", "") ->  | BM25: =IF(COUNTA($H$25:BL$25)<SUM($11:$11), "Actual gross capex ("&BM4&")", "") ->  | BN25: =IF(COUNTA($H$25:BM$25)<SUM($11:$11), "Actual gross capex ("&BN4&")", "") ->  | BO25: =IF(COUNTA($H$25:BN$25)<SUM($11:$11), "Actual gross capex ("&BO4&")", "") ->  | BP25: =IF(COUNTA($H$25:BO$25)<SUM($11:$11), "Actual gross capex ("&BP4&")", "") ->  | BQ25: =IF(COUNTA($H$25:BP$25)<SUM($11:$11), "Actual gross capex ("&BQ4&")", "") ->  | BR25: =IF(COUNTA($H$25:BQ$25)<SUM($11:$11), "Actual gross capex ("&BR4&")", "") ->  | BS25: =IF(COUNTA($H$25:BR$25)<SUM($11:$11), "Actual gross capex ("&BS4&")", "") ->  | BT25: =IF(COUNTA($H$25:BS$25)<SUM($11:$11), "Actual gross capex ("&BT4&")", "") ->  | BU25: =IF(COUNTA($H$25:BT$25)<SUM($11:$11), "Actual gross capex ("&BU4&")", "") ->  | BV25: =IF(COUNTA($H$25:BU$25)<SUM($11:$11), "Actual gross capex ("&BV4&")", "") ->  | BW25: =IF(COUNTA($H$25:BV$25)<SUM($11:$11), "Actual gross capex ("&BW4&")", "") ->  | BX25: =IF(COUNTA($H$25:BW$25)<SUM($11:$11), "Actual gross capex ("&BX4&")", "") ->  | BY25: =IF(COUNTA($H$25:BX$25)<SUM($11:$11), "Actual gross capex ("&BY4&")", "") ->  | BZ25: =IF(COUNTA($H$25:BY$25)<SUM($11:$11), "Actual gross capex ("&BZ4&")", "") ->  | CA25: =IF(COUNTA($H$25:BZ$25)<SUM($11:$11), "Actual gross capex ("&CA4&")", "") ->  | CB25: =IF(COUNTA($H$25:CA$25)<SUM($11:$11), "Actual gross capex ("&CB4&")", "") ->  | CC25: =IF(COUNTA($H$25:CB$25)<SUM($11:$11), "Actual gross capex ("&CC4&")", "") ->  | CD25: =IF(COUNTA($H$25:CC$25)<SUM($11:$11), "Actual gross capex ("&CD4&")", "") ->  | CE25: =IF(COUNTA($H$25:CD$25)<SUM($11:$11), "Actual gross capex ("&CE4&")", "") ->  | CF25: =IF(COUNTA($H$25:CE$25)<SUM($11:$11), "Actual gross capex ("&CF4&")", "") ->  | CG25: =IF(COUNTA($H$25:CF$25)<SUM($11:$11), "Actual gross capex ("&CG4&")", "") ->  | CH25: =IF(COUNTA($H$25:CG$25)<SUM($11:$11), "Actual gross capex ("&CH4&")", "") ->  | CI25: =IF(COUNTA($H$25:CH$25)<SUM($11:$11), "Actual gross capex ("&CI4&")", "") ->  | CJ25: =IF(COUNTA($H$25:CI$25)<SUM($11:$11), "Actual gross capex ("&CJ4&")", "") ->  | CK25: =IF(COUNTA($H$25:CJ$25)<SUM($11:$11), "Actual gross capex ("&CK4&")", "") ->  | CL25: =IF(COUNTA($H$25:CK$25)<SUM($11:$11), "Actual gross capex ("&CL4&")", "") ->  | CM25: =IF(COUNTA($H$25:CL$25)<SUM($11:$11), "Actual gross capex ("&CM4&")", "") ->  | CN25: =IF(COUNTA($H$25:CM$25)<SUM($11:$11), "Actual gross capex ("&CN4&")", "") ->  | CO25: =IF(COUNTA($H$25:CN$25)<SUM($11:$11), "Actual gross capex ("&CO4&")", "") ->  | CP25: =IF(COUNTA($H$25:CO$25)<SUM($11:$11), "Actual gross capex ("&CP4&")", "") ->  | CQ25: =IF(COUNTA($H$25:CP$25)<SUM($11:$11), "Actual gross capex ("&CQ4&")", "") ->  | CR25: =IF(COUNTA($H$25:CQ$25)<SUM($11:$11), "Actual gross capex ("&CR4&")", "") ->  | CS25: =IF(COUNTA($H$25:CR$25)<SUM($11:$11), "Actual gross capex ("&CS4&")", "") ->  | CT25: =IF(COUNTA($H$25:CS$25)<SUM($11:$11), "Actual gross capex ("&CT4&")", "") ->  | CU25: =IF(COUNTA($H$25:CT$25)<SUM($11:$11), "Actual gross capex ("&CU4&")", "") -> 
D27: 1 | E27: Trunk Wilton-Sydney | G27: 52.40817492 | H27: 0.04793632 | I27: 0.54864622 | J27: 0 | K27: 0 | L27: 0.00978922 | M27: 0 | N27: 0 | O27: 0.69425502 | P27: 0.06088863 | Q27: 0
D28: 2 | E28: Trunk Sydney-Newcastle | G28: 77.02610571 | H28: 0.9842695 | I28: 0.10454387 | J28: 0.04143672 | K28: 0.88531933 | L28: 1.72018223 | M28: 0.01222619 | N28: 0.09264984 | O28: 0.50864162 | P28: 0.27938282 | Q28: 0.2213922015
D29: 3 | E29: Trunk Wilton-Wollongong | G29: 8.424704535 | H29: 0.26593549 | I29: 0.75047972 | J29: 0 | K29: 0.00378996 | L29: 0.36378884 | M29: 0 | N29: 0 | O29: 0.0216764 | P29: 0.04578344 | Q29: 0.6487726242
D30: 4 | E30: Contract Meters | G30: 9.358438863 | H30: 1.21120585 | I30: 0.83325375 | J30: 1.05697814 | K30: 0.97360758 | L30: 1.07832923 | M30: 0.98740391 | N30: 1.0748287 | O30: 0.72405459 | P30: 2.95257989 | Q30: 1.906976114
D31: 5 | E31: Fixed Plant - Distribution | G31: 127.5397502 | H31: 6.63448128 | I31: 8.98300851 | J31: 6.53533484 | K31: 2.80590603 | L31: 10.50007331 | M31: 7.59184857 | N31: 5.33383559 | O31: 1.45713145 | P31: 8.9196446 | Q31: 25.07559324
D32: 6 | E32: HP Mains | G32: 402.9732628 | H32: 23.09949311 | I32: 16.83135695 | J32: 8.189515978 | K32: 5.706930624 | L32: 6.8070047 | M32: 7.88328547 | N32: 13.94712025 | O32: 26.83731356 | P32: 10.06885255 | Q32: 25.82891413
D33: 7 | E33: HP Services | G33: 6.70250744 | H33: 1.17038081 | I33: 1.60061519 | J33: 0.78504594 | K33: 1.459586286 | L33: 1.51799934 | M33: 2.16521874 | N33: 1.14676942 | O33: 0.70300238 | P33: 0.94803924 | Q33: 1.40172421
D34: 8 | E34: MP Mains | G34: 1087.030545 | H34: 25.88192751 | I34: 31.10659226 | J34: 30.9133376 | K34: 38.45865952 | L34: 23.00132167 | M34: 28.71986193 | N34: 35.39975586 | O34: 25.58070682 | P34: 26.99692125 | Q34: 31.64712185
D35: 9 | E35: MP Services | G35: 748.6698192 | H35: 52.44632011 | I35: 58.17601426 | J35: 69.70759336 | K35: 64.54988709 | L35: 57.27724954 | M35: 59.70510481 | N35: 49.52781467 | O35: 59.37048054 | P35: 57.30105666 | Q35: 54.49248832
D36: 10 | E36: Meter Reading Devices | G36: 47.39761923 | H36: 5.20447318 | I36: 3.70609383 | J36: 4.9141112 | K36: 3.91915122 | L36: 3.66300436 | M36: 2.35979003 | N36: 1.39261144 | O36: 2.45238701 | P36: 4.61763867 | Q36: 1.348802517
D37: 11 | E37: Country POTS | G37: 16.11166104 | H37: 0 | I37: 0.00271387 | J37: 0.01781434 | K37: 0.0109074 | L37: 0.20682634 | M37: 0.01381048 | N37: 0.15449233 | O37: 0.35513613 | P37: 0.06160743 | Q37: 0
D38: 12 | E38: Tariff Meters | G38: 223.1373167 | H38: 31.82575055 | I38: 38.77107766 | J38: 42.96248173 | K38: 42.14622539 | L38: 35.02220369 | M38: 28.16053507 | N38: 21.22789769 | O38: 25.48015299 | P38: 29.56438985 | Q38: 31.65648277
D39: 13 | E39: Computers - IT Infrastructure | G39: 0.2405043365 | H39: 0 | I39: 0 | J39: 0 | K39: 0.74223864 | L39: 2.71113176 | M39: 1.32858082 | N39: 1.49379304 | O39: 2.91892447 | P39: 3.08003957 | Q39: 0.1793898644
D40: 14 | E40: Fixed Plant | G40: 3.667231062 | H40: 1.76219041 | I40: 0.74416462 | J40: 0.72462061 | K40: 0.5289955 | L40: 0.12188519 | M40: 0.25640404 | N40: 0.40570216 | O40: 0.70141975 | P40: 0.34289392 | Q40: 0
D41: 15 | E41: Furniture | G41: 0.06361906714 | H41: 0 | I41: 0 | J41: 0 | K41: 0 | L41: 0 | M41: 0 | N41: 0 | O41: 0 | P41: 0 | Q41: 0
D42: 16 | E42: Land | G42: 11.18929622 | H42: 0.03142214 | I42: 0.00868497 | J42: -0.12972176 | K42: 0 | L42: 0 | M42: 0.14089057 | N42: 0 | O42: 0 | P42: 0 | Q42: 0
D43: 17 | E43: Low value assets | G43: 0.01960055183 | H43: 0 | I43: 0 | J43: 0 | K43: 0 | L43: 0 | M43: 0 | N43: 0 | O43: 0 | P43: 0 | Q43: 0
D44: 18 | E44: Mobile Plant | G44: 1.913196114 | H44: 0 | I44: 0 | J44: 0 | K44: 0 | L44: 1.03976245 | M44: 1.40165363 | N44: 1.22081782 | O44: 4.71231006 | P44: -2.85428317 | Q44: 1.072923788
D45: 19 | E45: Vehicles | G45: 9.271761731 | H45: 0.80958854 | I45: 1.81208388 | J45: 0.74430148 | K45: 2.02108139 | L45: 0.44519534 | M45: 4.39793117 | N45: 2.64414613 | O45: 4.00356701 | P45: 4.67168015 | Q45: 2.093019158
D46: 20 | E46: Existing pigging and inspection costs | L46: 0 | M46: 0 | N46: 0 | O46: 0 | P46: 0 | Q46: 0
D47: 21 | E47: Future of Gas MP Services
D48: 22 | E48: Stock | G48: 0.9067064975
D49: 23 | E49: Existing pigging and inspection costs tax depreciation adjustment - 2023-24 only
D50: 24 | E50: 0
D51: 25 | E51: 0
D52: 26 | E52: 0
D53: 27 | E53: 0
D54: 28 | E54: 0
D55: 29 | E55: 0
D56: 30 | E56: 0
D57: 31 | E57: 0
D58: 32 | E58: 0
D59: 33 | E59: 0
D60: 34 | E60: 0
D61: 35 | E61: 0
D62: 36 | E62: 0
... 77 more rows

Sheet TAB input
E2: =IF('Capital base input'!$F$8=$F$8, 'Capital base input'!$F$8, $F$8)&" - TAB input - Gas DNSP "&Intro!$I$3&" - version "&Intro!$M$4 -> JGN - TAB input - Gas DNSP RFM - Depreciation tracking module - version 1.1 | J2: Input cells in blue
E4: Year | F4: =IF(LEN($H$9)>4, CONCATENATE(LEFT($H$9, 4)-2 & "-" & IF(AND(RIGHT($H$9, 2)<"12", RIGHT($H$9, 2)>"01"), "0", "") & IF(RIGHT($H$9, 2)="00", "98", IF(RIGHT($H$9, 2)="01", "99", RIGHT($H$9, 2)-2))), $H$9-2) -> 2018-19 | G4: =IF(LEN(F4)>4,CONCATENATE(LEFT(F4,4)+1&"-"&IF(RIGHT(F4, 2)<"09", "0","")&IF(RIGHT(F4, 2)="99", "00", RIGHT(F4,2)+1)),F4+1) -> 2019-20 | H4: =IF(LEN(G4)>4,CONCATENATE(LEFT(G4,4)+1&"-"&IF(RIGHT(G4, 2)<"09", "0","")&IF(RIGHT(G4, 2)="99", "00", RIGHT(G4,2)+1)),G4+1) -> 2020-21 | I4: 2021-22 | J4: 2022-23 | K4: 2023-24 | L4: 2024-25 | M4: 2025-26 | N4: 2026-27 | O4: 2027-28 | P4: 2028-29 | Q4: 2029-30 | R4: 2030-31 | S4: 2031-32 | T4: 2032-33 | U4: 2033-34 | V4: 2034-35 | W4: 2035-36 | X4: 2036-37 | Y4: 2037-38 | Z4: 2038-39 | AA4: 2039-40 | AB4: 2040-41 | AC4: 2041-42 | AD4: 2042-43 | AE4: 2043-44 | AF4: 2044-45 | AG4: 2045-46 | AH4: 2046-47 | AI4: 2047-48 | AJ4: 2048-49 | AK4: 2049-50 | AL4: 2050-51 | AM4: 2051-52 | AN4: 2052-53 | AO4: 2053-54 | AP4: 2054-55 | AQ4: 2055-56 | AR4: 2056-57 | AS4: 2057-58 | AT4: 2058-59 | AU4: 2059-60 | AV4: 2060-61 | AW4: 2061-62 | AX4: 2062-63 | AY4: 2063-64 | AZ4: 2064-65 | BA4: 2065-66 | BB4: 2066-67 | BC4: 2067-68 | BD4: 2068-69 | BE4: 2069-70 | BF4: 2070-71 | BG4: 2071-72 | BH4: 2072-73 | BI4: 2073-74 | BJ4: 2074-75 | BK4: 2075-76 | BL4: 2076-77 | BM4: 2077-78 | BN4: 2078-79 | BO4: 2079-80 | BP4: 2080-81 | BQ4: 2081-82 | BR4: 2082-83 | BS4: 2083-84 | BT4: =IF(LEN(BS4)>4,CONCATENATE(LEFT(BS4,4)+1&"-"&IF(RIGHT(BS4, 2)<"09", "0","")&IF(RIGHT(BS4, 2)="99", "00", RIGHT(BS4,2)+1)),BS4+1) -> 2084-85 | BU4: 2085-86 | BV4: 2086-87 | BW4: 2087-88 | BX4: 2088-89 | BY4: 2089-90 | BZ4: 2090-91 | CA4: 2091-92 | CB4: 2092-93 | CC4: 2093-94 | CD4: 2094-95 | CE4: 2095-96 | CF4: 2096-97 | CG4: 2097-98 | CH4: 2098-99 | CI4: 2099-00 | CJ4: 2100-01 | CK4: 2101-02 | CL4: 2102-03 | CM4: 2103-04 | CN4: 2104-05 | CO4: 2105-06 | CP4: 2106-07
D6: General information
E8: Business name | F8: ='Capital base input'!$F$8 -> JGN
E9: First regulatory year for tracking | H9: 2020-21 | I9: =IF(SUM($11:$11)=COUNTA($H$9:H$9), "Input for next period", "") ->  | J9: =IF(SUM($11:$11)=COUNTA($H$9:I$9), "Input for next period", "") ->  | K9: =IF(SUM($11:$11)=COUNTA($H$9:J$9), "Input for next period", "") ->  | L9: =IF(SUM($11:$11)=COUNTA($H$9:K$9), "Input for next period", "") ->  | M9: =IF(SUM($11:$11)=COUNTA($H$9:L$9), "Input for next period", "") -> Input for next period | N9: =IF(SUM($11:$11)=COUNTA($H$9:M$9), "Input for next period", "") ->  | O9: =IF(SUM($11:$11)=COUNTA($H$9:N$9), "Input for next period", "") ->  | P9: =IF(SUM($11:$11)=COUNTA($H$9:O$9), "Input for next period", "") ->  | Q9: =IF(SUM($11:$11)=COUNTA($H$9:P$9), "Input for next period", "") ->  | R9: =IF(SUM($11:$11)=COUNTA($H$9:Q$9), "Input for next period", "") ->  | S9: =IF(SUM($11:$11)=COUNTA($H$9:R$9), "Input for next period", "") ->  | T9: =IF(SUM($11:$11)=COUNTA($H$9:S$9), "Input for next period", "") ->  | U9: =IF(SUM($11:$11)=COUNTA($H$9:T$9), "Input for next period", "") ->  | V9: =IF(SUM($11:$11)=COUNTA($H$9:U$9), "Input for next period", "") ->  | W9: =IF(SUM($11:$11)=COUNTA($H$9:V$9), "Input for next period", "") ->  | X9: =IF(SUM($11:$11)=COUNTA($H$9:W$9), "Input for next period", "") ->  | Y9: =IF(SUM($11:$11)=COUNTA($H$9:X$9), "Input for next period", "") ->  | Z9: =IF(SUM($11:$11)=COUNTA($H$9:Y$9), "Input for next period", "") ->  | AA9: =IF(SUM($11:$11)=COUNTA($H$9:Z$9), "Input for next period", "") ->  | AB9: =IF(SUM($11:$11)=COUNTA($H$9:AA$9), "Input for next period", "") ->  | AC9: =IF(SUM($11:$11)=COUNTA($H$9:AB$9), "Input for next period", "") ->  | AD9: =IF(SUM($11:$11)=COUNTA($H$9:AC$9), "Input for next period", "") ->  | AE9: =IF(SUM($11:$11)=COUNTA($H$9:AD$9), "Input for next period", "") ->  | AF9: =IF(SUM($11:$11)=COUNTA($H$9:AE$9), "Input for next period", "") ->  | AG9: =IF(SUM($11:$11)=COUNTA($H$9:AF$9), "Input for next period", "") ->  | AH9: =IF(SUM($11:$11)=COUNTA($H$9:AG$9), "Input for next period", "") ->  | AI9: =IF(SUM($11:$11)=COUNTA($H$9:AH$9), "Input for next period", "") ->  | AJ9: =IF(SUM($11:$11)=COUNTA($H$9:AI$9), "Input for next period", "") ->  | AK9: =IF(SUM($11:$11)=COUNTA($H$9:AJ$9), "Input for next period", "") ->  | AL9: =IF(SUM($11:$11)=COUNTA($H$9:AK$9), "Input for next period", "") ->  | AM9: =IF(SUM($11:$11)=COUNTA($H$9:AL$9), "Input for next period", "") ->  | AN9: =IF(SUM($11:$11)=COUNTA($H$9:AM$9), "Input for next period", "") ->  | AO9: =IF(SUM($11:$11)=COUNTA($H$9:AN$9), "Input for next period", "") ->  | AP9: =IF(SUM($11:$11)=COUNTA($H$9:AO$9), "Input for next period", "") ->  | AQ9: =IF(SUM($11:$11)=COUNTA($H$9:AP$9), "Input for next period", "") ->  | AR9: =IF(SUM($11:$11)=COUNTA($H$9:AQ$9), "Input for next period", "") ->  | AS9: =IF(SUM($11:$11)=COUNTA($H$9:AR$9), "Input for next period", "") ->  | AT9: =IF(SUM($11:$11)=COUNTA($H$9:AS$9), "Input for next period", "") ->  | AU9: =IF(SUM($11:$11)=COUNTA($H$9:AT$9), "Input for next period", "") ->  | AV9: =IF(SUM($11:$11)=COUNTA($H$9:AU$9), "Input for next period", "") ->  | AW9: =IF(SUM($11:$11)=COUNTA($H$9:AV$9), "Input for next period", "") ->  | AX9: =IF(SUM($11:$11)=COUNTA($H$9:AW$9), "Input for next period", "") ->  | AY9: =IF(SUM($11:$11)=COUNTA($H$9:AX$9), "Input for next period", "") ->  | AZ9: =IF(SUM($11:$11)=COUNTA($H$9:AY$9), "Input for next period", "") ->  | BA9: =IF(SUM($11:$11)=COUNTA($H$9:AZ$9), "Input for next period", "") ->  | BB9: =IF(SUM($11:$11)=COUNTA($H$9:BA$9), "Input for next period", "") ->  | BC9: =IF(SUM($11:$11)=COUNTA($H$9:BB$9), "Input for next period", "") ->  | BD9: =IF(SUM($11:$11)=COUNTA($H$9:BC$9), "Input for next period", "") ->  | BE9: =IF(SUM($11:$11)=COUNTA($H$9:BD$9), "Input for next period", "") ->  | BF9: =IF(SUM($11:$11)=COUNTA($H$9:BE$9), "Input for next period", "") ->  | BG9: =IF(SUM($11:$11)=COUNTA($H$9:BF$9), "Input for next period", "") ->  | BH9: =IF(SUM($11:$11)=COUNTA($H$9:BG$9), "Input for next period", "") ->  | BI9: =IF(SUM($11:$11)=COUNTA($H$9:BH$9), "Input for next period", "") ->  | BJ9: =IF(SUM($11:$11)=COUNTA($H$9:BI$9), "Input for next period", "") ->  | BK9: =IF(SUM($11:$11)=COUNTA($H$9:BJ$9), "Input for next period", "") ->  | BL9: =IF(SUM($11:$11)=COUNTA($H$9:BK$9), "Input for next period", "") ->  | BM9: =IF(SUM($11:$11)=COUNTA($H$9:BL$9), "Input for next period", "") ->  | BN9: =IF(SUM($11:$11)=COUNTA($H$9:BM$9), "Input for next period", "") ->  | BO9: =IF(SUM($11:$11)=COUNTA($H$9:BN$9), "Input for next period", "") ->  | BP9: =IF(SUM($11:$11)=COUNTA($H$9:BO$9), "Input for next period", "") ->  | BQ9: =IF(SUM($11:$11)=COUNTA($H$9:BP$9), "Input for next period", "") ->  | BR9: =IF(SUM($11:$11)=COUNTA($H$9:BQ$9), "Input for next period", "") ->  | BS9: =IF(SUM($11:$11)=COUNTA($H$9:BR$9), "Input for next period", "") ->  | BT9: =IF(SUM($11:$11)=COUNTA($H$9:BS$9), "Input for next period", "") ->  | BU9: =IF(SUM($11:$11)=COUNTA($H$9:BT$9), "Input for next period", "") ->  | BV9: =IF(SUM($11:$11)=COUNTA($H$9:BU$9), "Input for next period", "") ->  | BW9: =IF(SUM($11:$11)=COUNTA($H$9:BV$9), "Input for next period", "") ->  | BX9: =IF(SUM($11:$11)=COUNTA($H$9:BW$9), "Input for next period", "") ->  | BY9: =IF(SUM($11:$11)=COUNTA($H$9:BX$9), "Input for next period", "") ->  | BZ9: =IF(SUM($11:$11)=COUNTA($H$9:BY$9), "Input for next period", "") ->  | CA9: =IF(SUM($11:$11)=COUNTA($H$9:BZ$9), "Input for next period", "") ->  | CB9: =IF(SUM($11:$11)=COUNTA($H$9:CA$9), "Input for next period", "") ->  | CC9: =IF(SUM($11:$11)=COUNTA($H$9:CB$9), "Input for next period", "") ->  | CD9: =IF(SUM($11:$11)=COUNTA($H$9:CC$9), "Input for next period", "") ->  | CE9: =IF(SUM($11:$11)=COUNTA($H$9:CD$9), "Input for next period", "") ->  | CF9: =IF(SUM($11:$11)=COUNTA($H$9:CE$9), "Input for next period", "") ->  | CG9: =IF(SUM($11:$11)=COUNTA($H$9:CF$9), "Input for next period", "") ->  | CH9: =IF(SUM($11:$11)=COUNTA($H$9:CG$9), "Input for next period", "") ->  | CI9: =IF(SUM($11:$11)=COUNTA($H$9:CH$9), "Input for next period", "") ->  | CJ9: =IF(SUM($11:$11)=COUNTA($H$9:CI$9), "Input for next period", "") ->  | CK9: =IF(SUM($11:$11)=COUNTA($H$9:CJ$9), "Input for next period", "") ->  | CL9: =IF(SUM($11:$11)=COUNTA($H$9:CK$9), "Input for next period", "") ->  | CM9: =IF(SUM($11:$11)=COUNTA($H$9:CL$9), "Input for next period", "") ->  | CN9: =IF(SUM($11:$11)=COUNTA($H$9:CM$9), "Input for next period", "") ->  | CO9: =IF(SUM($11:$11)=COUNTA($H$9:CN$9), "Input for next period", "") ->  | CP9: =IF(SUM($11:$11)=COUNTA($H$9:CO$9), "Input for next period", "") -> 
E10: Regulatory period | H10: 2020-25 | I10: =IFERROR(IF(INDEX('Capital base input'!10:10, MATCH(I$4, 'Capital base input'!$4:$4, 0))="", "", INDEX('Capital base input'!10:10, MATCH(I$4, 'Capital base input'!$4:$4, 0))), "") ->  | J10: =IFERROR(IF(INDEX('Capital base input'!10:10, MATCH(J$4, 'Capital base input'!$4:$4, 0))="", "", INDEX('Capital base input'!10:10, MATCH(J$4, 'Capital base input'!$4:$4, 0))), "") ->  | K10: =IFERROR(IF(INDEX('Capital base input'!10:10, MATCH(K$4, 'Capital base input'!$4:$4, 0))="", "", INDEX('Capital base input'!10:10, MATCH(K$4, 'Capital base input'!$4:$4, 0))), "") ->  | L10: =IFERROR(IF(INDEX('Capital base input'!10:10, MATCH(L$4, 'Capital base input'!$4:$4, 0))="", "", INDEX('Capital base input'!10:10, MATCH(L$4, 'Capital base input'!$4:$4, 0))), "") ->  | M10: =IFERROR(IF(INDEX('Capital base input'!10:10, MATCH(M$4, 'Capital base input'!$4:$4, 0))="", "", INDEX('Capital base input'!10:10, MATCH(M$4, 'Capital base input'!$4:$4, 0))), "") ->  | N10: =IFERROR(IF(INDEX('Capital base input'!10:10, MATCH(N$4, 'Capital base input'!$4:$4, 0))="", "", INDEX('Capital base input'!10:10, MATCH(N$4, 'Capital base input'!$4:$4, 0))), "") ->  | O10: =IFERROR(IF(INDEX('Capital base input'!10:10, MATCH(O$4, 'Capital base input'!$4:$4, 0))="", "", INDEX('Capital base input'!10:10, MATCH(O$4, 'Capital base input'!$4:$4, 0))), "") ->  | P10: =IFERROR(IF(INDEX('Capital base input'!10:10, MATCH(P$4, 'Capital base input'!$4:$4, 0))="", "", INDEX('Capital base input'!10:10, MATCH(P$4, 'Capital base input'!$4:$4, 0))), "") ->  | Q10: =IFERROR(IF(INDEX('Capital base input'!10:10, MATCH(Q$4, 'Capital base input'!$4:$4, 0))="", "", INDEX('Capital base input'!10:10, MATCH(Q$4, 'Capital base input'!$4:$4, 0))), "") ->  | R10: =IFERROR(IF(INDEX('Capital base input'!10:10, MATCH(R$4, 'Capital base input'!$4:$4, 0))="", "", INDEX('Capital base input'!10:10, MATCH(R$4, 'Capital base input'!$4:$4, 0))), "") ->  | S10: =IFERROR(IF(INDEX('Capital base input'!10:10, MATCH(S$4, 'Capital base input'!$4:$4, 0))="", "", INDEX('Capital base input'!10:10, MATCH(S$4, 'Capital base input'!$4:$4, 0))), "") ->  | T10: =IFERROR(IF(INDEX('Capital base input'!10:10, MATCH(T$4, 'Capital base input'!$4:$4, 0))="", "", INDEX('Capital base input'!10:10, MATCH(T$4, 'Capital base input'!$4:$4, 0))), "") ->  | U10: =IFERROR(IF(INDEX('Capital base input'!10:10, MATCH(U$4, 'Capital base input'!$4:$4, 0))="", "", INDEX('Capital base input'!10:10, MATCH(U$4, 'Capital base input'!$4:$4, 0))), "") ->  | V10: =IFERROR(IF(INDEX('Capital base input'!10:10, MATCH(V$4, 'Capital base input'!$4:$4, 0))="", "", INDEX('Capital base input'!10:10, MATCH(V$4, 'Capital base input'!$4:$4, 0))), "") ->  | W10: =IFERROR(IF(INDEX('Capital base input'!10:10, MATCH(W$4, 'Capital base input'!$4:$4, 0))="", "", INDEX('Capital base input'!10:10, MATCH(W$4, 'Capital base input'!$4:$4, 0))), "") ->  | X10: =IFERROR(IF(INDEX('Capital base input'!10:10, MATCH(X$4, 'Capital base input'!$4:$4, 0))="", "", INDEX('Capital base input'!10:10, MATCH(X$4, 'Capital base input'!$4:$4, 0))), "") ->  | Y10: =IFERROR(IF(INDEX('Capital base input'!10:10, MATCH(Y$4, 'Capital base input'!$4:$4, 0))="", "", INDEX('Capital base input'!10:10, MATCH(Y$4, 'Capital base input'!$4:$4, 0))), "") ->  | Z10: =IFERROR(IF(INDEX('Capital base input'!10:10, MATCH(Z$4, 'Capital base input'!$4:$4, 0))="", "", INDEX('Capital base input'!10:10, MATCH(Z$4, 'Capital base input'!$4:$4, 0))), "") ->  | AA10: =IFERROR(IF(INDEX('Capital base input'!10:10, MATCH(AA$4, 'Capital base input'!$4:$4, 0))="", "", INDEX('Capital base input'!10:10, MATCH(AA$4, 'Capital base input'!$4:$4, 0))), "") ->  | AB10: =IFERROR(IF(INDEX('Capital base input'!10:10, MATCH(AB$4, 'Capital base input'!$4:$4, 0))="", "", INDEX('Capital base input'!10:10, MATCH(AB$4, 'Capital base input'!$4:$4, 0))), "") ->  | AC10: =IFERROR(IF(INDEX('Capital base input'!10:10, MATCH(AC$4, 'Capital base input'!$4:$4, 0))="", "", INDEX('Capital base input'!10:10, MATCH(AC$4, 'Capital base input'!$4:$4, 0))), "") ->  | AD10: =IFERROR(IF(INDEX('Capital base input'!10:10, MATCH(AD$4, 'Capital base input'!$4:$4, 0))="", "", INDEX('Capital base input'!10:10, MATCH(AD$4, 'Capital base input'!$4:$4, 0))), "") ->  | AE10: =IFERROR(IF(INDEX('Capital base input'!10:10, MATCH(AE$4, 'Capital base input'!$4:$4, 0))="", "", INDEX('Capital base input'!10:10, MATCH(AE$4, 'Capital base input'!$4:$4, 0))), "") ->  | AF10: =IFERROR(IF(INDEX('Capital base input'!10:10, MATCH(AF$4, 'Capital base input'!$4:$4, 0))="", "", INDEX('Capital base input'!10:10, MATCH(AF$4, 'Capital base input'!$4:$4, 0))), "") ->  | AG10: =IFERROR(IF(INDEX('Capital base input'!10:10, MATCH(AG$4, 'Capital base input'!$4:$4, 0))="", "", INDEX('Capital base input'!10:10, MATCH(AG$4, 'Capital base input'!$4:$4, 0))), "") ->  | AH10: =IFERROR(IF(INDEX('Capital base input'!10:10, MATCH(AH$4, 'Capital base input'!$4:$4, 0))="", "", INDEX('Capital base input'!10:10, MATCH(AH$4, 'Capital base input'!$4:$4, 0))), "") ->  | AI10: =IFERROR(IF(INDEX('Capital base input'!10:10, MATCH(AI$4, 'Capital base input'!$4:$4, 0))="", "", INDEX('Capital base input'!10:10, MATCH(AI$4, 'Capital base input'!$4:$4, 0))), "") ->  | AJ10: =IFERROR(IF(INDEX('Capital base input'!10:10, MATCH(AJ$4, 'Capital base input'!$4:$4, 0))="", "", INDEX('Capital base input'!10:10, MATCH(AJ$4, 'Capital base input'!$4:$4, 0))), "") ->  | AK10: =IFERROR(IF(INDEX('Capital base input'!10:10, MATCH(AK$4, 'Capital base input'!$4:$4, 0))="", "", INDEX('Capital base input'!10:10, MATCH(AK$4, 'Capital base input'!$4:$4, 0))), "") ->  | AL10: =IFERROR(IF(INDEX('Capital base input'!10:10, MATCH(AL$4, 'Capital base input'!$4:$4, 0))="", "", INDEX('Capital base input'!10:10, MATCH(AL$4, 'Capital base input'!$4:$4, 0))), "") ->  | AM10: =IFERROR(IF(INDEX('Capital base input'!10:10, MATCH(AM$4, 'Capital base input'!$4:$4, 0))="", "", INDEX('Capital base input'!10:10, MATCH(AM$4, 'Capital base input'!$4:$4, 0))), "") ->  | AN10: =IFERROR(IF(INDEX('Capital base input'!10:10, MATCH(AN$4, 'Capital base input'!$4:$4, 0))="", "", INDEX('Capital base input'!10:10, MATCH(AN$4, 'Capital base input'!$4:$4, 0))), "") ->  | AO10: =IFERROR(IF(INDEX('Capital base input'!10:10, MATCH(AO$4, 'Capital base input'!$4:$4, 0))="", "", INDEX('Capital base input'!10:10, MATCH(AO$4, 'Capital base input'!$4:$4, 0))), "") ->  | AP10: =IFERROR(IF(INDEX('Capital base input'!10:10, MATCH(AP$4, 'Capital base input'!$4:$4, 0))="", "", INDEX('Capital base input'!10:10, MATCH(AP$4, 'Capital base input'!$4:$4, 0))), "") ->  | AQ10: =IFERROR(IF(INDEX('Capital base input'!10:10, MATCH(AQ$4, 'Capital base input'!$4:$4, 0))="", "", INDEX('Capital base input'!10:10, MATCH(AQ$4, 'Capital base input'!$4:$4, 0))), "") ->  | AR10: =IFERROR(IF(INDEX('Capital base input'!10:10, MATCH(AR$4, 'Capital base input'!$4:$4, 0))="", "", INDEX('Capital base input'!10:10, MATCH(AR$4, 'Capital base input'!$4:$4, 0))), "") ->  | AS10: =IFERROR(IF(INDEX('Capital base input'!10:10, MATCH(AS$4, 'Capital base input'!$4:$4, 0))="", "", INDEX('Capital base input'!10:10, MATCH(AS$4, 'Capital base input'!$4:$4, 0))), "") ->  | AT10: =IFERROR(IF(INDEX('Capital base input'!10:10, MATCH(AT$4, 'Capital base input'!$4:$4, 0))="", "", INDEX('Capital base input'!10:10, MATCH(AT$4, 'Capital base input'!$4:$4, 0))), "") ->  | AU10: =IFERROR(IF(INDEX('Capital base input'!10:10, MATCH(AU$4, 'Capital base input'!$4:$4, 0))="", "", INDEX('Capital base input'!10:10, MATCH(AU$4, 'Capital base input'!$4:$4, 0))), "") ->  | AV10: =IFERROR(IF(INDEX('Capital base input'!10:10, MATCH(AV$4, 'Capital base input'!$4:$4, 0))="", "", INDEX('Capital base input'!10:10, MATCH(AV$4, 'Capital base input'!$4:$4, 0))), "") ->  | AW10: =IFERROR(IF(INDEX('Capital base input'!10:10, MATCH(AW$4, 'Capital base input'!$4:$4, 0))="", "", INDEX('Capital base input'!10:10, MATCH(AW$4, 'Capital base input'!$4:$4, 0))), "") ->  | AX10: =IFERROR(IF(INDEX('Capital base input'!10:10, MATCH(AX$4, 'Capital base input'!$4:$4, 0))="", "", INDEX('Capital base input'!10:10, MATCH(AX$4, 'Capital base input'!$4:$4, 0))), "") ->  | AY10: =IFERROR(IF(INDEX('Capital base input'!10:10, MATCH(AY$4, 'Capital base input'!$4:$4, 0))="", "", INDEX('Capital base input'!10:10, MATCH(AY$4, 'Capital base input'!$4:$4, 0))), "") ->  | AZ10: =IFERROR(IF(INDEX('Capital base input'!10:10, MATCH(AZ$4, 'Capital base input'!$4:$4, 0))="", "", INDEX('Capital base input'!10:10, MATCH(AZ$4, 'Capital base input'!$4:$4, 0))), "") ->  | BA10: =IFERROR(IF(INDEX('Capital base input'!10:10, MATCH(BA$4, 'Capital base input'!$4:$4, 0))="", "", INDEX('Capital base input'!10:10, MATCH(BA$4, 'Capital base input'!$4:$4, 0))), "") ->  | BB10: =IFERROR(IF(INDEX('Capital base input'!10:10, MATCH(BB$4, 'Capital base input'!$4:$4, 0))="", "", INDEX('Capital base input'!10:10, MATCH(BB$4, 'Capital base input'!$4:$4, 0))), "") ->  | BC10: =IFERROR(IF(INDEX('Capital base input'!10:10, MATCH(BC$4, 'Capital base input'!$4:$4, 0))="", "", INDEX('Capital base input'!10:10, MATCH(BC$4, 'Capital base input'!$4:$4, 0))), "") ->  | BD10: =IFERROR(IF(INDEX('Capital base input'!10:10, MATCH(BD$4, 'Capital base input'!$4:$4, 0))="", "", INDEX('Capital base input'!10:10, MATCH(BD$4, 'Capital base input'!$4:$4, 0))), "") ->  | BE10: =IFERROR(IF(INDEX('Capital base input'!10:10, MATCH(BE$4, 'Capital base input'!$4:$4, 0))="", "", INDEX('Capital base input'!10:10, MATCH(BE$4, 'Capital base input'!$4:$4, 0))), "") ->  | BF10: =IFERROR(IF(INDEX('Capital base input'!10:10, MATCH(BF$4, 'Capital base input'!$4:$4, 0))="", "", INDEX('Capital base input'!10:10, MATCH(BF$4, 'Capital base input'!$4:$4, 0))), "") ->  | BG10: =IFERROR(IF(INDEX('Capital base input'!10:10, MATCH(BG$4, 'Capital base input'!$4:$4, 0))="", "", INDEX('Capital base input'!10:10, MATCH(BG$4, 'Capital base input'!$4:$4, 0))), "") ->  | BH10: =IFERROR(IF(INDEX('Capital base input'!10:10, MATCH(BH$4, 'Capital base input'!$4:$4, 0))="", "", INDEX('Capital base input'!10:10, MATCH(BH$4, 'Capital base input'!$4:$4, 0))), "") ->  | BI10: =IFERROR(IF(INDEX('Capital base input'!10:10, MATCH(BI$4, 'Capital base input'!$4:$4, 0))="", "", INDEX('Capital base input'!10:10, MATCH(BI$4, 'Capital base input'!$4:$4, 0))), "") ->  | BJ10: =IFERROR(IF(INDEX('Capital base input'!10:10, MATCH(BJ$4, 'Capital base input'!$4:$4, 0))="", "", INDEX('Capital base input'!10:10, MATCH(BJ$4, 'Capital base input'!$4:$4, 0))), "") ->  | BK10: =IFERROR(IF(INDEX('Capital base input'!10:10, MATCH(BK$4, 'Capital base input'!$4:$4, 0))="", "", INDEX('Capital base input'!10:10, MATCH(BK$4, 'Capital base input'!$4:$4, 0))), "") ->  | BL10: =IFERROR(IF(INDEX('Capital base input'!10:10, MATCH(BL$4, 'Capital base input'!$4:$4, 0))="", "", INDEX('Capital base input'!10:10, MATCH(BL$4, 'Capital base input'!$4:$4, 0))), "") ->  | BM10: =IFERROR(IF(INDEX('Capital base input'!10:10, MATCH(BM$4, 'Capital base input'!$4:$4, 0))="", "", INDEX('Capital base input'!10:10, MATCH(BM$4, 'Capital base input'!$4:$4, 0))), "") ->  | BN10: =IFERROR(IF(INDEX('Capital base input'!10:10, MATCH(BN$4, 'Capital base input'!$4:$4, 0))="", "", INDEX('Capital base input'!10:10, MATCH(BN$4, 'Capital base input'!$4:$4, 0))), "") ->  | BO10: =IFERROR(IF(INDEX('Capital base input'!10:10, MATCH(BO$4, 'Capital base input'!$4:$4, 0))="", "", INDEX('Capital base input'!10:10, MATCH(BO$4, 'Capital base input'!$4:$4, 0))), "") ->  | BP10: =IFERROR(IF(INDEX('Capital base input'!10:10, MATCH(BP$4, 'Capital base input'!$4:$4, 0))="", "", INDEX('Capital base input'!10:10, MATCH(BP$4, 'Capital base input'!$4:$4, 0))), "") ->  | BQ10: =IFERROR(IF(INDEX('Capital base input'!10:10, MATCH(BQ$4, 'Capital base input'!$4:$4, 0))="", "", INDEX('Capital base input'!10:10, MATCH(BQ$4, 'Capital base input'!$4:$4, 0))), "") ->  | BR10: =IFERROR(IF(INDEX('Capital base input'!10:10, MATCH(BR$4, 'Capital base input'!$4:$4, 0))="", "", INDEX('Capital base input'!10:10, MATCH(BR$4, 'Capital base input'!$4:$4, 0))), "") ->  | BS10: =IFERROR(IF(INDEX('Capital base input'!10:10, MATCH(BS$4, 'Capital base input'!$4:$4, 0))="", "", INDEX('Capital base input'!10:10, MATCH(BS$4, 'Capital base input'!$4:$4, 0))), "") ->  | BT10: =IFERROR(IF(INDEX('Capital base input'!10:10, MATCH(BT$4, 'Capital base input'!$4:$4, 0))="", "", INDEX('Capital base input'!10:10, MATCH(BT$4, 'Capital base input'!$4:$4, 0))), "") ->  | BU10: =IFERROR(IF(INDEX('Capital base input'!10:10, MATCH(BU$4, 'Capital base input'!$4:$4, 0))="", "", INDEX('Capital base input'!10:10, MATCH(BU$4, 'Capital base input'!$4:$4, 0))), "") ->  | BV10: =IFERROR(IF(INDEX('Capital base input'!10:10, MATCH(BV$4, 'Capital base input'!$4:$4, 0))="", "", INDEX('Capital base input'!10:10, MATCH(BV$4, 'Capital base input'!$4:$4, 0))), "") ->  | BW10: =IFERROR(IF(INDEX('Capital base input'!10:10, MATCH(BW$4, 'Capital base input'!$4:$4, 0))="", "", INDEX('Capital base input'!10:10, MATCH(BW$4, 'Capital base input'!$4:$4, 0))), "") ->  | BX10: =IFERROR(IF(INDEX('Capital base input'!10:10, MATCH(BX$4, 'Capital base input'!$4:$4, 0))="", "", INDEX('Capital base input'!10:10, MATCH(BX$4, 'Capital base input'!$4:$4, 0))), "") ->  | BY10: =IFERROR(IF(INDEX('Capital base input'!10:10, MATCH(BY$4, 'Capital base input'!$4:$4, 0))="", "", INDEX('Capital base input'!10:10, MATCH(BY$4, 'Capital base input'!$4:$4, 0))), "") ->  | BZ10: =IFERROR(IF(INDEX('Capital base input'!10:10, MATCH(BZ$4, 'Capital base input'!$4:$4, 0))="", "", INDEX('Capital base input'!10:10, MATCH(BZ$4, 'Capital base input'!$4:$4, 0))), "") ->  | CA10: =IFERROR(IF(INDEX('Capital base input'!10:10, MATCH(CA$4, 'Capital base input'!$4:$4, 0))="", "", INDEX('Capital base input'!10:10, MATCH(CA$4, 'Capital base input'!$4:$4, 0))), "") ->  | CB10: =IFERROR(IF(INDEX('Capital base input'!10:10, MATCH(CB$4, 'Capital base input'!$4:$4, 0))="", "", INDEX('Capital base input'!10:10, MATCH(CB$4, 'Capital base input'!$4:$4, 0))), "") ->  | CC10: =IFERROR(IF(INDEX('Capital base input'!10:10, MATCH(CC$4, 'Capital base input'!$4:$4, 0))="", "", INDEX('Capital base input'!10:10, MATCH(CC$4, 'Capital base input'!$4:$4, 0))), "") ->  | CD10: =IFERROR(IF(INDEX('Capital base input'!10:10, MATCH(CD$4, 'Capital base input'!$4:$4, 0))="", "", INDEX('Capital base input'!10:10, MATCH(CD$4, 'Capital base input'!$4:$4, 0))), "") ->  | CE10: =IFERROR(IF(INDEX('Capital base input'!10:10, MATCH(CE$4, 'Capital base input'!$4:$4, 0))="", "", INDEX('Capital base input'!10:10, MATCH(CE$4, 'Capital base input'!$4:$4, 0))), "") ->  | CF10: =IFERROR(IF(INDEX('Capital base input'!10:10, MATCH(CF$4, 'Capital base input'!$4:$4, 0))="", "", INDEX('Capital base input'!10:10, MATCH(CF$4, 'Capital base input'!$4:$4, 0))), "") ->  | CG10: =IFERROR(IF(INDEX('Capital base input'!10:10, MATCH(CG$4, 'Capital base input'!$4:$4, 0))="", "", INDEX('Capital base input'!10:10, MATCH(CG$4, 'Capital base input'!$4:$4, 0))), "") ->  | CH10: =IFERROR(IF(INDEX('Capital base input'!10:10, MATCH(CH$4, 'Capital base input'!$4:$4, 0))="", "", INDEX('Capital base input'!10:10, MATCH(CH$4, 'Capital base input'!$4:$4, 0))), "") ->  | CI10: =IFERROR(IF(INDEX('Capital base input'!10:10, MATCH(CI$4, 'Capital base input'!$4:$4, 0))="", "", INDEX('Capital base input'!10:10, MATCH(CI$4, 'Capital base input'!$4:$4, 0))), "") ->  | CJ10: =IFERROR(IF(INDEX('Capital base input'!10:10, MATCH(CJ$4, 'Capital base input'!$4:$4, 0))="", "", INDEX('Capital base input'!10:10, MATCH(CJ$4, 'Capital base input'!$4:$4, 0))), "") ->  | CK10: =IFERROR(IF(INDEX('Capital base input'!10:10, MATCH(CK$4, 'Capital base input'!$4:$4, 0))="", "", INDEX('Capital base input'!10:10, MATCH(CK$4, 'Capital base input'!$4:$4, 0))), "") ->  | CL10: =IFERROR(IF(INDEX('Capital base input'!10:10, MATCH(CL$4, 'Capital base input'!$4:$4, 0))="", "", INDEX('Capital base input'!10:10, MATCH(CL$4, 'Capital base input'!$4:$4, 0))), "") ->  | CM10: =IFERROR(IF(INDEX('Capital base input'!10:10, MATCH(CM$4, 'Capital base input'!$4:$4, 0))="", "", INDEX('Capital base input'!10:10, MATCH(CM$4, 'Capital base input'!$4:$4, 0))), "") ->  | CN10: =IFERROR(IF(INDEX('Capital base input'!10:10, MATCH(CN$4, 'Capital base input'!$4:$4, 0))="", "", INDEX('Capital base input'!10:10, MATCH(CN$4, 'Capital base input'!$4:$4, 0))), "") ->  | CO10: =IFERROR(IF(INDEX('Capital base input'!10:10, MATCH(CO$4, 'Capital base input'!$4:$4, 0))="", "", INDEX('Capital base input'!10:10, MATCH(CO$4, 'Capital base input'!$4:$4, 0))), "") ->  | CP10: =IFERROR(IF(INDEX('Capital base input'!10:10, MATCH(CP$4, 'Capital base input'!$4:$4, 0))="", "", INDEX('Capital base input'!10:10, MATCH(CP$4, 'Capital base input'!$4:$4, 0))), "") -> 
E11: Years in regulatory period | H11: 5 | I11: =IFERROR(IF(INDEX('Capital base input'!11:11, MATCH(I$4, 'Capital base input'!$4:$4, 0))="", "", INDEX('Capital base input'!11:11, MATCH(I$4, 'Capital base input'!$4:$4, 0))), "") ->  | J11: =IFERROR(IF(INDEX('Capital base input'!11:11, MATCH(J$4, 'Capital base input'!$4:$4, 0))="", "", INDEX('Capital base input'!11:11, MATCH(J$4, 'Capital base input'!$4:$4, 0))), "") ->  | K11: =IFERROR(IF(INDEX('Capital base input'!11:11, MATCH(K$4, 'Capital base input'!$4:$4, 0))="", "", INDEX('Capital base input'!11:11, MATCH(K$4, 'Capital base input'!$4:$4, 0))), "") ->  | L11: =IFERROR(IF(INDEX('Capital base input'!11:11, MATCH(L$4, 'Capital base input'!$4:$4, 0))="", "", INDEX('Capital base input'!11:11, MATCH(L$4, 'Capital base input'!$4:$4, 0))), "") ->  | M11: =IFERROR(IF(INDEX('Capital base input'!11:11, MATCH(M$4, 'Capital base input'!$4:$4, 0))="", "", INDEX('Capital base input'!11:11, MATCH(M$4, 'Capital base input'!$4:$4, 0))), "") ->  | N11: =IFERROR(IF(INDEX('Capital base input'!11:11, MATCH(N$4, 'Capital base input'!$4:$4, 0))="", "", INDEX('Capital base input'!11:11, MATCH(N$4, 'Capital base input'!$4:$4, 0))), "") ->  | O11: =IFERROR(IF(INDEX('Capital base input'!11:11, MATCH(O$4, 'Capital base input'!$4:$4, 0))="", "", INDEX('Capital base input'!11:11, MATCH(O$4, 'Capital base input'!$4:$4, 0))), "") ->  | P11: =IFERROR(IF(INDEX('Capital base input'!11:11, MATCH(P$4, 'Capital base input'!$4:$4, 0))="", "", INDEX('Capital base input'!11:11, MATCH(P$4, 'Capital base input'!$4:$4, 0))), "") ->  | Q11: =IFERROR(IF(INDEX('Capital base input'!11:11, MATCH(Q$4, 'Capital base input'!$4:$4, 0))="", "", INDEX('Capital base input'!11:11, MATCH(Q$4, 'Capital base input'!$4:$4, 0))), "") ->  | R11: =IFERROR(IF(INDEX('Capital base input'!11:11, MATCH(R$4, 'Capital base input'!$4:$4, 0))="", "", INDEX('Capital base input'!11:11, MATCH(R$4, 'Capital base input'!$4:$4, 0))), "") ->  | S11: =IFERROR(IF(INDEX('Capital base input'!11:11, MATCH(S$4, 'Capital base input'!$4:$4, 0))="", "", INDEX('Capital base input'!11:11, MATCH(S$4, 'Capital base input'!$4:$4, 0))), "") ->  | T11: =IFERROR(IF(INDEX('Capital base input'!11:11, MATCH(T$4, 'Capital base input'!$4:$4, 0))="", "", INDEX('Capital base input'!11:11, MATCH(T$4, 'Capital base input'!$4:$4, 0))), "") ->  | U11: =IFERROR(IF(INDEX('Capital base input'!11:11, MATCH(U$4, 'Capital base input'!$4:$4, 0))="", "", INDEX('Capital base input'!11:11, MATCH(U$4, 'Capital base input'!$4:$4, 0))), "") ->  | V11: =IFERROR(IF(INDEX('Capital base input'!11:11, MATCH(V$4, 'Capital base input'!$4:$4, 0))="", "", INDEX('Capital base input'!11:11, MATCH(V$4, 'Capital base input'!$4:$4, 0))), "") ->  | W11: =IFERROR(IF(INDEX('Capital base input'!11:11, MATCH(W$4, 'Capital base input'!$4:$4, 0))="", "", INDEX('Capital base input'!11:11, MATCH(W$4, 'Capital base input'!$4:$4, 0))), "") ->  | X11: =IFERROR(IF(INDEX('Capital base input'!11:11, MATCH(X$4, 'Capital base input'!$4:$4, 0))="", "", INDEX('Capital base input'!11:11, MATCH(X$4, 'Capital base input'!$4:$4, 0))), "") ->  | Y11: =IFERROR(IF(INDEX('Capital base input'!11:11, MATCH(Y$4, 'Capital base input'!$4:$4, 0))="", "", INDEX('Capital base input'!11:11, MATCH(Y$4, 'Capital base input'!$4:$4, 0))), "") ->  | Z11: =IFERROR(IF(INDEX('Capital base input'!11:11, MATCH(Z$4, 'Capital base input'!$4:$4, 0))="", "", INDEX('Capital base input'!11:11, MATCH(Z$4, 'Capital base input'!$4:$4, 0))), "") ->  | AA11: =IFERROR(IF(INDEX('Capital base input'!11:11, MATCH(AA$4, 'Capital base input'!$4:$4, 0))="", "", INDEX('Capital base input'!11:11, MATCH(AA$4, 'Capital base input'!$4:$4, 0))), "") ->  | AB11: =IFERROR(IF(INDEX('Capital base input'!11:11, MATCH(AB$4, 'Capital base input'!$4:$4, 0))="", "", INDEX('Capital base input'!11:11, MATCH(AB$4, 'Capital base input'!$4:$4, 0))), "") ->  | AC11: =IFERROR(IF(INDEX('Capital base input'!11:11, MATCH(AC$4, 'Capital base input'!$4:$4, 0))="", "", INDEX('Capital base input'!11:11, MATCH(AC$4, 'Capital base input'!$4:$4, 0))), "") ->  | AD11: =IFERROR(IF(INDEX('Capital base input'!11:11, MATCH(AD$4, 'Capital base input'!$4:$4, 0))="", "", INDEX('Capital base input'!11:11, MATCH(AD$4, 'Capital base input'!$4:$4, 0))), "") ->  | AE11: =IFERROR(IF(INDEX('Capital base input'!11:11, MATCH(AE$4, 'Capital base input'!$4:$4, 0))="", "", INDEX('Capital base input'!11:11, MATCH(AE$4, 'Capital base input'!$4:$4, 0))), "") ->  | AF11: =IFERROR(IF(INDEX('Capital base input'!11:11, MATCH(AF$4, 'Capital base input'!$4:$4, 0))="", "", INDEX('Capital base input'!11:11, MATCH(AF$4, 'Capital base input'!$4:$4, 0))), "") ->  | AG11: =IFERROR(IF(INDEX('Capital base input'!11:11, MATCH(AG$4, 'Capital base input'!$4:$4, 0))="", "", INDEX('Capital base input'!11:11, MATCH(AG$4, 'Capital base input'!$4:$4, 0))), "") ->  | AH11: =IFERROR(IF(INDEX('Capital base input'!11:11, MATCH(AH$4, 'Capital base input'!$4:$4, 0))="", "", INDEX('Capital base input'!11:11, MATCH(AH$4, 'Capital base input'!$4:$4, 0))), "") ->  | AI11: =IFERROR(IF(INDEX('Capital base input'!11:11, MATCH(AI$4, 'Capital base input'!$4:$4, 0))="", "", INDEX('Capital base input'!11:11, MATCH(AI$4, 'Capital base input'!$4:$4, 0))), "") ->  | AJ11: =IFERROR(IF(INDEX('Capital base input'!11:11, MATCH(AJ$4, 'Capital base input'!$4:$4, 0))="", "", INDEX('Capital base input'!11:11, MATCH(AJ$4, 'Capital base input'!$4:$4, 0))), "") ->  | AK11: =IFERROR(IF(INDEX('Capital base input'!11:11, MATCH(AK$4, 'Capital base input'!$4:$4, 0))="", "", INDEX('Capital base input'!11:11, MATCH(AK$4, 'Capital base input'!$4:$4, 0))), "") ->  | AL11: =IFERROR(IF(INDEX('Capital base input'!11:11, MATCH(AL$4, 'Capital base input'!$4:$4, 0))="", "", INDEX('Capital base input'!11:11, MATCH(AL$4, 'Capital base input'!$4:$4, 0))), "") ->  | AM11: =IFERROR(IF(INDEX('Capital base input'!11:11, MATCH(AM$4, 'Capital base input'!$4:$4, 0))="", "", INDEX('Capital base input'!11:11, MATCH(AM$4, 'Capital base input'!$4:$4, 0))), "") ->  | AN11: =IFERROR(IF(INDEX('Capital base input'!11:11, MATCH(AN$4, 'Capital base input'!$4:$4, 0))="", "", INDEX('Capital base input'!11:11, MATCH(AN$4, 'Capital base input'!$4:$4, 0))), "") ->  | AO11: =IFERROR(IF(INDEX('Capital base input'!11:11, MATCH(AO$4, 'Capital base input'!$4:$4, 0))="", "", INDEX('Capital base input'!11:11, MATCH(AO$4, 'Capital base input'!$4:$4, 0))), "") ->  | AP11: =IFERROR(IF(INDEX('Capital base input'!11:11, MATCH(AP$4, 'Capital base input'!$4:$4, 0))="", "", INDEX('Capital base input'!11:11, MATCH(AP$4, 'Capital base input'!$4:$4, 0))), "") ->  | AQ11: =IFERROR(IF(INDEX('Capital base input'!11:11, MATCH(AQ$4, 'Capital base input'!$4:$4, 0))="", "", INDEX('Capital base input'!11:11, MATCH(AQ$4, 'Capital base input'!$4:$4, 0))), "") ->  | AR11: =IFERROR(IF(INDEX('Capital base input'!11:11, MATCH(AR$4, 'Capital base input'!$4:$4, 0))="", "", INDEX('Capital base input'!11:11, MATCH(AR$4, 'Capital base input'!$4:$4, 0))), "") ->  | AS11: =IFERROR(IF(INDEX('Capital base input'!11:11, MATCH(AS$4, 'Capital base input'!$4:$4, 0))="", "", INDEX('Capital base input'!11:11, MATCH(AS$4, 'Capital base input'!$4:$4, 0))), "") ->  | AT11: =IFERROR(IF(INDEX('Capital base input'!11:11, MATCH(AT$4, 'Capital base input'!$4:$4, 0))="", "", INDEX('Capital base input'!11:11, MATCH(AT$4, 'Capital base input'!$4:$4, 0))), "") ->  | AU11: =IFERROR(IF(INDEX('Capital base input'!11:11, MATCH(AU$4, 'Capital base input'!$4:$4, 0))="", "", INDEX('Capital base input'!11:11, MATCH(AU$4, 'Capital base input'!$4:$4, 0))), "") ->  | AV11: =IFERROR(IF(INDEX('Capital base input'!11:11, MATCH(AV$4, 'Capital base input'!$4:$4, 0))="", "", INDEX('Capital base input'!11:11, MATCH(AV$4, 'Capital base input'!$4:$4, 0))), "") ->  | AW11: =IFERROR(IF(INDEX('Capital base input'!11:11, MATCH(AW$4, 'Capital base input'!$4:$4, 0))="", "", INDEX('Capital base input'!11:11, MATCH(AW$4, 'Capital base input'!$4:$4, 0))), "") ->  | AX11: =IFERROR(IF(INDEX('Capital base input'!11:11, MATCH(AX$4, 'Capital base input'!$4:$4, 0))="", "", INDEX('Capital base input'!11:11, MATCH(AX$4, 'Capital base input'!$4:$4, 0))), "") ->  | AY11: =IFERROR(IF(INDEX('Capital base input'!11:11, MATCH(AY$4, 'Capital base input'!$4:$4, 0))="", "", INDEX('Capital base input'!11:11, MATCH(AY$4, 'Capital base input'!$4:$4, 0))), "") ->  | AZ11: =IFERROR(IF(INDEX('Capital base input'!11:11, MATCH(AZ$4, 'Capital base input'!$4:$4, 0))="", "", INDEX('Capital base input'!11:11, MATCH(AZ$4, 'Capital base input'!$4:$4, 0))), "") ->  | BA11: =IFERROR(IF(INDEX('Capital base input'!11:11, MATCH(BA$4, 'Capital base input'!$4:$4, 0))="", "", INDEX('Capital base input'!11:11, MATCH(BA$4, 'Capital base input'!$4:$4, 0))), "") ->  | BB11: =IFERROR(IF(INDEX('Capital base input'!11:11, MATCH(BB$4, 'Capital base input'!$4:$4, 0))="", "", INDEX('Capital base input'!11:11, MATCH(BB$4, 'Capital base input'!$4:$4, 0))), "") ->  | BC11: =IFERROR(IF(INDEX('Capital base input'!11:11, MATCH(BC$4, 'Capital base input'!$4:$4, 0))="", "", INDEX('Capital base input'!11:11, MATCH(BC$4, 'Capital base input'!$4:$4, 0))), "") ->  | BD11: =IFERROR(IF(INDEX('Capital base input'!11:11, MATCH(BD$4, 'Capital base input'!$4:$4, 0))="", "", INDEX('Capital base input'!11:11, MATCH(BD$4, 'Capital base input'!$4:$4, 0))), "") ->  | BE11: =IFERROR(IF(INDEX('Capital base input'!11:11, MATCH(BE$4, 'Capital base input'!$4:$4, 0))="", "", INDEX('Capital base input'!11:11, MATCH(BE$4, 'Capital base input'!$4:$4, 0))), "") ->  | BF11: =IFERROR(IF(INDEX('Capital base input'!11:11, MATCH(BF$4, 'Capital base input'!$4:$4, 0))="", "", INDEX('Capital base input'!11:11, MATCH(BF$4, 'Capital base input'!$4:$4, 0))), "") ->  | BG11: =IFERROR(IF(INDEX('Capital base input'!11:11, MATCH(BG$4, 'Capital base input'!$4:$4, 0))="", "", INDEX('Capital base input'!11:11, MATCH(BG$4, 'Capital base input'!$4:$4, 0))), "") ->  | BH11: =IFERROR(IF(INDEX('Capital base input'!11:11, MATCH(BH$4, 'Capital base input'!$4:$4, 0))="", "", INDEX('Capital base input'!11:11, MATCH(BH$4, 'Capital base input'!$4:$4, 0))), "") ->  | BI11: =IFERROR(IF(INDEX('Capital base input'!11:11, MATCH(BI$4, 'Capital base input'!$4:$4, 0))="", "", INDEX('Capital base input'!11:11, MATCH(BI$4, 'Capital base input'!$4:$4, 0))), "") ->  | BJ11: =IFERROR(IF(INDEX('Capital base input'!11:11, MATCH(BJ$4, 'Capital base input'!$4:$4, 0))="", "", INDEX('Capital base input'!11:11, MATCH(BJ$4, 'Capital base input'!$4:$4, 0))), "") ->  | BK11: =IFERROR(IF(INDEX('Capital base input'!11:11, MATCH(BK$4, 'Capital base input'!$4:$4, 0))="", "", INDEX('Capital base input'!11:11, MATCH(BK$4, 'Capital base input'!$4:$4, 0))), "") ->  | BL11: =IFERROR(IF(INDEX('Capital base input'!11:11, MATCH(BL$4, 'Capital base input'!$4:$4, 0))="", "", INDEX('Capital base input'!11:11, MATCH(BL$4, 'Capital base input'!$4:$4, 0))), "") ->  | BM11: =IFERROR(IF(INDEX('Capital base input'!11:11, MATCH(BM$4, 'Capital base input'!$4:$4, 0))="", "", INDEX('Capital base input'!11:11, MATCH(BM$4, 'Capital base input'!$4:$4, 0))), "") ->  | BN11: =IFERROR(IF(INDEX('Capital base input'!11:11, MATCH(BN$4, 'Capital base input'!$4:$4, 0))="", "", INDEX('Capital base input'!11:11, MATCH(BN$4, 'Capital base input'!$4:$4, 0))), "") ->  | BO11: =IFERROR(IF(INDEX('Capital base input'!11:11, MATCH(BO$4, 'Capital base input'!$4:$4, 0))="", "", INDEX('Capital base input'!11:11, MATCH(BO$4, 'Capital base input'!$4:$4, 0))), "") ->  | BP11: =IFERROR(IF(INDEX('Capital base input'!11:11, MATCH(BP$4, 'Capital base input'!$4:$4, 0))="", "", INDEX('Capital base input'!11:11, MATCH(BP$4, 'Capital base input'!$4:$4, 0))), "") ->  | BQ11: =IFERROR(IF(INDEX('Capital base input'!11:11, MATCH(BQ$4, 'Capital base input'!$4:$4, 0))="", "", INDEX('Capital base input'!11:11, MATCH(BQ$4, 'Capital base input'!$4:$4, 0))), "") ->  | BR11: =IFERROR(IF(INDEX('Capital base input'!11:11, MATCH(BR$4, 'Capital base input'!$4:$4, 0))="", "", INDEX('Capital base input'!11:11, MATCH(BR$4, 'Capital base input'!$4:$4, 0))), "") ->  | BS11: =IFERROR(IF(INDEX('Capital base input'!11:11, MATCH(BS$4, 'Capital base input'!$4:$4, 0))="", "", INDEX('Capital base input'!11:11, MATCH(BS$4, 'Capital base input'!$4:$4, 0))), "") ->  | BT11: =IFERROR(IF(INDEX('Capital base input'!11:11, MATCH(BT$4, 'Capital base input'!$4:$4, 0))="", "", INDEX('Capital base input'!11:11, MATCH(BT$4, 'Capital base input'!$4:$4, 0))), "") ->  | BU11: =IFERROR(IF(INDEX('Capital base input'!11:11, MATCH(BU$4, 'Capital base input'!$4:$4, 0))="", "", INDEX('Capital base input'!11:11, MATCH(BU$4, 'Capital base input'!$4:$4, 0))), "") ->  | BV11: =IFERROR(IF(INDEX('Capital base input'!11:11, MATCH(BV$4, 'Capital base input'!$4:$4, 0))="", "", INDEX('Capital base input'!11:11, MATCH(BV$4, 'Capital base input'!$4:$4, 0))), "") ->  | BW11: =IFERROR(IF(INDEX('Capital base input'!11:11, MATCH(BW$4, 'Capital base input'!$4:$4, 0))="", "", INDEX('Capital base input'!11:11, MATCH(BW$4, 'Capital base input'!$4:$4, 0))), "") ->  | BX11: =IFERROR(IF(INDEX('Capital base input'!11:11, MATCH(BX$4, 'Capital base input'!$4:$4, 0))="", "", INDEX('Capital base input'!11:11, MATCH(BX$4, 'Capital base input'!$4:$4, 0))), "") ->  | BY11: =IFERROR(IF(INDEX('Capital base input'!11:11, MATCH(BY$4, 'Capital base input'!$4:$4, 0))="", "", INDEX('Capital base input'!11:11, MATCH(BY$4, 'Capital base input'!$4:$4, 0))), "") ->  | BZ11: =IFERROR(IF(INDEX('Capital base input'!11:11, MATCH(BZ$4, 'Capital base input'!$4:$4, 0))="", "", INDEX('Capital base input'!11:11, MATCH(BZ$4, 'Capital base input'!$4:$4, 0))), "") ->  | CA11: =IFERROR(IF(INDEX('Capital base input'!11:11, MATCH(CA$4, 'Capital base input'!$4:$4, 0))="", "", INDEX('Capital base input'!11:11, MATCH(CA$4, 'Capital base input'!$4:$4, 0))), "") ->  | CB11: =IFERROR(IF(INDEX('Capital base input'!11:11, MATCH(CB$4, 'Capital base input'!$4:$4, 0))="", "", INDEX('Capital base input'!11:11, MATCH(CB$4, 'Capital base input'!$4:$4, 0))), "") ->  | CC11: =IFERROR(IF(INDEX('Capital base input'!11:11, MATCH(CC$4, 'Capital base input'!$4:$4, 0))="", "", INDEX('Capital base input'!11:11, MATCH(CC$4, 'Capital base input'!$4:$4, 0))), "") ->  | CD11: =IFERROR(IF(INDEX('Capital base input'!11:11, MATCH(CD$4, 'Capital base input'!$4:$4, 0))="", "", INDEX('Capital base input'!11:11, MATCH(CD$4, 'Capital base input'!$4:$4, 0))), "") ->  | CE11: =IFERROR(IF(INDEX('Capital base input'!11:11, MATCH(CE$4, 'Capital base input'!$4:$4, 0))="", "", INDEX('Capital base input'!11:11, MATCH(CE$4, 'Capital base input'!$4:$4, 0))), "") ->  | CF11: =IFERROR(IF(INDEX('Capital base input'!11:11, MATCH(CF$4, 'Capital base input'!$4:$4, 0))="", "", INDEX('Capital base input'!11:11, MATCH(CF$4, 'Capital base input'!$4:$4, 0))), "") ->  | CG11: =IFERROR(IF(INDEX('Capital base input'!11:11, MATCH(CG$4, 'Capital base input'!$4:$4, 0))="", "", INDEX('Capital base input'!11:11, MATCH(CG$4, 'Capital base input'!$4:$4, 0))), "") ->  | CH11: =IFERROR(IF(INDEX('Capital base input'!11:11, MATCH(CH$4, 'Capital base input'!$4:$4, 0))="", "", INDEX('Capital base input'!11:11, MATCH(CH$4, 'Capital base input'!$4:$4, 0))), "") ->  | CI11: =IFERROR(IF(INDEX('Capital base input'!11:11, MATCH(CI$4, 'Capital base input'!$4:$4, 0))="", "", INDEX('Capital base input'!11:11, MATCH(CI$4, 'Capital base input'!$4:$4, 0))), "") ->  | CJ11: =IFERROR(IF(INDEX('Capital base input'!11:11, MATCH(CJ$4, 'Capital base input'!$4:$4, 0))="", "", INDEX('Capital base input'!11:11, MATCH(CJ$4, 'Capital base input'!$4:$4, 0))), "") ->  | CK11: =IFERROR(IF(INDEX('Capital base input'!11:11, MATCH(CK$4, 'Capital base input'!$4:$4, 0))="", "", INDEX('Capital base input'!11:11, MATCH(CK$4, 'Capital base input'!$4:$4, 0))), "") ->  | CL11: =IFERROR(IF(INDEX('Capital base input'!11:11, MATCH(CL$4, 'Capital base input'!$4:$4, 0))="", "", INDEX('Capital base input'!11:11, MATCH(CL$4, 'Capital base input'!$4:$4, 0))), "") ->  | CM11: =IFERROR(IF(INDEX('Capital base input'!11:11, MATCH(CM$4, 'Capital base input'!$4:$4, 0))="", "", INDEX('Capital base input'!11:11, MATCH(CM$4, 'Capital base input'!$4:$4, 0))), "") ->  | CN11: =IFERROR(IF(INDEX('Capital base input'!11:11, MATCH(CN$4, 'Capital base input'!$4:$4, 0))="", "", INDEX('Capital base input'!11:11, MATCH(CN$4, 'Capital base input'!$4:$4, 0))), "") ->  | CO11: =IFERROR(IF(INDEX('Capital base input'!11:11, MATCH(CO$4, 'Capital base input'!$4:$4, 0))="", "", INDEX('Capital base input'!11:11, MATCH(CO$4, 'Capital base input'!$4:$4, 0))), "") ->  | CP11: =IFERROR(IF(INDEX('Capital base input'!11:11, MATCH(CP$4, 'Capital base input'!$4:$4, 0))="", "", INDEX('Capital base input'!11:11, MATCH(CP$4, 'Capital base input'!$4:$4, 0))), "") -> 
G12: =IF(OR(G$446:G$495="DV"), "DV input required", "") -> DV input required | H12: =IF(AND(OR(H$446:H$495="DV"), H$13=""), "DV input required", "") ->  | I12: =IF(COUNTA($H$12:H$12)<SUM($11:$11), IF(AND(I$446:I$495=""), IF(AND(H$13<>"", I$13=""), "DV input required", H$12), IF(AND(OR(I$446:I$495="DV"), I$13=""), "DV input required", "")), "") ->  | J12: =IF(COUNTA($H$12:I$12)<SUM($11:$11), IF(AND(J$446:J$495=""), IF(AND(I$13<>"", J$13=""), "DV input required", I$12), IF(AND(OR(J$446:J$495="DV"), J$13=""), "DV input required", "")), "") ->  | K12: =IF(COUNTA($H$12:J$12)<SUM($11:$11), IF(AND(K$446:K$495=""), IF(AND(J$13<>"", K$13=""), "DV input required", J$12), IF(AND(OR(K$446:K$495="DV"), K$13=""), "DV input required", "")), "") ->  | L12: =IF(COUNTA($H$12:K$12)<SUM($11:$11), IF(AND(L$446:L$495=""), IF(AND(K$13<>"", L$13=""), "DV input required", K$12), IF(AND(OR(L$446:L$495="DV"), L$13=""), "DV input required", "")), "") ->  | M12: =IF(COUNTA($H$12:L$12)<SUM($11:$11), IF(AND(M$446:M$495=""), IF(AND(L$13<>"", M$13=""), "DV input required", L$12), IF(AND(OR(M$446:M$495="DV"), M$13=""), "DV input required", "")), "") ->  | N12: =IF(COUNTA($H$12:M$12)<SUM($11:$11), IF(AND(N$446:N$495=""), IF(AND(M$13<>"", N$13=""), "DV input required", M$12), IF(AND(OR(N$446:N$495="DV"), N$13=""), "DV input required", "")), "") ->  | O12: =IF(COUNTA($H$12:N$12)<SUM($11:$11), IF(AND(O$446:O$495=""), IF(AND(N$13<>"", O$13=""), "DV input required", N$12), IF(AND(OR(O$446:O$495="DV"), O$13=""), "DV input required", "")), "") ->  | P12: =IF(COUNTA($H$12:O$12)<SUM($11:$11), IF(AND(P$446:P$495=""), IF(AND(O$13<>"", P$13=""), "DV input required", O$12), IF(AND(OR(P$446:P$495="DV"), P$13=""), "DV input required", "")), "") ->  | Q12: =IF(COUNTA($H$12:P$12)<SUM($11:$11), IF(AND(Q$446:Q$495=""), IF(AND(P$13<>"", Q$13=""), "DV input required", P$12), IF(AND(OR(Q$446:Q$495="DV"), Q$13=""), "DV input required", "")), "") ->  | R12: =IF(COUNTA($H$12:Q$12)<SUM($11:$11), IF(AND(R$446:R$495=""), IF(AND(Q$13<>"", R$13=""), "DV input required", Q$12), IF(AND(OR(R$446:R$495="DV"), R$13=""), "DV input required", "")), "") ->  | S12: =IF(COUNTA($H$12:R$12)<SUM($11:$11), IF(AND(S$446:S$495=""), IF(AND(R$13<>"", S$13=""), "DV input required", R$12), IF(AND(OR(S$446:S$495="DV"), S$13=""), "DV input required", "")), "") ->  | T12: =IF(COUNTA($H$12:S$12)<SUM($11:$11), IF(AND(T$446:T$495=""), IF(AND(S$13<>"", T$13=""), "DV input required", S$12), IF(AND(OR(T$446:T$495="DV"), T$13=""), "DV input required", "")), "") ->  | U12: =IF(COUNTA($H$12:T$12)<SUM($11:$11), IF(AND(U$446:U$495=""), IF(AND(T$13<>"", U$13=""), "DV input required", T$12), IF(AND(OR(U$446:U$495="DV"), U$13=""), "DV input required", "")), "") ->  | V12: =IF(COUNTA($H$12:U$12)<SUM($11:$11), IF(AND(V$446:V$495=""), IF(AND(U$13<>"", V$13=""), "DV input required", U$12), IF(AND(OR(V$446:V$495="DV"), V$13=""), "DV input required", "")), "") ->  | W12: =IF(COUNTA($H$12:V$12)<SUM($11:$11), IF(AND(W$446:W$495=""), IF(AND(V$13<>"", W$13=""), "DV input required", V$12), IF(AND(OR(W$446:W$495="DV"), W$13=""), "DV input required", "")), "") ->  | X12: =IF(COUNTA($H$12:W$12)<SUM($11:$11), IF(AND(X$446:X$495=""), IF(AND(W$13<>"", X$13=""), "DV input required", W$12), IF(AND(OR(X$446:X$495="DV"), X$13=""), "DV input required", "")), "") ->  | Y12: =IF(COUNTA($H$12:X$12)<SUM($11:$11), IF(AND(Y$446:Y$495=""), IF(AND(X$13<>"", Y$13=""), "DV input required", X$12), IF(AND(OR(Y$446:Y$495="DV"), Y$13=""), "DV input required", "")), "") ->  | Z12: =IF(COUNTA($H$12:Y$12)<SUM($11:$11), IF(AND(Z$446:Z$495=""), IF(AND(Y$13<>"", Z$13=""), "DV input required", Y$12), IF(AND(OR(Z$446:Z$495="DV"), Z$13=""), "DV input required", "")), "") ->  | AA12: =IF(COUNTA($H$12:Z$12)<SUM($11:$11), IF(AND(AA$446:AA$495=""), IF(AND(Z$13<>"", AA$13=""), "DV input required", Z$12), IF(AND(OR(AA$446:AA$495="DV"), AA$13=""), "DV input required", "")), "") ->  | AB12: =IF(COUNTA($H$12:AA$12)<SUM($11:$11), IF(AND(AB$446:AB$495=""), IF(AND(AA$13<>"", AB$13=""), "DV input required", AA$12), IF(AND(OR(AB$446:AB$495="DV"), AB$13=""), "DV input required", "")), "") ->  | AC12: =IF(COUNTA($H$12:AB$12)<SUM($11:$11), IF(AND(AC$446:AC$495=""), IF(AND(AB$13<>"", AC$13=""), "DV input required", AB$12), IF(AND(OR(AC$446:AC$495="DV"), AC$13=""), "DV input required", "")), "") ->  | AD12: =IF(COUNTA($H$12:AC$12)<SUM($11:$11), IF(AND(AD$446:AD$495=""), IF(AND(AC$13<>"", AD$13=""), "DV input required", AC$12), IF(AND(OR(AD$446:AD$495="DV"), AD$13=""), "DV input required", "")), "") ->  | AE12: =IF(COUNTA($H$12:AD$12)<SUM($11:$11), IF(AND(AE$446:AE$495=""), IF(AND(AD$13<>"", AE$13=""), "DV input required", AD$12), IF(AND(OR(AE$446:AE$495="DV"), AE$13=""), "DV input required", "")), "") ->  | AF12: =IF(COUNTA($H$12:AE$12)<SUM($11:$11), IF(AND(AF$446:AF$495=""), IF(AND(AE$13<>"", AF$13=""), "DV input required", AE$12), IF(AND(OR(AF$446:AF$495="DV"), AF$13=""), "DV input required", "")), "") ->  | AG12: =IF(COUNTA($H$12:AF$12)<SUM($11:$11), IF(AND(AG$446:AG$495=""), IF(AND(AF$13<>"", AG$13=""), "DV input required", AF$12), IF(AND(OR(AG$446:AG$495="DV"), AG$13=""), "DV input required", "")), "") ->  | AH12: =IF(COUNTA($H$12:AG$12)<SUM($11:$11), IF(AND(AH$446:AH$495=""), IF(AND(AG$13<>"", AH$13=""), "DV input required", AG$12), IF(AND(OR(AH$446:AH$495="DV"), AH$13=""), "DV input required", "")), "") ->  | AI12: =IF(COUNTA($H$12:AH$12)<SUM($11:$11), IF(AND(AI$446:AI$495=""), IF(AND(AH$13<>"", AI$13=""), "DV input required", AH$12), IF(AND(OR(AI$446:AI$495="DV"), AI$13=""), "DV input required", "")), "") ->  | AJ12: =IF(COUNTA($H$12:AI$12)<SUM($11:$11), IF(AND(AJ$446:AJ$495=""), IF(AND(AI$13<>"", AJ$13=""), "DV input required", AI$12), IF(AND(OR(AJ$446:AJ$495="DV"), AJ$13=""), "DV input required", "")), "") ->  | AK12: =IF(COUNTA($H$12:AJ$12)<SUM($11:$11), IF(AND(AK$446:AK$495=""), IF(AND(AJ$13<>"", AK$13=""), "DV input required", AJ$12), IF(AND(OR(AK$446:AK$495="DV"), AK$13=""), "DV input required", "")), "") ->  | AL12: =IF(COUNTA($H$12:AK$12)<SUM($11:$11), IF(AND(AL$446:AL$495=""), IF(AND(AK$13<>"", AL$13=""), "DV input required", AK$12), IF(AND(OR(AL$446:AL$495="DV"), AL$13=""), "DV input required", "")), "") ->  | AM12: =IF(COUNTA($H$12:AL$12)<SUM($11:$11), IF(AND(AM$446:AM$495=""), IF(AND(AL$13<>"", AM$13=""), "DV input required", AL$12), IF(AND(OR(AM$446:AM$495="DV"), AM$13=""), "DV input required", "")), "") ->  | AN12: =IF(COUNTA($H$12:AM$12)<SUM($11:$11), IF(AND(AN$446:AN$495=""), IF(AND(AM$13<>"", AN$13=""), "DV input required", AM$12), IF(AND(OR(AN$446:AN$495="DV"), AN$13=""), "DV input required", "")), "") ->  | AO12: =IF(COUNTA($H$12:AN$12)<SUM($11:$11), IF(AND(AO$446:AO$495=""), IF(AND(AN$13<>"", AO$13=""), "DV input required", AN$12), IF(AND(OR(AO$446:AO$495="DV"), AO$13=""), "DV input required", "")), "") ->  | AP12: =IF(COUNTA($H$12:AO$12)<SUM($11:$11), IF(AND(AP$446:AP$495=""), IF(AND(AO$13<>"", AP$13=""), "DV input required", AO$12), IF(AND(OR(AP$446:AP$495="DV"), AP$13=""), "DV input required", "")), "") ->  | AQ12: =IF(COUNTA($H$12:AP$12)<SUM($11:$11), IF(AND(AQ$446:AQ$495=""), IF(AND(AP$13<>"", AQ$13=""), "DV input required", AP$12), IF(AND(OR(AQ$446:AQ$495="DV"), AQ$13=""), "DV input required", "")), "") ->  | AR12: =IF(COUNTA($H$12:AQ$12)<SUM($11:$11), IF(AND(AR$446:AR$495=""), IF(AND(AQ$13<>"", AR$13=""), "DV input required", AQ$12), IF(AND(OR(AR$446:AR$495="DV"), AR$13=""), "DV input required", "")), "") ->  | AS12: =IF(COUNTA($H$12:AR$12)<SUM($11:$11), IF(AND(AS$446:AS$495=""), IF(AND(AR$13<>"", AS$13=""), "DV input required", AR$12), IF(AND(OR(AS$446:AS$495="DV"), AS$13=""), "DV input required", "")), "") ->  | AT12: =IF(COUNTA($H$12:AS$12)<SUM($11:$11), IF(AND(AT$446:AT$495=""), IF(AND(AS$13<>"", AT$13=""), "DV input required", AS$12), IF(AND(OR(AT$446:AT$495="DV"), AT$13=""), "DV input required", "")), "") ->  | AU12: =IF(COUNTA($H$12:AT$12)<SUM($11:$11), IF(AND(AU$446:AU$495=""), IF(AND(AT$13<>"", AU$13=""), "DV input required", AT$12), IF(AND(OR(AU$446:AU$495="DV"), AU$13=""), "DV input required", "")), "") ->  | AV12: =IF(COUNTA($H$12:AU$12)<SUM($11:$11), IF(AND(AV$446:AV$495=""), IF(AND(AU$13<>"", AV$13=""), "DV input required", AU$12), IF(AND(OR(AV$446:AV$495="DV"), AV$13=""), "DV input required", "")), "") ->  | AW12: =IF(COUNTA($H$12:AV$12)<SUM($11:$11), IF(AND(AW$446:AW$495=""), IF(AND(AV$13<>"", AW$13=""), "DV input required", AV$12), IF(AND(OR(AW$446:AW$495="DV"), AW$13=""), "DV input required", "")), "") ->  | AX12: =IF(COUNTA($H$12:AW$12)<SUM($11:$11), IF(AND(AX$446:AX$495=""), IF(AND(AW$13<>"", AX$13=""), "DV input required", AW$12), IF(AND(OR(AX$446:AX$495="DV"), AX$13=""), "DV input required", "")), "") ->  | AY12: =IF(COUNTA($H$12:AX$12)<SUM($11:$11), IF(AND(AY$446:AY$495=""), IF(AND(AX$13<>"", AY$13=""), "DV input required", AX$12), IF(AND(OR(AY$446:AY$495="DV"), AY$13=""), "DV input required", "")), "") ->  | AZ12: =IF(COUNTA($H$12:AY$12)<SUM($11:$11), IF(AND(AZ$446:AZ$495=""), IF(AND(AY$13<>"", AZ$13=""), "DV input required", AY$12), IF(AND(OR(AZ$446:AZ$495="DV"), AZ$13=""), "DV input required", "")), "") ->  | BA12: =IF(COUNTA($H$12:AZ$12)<SUM($11:$11), IF(AND(BA$446:BA$495=""), IF(AND(AZ$13<>"", BA$13=""), "DV input required", AZ$12), IF(AND(OR(BA$446:BA$495="DV"), BA$13=""), "DV input required", "")), "") ->  | BB12: =IF(COUNTA($H$12:BA$12)<SUM($11:$11), IF(AND(BB$446:BB$495=""), IF(AND(BA$13<>"", BB$13=""), "DV input required", BA$12), IF(AND(OR(BB$446:BB$495="DV"), BB$13=""), "DV input required", "")), "") ->  | BC12: =IF(COUNTA($H$12:BB$12)<SUM($11:$11), IF(AND(BC$446:BC$495=""), IF(AND(BB$13<>"", BC$13=""), "DV input required", BB$12), IF(AND(OR(BC$446:BC$495="DV"), BC$13=""), "DV input required", "")), "") ->  | BD12: =IF(COUNTA($H$12:BC$12)<SUM($11:$11), IF(AND(BD$446:BD$495=""), IF(AND(BC$13<>"", BD$13=""), "DV input required", BC$12), IF(AND(OR(BD$446:BD$495="DV"), BD$13=""), "DV input required", "")), "") ->  | BE12: =IF(COUNTA($H$12:BD$12)<SUM($11:$11), IF(AND(BE$446:BE$495=""), IF(AND(BD$13<>"", BE$13=""), "DV input required", BD$12), IF(AND(OR(BE$446:BE$495="DV"), BE$13=""), "DV input required", "")), "") ->  | BF12: =IF(COUNTA($H$12:BE$12)<SUM($11:$11), IF(AND(BF$446:BF$495=""), IF(AND(BE$13<>"", BF$13=""), "DV input required", BE$12), IF(AND(OR(BF$446:BF$495="DV"), BF$13=""), "DV input required", "")), "") ->  | BG12: =IF(COUNTA($H$12:BF$12)<SUM($11:$11), IF(AND(BG$446:BG$495=""), IF(AND(BF$13<>"", BG$13=""), "DV input required", BF$12), IF(AND(OR(BG$446:BG$495="DV"), BG$13=""), "DV input required", "")), "") ->  | BH12: =IF(COUNTA($H$12:BG$12)<SUM($11:$11), IF(AND(BH$446:BH$495=""), IF(AND(BG$13<>"", BH$13=""), "DV input required", BG$12), IF(AND(OR(BH$446:BH$495="DV"), BH$13=""), "DV input required", "")), "") ->  | BI12: =IF(COUNTA($H$12:BH$12)<SUM($11:$11), IF(AND(BI$446:BI$495=""), IF(AND(BH$13<>"", BI$13=""), "DV input required", BH$12), IF(AND(OR(BI$446:BI$495="DV"), BI$13=""), "DV input required", "")), "") ->  | BJ12: =IF(COUNTA($H$12:BI$12)<SUM($11:$11), IF(AND(BJ$446:BJ$495=""), IF(AND(BI$13<>"", BJ$13=""), "DV input required", BI$12), IF(AND(OR(BJ$446:BJ$495="DV"), BJ$13=""), "DV input required", "")), "") ->  | BK12: =IF(COUNTA($H$12:BJ$12)<SUM($11:$11), IF(AND(BK$446:BK$495=""), IF(AND(BJ$13<>"", BK$13=""), "DV input required", BJ$12), IF(AND(OR(BK$446:BK$495="DV"), BK$13=""), "DV input required", "")), "") ->  | BL12: =IF(COUNTA($H$12:BK$12)<SUM($11:$11), IF(AND(BL$446:BL$495=""), IF(AND(BK$13<>"", BL$13=""), "DV input required", BK$12), IF(AND(OR(BL$446:BL$495="DV"), BL$13=""), "DV input required", "")), "") ->  | BM12: =IF(COUNTA($H$12:BL$12)<SUM($11:$11), IF(AND(BM$446:BM$495=""), IF(AND(BL$13<>"", BM$13=""), "DV input required", BL$12), IF(AND(OR(BM$446:BM$495="DV"), BM$13=""), "DV input required", "")), "") ->  | BN12: =IF(COUNTA($H$12:BM$12)<SUM($11:$11), IF(AND(BN$446:BN$495=""), IF(AND(BM$13<>"", BN$13=""), "DV input required", BM$12), IF(AND(OR(BN$446:BN$495="DV"), BN$13=""), "DV input required", "")), "") ->  | BO12: =IF(COUNTA($H$12:BN$12)<SUM($11:$11), IF(AND(BO$446:BO$495=""), IF(AND(BN$13<>"", BO$13=""), "DV input required", BN$12), IF(AND(OR(BO$446:BO$495="DV"), BO$13=""), "DV input required", "")), "") ->  | BP12: =IF(COUNTA($H$12:BO$12)<SUM($11:$11), IF(AND(BP$446:BP$495=""), IF(AND(BO$13<>"", BP$13=""), "DV input required", BO$12), IF(AND(OR(BP$446:BP$495="DV"), BP$13=""), "DV input required", "")), "") ->  | BQ12: =IF(COUNTA($H$12:BP$12)<SUM($11:$11), IF(AND(BQ$446:BQ$495=""), IF(AND(BP$13<>"", BQ$13=""), "DV input required", BP$12), IF(AND(OR(BQ$446:BQ$495="DV"), BQ$13=""), "DV input required", "")), "") ->  | BR12: =IF(COUNTA($H$12:BQ$12)<SUM($11:$11), IF(AND(BR$446:BR$495=""), IF(AND(BQ$13<>"", BR$13=""), "DV input required", BQ$12), IF(AND(OR(BR$446:BR$495="DV"), BR$13=""), "DV input required", "")), "") ->  | BS12: =IF(COUNTA($H$12:BR$12)<SUM($11:$11), IF(AND(BS$446:BS$495=""), IF(AND(BR$13<>"", BS$13=""), "DV input required", BR$12), IF(AND(OR(BS$446:BS$495="DV"), BS$13=""), "DV input required", "")), "") ->  | BT12: =IF(COUNTA($H$12:BS$12)<SUM($11:$11), IF(AND(BT$446:BT$495=""), IF(AND(BS$13<>"", BT$13=""), "DV input required", BS$12), IF(AND(OR(BT$446:BT$495="DV"), BT$13=""), "DV input required", "")), "") ->  | BU12: =IF(COUNTA($H$12:BT$12)<SUM($11:$11), IF(AND(BU$446:BU$495=""), IF(AND(BT$13<>"", BU$13=""), "DV input required", BT$12), IF(AND(OR(BU$446:BU$495="DV"), BU$13=""), "DV input required", "")), "") ->  | BV12: =IF(COUNTA($H$12:BU$12)<SUM($11:$11), IF(AND(BV$446:BV$495=""), IF(AND(BU$13<>"", BV$13=""), "DV input required", BU$12), IF(AND(OR(BV$446:BV$495="DV"), BV$13=""), "DV input required", "")), "") ->  | BW12: =IF(COUNTA($H$12:BV$12)<SUM($11:$11), IF(AND(BW$446:BW$495=""), IF(AND(BV$13<>"", BW$13=""), "DV input required", BV$12), IF(AND(OR(BW$446:BW$495="DV"), BW$13=""), "DV input required", "")), "") ->  | BX12: =IF(COUNTA($H$12:BW$12)<SUM($11:$11), IF(AND(BX$446:BX$495=""), IF(AND(BW$13<>"", BX$13=""), "DV input required", BW$12), IF(AND(OR(BX$446:BX$495="DV"), BX$13=""), "DV input required", "")), "") ->  | BY12: =IF(COUNTA($H$12:BX$12)<SUM($11:$11), IF(AND(BY$446:BY$495=""), IF(AND(BX$13<>"", BY$13=""), "DV input required", BX$12), IF(AND(OR(BY$446:BY$495="DV"), BY$13=""), "DV input required", "")), "") ->  | BZ12: =IF(COUNTA($H$12:BY$12)<SUM($11:$11), IF(AND(BZ$446:BZ$495=""), IF(AND(BY$13<>"", BZ$13=""), "DV input required", BY$12), IF(AND(OR(BZ$446:BZ$495="DV"), BZ$13=""), "DV input required", "")), "") ->  | CA12: =IF(COUNTA($H$12:BZ$12)<SUM($11:$11), IF(AND(CA$446:CA$495=""), IF(AND(BZ$13<>"", CA$13=""), "DV input required", BZ$12), IF(AND(OR(CA$446:CA$495="DV"), CA$13=""), "DV input required", "")), "") ->  | CB12: =IF(COUNTA($H$12:CA$12)<SUM($11:$11), IF(AND(CB$446:CB$495=""), IF(AND(CA$13<>"", CB$13=""), "DV input required", CA$12), IF(AND(OR(CB$446:CB$495="DV"), CB$13=""), "DV input required", "")), "") ->  | CC12: =IF(COUNTA($H$12:CB$12)<SUM($11:$11), IF(AND(CC$446:CC$495=""), IF(AND(CB$13<>"", CC$13=""), "DV input required", CB$12), IF(AND(OR(CC$446:CC$495="DV"), CC$13=""), "DV input required", "")), "") ->  | CD12: =IF(COUNTA($H$12:CC$12)<SUM($11:$11), IF(AND(CD$446:CD$495=""), IF(AND(CC$13<>"", CD$13=""), "DV input required", CC$12), IF(AND(OR(CD$446:CD$495="DV"), CD$13=""), "DV input required", "")), "") ->  | CE12: =IF(COUNTA($H$12:CD$12)<SUM($11:$11), IF(AND(CE$446:CE$495=""), IF(AND(CD$13<>"", CE$13=""), "DV input required", CD$12), IF(AND(OR(CE$446:CE$495="DV"), CE$13=""), "DV input required", "")), "") ->  | CF12: =IF(COUNTA($H$12:CE$12)<SUM($11:$11), IF(AND(CF$446:CF$495=""), IF(AND(CE$13<>"", CF$13=""), "DV input required", CE$12), IF(AND(OR(CF$446:CF$495="DV"), CF$13=""), "DV input required", "")), "") ->  | CG12: =IF(COUNTA($H$12:CF$12)<SUM($11:$11), IF(AND(CG$446:CG$495=""), IF(AND(CF$13<>"", CG$13=""), "DV input required", CF$12), IF(AND(OR(CG$446:CG$495="DV"), CG$13=""), "DV input required", "")), "") ->  | CH12: =IF(COUNTA($H$12:CG$12)<SUM($11:$11), IF(AND(CH$446:CH$495=""), IF(AND(CG$13<>"", CH$13=""), "DV input required", CG$12), IF(AND(OR(CH$446:CH$495="DV"), CH$13=""), "DV input required", "")), "") ->  | CI12: =IF(COUNTA($H$12:CH$12)<SUM($11:$11), IF(AND(CI$446:CI$495=""), IF(AND(CH$13<>"", CI$13=""), "DV input required", CH$12), IF(AND(OR(CI$446:CI$495="DV"), CI$13=""), "DV input required", "")), "") ->  | CJ12: =IF(COUNTA($H$12:CI$12)<SUM($11:$11), IF(AND(CJ$446:CJ$495=""), IF(AND(CI$13<>"", CJ$13=""), "DV input required", CI$12), IF(AND(OR(CJ$446:CJ$495="DV"), CJ$13=""), "DV input required", "")), "") ->  | CK12: =IF(COUNTA($H$12:CJ$12)<SUM($11:$11), IF(AND(CK$446:CK$495=""), IF(AND(CJ$13<>"", CK$13=""), "DV input required", CJ$12), IF(AND(OR(CK$446:CK$495="DV"), CK$13=""), "DV input required", "")), "") ->  | CL12: =IF(COUNTA($H$12:CK$12)<SUM($11:$11), IF(AND(CL$446:CL$495=""), IF(AND(CK$13<>"", CL$13=""), "DV input required", CK$12), IF(AND(OR(CL$446:CL$495="DV"), CL$13=""), "DV input required", "")), "") ->  | CM12: =IF(COUNTA($H$12:CL$12)<SUM($11:$11), IF(AND(CM$446:CM$495=""), IF(AND(CL$13<>"", CM$13=""), "DV input required", CL$12), IF(AND(OR(CM$446:CM$495="DV"), CM$13=""), "DV input required", "")), "") ->  | CN12: =IF(COUNTA($H$12:CM$12)<SUM($11:$11), IF(AND(CN$446:CN$495=""), IF(AND(CM$13<>"", CN$13=""), "DV input required", CM$12), IF(AND(OR(CN$446:CN$495="DV"), CN$13=""), "DV input required", "")), "") ->  | CO12: =IF(COUNTA($H$12:CN$12)<SUM($11:$11), IF(AND(CO$446:CO$495=""), IF(AND(CN$13<>"", CO$13=""), "DV input required", CN$12), IF(AND(OR(CO$446:CO$495="DV"), CO$13=""), "DV input required", "")), "") ->  | CP12: =IF(COUNTA($H$12:CO$12)<SUM($11:$11), IF(AND(CP$446:CP$495=""), IF(AND(CO$13<>"", CP$13=""), "DV input required", CO$12), IF(AND(OR(CP$446:CP$495="DV"), CP$13=""), "DV input required", "")), "") -> 
E13: Diminishing value multiplier | G13: 2 | H13: 2 | I13: 2 | J13: 2 | K13: 2 | L13: 2
D15: Starting TAB and actual gross capex - As incurred ($m, nominal)
E16: Asset class | G16: ="TAB (opening as at "&$H$4&")" -> TAB (opening as at 2020-21) | H16: ="Actual gross capex ("&H$4&")" -> Actual gross capex (2020-21) | I16: =IF(COUNTA($H$16:H$16)<SUM($11:$11), "Actual gross capex ("&I$4&")", "") -> Actual gross capex (2021-22) | J16: =IF(COUNTA($H$16:I$16)<SUM($11:$11), "Actual gross capex ("&J$4&")", "") -> Actual gross capex (2022-23) | K16: =IF(COUNTA($H$16:J$16)<SUM($11:$11), "Actual gross capex ("&K$4&")", "") -> Actual gross capex (2023-24) | L16: =IF(COUNTA($H$16:K$16)<SUM($11:$11), "Actual gross capex ("&L$4&")", "") -> Actual gross capex (2024-25) | M16: =IF(COUNTA($H$16:L$16)<SUM($11:$11), "Actual gross capex ("&M$4&")", "") ->  | N16: =IF(COUNTA($H$16:M$16)<SUM($11:$11), "Actual gross capex ("&N$4&")", "") ->  | O16: =IF(COUNTA($H$16:N$16)<SUM($11:$11), "Actual gross capex ("&O$4&")", "") ->  | P16: =IF(COUNTA($H$16:O$16)<SUM($11:$11), "Actual gross capex ("&P$4&")", "") ->  | Q16: =IF(COUNTA($H$16:P$16)<SUM($11:$11), "Actual gross capex ("&Q$4&")", "") ->  | R16: =IF(COUNTA($H$16:Q$16)<SUM($11:$11), "Actual gross capex ("&R$4&")", "") ->  | S16: =IF(COUNTA($H$16:R$16)<SUM($11:$11), "Actual gross capex ("&S$4&")", "") ->  | T16: =IF(COUNTA($H$16:S$16)<SUM($11:$11), "Actual gross capex ("&T$4&")", "") ->  | U16: =IF(COUNTA($H$16:T$16)<SUM($11:$11), "Actual gross capex ("&U$4&")", "") ->  | V16: =IF(COUNTA($H$16:U$16)<SUM($11:$11), "Actual gross capex ("&V$4&")", "") ->  | W16: =IF(COUNTA($H$16:V$16)<SUM($11:$11), "Actual gross capex ("&W$4&")", "") ->  | X16: =IF(COUNTA($H$16:W$16)<SUM($11:$11), "Actual gross capex ("&X$4&")", "") ->  | Y16: =IF(COUNTA($H$16:X$16)<SUM($11:$11), "Actual gross capex ("&Y$4&")", "") ->  | Z16: =IF(COUNTA($H$16:Y$16)<SUM($11:$11), "Actual gross capex ("&Z$4&")", "") ->  | AA16: =IF(COUNTA($H$16:Z$16)<SUM($11:$11), "Actual gross capex ("&AA$4&")", "") ->  | AB16: =IF(COUNTA($H$16:AA$16)<SUM($11:$11), "Actual gross capex ("&AB$4&")", "") ->  | AC16: =IF(COUNTA($H$16:AB$16)<SUM($11:$11), "Actual gross capex ("&AC$4&")", "") ->  | AD16: =IF(COUNTA($H$16:AC$16)<SUM($11:$11), "Actual gross capex ("&AD$4&")", "") ->  | AE16: =IF(COUNTA($H$16:AD$16)<SUM($11:$11), "Actual gross capex ("&AE$4&")", "") ->  | AF16: =IF(COUNTA($H$16:AE$16)<SUM($11:$11), "Actual gross capex ("&AF$4&")", "") ->  | AG16: =IF(COUNTA($H$16:AF$16)<SUM($11:$11), "Actual gross capex ("&AG$4&")", "") ->  | AH16: =IF(COUNTA($H$16:AG$16)<SUM($11:$11), "Actual gross capex ("&AH$4&")", "") ->  | AI16: =IF(COUNTA($H$16:AH$16)<SUM($11:$11), "Actual gross capex ("&AI$4&")", "") ->  | AJ16: =IF(COUNTA($H$16:AI$16)<SUM($11:$11), "Actual gross capex ("&AJ$4&")", "") ->  | AK16: =IF(COUNTA($H$16:AJ$16)<SUM($11:$11), "Actual gross capex ("&AK$4&")", "") ->  | AL16: =IF(COUNTA($H$16:AK$16)<SUM($11:$11), "Actual gross capex ("&AL$4&")", "") ->  | AM16: =IF(COUNTA($H$16:AL$16)<SUM($11:$11), "Actual gross capex ("&AM$4&")", "") ->  | AN16: =IF(COUNTA($H$16:AM$16)<SUM($11:$11), "Actual gross capex ("&AN$4&")", "") ->  | AO16: =IF(COUNTA($H$16:AN$16)<SUM($11:$11), "Actual gross capex ("&AO$4&")", "") ->  | AP16: =IF(COUNTA($H$16:AO$16)<SUM($11:$11), "Actual gross capex ("&AP$4&")", "") ->  | AQ16: =IF(COUNTA($H$16:AP$16)<SUM($11:$11), "Actual gross capex ("&AQ$4&")", "") ->  | AR16: =IF(COUNTA($H$16:AQ$16)<SUM($11:$11), "Actual gross capex ("&AR$4&")", "") ->  | AS16: =IF(COUNTA($H$16:AR$16)<SUM($11:$11), "Actual gross capex ("&AS$4&")", "") ->  | AT16: =IF(COUNTA($H$16:AS$16)<SUM($11:$11), "Actual gross capex ("&AT$4&")", "") ->  | AU16: =IF(COUNTA($H$16:AT$16)<SUM($11:$11), "Actual gross capex ("&AU$4&")", "") ->  | AV16: =IF(COUNTA($H$16:AU$16)<SUM($11:$11), "Actual gross capex ("&AV$4&")", "") ->  | AW16: =IF(COUNTA($H$16:AV$16)<SUM($11:$11), "Actual gross capex ("&AW$4&")", "") ->  | AX16: =IF(COUNTA($H$16:AW$16)<SUM($11:$11), "Actual gross capex ("&AX$4&")", "") ->  | AY16: =IF(COUNTA($H$16:AX$16)<SUM($11:$11), "Actual gross capex ("&AY$4&")", "") ->  | AZ16: =IF(COUNTA($H$16:AY$16)<SUM($11:$11), "Actual gross capex ("&AZ$4&")", "") ->  | BA16: =IF(COUNTA($H$16:AZ$16)<SUM($11:$11), "Actual gross capex ("&BA$4&")", "") ->  | BB16: =IF(COUNTA($H$16:BA$16)<SUM($11:$11), "Actual gross capex ("&BB$4&")", "") ->  | BC16: =IF(COUNTA($H$16:BB$16)<SUM($11:$11), "Actual gross capex ("&BC$4&")", "") ->  | BD16: =IF(COUNTA($H$16:BC$16)<SUM($11:$11), "Actual gross capex ("&BD$4&")", "") ->  | BE16: =IF(COUNTA($H$16:BD$16)<SUM($11:$11), "Actual gross capex ("&BE$4&")", "") ->  | BF16: =IF(COUNTA($H$16:BE$16)<SUM($11:$11), "Actual gross capex ("&BF$4&")", "") ->  | BG16: =IF(COUNTA($H$16:BF$16)<SUM($11:$11), "Actual gross capex ("&BG$4&")", "") ->  | BH16: =IF(COUNTA($H$16:BG$16)<SUM($11:$11), "Actual gross capex ("&BH$4&")", "") ->  | BI16: =IF(COUNTA($H$16:BH$16)<SUM($11:$11), "Actual gross capex ("&BI$4&")", "") ->  | BJ16: =IF(COUNTA($H$16:BI$16)<SUM($11:$11), "Actual gross capex ("&BJ$4&")", "") ->  | BK16: =IF(COUNTA($H$16:BJ$16)<SUM($11:$11), "Actual gross capex ("&BK$4&")", "") ->  | BL16: =IF(COUNTA($H$16:BK$16)<SUM($11:$11), "Actual gross capex ("&BL$4&")", "") ->  | BM16: =IF(COUNTA($H$16:BL$16)<SUM($11:$11), "Actual gross capex ("&BM$4&")", "") ->  | BN16: =IF(COUNTA($H$16:BM$16)<SUM($11:$11), "Actual gross capex ("&BN$4&")", "") ->  | BO16: =IF(COUNTA($H$16:BN$16)<SUM($11:$11), "Actual gross capex ("&BO$4&")", "") ->  | BP16: =IF(COUNTA($H$16:BO$16)<SUM($11:$11), "Actual gross capex ("&BP$4&")", "") ->  | BQ16: =IF(COUNTA($H$16:BP$16)<SUM($11:$11), "Actual gross capex ("&BQ$4&")", "") ->  | BR16: =IF(COUNTA($H$16:BQ$16)<SUM($11:$11), "Actual gross capex ("&BR$4&")", "") ->  | BS16: =IF(COUNTA($H$16:BR$16)<SUM($11:$11), "Actual gross capex ("&BS$4&")", "") ->  | BT16: =IF(COUNTA($H$16:BS$16)<SUM($11:$11), "Actual gross capex ("&BT$4&")", "") ->  | BU16: =IF(COUNTA($H$16:BT$16)<SUM($11:$11), "Actual gross capex ("&BU$4&")", "") ->  | BV16: =IF(COUNTA($H$16:BU$16)<SUM($11:$11), "Actual gross capex ("&BV$4&")", "") ->  | BW16: =IF(COUNTA($H$16:BV$16)<SUM($11:$11), "Actual gross capex ("&BW$4&")", "") ->  | BX16: =IF(COUNTA($H$16:BW$16)<SUM($11:$11), "Actual gross capex ("&BX$4&")", "") ->  | BY16: =IF(COUNTA($H$16:BX$16)<SUM($11:$11), "Actual gross capex ("&BY$4&")", "") ->  | BZ16: =IF(COUNTA($H$16:BY$16)<SUM($11:$11), "Actual gross capex ("&BZ$4&")", "") ->  | CA16: =IF(COUNTA($H$16:BZ$16)<SUM($11:$11), "Actual gross capex ("&CA$4&")", "") ->  | CB16: =IF(COUNTA($H$16:CA$16)<SUM($11:$11), "Actual gross capex ("&CB$4&")", "") ->  | CC16: =IF(COUNTA($H$16:CB$16)<SUM($11:$11), "Actual gross capex ("&CC$4&")", "") ->  | CD16: =IF(COUNTA($H$16:CC$16)<SUM($11:$11), "Actual gross capex ("&CD$4&")", "") ->  | CE16: =IF(COUNTA($H$16:CD$16)<SUM($11:$11), "Actual gross capex ("&CE$4&")", "") ->  | CF16: =IF(COUNTA($H$16:CE$16)<SUM($11:$11), "Actual gross capex ("&CF$4&")", "") ->  | CG16: =IF(COUNTA($H$16:CF$16)<SUM($11:$11), "Actual gross capex ("&CG$4&")", "") ->  | CH16: =IF(COUNTA($H$16:CG$16)<SUM($11:$11), "Actual gross capex ("&CH$4&")", "") ->  | CI16: =IF(COUNTA($H$16:CH$16)<SUM($11:$11), "Actual gross capex ("&CI$4&")", "") ->  | CJ16: =IF(COUNTA($H$16:CI$16)<SUM($11:$11), "Actual gross capex ("&CJ$4&")", "") ->  | CK16: =IF(COUNTA($H$16:CJ$16)<SUM($11:$11), "Actual gross capex ("&CK$4&")", "") ->  | CL16: =IF(COUNTA($H$16:CK$16)<SUM($11:$11), "Actual gross capex ("&CL$4&")", "") ->  | CM16: =IF(COUNTA($H$16:CL$16)<SUM($11:$11), "Actual gross capex ("&CM$4&")", "") ->  | CN16: =IF(COUNTA($H$16:CM$16)<SUM($11:$11), "Actual gross capex ("&CN$4&")", "") ->  | CO16: =IF(COUNTA($H$16:CN$16)<SUM($11:$11), "Actual gross capex ("&CO$4&")", "") ->  | CP16: =IF(COUNTA($H$16:CO$16)<SUM($11:$11), "Actual gross capex ("&CP$4&")", "") -> 
D18: 1 | E18: ='Capital base input'!E27 -> Trunk Wilton-Sydney | G18: 0.2559714265 | H18: =INDEX('Capital base input'!$H$27:$XFD$76, MATCH($E18, 'Capital base input'!$E$27:$E$76, 0), MATCH(H$4, RAB_years, 0)) -> 0 | I18: =INDEX('Capital base input'!$H$27:$XFD$76, MATCH($E18, 'Capital base input'!$E$27:$E$76, 0), MATCH(I$4, RAB_years, 0)) -> 0 | J18: =INDEX('Capital base input'!$H$27:$XFD$76, MATCH($E18, 'Capital base input'!$E$27:$E$76, 0), MATCH(J$4, RAB_years, 0)) -> 0.69425502 | K18: =INDEX('Capital base input'!$H$27:$XFD$76, MATCH($E18, 'Capital base input'!$E$27:$E$76, 0), MATCH(K$4, RAB_years, 0)) -> 0.06088863 | L18: =INDEX('Capital base input'!$H$27:$XFD$76, MATCH($E18, 'Capital base input'!$E$27:$E$76, 0), MATCH(L$4, RAB_years, 0)) -> 0 | M18: =INDEX('Capital base input'!$H$27:$XFD$76, MATCH($E18, 'Capital base input'!$E$27:$E$76, 0), MATCH(M$4, RAB_years, 0)) -> 0 | N18: =INDEX('Capital base input'!$H$27:$XFD$76, MATCH($E18, 'Capital base input'!$E$27:$E$76, 0), MATCH(N$4, RAB_years, 0)) -> 0 | O18: =INDEX('Capital base input'!$H$27:$XFD$76, MATCH($E18, 'Capital base input'!$E$27:$E$76, 0), MATCH(O$4, RAB_years, 0)) -> 0 | P18: =INDEX('Capital base input'!$H$27:$XFD$76, MATCH($E18, 'Capital base input'!$E$27:$E$76, 0), MATCH(P$4, RAB_years, 0)) -> 0 | Q18: =INDEX('Capital base input'!$H$27:$XFD$76, MATCH($E18, 'Capital base input'!$E$27:$E$76, 0), MATCH(Q$4, RAB_years, 0)) -> 0 | R18: =INDEX('Capital base input'!$H$27:$XFD$76, MATCH($E18, 'Capital base input'!$E$27:$E$76, 0), MATCH(R$4, RAB_years, 0)) -> 0 | S18: =INDEX('Capital base input'!$H$27:$XFD$76, MATCH($E18, 'Capital base input'!$E$27:$E$76, 0), MATCH(S$4, RAB_years, 0)) -> 0 | T18: =INDEX('Capital base input'!$H$27:$XFD$76, MATCH($E18, 'Capital base input'!$E$27:$E$76, 0), MATCH(T$4, RAB_years, 0)) -> 0 | U18: =INDEX('Capital base input'!$H$27:$XFD$76, MATCH($E18, 'Capital base input'!$E$27:$E$76, 0), MATCH(U$4, RAB_years, 0)) -> 0 | V18: =INDEX('Capital base input'!$H$27:$XFD$76, MATCH($E18, 'Capital base input'!$E$27:$E$76, 0), MATCH(V$4, RAB_years, 0)) -> 0 | W18: =INDEX('Capital base input'!$H$27:$XFD$76, MATCH($E18, 'Capital base input'!$E$27:$E$76, 0), MATCH(W$4, RAB_years, 0)) -> 0 | X18: =INDEX('Capital base input'!$H$27:$XFD$76, MATCH($E18, 'Capital base input'!$E$27:$E$76, 0), MATCH(X$4, RAB_years, 0)) -> 0 | Y18: =INDEX('Capital base input'!$H$27:$XFD$76, MATCH($E18, 'Capital base input'!$E$27:$E$76, 0), MATCH(Y$4, RAB_years, 0)) -> 0 | Z18: =INDEX('Capital base input'!$H$27:$XFD$76, MATCH($E18, 'Capital base input'!$E$27:$E$76, 0), MATCH(Z$4, RAB_years, 0)) -> 0 | AA18: =INDEX('Capital base input'!$H$27:$XFD$76, MATCH($E18, 'Capital base input'!$E$27:$E$76, 0), MATCH(AA$4, RAB_years, 0)) -> 0 | AB18: =INDEX('Capital base input'!$H$27:$XFD$76, MATCH($E18, 'Capital base input'!$E$27:$E$76, 0), MATCH(AB$4, RAB_years, 0)) -> 0 | AC18: =INDEX('Capital base input'!$H$27:$XFD$76, MATCH($E18, 'Capital base input'!$E$27:$E$76, 0), MATCH(AC$4, RAB_years, 0)) -> 0 | AD18: =INDEX('Capital base input'!$H$27:$XFD$76, MATCH($E18, 'Capital base input'!$E$27:$E$76, 0), MATCH(AD$4, RAB_years, 0)) -> 0 | AE18: =INDEX('Capital base input'!$H$27:$XFD$76, MATCH($E18, 'Capital base input'!$E$27:$E$76, 0), MATCH(AE$4, RAB_years, 0)) -> 0 | AF18: =INDEX('Capital base input'!$H$27:$XFD$76, MATCH($E18, 'Capital base input'!$E$27:$E$76, 0), MATCH(AF$4, RAB_years, 0)) -> 0 | AG18: =INDEX('Capital base input'!$H$27:$XFD$76, MATCH($E18, 'Capital base input'!$E$27:$E$76, 0), MATCH(AG$4, RAB_years, 0)) -> 0 | AH18: =INDEX('Capital base input'!$H$27:$XFD$76, MATCH($E18, 'Capital base input'!$E$27:$E$76, 0), MATCH(AH$4, RAB_years, 0)) -> 0 | AI18: =INDEX('Capital base input'!$H$27:$XFD$76, MATCH($E18, 'Capital base input'!$E$27:$E$76, 0), MATCH(AI$4, RAB_years, 0)) -> 0 | AJ18: =INDEX('Capital base input'!$H$27:$XFD$76, MATCH($E18, 'Capital base input'!$E$27:$E$76, 0), MATCH(AJ$4, RAB_years, 0)) -> 0 | AK18: =INDEX('Capital base input'!$H$27:$XFD$76, MATCH($E18, 'Capital base input'!$E$27:$E$76, 0), MATCH(AK$4, RAB_years, 0)) -> 0 | AL18: =INDEX('Capital base input'!$H$27:$XFD$76, MATCH($E18, 'Capital base input'!$E$27:$E$76, 0), MATCH(AL$4, RAB_years, 0)) -> 0 | AM18: =INDEX('Capital base input'!$H$27:$XFD$76, MATCH($E18, 'Capital base input'!$E$27:$E$76, 0), MATCH(AM$4, RAB_years, 0)) -> 0 | AN18: =INDEX('Capital base input'!$H$27:$XFD$76, MATCH($E18, 'Capital base input'!$E$27:$E$76, 0), MATCH(AN$4, RAB_years, 0)) -> 0 | AO18: =INDEX('Capital base input'!$H$27:$XFD$76, MATCH($E18, 'Capital base input'!$E$27:$E$76, 0), MATCH(AO$4, RAB_years, 0)) -> 0 | AP18: =INDEX('Capital base input'!$H$27:$XFD$76, MATCH($E18, 'Capital base input'!$E$27:$E$76, 0), MATCH(AP$4, RAB_years, 0)) -> 0 | AQ18: =INDEX('Capital base input'!$H$27:$XFD$76, MATCH($E18, 'Capital base input'!$E$27:$E$76, 0), MATCH(AQ$4, RAB_years, 0)) -> 0 | AR18: =INDEX('Capital base input'!$H$27:$XFD$76, MATCH($E18, 'Capital base input'!$E$27:$E$76, 0), MATCH(AR$4, RAB_years, 0)) -> 0 | AS18: =INDEX('Capital base input'!$H$27:$XFD$76, MATCH($E18, 'Capital base input'!$E$27:$E$76, 0), MATCH(AS$4, RAB_years, 0)) -> 0 | AT18: =INDEX('Capital base input'!$H$27:$XFD$76, MATCH($E18, 'Capital base input'!$E$27:$E$76, 0), MATCH(AT$4, RAB_years, 0)) -> 0 | AU18: =INDEX('Capital base input'!$H$27:$XFD$76, MATCH($E18, 'Capital base input'!$E$27:$E$76, 0), MATCH(AU$4, RAB_years, 0)) -> 0 | AV18: =INDEX('Capital base input'!$H$27:$XFD$76, MATCH($E18, 'Capital base input'!$E$27:$E$76, 0), MATCH(AV$4, RAB_years, 0)) -> 0 | AW18: =INDEX('Capital base input'!$H$27:$XFD$76, MATCH($E18, 'Capital base input'!$E$27:$E$76, 0), MATCH(AW$4, RAB_years, 0)) -> 0 | AX18: =INDEX('Capital base input'!$H$27:$XFD$76, MATCH($E18, 'Capital base input'!$E$27:$E$76, 0), MATCH(AX$4, RAB_years, 0)) -> 0 | AY18: =INDEX('Capital base input'!$H$27:$XFD$76, MATCH($E18, 'Capital base input'!$E$27:$E$76, 0), MATCH(AY$4, RAB_years, 0)) -> 0 | AZ18: =INDEX('Capital base input'!$H$27:$XFD$76, MATCH($E18, 'Capital base input'!$E$27:$E$76, 0), MATCH(AZ$4, RAB_years, 0)) -> 0 | BA18: =INDEX('Capital base input'!$H$27:$XFD$76, MATCH($E18, 'Capital base input'!$E$27:$E$76, 0), MATCH(BA$4, RAB_years, 0)) -> 0 | BB18: =INDEX('Capital base input'!$H$27:$XFD$76, MATCH($E18, 'Capital base input'!$E$27:$E$76, 0), MATCH(BB$4, RAB_years, 0)) -> 0 | BC18: =INDEX('Capital base input'!$H$27:$XFD$76, MATCH($E18, 'Capital base input'!$E$27:$E$76, 0), MATCH(BC$4, RAB_years, 0)) -> 0 | BD18: =INDEX('Capital base input'!$H$27:$XFD$76, MATCH($E18, 'Capital base input'!$E$27:$E$76, 0), MATCH(BD$4, RAB_years, 0)) -> 0 | BE18: =INDEX('Capital base input'!$H$27:$XFD$76, MATCH($E18, 'Capital base input'!$E$27:$E$76, 0), MATCH(BE$4, RAB_years, 0)) -> 0 | BF18: =INDEX('Capital base input'!$H$27:$XFD$76, MATCH($E18, 'Capital base input'!$E$27:$E$76, 0), MATCH(BF$4, RAB_years, 0)) -> 0 | BG18: =INDEX('Capital base input'!$H$27:$XFD$76, MATCH($E18, 'Capital base input'!$E$27:$E$76, 0), MATCH(BG$4, RAB_years, 0)) -> 0 | BH18: =INDEX('Capital base input'!$H$27:$XFD$76, MATCH($E18, 'Capital base input'!$E$27:$E$76, 0), MATCH(BH$4, RAB_years, 0)) -> 0 | BI18: =INDEX('Capital base input'!$H$27:$XFD$76, MATCH($E18, 'Capital base input'!$E$27:$E$76, 0), MATCH(BI$4, RAB_years, 0)) -> 0 | BJ18: =INDEX('Capital base input'!$H$27:$XFD$76, MATCH($E18, 'Capital base input'!$E$27:$E$76, 0), MATCH(BJ$4, RAB_years, 0)) -> 0 | BK18: =INDEX('Capital base input'!$H$27:$XFD$76, MATCH($E18, 'Capital base input'!$E$27:$E$76, 0), MATCH(BK$4, RAB_years, 0)) -> 0 | BL18: =INDEX('Capital base input'!$H$27:$XFD$76, MATCH($E18, 'Capital base input'!$E$27:$E$76, 0), MATCH(BL$4, RAB_years, 0)) -> 0 | BM18: =INDEX('Capital base input'!$H$27:$XFD$76, MATCH($E18, 'Capital base input'!$E$27:$E$76, 0), MATCH(BM$4, RAB_years, 0)) -> 0 | BN18: =INDEX('Capital base input'!$H$27:$XFD$76, MATCH($E18, 'Capital base input'!$E$27:$E$76, 0), MATCH(BN$4, RAB_years, 0)) -> 0 | BO18: =INDEX('Capital base input'!$H$27:$XFD$76, MATCH($E18, 'Capital base input'!$E$27:$E$76, 0), MATCH(BO$4, RAB_years, 0)) -> 0 | BP18: =INDEX('Capital base input'!$H$27:$XFD$76, MATCH($E18, 'Capital base input'!$E$27:$E$76, 0), MATCH(BP$4, RAB_years, 0)) -> 0 | BQ18: =INDEX('Capital base input'!$H$27:$XFD$76, MATCH($E18, 'Capital base input'!$E$27:$E$76, 0), MATCH(BQ$4, RAB_years, 0)) -> 0 | BR18: =INDEX('Capital base input'!$H$27:$XFD$76, MATCH($E18, 'Capital base input'!$E$27:$E$76, 0), MATCH(BR$4, RAB_years, 0)) -> 0 | BS18: =INDEX('Capital base input'!$H$27:$XFD$76, MATCH($E18, 'Capital base input'!$E$27:$E$76, 0), MATCH(BS$4, RAB_years, 0)) -> 0 | BT18: =INDEX('Capital base input'!$H$27:$XFD$76, MATCH($E18, 'Capital base input'!$E$27:$E$76, 0), MATCH(BT$4, RAB_years, 0)) -> 0 | BU18: =INDEX('Capital base input'!$H$27:$XFD$76, MATCH($E18, 'Capital base input'!$E$27:$E$76, 0), MATCH(BU$4, RAB_years, 0)) -> 0 | BV18: =INDEX('Capital base input'!$H$27:$XFD$76, MATCH($E18, 'Capital base input'!$E$27:$E$76, 0), MATCH(BV$4, RAB_years, 0)) -> 0 | BW18: =INDEX('Capital base input'!$H$27:$XFD$76, MATCH($E18, 'Capital base input'!$E$27:$E$76, 0), MATCH(BW$4, RAB_years, 0)) -> 0 | BX18: =INDEX('Capital base input'!$H$27:$XFD$76, MATCH($E18, 'Capital base input'!$E$27:$E$76, 0), MATCH(BX$4, RAB_years, 0)) -> 0 | BY18: =INDEX('Capital base input'!$H$27:$XFD$76, MATCH($E18, 'Capital base input'!$E$27:$E$76, 0), MATCH(BY$4, RAB_years, 0)) -> 0 | BZ18: =INDEX('Capital base input'!$H$27:$XFD$76, MATCH($E18, 'Capital base input'!$E$27:$E$76, 0), MATCH(BZ$4, RAB_years, 0)) -> 0 | CA18: =INDEX('Capital base input'!$H$27:$XFD$76, MATCH($E18, 'Capital base input'!$E$27:$E$76, 0), MATCH(CA$4, RAB_years, 0)) -> 0 | CB18: =INDEX('Capital base input'!$H$27:$XFD$76, MATCH($E18, 'Capital base input'!$E$27:$E$76, 0), MATCH(CB$4, RAB_years, 0)) -> 0 | CC18: =INDEX('Capital base input'!$H$27:$XFD$76, MATCH($E18, 'Capital base input'!$E$27:$E$76, 0), MATCH(CC$4, RAB_years, 0)) -> 0 | CD18: =INDEX('Capital base input'!$H$27:$XFD$76, MATCH($E18, 'Capital base input'!$E$27:$E$76, 0), MATCH(CD$4, RAB_years, 0)) -> 0 | CE18: =INDEX('Capital base input'!$H$27:$XFD$76, MATCH($E18, 'Capital base input'!$E$27:$E$76, 0), MATCH(CE$4, RAB_years, 0)) -> 0 | CF18: =INDEX('Capital base input'!$H$27:$XFD$76, MATCH($E18, 'Capital base input'!$E$27:$E$76, 0), MATCH(CF$4, RAB_years, 0)) -> 0 | CG18: =INDEX('Capital base input'!$H$27:$XFD$76, MATCH($E18, 'Capital base input'!$E$27:$E$76, 0), MATCH(CG$4, RAB_years, 0)) -> 0 | CH18: =INDEX('Capital base input'!$H$27:$XFD$76, MATCH($E18, 'Capital base input'!$E$27:$E$76, 0), MATCH(CH$4, RAB_years, 0)) -> 0 | CI18: =INDEX('Capital base input'!$H$27:$XFD$76, MATCH($E18, 'Capital base input'!$E$27:$E$76, 0), MATCH(CI$4, RAB_years, 0)) -> 0 | CJ18: =INDEX('Capital base input'!$H$27:$XFD$76, MATCH($E18, 'Capital base input'!$E$27:$E$76, 0), MATCH(CJ$4, RAB_years, 0)) -> 0 | CK18: =INDEX('Capital base input'!$H$27:$XFD$76, MATCH($E18, 'Capital base input'!$E$27:$E$76, 0), MATCH(CK$4, RAB_years, 0)) -> 0 | CL18: =INDEX('Capital base input'!$H$27:$XFD$76, MATCH($E18, 'Capital base input'!$E$27:$E$76, 0), MATCH(CL$4, RAB_years, 0)) -> 0 | CM18: =INDEX('Capital base input'!$H$27:$XFD$76, MATCH($E18, 'Capital base input'!$E$27:$E$76, 0), MATCH(CM$4, RAB_years, 0)) -> 0 | CN18: =INDEX('Capital base input'!$H$27:$XFD$76, MATCH($E18, 'Capital base input'!$E$27:$E$76, 0), MATCH(CN$4, RAB_years, 0)) -> 0 | CO18: =INDEX('Capital base input'!$H$27:$XFD$76, MATCH($E18, 'Capital base input'!$E$27:$E$76, 0), MATCH(CO$4, RAB_years, 0)) -> 0 | CP18: =INDEX('Capital base input'!$H$27:$XFD$76, MATCH($E18, 'Capital base input'!$E$27:$E$76, 0), MATCH(CP$4, RAB_years, 0)) -> 0
D19: 2 | E19: ='Capital base input'!E28 -> Trunk Sydney-Newcastle | G19: 2.358638433 | H19: =INDEX('Capital base input'!$H$27:$XFD$76, MATCH($E19, 'Capital base input'!$E$27:$E$76, 0), MATCH(H$4, RAB_years, 0)) -> 0.01222619 | I19: =INDEX('Capital base input'!$H$27:$XFD$76, MATCH($E19, 'Capital base input'!$E$27:$E$76, 0), MATCH(I$4, RAB_years, 0)) -> 0.09264984 | J19: =INDEX('Capital base input'!$H$27:$XFD$76, MATCH($E19, 'Capital base input'!$E$27:$E$76, 0), MATCH(J$4, RAB_years, 0)) -> 0.50864162 | K19: =INDEX('Capital base input'!$H$27:$XFD$76, MATCH($E19, 'Capital base input'!$E$27:$E$76, 0), MATCH(K$4, RAB_years, 0)) -> 0.27938282 | L19: =INDEX('Capital base input'!$H$27:$XFD$76, MATCH($E19, 'Capital base input'!$E$27:$E$76, 0), MATCH(L$4, RAB_years, 0)) -> 0.2213922015 | M19: =INDEX('Capital base input'!$H$27:$XFD$76, MATCH($E19, 'Capital base input'!$E$27:$E$76, 0), MATCH(M$4, RAB_years, 0)) -> 0 | N19: =INDEX('Capital base input'!$H$27:$XFD$76, MATCH($E19, 'Capital base input'!$E$27:$E$76, 0), MATCH(N$4, RAB_years, 0)) -> 0 | O19: =INDEX('Capital base input'!$H$27:$XFD$76, MATCH($E19, 'Capital base input'!$E$27:$E$76, 0), MATCH(O$4, RAB_years, 0)) -> 0 | P19: =INDEX('Capital base input'!$H$27:$XFD$76, MATCH($E19, 'Capital base input'!$E$27:$E$76, 0), MATCH(P$4, RAB_years, 0)) -> 0 | Q19: =INDEX('Capital base input'!$H$27:$XFD$76, MATCH($E19, 'Capital base input'!$E$27:$E$76, 0), MATCH(Q$4, RAB_years, 0)) -> 0 | R19: =INDEX('Capital base input'!$H$27:$XFD$76, MATCH($E19, 'Capital base input'!$E$27:$E$76, 0), MATCH(R$4, RAB_years, 0)) -> 0 | S19: =INDEX('Capital base input'!$H$27:$XFD$76, MATCH($E19, 'Capital base input'!$E$27:$E$76, 0), MATCH(S$4, RAB_years, 0)) -> 0 | T19: =INDEX('Capital base input'!$H$27:$XFD$76, MATCH($E19, 'Capital base input'!$E$27:$E$76, 0), MATCH(T$4, RAB_years, 0)) -> 0 | U19: =INDEX('Capital base input'!$H$27:$XFD$76, MATCH($E19, 'Capital base input'!$E$27:$E$76, 0), MATCH(U$4, RAB_years, 0)) -> 0 | V19: =INDEX('Capital base input'!$H$27:$XFD$76, MATCH($E19, 'Capital base input'!$E$27:$E$76, 0), MATCH(V$4, RAB_years, 0)) -> 0 | W19: =INDEX('Capital base input'!$H$27:$XFD$76, MATCH($E19, 'Capital base input'!$E$27:$E$76, 0), MATCH(W$4, RAB_years, 0)) -> 0 | X19: =INDEX('Capital base input'!$H$27:$XFD$76, MATCH($E19, 'Capital base input'!$E$27:$E$76, 0), MATCH(X$4, RAB_years, 0)) -> 0 | Y19: =INDEX('Capital base input'!$H$27:$XFD$76, MATCH($E19, 'Capital base input'!$E$27:$E$76, 0), MATCH(Y$4, RAB_years, 0)) -> 0 | Z19: =INDEX('Capital base input'!$H$27:$XFD$76, MATCH($E19, 'Capital base input'!$E$27:$E$76, 0), MATCH(Z$4, RAB_years, 0)) -> 0 | AA19: =INDEX('Capital base input'!$H$27:$XFD$76, MATCH($E19, 'Capital base input'!$E$27:$E$76, 0), MATCH(AA$4, RAB_years, 0)) -> 0 | AB19: =INDEX('Capital base input'!$H$27:$XFD$76, MATCH($E19, 'Capital base input'!$E$27:$E$76, 0), MATCH(AB$4, RAB_years, 0)) -> 0 | AC19: =INDEX('Capital base input'!$H$27:$XFD$76, MATCH($E19, 'Capital base input'!$E$27:$E$76, 0), MATCH(AC$4, RAB_years, 0)) -> 0 | AD19: =INDEX('Capital base input'!$H$27:$XFD$76, MATCH($E19, 'Capital base input'!$E$27:$E$76, 0), MATCH(AD$4, RAB_years, 0)) -> 0 | AE19: =INDEX('Capital base input'!$H$27:$XFD$76, MATCH($E19, 'Capital base input'!$E$27:$E$76, 0), MATCH(AE$4, RAB_years, 0)) -> 0 | AF19: =INDEX('Capital base input'!$H$27:$XFD$76, MATCH($E19, 'Capital base input'!$E$27:$E$76, 0), MATCH(AF$4, RAB_years, 0)) -> 0 | AG19: =INDEX('Capital base input'!$H$27:$XFD$76, MATCH($E19, 'Capital base input'!$E$27:$E$76, 0), MATCH(AG$4, RAB_years, 0)) -> 0 | AH19: =INDEX('Capital base input'!$H$27:$XFD$76, MATCH($E19, 'Capital base input'!$E$27:$E$76, 0), MATCH(AH$4, RAB_years, 0)) -> 0 | AI19: =INDEX('Capital base input'!$H$27:$XFD$76, MATCH($E19, 'Capital base input'!$E$27:$E$76, 0), MATCH(AI$4, RAB_years, 0)) -> 0 | AJ19: =INDEX('Capital base input'!$H$27:$XFD$76, MATCH($E19, 'Capital base input'!$E$27:$E$76, 0), MATCH(AJ$4, RAB_years, 0)) -> 0 | AK19: =INDEX('Capital base input'!$H$27:$XFD$76, MATCH($E19, 'Capital base input'!$E$27:$E$76, 0), MATCH(AK$4, RAB_years, 0)) -> 0 | AL19: =INDEX('Capital base input'!$H$27:$XFD$76, MATCH($E19, 'Capital base input'!$E$27:$E$76, 0), MATCH(AL$4, RAB_years, 0)) -> 0 | AM19: =INDEX('Capital base input'!$H$27:$XFD$76, MATCH($E19, 'Capital base input'!$E$27:$E$76, 0), MATCH(AM$4, RAB_years, 0)) -> 0 | AN19: =INDEX('Capital base input'!$H$27:$XFD$76, MATCH($E19, 'Capital base input'!$E$27:$E$76, 0), MATCH(AN$4, RAB_years, 0)) -> 0 | AO19: =INDEX('Capital base input'!$H$27:$XFD$76, MATCH($E19, 'Capital base input'!$E$27:$E$76, 0), MATCH(AO$4, RAB_years, 0)) -> 0 | AP19: =INDEX('Capital base input'!$H$27:$XFD$76, MATCH($E19, 'Capital base input'!$E$27:$E$76, 0), MATCH(AP$4, RAB_years, 0)) -> 0 | AQ19: =INDEX('Capital base input'!$H$27:$XFD$76, MATCH($E19, 'Capital base input'!$E$27:$E$76, 0), MATCH(AQ$4, RAB_years, 0)) -> 0 | AR19: =INDEX('Capital base input'!$H$27:$XFD$76, MATCH($E19, 'Capital base input'!$E$27:$E$76, 0), MATCH(AR$4, RAB_years, 0)) -> 0 | AS19: =INDEX('Capital base input'!$H$27:$XFD$76, MATCH($E19, 'Capital base input'!$E$27:$E$76, 0), MATCH(AS$4, RAB_years, 0)) -> 0 | AT19: =INDEX('Capital base input'!$H$27:$XFD$76, MATCH($E19, 'Capital base input'!$E$27:$E$76, 0), MATCH(AT$4, RAB_years, 0)) -> 0 | AU19: =INDEX('Capital base input'!$H$27:$XFD$76, MATCH($E19, 'Capital base input'!$E$27:$E$76, 0), MATCH(AU$4, RAB_years, 0)) -> 0 | AV19: =INDEX('Capital base input'!$H$27:$XFD$76, MATCH($E19, 'Capital base input'!$E$27:$E$76, 0), MATCH(AV$4, RAB_years, 0)) -> 0 | AW19: =INDEX('Capital base input'!$H$27:$XFD$76, MATCH($E19, 'Capital base input'!$E$27:$E$76, 0), MATCH(AW$4, RAB_years, 0)) -> 0 | AX19: =INDEX('Capital base input'!$H$27:$XFD$76, MATCH($E19, 'Capital base input'!$E$27:$E$76, 0), MATCH(AX$4, RAB_years, 0)) -> 0 | AY19: =INDEX('Capital base input'!$H$27:$XFD$76, MATCH($E19, 'Capital base input'!$E$27:$E$76, 0), MATCH(AY$4, RAB_years, 0)) -> 0 | AZ19: =INDEX('Capital base input'!$H$27:$XFD$76, MATCH($E19, 'Capital base input'!$E$27:$E$76, 0), MATCH(AZ$4, RAB_years, 0)) -> 0 | BA19: =INDEX('Capital base input'!$H$27:$XFD$76, MATCH($E19, 'Capital base input'!$E$27:$E$76, 0), MATCH(BA$4, RAB_years, 0)) -> 0 | BB19: =INDEX('Capital base input'!$H$27:$XFD$76, MATCH($E19, 'Capital base input'!$E$27:$E$76, 0), MATCH(BB$4, RAB_years, 0)) -> 0 | BC19: =INDEX('Capital base input'!$H$27:$XFD$76, MATCH($E19, 'Capital base input'!$E$27:$E$76, 0), MATCH(BC$4, RAB_years, 0)) -> 0 | BD19: =INDEX('Capital base input'!$H$27:$XFD$76, MATCH($E19, 'Capital base input'!$E$27:$E$76, 0), MATCH(BD$4, RAB_years, 0)) -> 0 | BE19: =INDEX('Capital base input'!$H$27:$XFD$76, MATCH($E19, 'Capital base input'!$E$27:$E$76, 0), MATCH(BE$4, RAB_years, 0)) -> 0 | BF19: =INDEX('Capital base input'!$H$27:$XFD$76, MATCH($E19, 'Capital base input'!$E$27:$E$76, 0), MATCH(BF$4, RAB_years, 0)) -> 0 | BG19: =INDEX('Capital base input'!$H$27:$XFD$76, MATCH($E19, 'Capital base input'!$E$27:$E$76, 0), MATCH(BG$4, RAB_years, 0)) -> 0 | BH19: =INDEX('Capital base input'!$H$27:$XFD$76, MATCH($E19, 'Capital base input'!$E$27:$E$76, 0), MATCH(BH$4, RAB_years, 0)) -> 0 | BI19: =INDEX('Capital base input'!$H$27:$XFD$76, MATCH($E19, 'Capital base input'!$E$27:$E$76, 0), MATCH(BI$4, RAB_years, 0)) -> 0 | BJ19: =INDEX('Capital base input'!$H$27:$XFD$76, MATCH($E19, 'Capital base input'!$E$27:$E$76, 0), MATCH(BJ$4, RAB_years, 0)) -> 0 | BK19: =INDEX('Capital base input'!$H$27:$XFD$76, MATCH($E19, 'Capital base input'!$E$27:$E$76, 0), MATCH(BK$4, RAB_years, 0)) -> 0 | BL19: =INDEX('Capital base input'!$H$27:$XFD$76, MATCH($E19, 'Capital base input'!$E$27:$E$76, 0), MATCH(BL$4, RAB_years, 0)) -> 0 | BM19: =INDEX('Capital base input'!$H$27:$XFD$76, MATCH($E19, 'Capital base input'!$E$27:$E$76, 0), MATCH(BM$4, RAB_years, 0)) -> 0 | BN19: =INDEX('Capital base input'!$H$27:$XFD$76, MATCH($E19, 'Capital base input'!$E$27:$E$76, 0), MATCH(BN$4, RAB_years, 0)) -> 0 | BO19: =INDEX('Capital base input'!$H$27:$XFD$76, MATCH($E19, 'Capital base input'!$E$27:$E$76, 0), MATCH(BO$4, RAB_years, 0)) -> 0 | BP19: =INDEX('Capital base input'!$H$27:$XFD$76, MATCH($E19, 'Capital base input'!$E$27:$E$76, 0), MATCH(BP$4, RAB_years, 0)) -> 0 | BQ19: =INDEX('Capital base input'!$H$27:$XFD$76, MATCH($E19, 'Capital base input'!$E$27:$E$76, 0), MATCH(BQ$4, RAB_years, 0)) -> 0 | BR19: =INDEX('Capital base input'!$H$27:$XFD$76, MATCH($E19, 'Capital base input'!$E$27:$E$76, 0), MATCH(BR$4, RAB_years, 0)) -> 0 | BS19: =INDEX('Capital base input'!$H$27:$XFD$76, MATCH($E19, 'Capital base input'!$E$27:$E$76, 0), MATCH(BS$4, RAB_years, 0)) -> 0 | BT19: =INDEX('Capital base input'!$H$27:$XFD$76, MATCH($E19, 'Capital base input'!$E$27:$E$76, 0), MATCH(BT$4, RAB_years, 0)) -> 0 | BU19: =INDEX('Capital base input'!$H$27:$XFD$76, MATCH($E19, 'Capital base input'!$E$27:$E$76, 0), MATCH(BU$4, RAB_years, 0)) -> 0 | BV19: =INDEX('Capital base input'!$H$27:$XFD$76, MATCH($E19, 'Capital base input'!$E$27:$E$76, 0), MATCH(BV$4, RAB_years, 0)) -> 0 | BW19: =INDEX('Capital base input'!$H$27:$XFD$76, MATCH($E19, 'Capital base input'!$E$27:$E$76, 0), MATCH(BW$4, RAB_years, 0)) -> 0 | BX19: =INDEX('Capital base input'!$H$27:$XFD$76, MATCH($E19, 'Capital base input'!$E$27:$E$76, 0), MATCH(BX$4, RAB_years, 0)) -> 0 | BY19: =INDEX('Capital base input'!$H$27:$XFD$76, MATCH($E19, 'Capital base input'!$E$27:$E$76, 0), MATCH(BY$4, RAB_years, 0)) -> 0 | BZ19: =INDEX('Capital base input'!$H$27:$XFD$76, MATCH($E19, 'Capital base input'!$E$27:$E$76, 0), MATCH(BZ$4, RAB_years, 0)) -> 0 | CA19: =INDEX('Capital base input'!$H$27:$XFD$76, MATCH($E19, 'Capital base input'!$E$27:$E$76, 0), MATCH(CA$4, RAB_years, 0)) -> 0 | CB19: =INDEX('Capital base input'!$H$27:$XFD$76, MATCH($E19, 'Capital base input'!$E$27:$E$76, 0), MATCH(CB$4, RAB_years, 0)) -> 0 | CC19: =INDEX('Capital base input'!$H$27:$XFD$76, MATCH($E19, 'Capital base input'!$E$27:$E$76, 0), MATCH(CC$4, RAB_years, 0)) -> 0 | CD19: =INDEX('Capital base input'!$H$27:$XFD$76, MATCH($E19, 'Capital base input'!$E$27:$E$76, 0), MATCH(CD$4, RAB_years, 0)) -> 0 | CE19: =INDEX('Capital base input'!$H$27:$XFD$76, MATCH($E19, 'Capital base input'!$E$27:$E$76, 0), MATCH(CE$4, RAB_years, 0)) -> 0 | CF19: =INDEX('Capital base input'!$H$27:$XFD$76, MATCH($E19, 'Capital base input'!$E$27:$E$76, 0), MATCH(CF$4, RAB_years, 0)) -> 0 | CG19: =INDEX('Capital base input'!$H$27:$XFD$76, MATCH($E19, 'Capital base input'!$E$27:$E$76, 0), MATCH(CG$4, RAB_years, 0)) -> 0 | CH19: =INDEX('Capital base input'!$H$27:$XFD$76, MATCH($E19, 'Capital base input'!$E$27:$E$76, 0), MATCH(CH$4, RAB_years, 0)) -> 0 | CI19: =INDEX('Capital base input'!$H$27:$XFD$76, MATCH($E19, 'Capital base input'!$E$27:$E$76, 0), MATCH(CI$4, RAB_years, 0)) -> 0 | CJ19: =INDEX('Capital base input'!$H$27:$XFD$76, MATCH($E19, 'Capital base input'!$E$27:$E$76, 0), MATCH(CJ$4, RAB_years, 0)) -> 0 | CK19: =INDEX('Capital base input'!$H$27:$XFD$76, MATCH($E19, 'Capital base input'!$E$27:$E$76, 0), MATCH(CK$4, RAB_years, 0)) -> 0 | CL19: =INDEX('Capital base input'!$H$27:$XFD$76, MATCH($E19, 'Capital base input'!$E$27:$E$76, 0), MATCH(CL$4, RAB_years, 0)) -> 0 | CM19: =INDEX('Capital base input'!$H$27:$XFD$76, MATCH($E19, 'Capital base input'!$E$27:$E$76, 0), MATCH(CM$4, RAB_years, 0)) -> 0 | CN19: =INDEX('Capital base input'!$H$27:$XFD$76, MATCH($E19, 'Capital base input'!$E$27:$E$76, 0), MATCH(CN$4, RAB_years, 0)) -> 0 | CO19: =INDEX('Capital base input'!$H$27:$XFD$76, MATCH($E19, 'Capital base input'!$E$27:$E$76, 0), MATCH(CO$4, RAB_years, 0)) -> 0 | CP19: =INDEX('Capital base input'!$H$27:$XFD$76, MATCH($E19, 'Capital base input'!$E$27:$E$76, 0), MATCH(CP$4, RAB_years, 0)) -> 0
D20: 3 | E20: ='Capital base input'!E29 -> Trunk Wilton-Wollongong | G20: -0.03503251703 | H20: =INDEX('Capital base input'!$H$27:$XFD$76, MATCH($E20, 'Capital base input'!$E$27:$E$76, 0), MATCH(H$4, RAB_years, 0)) -> 0 | I20: =INDEX('Capital base input'!$H$27:$XFD$76, MATCH($E20, 'Capital base input'!$E$27:$E$76, 0), MATCH(I$4, RAB_years, 0)) -> 0 | J20: =INDEX('Capital base input'!$H$27:$XFD$76, MATCH($E20, 'Capital base input'!$E$27:$E$76, 0), MATCH(J$4, RAB_years, 0)) -> 0.0216764 | K20: =INDEX('Capital base input'!$H$27:$XFD$76, MATCH($E20, 'Capital base input'!$E$27:$E$76, 0), MATCH(K$4, RAB_years, 0)) -> 0.04578344 | L20: =INDEX('Capital base input'!$H$27:$XFD$76, MATCH($E20, 'Capital base input'!$E$27:$E$76, 0), MATCH(L$4, RAB_years, 0)) -> 0.6487726242 | M20: =INDEX('Capital base input'!$H$27:$XFD$76, MATCH($E20, 'Capital base input'!$E$27:$E$76, 0), MATCH(M$4, RAB_years, 0)) -> 0 | N20: =INDEX('Capital base input'!$H$27:$XFD$76, MATCH($E20, 'Capital base input'!$E$27:$E$76, 0), MATCH(N$4, RAB_years, 0)) -> 0 | O20: =INDEX('Capital base input'!$H$27:$XFD$76, MATCH($E20, 'Capital base input'!$E$27:$E$76, 0), MATCH(O$4, RAB_years, 0)) -> 0 | P20: =INDEX('Capital base input'!$H$27:$XFD$76, MATCH($E20, 'Capital base input'!$E$27:$E$76, 0), MATCH(P$4, RAB_years, 0)) -> 0 | Q20: =INDEX('Capital base input'!$H$27:$XFD$76, MATCH($E20, 'Capital base input'!$E$27:$E$76, 0), MATCH(Q$4, RAB_years, 0)) -> 0 | R20: =INDEX('Capital base input'!$H$27:$XFD$76, MATCH($E20, 'Capital base input'!$E$27:$E$76, 0), MATCH(R$4, RAB_years, 0)) -> 0 | S20: =INDEX('Capital base input'!$H$27:$XFD$76, MATCH($E20, 'Capital base input'!$E$27:$E$76, 0), MATCH(S$4, RAB_years, 0)) -> 0 | T20: =INDEX('Capital base input'!$H$27:$XFD$76, MATCH($E20, 'Capital base input'!$E$27:$E$76, 0), MATCH(T$4, RAB_years, 0)) -> 0 | U20: =INDEX('Capital base input'!$H$27:$XFD$76, MATCH($E20, 'Capital base input'!$E$27:$E$76, 0), MATCH(U$4, RAB_years, 0)) -> 0 | V20: =INDEX('Capital base input'!$H$27:$XFD$76, MATCH($E20, 'Capital base input'!$E$27:$E$76, 0), MATCH(V$4, RAB_years, 0)) -> 0 | W20: =INDEX('Capital base input'!$H$27:$XFD$76, MATCH($E20, 'Capital base input'!$E$27:$E$76, 0), MATCH(W$4, RAB_years, 0)) -> 0 | X20: =INDEX('Capital base input'!$H$27:$XFD$76, MATCH($E20, 'Capital base input'!$E$27:$E$76, 0), MATCH(X$4, RAB_years, 0)) -> 0 | Y20: =INDEX('Capital base input'!$H$27:$XFD$76, MATCH($E20, 'Capital base input'!$E$27:$E$76, 0), MATCH(Y$4, RAB_years, 0)) -> 0 | Z20: =INDEX('Capital base input'!$H$27:$XFD$76, MATCH($E20, 'Capital base input'!$E$27:$E$76, 0), MATCH(Z$4, RAB_years, 0)) -> 0 | AA20: =INDEX('Capital base input'!$H$27:$XFD$76, MATCH($E20, 'Capital base input'!$E$27:$E$76, 0), MATCH(AA$4, RAB_years, 0)) -> 0 | AB20: =INDEX('Capital base input'!$H$27:$XFD$76, MATCH($E20, 'Capital base input'!$E$27:$E$76, 0), MATCH(AB$4, RAB_years, 0)) -> 0 | AC20: =INDEX('Capital base input'!$H$27:$XFD$76, MATCH($E20, 'Capital base input'!$E$27:$E$76, 0), MATCH(AC$4, RAB_years, 0)) -> 0 | AD20: =INDEX('Capital base input'!$H$27:$XFD$76, MATCH($E20, 'Capital base input'!$E$27:$E$76, 0), MATCH(AD$4, RAB_years, 0)) -> 0 | AE20: =INDEX('Capital base input'!$H$27:$XFD$76, MATCH($E20, 'Capital base input'!$E$27:$E$76, 0), MATCH(AE$4, RAB_years, 0)) -> 0 | AF20: =INDEX('Capital base input'!$H$27:$XFD$76, MATCH($E20, 'Capital base input'!$E$27:$E$76, 0), MATCH(AF$4, RAB_years, 0)) -> 0 | AG20: =INDEX('Capital base input'!$H$27:$XFD$76, MATCH($E20, 'Capital base input'!$E$27:$E$76, 0), MATCH(AG$4, RAB_years, 0)) -> 0 | AH20: =INDEX('Capital base input'!$H$27:$XFD$76, MATCH($E20, 'Capital base input'!$E$27:$E$76, 0), MATCH(AH$4, RAB_years, 0)) -> 0 | AI20: =INDEX('Capital base input'!$H$27:$XFD$76, MATCH($E20, 'Capital base input'!$E$27:$E$76, 0), MATCH(AI$4, RAB_years, 0)) -> 0 | AJ20: =INDEX('Capital base input'!$H$27:$XFD$76, MATCH($E20, 'Capital base input'!$E$27:$E$76, 0), MATCH(AJ$4, RAB_years, 0)) -> 0 | AK20: =INDEX('Capital base input'!$H$27:$XFD$76, MATCH($E20, 'Capital base input'!$E$27:$E$76, 0), MATCH(AK$4, RAB_years, 0)) -> 0 | AL20: =INDEX('Capital base input'!$H$27:$XFD$76, MATCH($E20, 'Capital base input'!$E$27:$E$76, 0), MATCH(AL$4, RAB_years, 0)) -> 0 | AM20: =INDEX('Capital base input'!$H$27:$XFD$76, MATCH($E20, 'Capital base input'!$E$27:$E$76, 0), MATCH(AM$4, RAB_years, 0)) -> 0 | AN20: =INDEX('Capital base input'!$H$27:$XFD$76, MATCH($E20, 'Capital base input'!$E$27:$E$76, 0), MATCH(AN$4, RAB_years, 0)) -> 0 | AO20: =INDEX('Capital base input'!$H$27:$XFD$76, MATCH($E20, 'Capital base input'!$E$27:$E$76, 0), MATCH(AO$4, RAB_years, 0)) -> 0 | AP20: =INDEX('Capital base input'!$H$27:$XFD$76, MATCH($E20, 'Capital base input'!$E$27:$E$76, 0), MATCH(AP$4, RAB_years, 0)) -> 0 | AQ20: =INDEX('Capital base input'!$H$27:$XFD$76, MATCH($E20, 'Capital base input'!$E$27:$E$76, 0), MATCH(AQ$4, RAB_years, 0)) -> 0 | AR20: =INDEX('Capital base input'!$H$27:$XFD$76, MATCH($E20, 'Capital base input'!$E$27:$E$76, 0), MATCH(AR$4, RAB_years, 0)) -> 0 | AS20: =INDEX('Capital base input'!$H$27:$XFD$76, MATCH($E20, 'Capital base input'!$E$27:$E$76, 0), MATCH(AS$4, RAB_years, 0)) -> 0 | AT20: =INDEX('Capital base input'!$H$27:$XFD$76, MATCH($E20, 'Capital base input'!$E$27:$E$76, 0), MATCH(AT$4, RAB_years, 0)) -> 0 | AU20: =INDEX('Capital base input'!$H$27:$XFD$76, MATCH($E20, 'Capital base input'!$E$27:$E$76, 0), MATCH(AU$4, RAB_years, 0)) -> 0 | AV20: =INDEX('Capital base input'!$H$27:$XFD$76, MATCH($E20, 'Capital base input'!$E$27:$E$76, 0), MATCH(AV$4, RAB_years, 0)) -> 0 | AW20: =INDEX('Capital base input'!$H$27:$XFD$76, MATCH($E20, 'Capital base input'!$E$27:$E$76, 0), MATCH(AW$4, RAB_years, 0)) -> 0 | AX20: =INDEX('Capital base input'!$H$27:$XFD$76, MATCH($E20, 'Capital base input'!$E$27:$E$76, 0), MATCH(AX$4, RAB_years, 0)) -> 0 | AY20: =INDEX('Capital base input'!$H$27:$XFD$76, MATCH($E20, 'Capital base input'!$E$27:$E$76, 0), MATCH(AY$4, RAB_years, 0)) -> 0 | AZ20: =INDEX('Capital base input'!$H$27:$XFD$76, MATCH($E20, 'Capital base input'!$E$27:$E$76, 0), MATCH(AZ$4, RAB_years, 0)) -> 0 | BA20: =INDEX('Capital base input'!$H$27:$XFD$76, MATCH($E20, 'Capital base input'!$E$27:$E$76, 0), MATCH(BA$4, RAB_years, 0)) -> 0 | BB20: =INDEX('Capital base input'!$H$27:$XFD$76, MATCH($E20, 'Capital base input'!$E$27:$E$76, 0), MATCH(BB$4, RAB_years, 0)) -> 0 | BC20: =INDEX('Capital base input'!$H$27:$XFD$76, MATCH($E20, 'Capital base input'!$E$27:$E$76, 0), MATCH(BC$4, RAB_years, 0)) -> 0 | BD20: =INDEX('Capital base input'!$H$27:$XFD$76, MATCH($E20, 'Capital base input'!$E$27:$E$76, 0), MATCH(BD$4, RAB_years, 0)) -> 0 | BE20: =INDEX('Capital base input'!$H$27:$XFD$76, MATCH($E20, 'Capital base input'!$E$27:$E$76, 0), MATCH(BE$4, RAB_years, 0)) -> 0 | BF20: =INDEX('Capital base input'!$H$27:$XFD$76, MATCH($E20, 'Capital base input'!$E$27:$E$76, 0), MATCH(BF$4, RAB_years, 0)) -> 0 | BG20: =INDEX('Capital base input'!$H$27:$XFD$76, MATCH($E20, 'Capital base input'!$E$27:$E$76, 0), MATCH(BG$4, RAB_years, 0)) -> 0 | BH20: =INDEX('Capital base input'!$H$27:$XFD$76, MATCH($E20, 'Capital base input'!$E$27:$E$76, 0), MATCH(BH$4, RAB_years, 0)) -> 0 | BI20: =INDEX('Capital base input'!$H$27:$XFD$76, MATCH($E20, 'Capital base input'!$E$27:$E$76, 0), MATCH(BI$4, RAB_years, 0)) -> 0 | BJ20: =INDEX('Capital base input'!$H$27:$XFD$76, MATCH($E20, 'Capital base input'!$E$27:$E$76, 0), MATCH(BJ$4, RAB_years, 0)) -> 0 | BK20: =INDEX('Capital base input'!$H$27:$XFD$76, MATCH($E20, 'Capital base input'!$E$27:$E$76, 0), MATCH(BK$4, RAB_years, 0)) -> 0 | BL20: =INDEX('Capital base input'!$H$27:$XFD$76, MATCH($E20, 'Capital base input'!$E$27:$E$76, 0), MATCH(BL$4, RAB_years, 0)) -> 0 | BM20: =INDEX('Capital base input'!$H$27:$XFD$76, MATCH($E20, 'Capital base input'!$E$27:$E$76, 0), MATCH(BM$4, RAB_years, 0)) -> 0 | BN20: =INDEX('Capital base input'!$H$27:$XFD$76, MATCH($E20, 'Capital base input'!$E$27:$E$76, 0), MATCH(BN$4, RAB_years, 0)) -> 0 | BO20: =INDEX('Capital base input'!$H$27:$XFD$76, MATCH($E20, 'Capital base input'!$E$27:$E$76, 0), MATCH(BO$4, RAB_years, 0)) -> 0 | BP20: =INDEX('Capital base input'!$H$27:$XFD$76, MATCH($E20, 'Capital base input'!$E$27:$E$76, 0), MATCH(BP$4, RAB_years, 0)) -> 0 | BQ20: =INDEX('Capital base input'!$H$27:$XFD$76, MATCH($E20, 'Capital base input'!$E$27:$E$76, 0), MATCH(BQ$4, RAB_years, 0)) -> 0 | BR20: =INDEX('Capital base input'!$H$27:$XFD$76, MATCH($E20, 'Capital base input'!$E$27:$E$76, 0), MATCH(BR$4, RAB_years, 0)) -> 0 | BS20: =INDEX('Capital base input'!$H$27:$XFD$76, MATCH($E20, 'Capital base input'!$E$27:$E$76, 0), MATCH(BS$4, RAB_years, 0)) -> 0 | BT20: =INDEX('Capital base input'!$H$27:$XFD$76, MATCH($E20, 'Capital base input'!$E$27:$E$76, 0), MATCH(BT$4, RAB_years, 0)) -> 0 | BU20: =INDEX('Capital base input'!$H$27:$XFD$76, MATCH($E20, 'Capital base input'!$E$27:$E$76, 0), MATCH(BU$4, RAB_years, 0)) -> 0 | BV20: =INDEX('Capital base input'!$H$27:$XFD$76, MATCH($E20, 'Capital base input'!$E$27:$E$76, 0), MATCH(BV$4, RAB_years, 0)) -> 0 | BW20: =INDEX('Capital base input'!$H$27:$XFD$76, MATCH($E20, 'Capital base input'!$E$27:$E$76, 0), MATCH(BW$4, RAB_years, 0)) -> 0 | BX20: =INDEX('Capital base input'!$H$27:$XFD$76, MATCH($E20, 'Capital base input'!$E$27:$E$76, 0), MATCH(BX$4, RAB_years, 0)) -> 0 | BY20: =INDEX('Capital base input'!$H$27:$XFD$76, MATCH($E20, 'Capital base input'!$E$27:$E$76, 0), MATCH(BY$4, RAB_years, 0)) -> 0 | BZ20: =INDEX('Capital base input'!$H$27:$XFD$76, MATCH($E20, 'Capital base input'!$E$27:$E$76, 0), MATCH(BZ$4, RAB_years, 0)) -> 0 | CA20: =INDEX('Capital base input'!$H$27:$XFD$76, MATCH($E20, 'Capital base input'!$E$27:$E$76, 0), MATCH(CA$4, RAB_years, 0)) -> 0 | CB20: =INDEX('Capital base input'!$H$27:$XFD$76, MATCH($E20, 'Capital base input'!$E$27:$E$76, 0), MATCH(CB$4, RAB_years, 0)) -> 0 | CC20: =INDEX('Capital base input'!$H$27:$XFD$76, MATCH($E20, 'Capital base input'!$E$27:$E$76, 0), MATCH(CC$4, RAB_years, 0)) -> 0 | CD20: =INDEX('Capital base input'!$H$27:$XFD$76, MATCH($E20, 'Capital base input'!$E$27:$E$76, 0), MATCH(CD$4, RAB_years, 0)) -> 0 | CE20: =INDEX('Capital base input'!$H$27:$XFD$76, MATCH($E20, 'Capital base input'!$E$27:$E$76, 0), MATCH(CE$4, RAB_years, 0)) -> 0 | CF20: =INDEX('Capital base input'!$H$27:$XFD$76, MATCH($E20, 'Capital base input'!$E$27:$E$76, 0), MATCH(CF$4, RAB_years, 0)) -> 0 | CG20: =INDEX('Capital base input'!$H$27:$XFD$76, MATCH($E20, 'Capital base input'!$E$27:$E$76, 0), MATCH(CG$4, RAB_years, 0)) -> 0 | CH20: =INDEX('Capital base input'!$H$27:$XFD$76, MATCH($E20, 'Capital base input'!$E$27:$E$76, 0), MATCH(CH$4, RAB_years, 0)) -> 0 | CI20: =INDEX('Capital base input'!$H$27:$XFD$76, MATCH($E20, 'Capital base input'!$E$27:$E$76, 0), MATCH(CI$4, RAB_years, 0)) -> 0 | CJ20: =INDEX('Capital base input'!$H$27:$XFD$76, MATCH($E20, 'Capital base input'!$E$27:$E$76, 0), MATCH(CJ$4, RAB_years, 0)) -> 0 | CK20: =INDEX('Capital base input'!$H$27:$XFD$76, MATCH($E20, 'Capital base input'!$E$27:$E$76, 0), MATCH(CK$4, RAB_years, 0)) -> 0 | CL20: =INDEX('Capital base input'!$H$27:$XFD$76, MATCH($E20, 'Capital base input'!$E$27:$E$76, 0), MATCH(CL$4, RAB_years, 0)) -> 0 | CM20: =INDEX('Capital base input'!$H$27:$XFD$76, MATCH($E20, 'Capital base input'!$E$27:$E$76, 0), MATCH(CM$4, RAB_years, 0)) -> 0 | CN20: =INDEX('Capital base input'!$H$27:$XFD$76, MATCH($E20, 'Capital base input'!$E$27:$E$76, 0), MATCH(CN$4, RAB_years, 0)) -> 0 | CO20: =INDEX('Capital base input'!$H$27:$XFD$76, MATCH($E20, 'Capital base input'!$E$27:$E$76, 0), MATCH(CO$4, RAB_years, 0)) -> 0 | CP20: =INDEX('Capital base input'!$H$27:$XFD$76, MATCH($E20, 'Capital base input'!$E$27:$E$76, 0), MATCH(CP$4, RAB_years, 0)) -> 0
D21: 4 | E21: ='Capital base input'!E30 -> Contract Meters | G21: 7.203693182 | H21: =INDEX('Capital base input'!$H$27:$XFD$76, MATCH($E21, 'Capital base input'!$E$27:$E$76, 0), MATCH(H$4, RAB_years, 0)) -> 0.98740391 | I21: =INDEX('Capital base input'!$H$27:$XFD$76, MATCH($E21, 'Capital base input'!$E$27:$E$76, 0), MATCH(I$4, RAB_years, 0)) -> 1.0748287 | J21: =INDEX('Capital base input'!$H$27:$XFD$76, MATCH($E21, 'Capital base input'!$E$27:$E$76, 0), MATCH(J$4, RAB_years, 0)) -> 0.72405459 | K21: =INDEX('Capital base input'!$H$27:$XFD$76, MATCH($E21, 'Capital base input'!$E$27:$E$76, 0), MATCH(K$4, RAB_years, 0)) -> 2.95257989 | L21: =INDEX('Capital base input'!$H$27:$XFD$76, MATCH($E21, 'Capital base input'!$E$27:$E$76, 0), MATCH(L$4, RAB_years, 0)) -> 1.906976114 | M21: =INDEX('Capital base input'!$H$27:$XFD$76, MATCH($E21, 'Capital base input'!$E$27:$E$76, 0), MATCH(M$4, RAB_years, 0)) -> 0 | N21: =INDEX('Capital base input'!$H$27:$XFD$76, MATCH($E21, 'Capital base input'!$E$27:$E$76, 0), MATCH(N$4, RAB_years, 0)) -> 0 | O21: =INDEX('Capital base input'!$H$27:$XFD$76, MATCH($E21, 'Capital base input'!$E$27:$E$76, 0), MATCH(O$4, RAB_years, 0)) -> 0 | P21: =INDEX('Capital base input'!$H$27:$XFD$76, MATCH($E21, 'Capital base input'!$E$27:$E$76, 0), MATCH(P$4, RAB_years, 0)) -> 0 | Q21: =INDEX('Capital base input'!$H$27:$XFD$76, MATCH($E21, 'Capital base input'!$E$27:$E$76, 0), MATCH(Q$4, RAB_years, 0)) -> 0 | R21: =INDEX('Capital base input'!$H$27:$XFD$76, MATCH($E21, 'Capital base input'!$E$27:$E$76, 0), MATCH(R$4, RAB_years, 0)) -> 0 | S21: =INDEX('Capital base input'!$H$27:$XFD$76, MATCH($E21, 'Capital base input'!$E$27:$E$76, 0), MATCH(S$4, RAB_years, 0)) -> 0 | T21: =INDEX('Capital base input'!$H$27:$XFD$76, MATCH($E21, 'Capital base input'!$E$27:$E$76, 0), MATCH(T$4, RAB_years, 0)) -> 0 | U21: =INDEX('Capital base input'!$H$27:$XFD$76, MATCH($E21, 'Capital base input'!$E$27:$E$76, 0), MATCH(U$4, RAB_years, 0)) -> 0 | V21: =INDEX('Capital base input'!$H$27:$XFD$76, MATCH($E21, 'Capital base input'!$E$27:$E$76, 0), MATCH(V$4, RAB_years, 0)) -> 0 | W21: =INDEX('Capital base input'!$H$27:$XFD$76, MATCH($E21, 'Capital base input'!$E$27:$E$76, 0), MATCH(W$4, RAB_years, 0)) -> 0 | X21: =INDEX('Capital base input'!$H$27:$XFD$76, MATCH($E21, 'Capital base input'!$E$27:$E$76, 0), MATCH(X$4, RAB_years, 0)) -> 0 | Y21: =INDEX('Capital base input'!$H$27:$XFD$76, MATCH($E21, 'Capital base input'!$E$27:$E$76, 0), MATCH(Y$4, RAB_years, 0)) -> 0 | Z21: =INDEX('Capital base input'!$H$27:$XFD$76, MATCH($E21, 'Capital base input'!$E$27:$E$76, 0), MATCH(Z$4, RAB_years, 0)) -> 0 | AA21: =INDEX('Capital base input'!$H$27:$XFD$76, MATCH($E21, 'Capital base input'!$E$27:$E$76, 0), MATCH(AA$4, RAB_years, 0)) -> 0 | AB21: =INDEX('Capital base input'!$H$27:$XFD$76, MATCH($E21, 'Capital base input'!$E$27:$E$76, 0), MATCH(AB$4, RAB_years, 0)) -> 0 | AC21: =INDEX('Capital base input'!$H$27:$XFD$76, MATCH($E21, 'Capital base input'!$E$27:$E$76, 0), MATCH(AC$4, RAB_years, 0)) -> 0 | AD21: =INDEX('Capital base input'!$H$27:$XFD$76, MATCH($E21, 'Capital base input'!$E$27:$E$76, 0), MATCH(AD$4, RAB_years, 0)) -> 0 | AE21: =INDEX('Capital base input'!$H$27:$XFD$76, MATCH($E21, 'Capital base input'!$E$27:$E$76, 0), MATCH(AE$4, RAB_years, 0)) -> 0 | AF21: =INDEX('Capital base input'!$H$27:$XFD$76, MATCH($E21, 'Capital base input'!$E$27:$E$76, 0), MATCH(AF$4, RAB_years, 0)) -> 0 | AG21: =INDEX('Capital base input'!$H$27:$XFD$76, MATCH($E21, 'Capital base input'!$E$27:$E$76, 0), MATCH(AG$4, RAB_years, 0)) -> 0 | AH21: =INDEX('Capital base input'!$H$27:$XFD$76, MATCH($E21, 'Capital base input'!$E$27:$E$76, 0), MATCH(AH$4, RAB_years, 0)) -> 0 | AI21: =INDEX('Capital base input'!$H$27:$XFD$76, MATCH($E21, 'Capital base input'!$E$27:$E$76, 0), MATCH(AI$4, RAB_years, 0)) -> 0 | AJ21: =INDEX('Capital base input'!$H$27:$XFD$76, MATCH($E21, 'Capital base input'!$E$27:$E$76, 0), MATCH(AJ$4, RAB_years, 0)) -> 0 | AK21: =INDEX('Capital base input'!$H$27:$XFD$76, MATCH($E21, 'Capital base input'!$E$27:$E$76, 0), MATCH(AK$4, RAB_years, 0)) -> 0 | AL21: =INDEX('Capital base input'!$H$27:$XFD$76, MATCH($E21, 'Capital base input'!$E$27:$E$76, 0), MATCH(AL$4, RAB_years, 0)) -> 0 | AM21: =INDEX('Capital base input'!$H$27:$XFD$76, MATCH($E21, 'Capital base input'!$E$27:$E$76, 0), MATCH(AM$4, RAB_years, 0)) -> 0 | AN21: =INDEX('Capital base input'!$H$27:$XFD$76, MATCH($E21, 'Capital base input'!$E$27:$E$76, 0), MATCH(AN$4, RAB_years, 0)) -> 0 | AO21: =INDEX('Capital base input'!$H$27:$XFD$76, MATCH($E21, 'Capital base input'!$E$27:$E$76, 0), MATCH(AO$4, RAB_years, 0)) -> 0 | AP21: =INDEX('Capital base input'!$H$27:$XFD$76, MATCH($E21, 'Capital base input'!$E$27:$E$76, 0), MATCH(AP$4, RAB_years, 0)) -> 0 | AQ21: =INDEX('Capital base input'!$H$27:$XFD$76, MATCH($E21, 'Capital base input'!$E$27:$E$76, 0), MATCH(AQ$4, RAB_years, 0)) -> 0 | AR21: =INDEX('Capital base input'!$H$27:$XFD$76, MATCH($E21, 'Capital base input'!$E$27:$E$76, 0), MATCH(AR$4, RAB_years, 0)) -> 0 | AS21: =INDEX('Capital base input'!$H$27:$XFD$76, MATCH($E21, 'Capital base input'!$E$27:$E$76, 0), MATCH(AS$4, RAB_years, 0)) -> 0 | AT21: =INDEX('Capital base input'!$H$27:$XFD$76, MATCH($E21, 'Capital base input'!$E$27:$E$76, 0), MATCH(AT$4, RAB_years, 0)) -> 0 | AU21: =INDEX('Capital base input'!$H$27:$XFD$76, MATCH($E21, 'Capital base input'!$E$27:$E$76, 0), MATCH(AU$4, RAB_years, 0)) -> 0 | AV21: =INDEX('Capital base input'!$H$27:$XFD$76, MATCH($E21, 'Capital base input'!$E$27:$E$76, 0), MATCH(AV$4, RAB_years, 0)) -> 0 | AW21: =INDEX('Capital base input'!$H$27:$XFD$76, MATCH($E21, 'Capital base input'!$E$27:$E$76, 0), MATCH(AW$4, RAB_years, 0)) -> 0 | AX21: =INDEX('Capital base input'!$H$27:$XFD$76, MATCH($E21, 'Capital base input'!$E$27:$E$76, 0), MATCH(AX$4, RAB_years, 0)) -> 0 | AY21: =INDEX('Capital base input'!$H$27:$XFD$76, MATCH($E21, 'Capital base input'!$E$27:$E$76, 0), MATCH(AY$4, RAB_years, 0)) -> 0 | AZ21: =INDEX('Capital base input'!$H$27:$XFD$76, MATCH($E21, 'Capital base input'!$E$27:$E$76, 0), MATCH(AZ$4, RAB_years, 0)) -> 0 | BA21: =INDEX('Capital base input'!$H$27:$XFD$76, MATCH($E21, 'Capital base input'!$E$27:$E$76, 0), MATCH(BA$4, RAB_years, 0)) -> 0 | BB21: =INDEX('Capital base input'!$H$27:$XFD$76, MATCH($E21, 'Capital base input'!$E$27:$E$76, 0), MATCH(BB$4, RAB_years, 0)) -> 0 | BC21: =INDEX('Capital base input'!$H$27:$XFD$76, MATCH($E21, 'Capital base input'!$E$27:$E$76, 0), MATCH(BC$4, RAB_years, 0)) -> 0 | BD21: =INDEX('Capital base input'!$H$27:$XFD$76, MATCH($E21, 'Capital base input'!$E$27:$E$76, 0), MATCH(BD$4, RAB_years, 0)) -> 0 | BE21: =INDEX('Capital base input'!$H$27:$XFD$76, MATCH($E21, 'Capital base input'!$E$27:$E$76, 0), MATCH(BE$4, RAB_years, 0)) -> 0 | BF21: =INDEX('Capital base input'!$H$27:$XFD$76, MATCH($E21, 'Capital base input'!$E$27:$E$76, 0), MATCH(BF$4, RAB_years, 0)) -> 0 | BG21: =INDEX('Capital base input'!$H$27:$XFD$76, MATCH($E21, 'Capital base input'!$E$27:$E$76, 0), MATCH(BG$4, RAB_years, 0)) -> 0 | BH21: =INDEX('Capital base input'!$H$27:$XFD$76, MATCH($E21, 'Capital base input'!$E$27:$E$76, 0), MATCH(BH$4, RAB_years, 0)) -> 0 | BI21: =INDEX('Capital base input'!$H$27:$XFD$76, MATCH($E21, 'Capital base input'!$E$27:$E$76, 0), MATCH(BI$4, RAB_years, 0)) -> 0 | BJ21: =INDEX('Capital base input'!$H$27:$XFD$76, MATCH($E21, 'Capital base input'!$E$27:$E$76, 0), MATCH(BJ$4, RAB_years, 0)) -> 0 | BK21: =INDEX('Capital base input'!$H$27:$XFD$76, MATCH($E21, 'Capital base input'!$E$27:$E$76, 0), MATCH(BK$4, RAB_years, 0)) -> 0 | BL21: =INDEX('Capital base input'!$H$27:$XFD$76, MATCH($E21, 'Capital base input'!$E$27:$E$76, 0), MATCH(BL$4, RAB_years, 0)) -> 0 | BM21: =INDEX('Capital base input'!$H$27:$XFD$76, MATCH($E21, 'Capital base input'!$E$27:$E$76, 0), MATCH(BM$4, RAB_years, 0)) -> 0 | BN21: =INDEX('Capital base input'!$H$27:$XFD$76, MATCH($E21, 'Capital base input'!$E$27:$E$76, 0), MATCH(BN$4, RAB_years, 0)) -> 0 | BO21: =INDEX('Capital base input'!$H$27:$XFD$76, MATCH($E21, 'Capital base input'!$E$27:$E$76, 0), MATCH(BO$4, RAB_years, 0)) -> 0 | BP21: =INDEX('Capital base input'!$H$27:$XFD$76, MATCH($E21, 'Capital base input'!$E$27:$E$76, 0), MATCH(BP$4, RAB_years, 0)) -> 0 | BQ21: =INDEX('Capital base input'!$H$27:$XFD$76, MATCH($E21, 'Capital base input'!$E$27:$E$76, 0), MATCH(BQ$4, RAB_years, 0)) -> 0 | BR21: =INDEX('Capital base input'!$H$27:$XFD$76, MATCH($E21, 'Capital base input'!$E$27:$E$76, 0), MATCH(BR$4, RAB_years, 0)) -> 0 | BS21: =INDEX('Capital base input'!$H$27:$XFD$76, MATCH($E21, 'Capital base input'!$E$27:$E$76, 0), MATCH(BS$4, RAB_years, 0)) -> 0 | BT21: =INDEX('Capital base input'!$H$27:$XFD$76, MATCH($E21, 'Capital base input'!$E$27:$E$76, 0), MATCH(BT$4, RAB_years, 0)) -> 0 | BU21: =INDEX('Capital base input'!$H$27:$XFD$76, MATCH($E21, 'Capital base input'!$E$27:$E$76, 0), MATCH(BU$4, RAB_years, 0)) -> 0 | BV21: =INDEX('Capital base input'!$H$27:$XFD$76, MATCH($E21, 'Capital base input'!$E$27:$E$76, 0), MATCH(BV$4, RAB_years, 0)) -> 0 | BW21: =INDEX('Capital base input'!$H$27:$XFD$76, MATCH($E21, 'Capital base input'!$E$27:$E$76, 0), MATCH(BW$4, RAB_years, 0)) -> 0 | BX21: =INDEX('Capital base input'!$H$27:$XFD$76, MATCH($E21, 'Capital base input'!$E$27:$E$76, 0), MATCH(BX$4, RAB_years, 0)) -> 0 | BY21: =INDEX('Capital base input'!$H$27:$XFD$76, MATCH($E21, 'Capital base input'!$E$27:$E$76, 0), MATCH(BY$4, RAB_years, 0)) -> 0 | BZ21: =INDEX('Capital base input'!$H$27:$XFD$76, MATCH($E21, 'Capital base input'!$E$27:$E$76, 0), MATCH(BZ$4, RAB_years, 0)) -> 0 | CA21: =INDEX('Capital base input'!$H$27:$XFD$76, MATCH($E21, 'Capital base input'!$E$27:$E$76, 0), MATCH(CA$4, RAB_years, 0)) -> 0 | CB21: =INDEX('Capital base input'!$H$27:$XFD$76, MATCH($E21, 'Capital base input'!$E$27:$E$76, 0), MATCH(CB$4, RAB_years, 0)) -> 0 | CC21: =INDEX('Capital base input'!$H$27:$XFD$76, MATCH($E21, 'Capital base input'!$E$27:$E$76, 0), MATCH(CC$4, RAB_years, 0)) -> 0 | CD21: =INDEX('Capital base input'!$H$27:$XFD$76, MATCH($E21, 'Capital base input'!$E$27:$E$76, 0), MATCH(CD$4, RAB_years, 0)) -> 0 | CE21: =INDEX('Capital base input'!$H$27:$XFD$76, MATCH($E21, 'Capital base input'!$E$27:$E$76, 0), MATCH(CE$4, RAB_years, 0)) -> 0 | CF21: =INDEX('Capital base input'!$H$27:$XFD$76, MATCH($E21, 'Capital base input'!$E$27:$E$76, 0), MATCH(CF$4, RAB_years, 0)) -> 0 | CG21: =INDEX('Capital base input'!$H$27:$XFD$76, MATCH($E21, 'Capital base input'!$E$27:$E$76, 0), MATCH(CG$4, RAB_years, 0)) -> 0 | CH21: =INDEX('Capital base input'!$H$27:$XFD$76, MATCH($E21, 'Capital base input'!$E$27:$E$76, 0), MATCH(CH$4, RAB_years, 0)) -> 0 | CI21: =INDEX('Capital base input'!$H$27:$XFD$76, MATCH($E21, 'Capital base input'!$E$27:$E$76, 0), MATCH(CI$4, RAB_years, 0)) -> 0 | CJ21: =INDEX('Capital base input'!$H$27:$XFD$76, MATCH($E21, 'Capital base input'!$E$27:$E$76, 0), MATCH(CJ$4, RAB_years, 0)) -> 0 | CK21: =INDEX('Capital base input'!$H$27:$XFD$76, MATCH($E21, 'Capital base input'!$E$27:$E$76, 0), MATCH(CK$4, RAB_years, 0)) -> 0 | CL21: =INDEX('Capital base input'!$H$27:$XFD$76, MATCH($E21, 'Capital base input'!$E$27:$E$76, 0), MATCH(CL$4, RAB_years, 0)) -> 0 | CM21: =INDEX('Capital base input'!$H$27:$XFD$76, MATCH($E21, 'Capital base input'!$E$27:$E$76, 0), MATCH(CM$4, RAB_years, 0)) -> 0 | CN21: =INDEX('Capital base input'!$H$27:$XFD$76, MATCH($E21, 'Capital base input'!$E$27:$E$76, 0), MATCH(CN$4, RAB_years, 0)) -> 0 | CO21: =INDEX('Capital base input'!$H$27:$XFD$76, MATCH($E21, 'Capital base input'!$E$27:$E$76, 0), MATCH(CO$4, RAB_years, 0)) -> 0 | CP21: =INDEX('Capital base input'!$H$27:$XFD$76, MATCH($E21, 'Capital base input'!$E$27:$E$76, 0), MATCH(CP$4, RAB_years, 0)) -> 0
D22: 5 | E22: ='Capital base input'!E31 -> Fixed Plant - Distribution | G22: 62.05419037 | H22: =INDEX('Capital base input'!$H$27:$XFD$76, MATCH($E22, 'Capital base input'!$E$27:$E$76, 0), MATCH(H$4, RAB_years, 0)) -> 7.59184857 | I22: =INDEX('Capital base input'!$H$27:$XFD$76, MATCH($E22, 'Capital base input'!$E$27:$E$76, 0), MATCH(I$4, RAB_years, 0)) -> 5.33383559 | J22: =INDEX('Capital base input'!$H$27:$XFD$76, MATCH($E22, 'Capital base input'!$E$27:$E$76, 0), MATCH(J$4, RAB_years, 0)) -> 1.45713145 | K22: =INDEX('Capital base input'!$H$27:$XFD$76, MATCH($E22, 'Capital base input'!$E$27:$E$76, 0), MATCH(K$4, RAB_years, 0)) -> 8.9196446 | L22: =INDEX('Capital base input'!$H$27:$XFD$76, MATCH($E22, 'Capital base input'!$E$27:$E$76, 0), MATCH(L$4, RAB_years, 0)) -> 25.07559324 | M22: =INDEX('Capital base input'!$H$27:$XFD$76, MATCH($E22, 'Capital base input'!$E$27:$E$76, 0), MATCH(M$4, RAB_years, 0)) -> 0 | N22: =INDEX('Capital base input'!$H$27:$XFD$76, MATCH($E22, 'Capital base input'!$E$27:$E$76, 0), MATCH(N$4, RAB_years, 0)) -> 0 | O22: =INDEX('Capital base input'!$H$27:$XFD$76, MATCH($E22, 'Capital base input'!$E$27:$E$76, 0), MATCH(O$4, RAB_years, 0)) -> 0 | P22: =INDEX('Capital base input'!$H$27:$XFD$76, MATCH($E22, 'Capital base input'!$E$27:$E$76, 0), MATCH(P$4, RAB_years, 0)) -> 0 | Q22: =INDEX('Capital base input'!$H$27:$XFD$76, MATCH($E22, 'Capital base input'!$E$27:$E$76, 0), MATCH(Q$4, RAB_years, 0)) -> 0 | R22: =INDEX('Capital base input'!$H$27:$XFD$76, MATCH($E22, 'Capital base input'!$E$27:$E$76, 0), MATCH(R$4, RAB_years, 0)) -> 0 | S22: =INDEX('Capital base input'!$H$27:$XFD$76, MATCH($E22, 'Capital base input'!$E$27:$E$76, 0), MATCH(S$4, RAB_years, 0)) -> 0 | T22: =INDEX('Capital base input'!$H$27:$XFD$76, MATCH($E22, 'Capital base input'!$E$27:$E$76, 0), MATCH(T$4, RAB_years, 0)) -> 0 | U22: =INDEX('Capital base input'!$H$27:$XFD$76, MATCH($E22, 'Capital base input'!$E$27:$E$76, 0), MATCH(U$4, RAB_years, 0)) -> 0 | V22: =INDEX('Capital base input'!$H$27:$XFD$76, MATCH($E22, 'Capital base input'!$E$27:$E$76, 0), MATCH(V$4, RAB_years, 0)) -> 0 | W22: =INDEX('Capital base input'!$H$27:$XFD$76, MATCH($E22, 'Capital base input'!$E$27:$E$76, 0), MATCH(W$4, RAB_years, 0)) -> 0 | X22: =INDEX('Capital base input'!$H$27:$XFD$76, MATCH($E22, 'Capital base input'!$E$27:$E$76, 0), MATCH(X$4, RAB_years, 0)) -> 0 | Y22: =INDEX('Capital base input'!$H$27:$XFD$76, MATCH($E22, 'Capital base input'!$E$27:$E$76, 0), MATCH(Y$4, RAB_years, 0)) -> 0 | Z22: =INDEX('Capital base input'!$H$27:$XFD$76, MATCH($E22, 'Capital base input'!$E$27:$E$76, 0), MATCH(Z$4, RAB_years, 0)) -> 0 | AA22: =INDEX('Capital base input'!$H$27:$XFD$76, MATCH($E22, 'Capital base input'!$E$27:$E$76, 0), MATCH(AA$4, RAB_years, 0)) -> 0 | AB22: =INDEX('Capital base input'!$H$27:$XFD$76, MATCH($E22, 'Capital base input'!$E$27:$E$76, 0), MATCH(AB$4, RAB_years, 0)) -> 0 | AC22: =INDEX('Capital base input'!$H$27:$XFD$76, MATCH($E22, 'Capital base input'!$E$27:$E$76, 0), MATCH(AC$4, RAB_years, 0)) -> 0 | AD22: =INDEX('Capital base input'!$H$27:$XFD$76, MATCH($E22, 'Capital base input'!$E$27:$E$76, 0), MATCH(AD$4, RAB_years, 0)) -> 0 | AE22: =INDEX('Capital base input'!$H$27:$XFD$76, MATCH($E22, 'Capital base input'!$E$27:$E$76, 0), MATCH(AE$4, RAB_years, 0)) -> 0 | AF22: =INDEX('Capital base input'!$H$27:$XFD$76, MATCH($E22, 'Capital base input'!$E$27:$E$76, 0), MATCH(AF$4, RAB_years, 0)) -> 0 | AG22: =INDEX('Capital base input'!$H$27:$XFD$76, MATCH($E22, 'Capital base input'!$E$27:$E$76, 0), MATCH(AG$4, RAB_years, 0)) -> 0 | AH22: =INDEX('Capital base input'!$H$27:$XFD$76, MATCH($E22, 'Capital base input'!$E$27:$E$76, 0), MATCH(AH$4, RAB_years, 0)) -> 0 | AI22: =INDEX('Capital base input'!$H$27:$XFD$76, MATCH($E22, 'Capital base input'!$E$27:$E$76, 0), MATCH(AI$4, RAB_years, 0)) -> 0 | AJ22: =INDEX('Capital base input'!$H$27:$XFD$76, MATCH($E22, 'Capital base input'!$E$27:$E$76, 0), MATCH(AJ$4, RAB_years, 0)) -> 0 | AK22: =INDEX('Capital base input'!$H$27:$XFD$76, MATCH($E22, 'Capital base input'!$E$27:$E$76, 0), MATCH(AK$4, RAB_years, 0)) -> 0 | AL22: =INDEX('Capital base input'!$H$27:$XFD$76, MATCH($E22, 'Capital base input'!$E$27:$E$76, 0), MATCH(AL$4, RAB_years, 0)) -> 0 | AM22: =INDEX('Capital base input'!$H$27:$XFD$76, MATCH($E22, 'Capital base input'!$E$27:$E$76, 0), MATCH(AM$4, RAB_years, 0)) -> 0 | AN22: =INDEX('Capital base input'!$H$27:$XFD$76, MATCH($E22, 'Capital base input'!$E$27:$E$76, 0), MATCH(AN$4, RAB_years, 0)) -> 0 | AO22: =INDEX('Capital base input'!$H$27:$XFD$76, MATCH($E22, 'Capital base input'!$E$27:$E$76, 0), MATCH(AO$4, RAB_years, 0)) -> 0 | AP22: =INDEX('Capital base input'!$H$27:$XFD$76, MATCH($E22, 'Capital base input'!$E$27:$E$76, 0), MATCH(AP$4, RAB_years, 0)) -> 0 | AQ22: =INDEX('Capital base input'!$H$27:$XFD$76, MATCH($E22, 'Capital base input'!$E$27:$E$76, 0), MATCH(AQ$4, RAB_years, 0)) -> 0 | AR22: =INDEX('Capital base input'!$H$27:$XFD$76, MATCH($E22, 'Capital base input'!$E$27:$E$76, 0), MATCH(AR$4, RAB_years, 0)) -> 0 | AS22: =INDEX('Capital base input'!$H$27:$XFD$76, MATCH($E22, 'Capital base input'!$E$27:$E$76, 0), MATCH(AS$4, RAB_years, 0)) -> 0 | AT22: =INDEX('Capital base input'!$H$27:$XFD$76, MATCH($E22, 'Capital base input'!$E$27:$E$76, 0), MATCH(AT$4, RAB_years, 0)) -> 0 | AU22: =INDEX('Capital base input'!$H$27:$XFD$76, MATCH($E22, 'Capital base input'!$E$27:$E$76, 0), MATCH(AU$4, RAB_years, 0)) -> 0 | AV22: =INDEX('Capital base input'!$H$27:$XFD$76, MATCH($E22, 'Capital base input'!$E$27:$E$76, 0), MATCH(AV$4, RAB_years, 0)) -> 0 | AW22: =INDEX('Capital base input'!$H$27:$XFD$76, MATCH($E22, 'Capital base input'!$E$27:$E$76, 0), MATCH(AW$4, RAB_years, 0)) -> 0 | AX22: =INDEX('Capital base input'!$H$27:$XFD$76, MATCH($E22, 'Capital base input'!$E$27:$E$76, 0), MATCH(AX$4, RAB_years, 0)) -> 0 | AY22: =INDEX('Capital base input'!$H$27:$XFD$76, MATCH($E22, 'Capital base input'!$E$27:$E$76, 0), MATCH(AY$4, RAB_years, 0)) -> 0 | AZ22: =INDEX('Capital base input'!$H$27:$XFD$76, MATCH($E22, 'Capital base input'!$E$27:$E$76, 0), MATCH(AZ$4, RAB_years, 0)) -> 0 | BA22: =INDEX('Capital base input'!$H$27:$XFD$76, MATCH($E22, 'Capital base input'!$E$27:$E$76, 0), MATCH(BA$4, RAB_years, 0)) -> 0 | BB22: =INDEX('Capital base input'!$H$27:$XFD$76, MATCH($E22, 'Capital base input'!$E$27:$E$76, 0), MATCH(BB$4, RAB_years, 0)) -> 0 | BC22: =INDEX('Capital base input'!$H$27:$XFD$76, MATCH($E22, 'Capital base input'!$E$27:$E$76, 0), MATCH(BC$4, RAB_years, 0)) -> 0 | BD22: =INDEX('Capital base input'!$H$27:$XFD$76, MATCH($E22, 'Capital base input'!$E$27:$E$76, 0), MATCH(BD$4, RAB_years, 0)) -> 0 | BE22: =INDEX('Capital base input'!$H$27:$XFD$76, MATCH($E22, 'Capital base input'!$E$27:$E$76, 0), MATCH(BE$4, RAB_years, 0)) -> 0 | BF22: =INDEX('Capital base input'!$H$27:$XFD$76, MATCH($E22, 'Capital base input'!$E$27:$E$76, 0), MATCH(BF$4, RAB_years, 0)) -> 0 | BG22: =INDEX('Capital base input'!$H$27:$XFD$76, MATCH($E22, 'Capital base input'!$E$27:$E$76, 0), MATCH(BG$4, RAB_years, 0)) -> 0 | BH22: =INDEX('Capital base input'!$H$27:$XFD$76, MATCH($E22, 'Capital base input'!$E$27:$E$76, 0), MATCH(BH$4, RAB_years, 0)) -> 0 | BI22: =INDEX('Capital base input'!$H$27:$XFD$76, MATCH($E22, 'Capital base input'!$E$27:$E$76, 0), MATCH(BI$4, RAB_years, 0)) -> 0 | BJ22: =INDEX('Capital base input'!$H$27:$XFD$76, MATCH($E22, 'Capital base input'!$E$27:$E$76, 0), MATCH(BJ$4, RAB_years, 0)) -> 0 | BK22: =INDEX('Capital base input'!$H$27:$XFD$76, MATCH($E22, 'Capital base input'!$E$27:$E$76, 0), MATCH(BK$4, RAB_years, 0)) -> 0 | BL22: =INDEX('Capital base input'!$H$27:$XFD$76, MATCH($E22, 'Capital base input'!$E$27:$E$76, 0), MATCH(BL$4, RAB_years, 0)) -> 0 | BM22: =INDEX('Capital base input'!$H$27:$XFD$76, MATCH($E22, 'Capital base input'!$E$27:$E$76, 0), MATCH(BM$4, RAB_years, 0)) -> 0 | BN22: =INDEX('Capital base input'!$H$27:$XFD$76, MATCH($E22, 'Capital base input'!$E$27:$E$76, 0), MATCH(BN$4, RAB_years, 0)) -> 0 | BO22: =INDEX('Capital base input'!$H$27:$XFD$76, MATCH($E22, 'Capital base input'!$E$27:$E$76, 0), MATCH(BO$4, RAB_years, 0)) -> 0 | BP22: =INDEX('Capital base input'!$H$27:$XFD$76, MATCH($E22, 'Capital base input'!$E$27:$E$76, 0), MATCH(BP$4, RAB_years, 0)) -> 0 | BQ22: =INDEX('Capital base input'!$H$27:$XFD$76, MATCH($E22, 'Capital base input'!$E$27:$E$76, 0), MATCH(BQ$4, RAB_years, 0)) -> 0 | BR22: =INDEX('Capital base input'!$H$27:$XFD$76, MATCH($E22, 'Capital base input'!$E$27:$E$76, 0), MATCH(BR$4, RAB_years, 0)) -> 0 | BS22: =INDEX('Capital base input'!$H$27:$XFD$76, MATCH($E22, 'Capital base input'!$E$27:$E$76, 0), MATCH(BS$4, RAB_years, 0)) -> 0 | BT22: =INDEX('Capital base input'!$H$27:$XFD$76, MATCH($E22, 'Capital base input'!$E$27:$E$76, 0), MATCH(BT$4, RAB_years, 0)) -> 0 | BU22: =INDEX('Capital base input'!$H$27:$XFD$76, MATCH($E22, 'Capital base input'!$E$27:$E$76, 0), MATCH(BU$4, RAB_years, 0)) -> 0 | BV22: =INDEX('Capital base input'!$H$27:$XFD$76, MATCH($E22, 'Capital base input'!$E$27:$E$76, 0), MATCH(BV$4, RAB_years, 0)) -> 0 | BW22: =INDEX('Capital base input'!$H$27:$XFD$76, MATCH($E22, 'Capital base input'!$E$27:$E$76, 0), MATCH(BW$4, RAB_years, 0)) -> 0 | BX22: =INDEX('Capital base input'!$H$27:$XFD$76, MATCH($E22, 'Capital base input'!$E$27:$E$76, 0), MATCH(BX$4, RAB_years, 0)) -> 0 | BY22: =INDEX('Capital base input'!$H$27:$XFD$76, MATCH($E22, 'Capital base input'!$E$27:$E$76, 0), MATCH(BY$4, RAB_years, 0)) -> 0 | BZ22: =INDEX('Capital base input'!$H$27:$XFD$76, MATCH($E22, 'Capital base input'!$E$27:$E$76, 0), MATCH(BZ$4, RAB_years, 0)) -> 0 | CA22: =INDEX('Capital base input'!$H$27:$XFD$76, MATCH($E22, 'Capital base input'!$E$27:$E$76, 0), MATCH(CA$4, RAB_years, 0)) -> 0 | CB22: =INDEX('Capital base input'!$H$27:$XFD$76, MATCH($E22, 'Capital base input'!$E$27:$E$76, 0), MATCH(CB$4, RAB_years, 0)) -> 0 | CC22: =INDEX('Capital base input'!$H$27:$XFD$76, MATCH($E22, 'Capital base input'!$E$27:$E$76, 0), MATCH(CC$4, RAB_years, 0)) -> 0 | CD22: =INDEX('Capital base input'!$H$27:$XFD$76, MATCH($E22, 'Capital base input'!$E$27:$E$76, 0), MATCH(CD$4, RAB_years, 0)) -> 0 | CE22: =INDEX('Capital base input'!$H$27:$XFD$76, MATCH($E22, 'Capital base input'!$E$27:$E$76, 0), MATCH(CE$4, RAB_years, 0)) -> 0 | CF22: =INDEX('Capital base input'!$H$27:$XFD$76, MATCH($E22, 'Capital base input'!$E$27:$E$76, 0), MATCH(CF$4, RAB_years, 0)) -> 0 | CG22: =INDEX('Capital base input'!$H$27:$XFD$76, MATCH($E22, 'Capital base input'!$E$27:$E$76, 0), MATCH(CG$4, RAB_years, 0)) -> 0 | CH22: =INDEX('Capital base input'!$H$27:$XFD$76, MATCH($E22, 'Capital base input'!$E$27:$E$76, 0), MATCH(CH$4, RAB_years, 0)) -> 0 | CI22: =INDEX('Capital base input'!$H$27:$XFD$76, MATCH($E22, 'Capital base input'!$E$27:$E$76, 0), MATCH(CI$4, RAB_years, 0)) -> 0 | CJ22: =INDEX('Capital base input'!$H$27:$XFD$76, MATCH($E22, 'Capital base input'!$E$27:$E$76, 0), MATCH(CJ$4, RAB_years, 0)) -> 0 | CK22: =INDEX('Capital base input'!$H$27:$XFD$76, MATCH($E22, 'Capital base input'!$E$27:$E$76, 0), MATCH(CK$4, RAB_years, 0)) -> 0 | CL22: =INDEX('Capital base input'!$H$27:$XFD$76, MATCH($E22, 'Capital base input'!$E$27:$E$76, 0), MATCH(CL$4, RAB_years, 0)) -> 0 | CM22: =INDEX('Capital base input'!$H$27:$XFD$76, MATCH($E22, 'Capital base input'!$E$27:$E$76, 0), MATCH(CM$4, RAB_years, 0)) -> 0 | CN22: =INDEX('Capital base input'!$H$27:$XFD$76, MATCH($E22, 'Capital base input'!$E$27:$E$76, 0), MATCH(CN$4, RAB_years, 0)) -> 0 | CO22: =INDEX('Capital base input'!$H$27:$XFD$76, MATCH($E22, 'Capital base input'!$E$27:$E$76, 0), MATCH(CO$4, RAB_years, 0)) -> 0 | CP22: =INDEX('Capital base input'!$H$27:$XFD$76, MATCH($E22, 'Capital base input'!$E$27:$E$76, 0), MATCH(CP$4, RAB_years, 0)) -> 0
D23: 6 | E23: ='Capital base input'!E32 -> HP Mains | G23: 98.56035751 | H23: =INDEX('Capital base input'!$H$27:$XFD$76, MATCH($E23, 'Capital base input'!$E$27:$E$76, 0), MATCH(H$4, RAB_years, 0)) -> 7.88328547 | I23: =INDEX('Capital base input'!$H$27:$XFD$76, MATCH($E23, 'Capital base input'!$E$27:$E$76, 0), MATCH(I$4, RAB_years, 0)) -> 13.94712025 | J23: =INDEX('Capital base input'!$H$27:$XFD$76, MATCH($E23, 'Capital base input'!$E$27:$E$76, 0), MATCH(J$4, RAB_years, 0)) -> 26.83731356 | K23: =INDEX('Capital base input'!$H$27:$XFD$76, MATCH($E23, 'Capital base input'!$E$27:$E$76, 0), MATCH(K$4, RAB_years, 0)) -> 10.06885255 | L23: =INDEX('Capital base input'!$H$27:$XFD$76, MATCH($E23, 'Capital base input'!$E$27:$E$76, 0), MATCH(L$4, RAB_years, 0)) -> 25.82891413 | M23: =INDEX('Capital base input'!$H$27:$XFD$76, MATCH($E23, 'Capital base input'!$E$27:$E$76, 0), MATCH(M$4, RAB_years, 0)) -> 0 | N23: =INDEX('Capital base input'!$H$27:$XFD$76, MATCH($E23, 'Capital base input'!$E$27:$E$76, 0), MATCH(N$4, RAB_years, 0)) -> 0 | O23: =INDEX('Capital base input'!$H$27:$XFD$76, MATCH($E23, 'Capital base input'!$E$27:$E$76, 0), MATCH(O$4, RAB_years, 0)) -> 0 | P23: =INDEX('Capital base input'!$H$27:$XFD$76, MATCH($E23, 'Capital base input'!$E$27:$E$76, 0), MATCH(P$4, RAB_years, 0)) -> 0 | Q23: =INDEX('Capital base input'!$H$27:$XFD$76, MATCH($E23, 'Capital base input'!$E$27:$E$76, 0), MATCH(Q$4, RAB_years, 0)) -> 0 | R23: =INDEX('Capital base input'!$H$27:$XFD$76, MATCH($E23, 'Capital base input'!$E$27:$E$76, 0), MATCH(R$4, RAB_years, 0)) -> 0 | S23: =INDEX('Capital base input'!$H$27:$XFD$76, MATCH($E23, 'Capital base input'!$E$27:$E$76, 0), MATCH(S$4, RAB_years, 0)) -> 0 | T23: =INDEX('Capital base input'!$H$27:$XFD$76, MATCH($E23, 'Capital base input'!$E$27:$E$76, 0), MATCH(T$4, RAB_years, 0)) -> 0 | U23: =INDEX('Capital base input'!$H$27:$XFD$76, MATCH($E23, 'Capital base input'!$E$27:$E$76, 0), MATCH(U$4, RAB_years, 0)) -> 0 | V23: =INDEX('Capital base input'!$H$27:$XFD$76, MATCH($E23, 'Capital base input'!$E$27:$E$76, 0), MATCH(V$4, RAB_years, 0)) -> 0 | W23: =INDEX('Capital base input'!$H$27:$XFD$76, MATCH($E23, 'Capital base input'!$E$27:$E$76, 0), MATCH(W$4, RAB_years, 0)) -> 0 | X23: =INDEX('Capital base input'!$H$27:$XFD$76, MATCH($E23, 'Capital base input'!$E$27:$E$76, 0), MATCH(X$4, RAB_years, 0)) -> 0 | Y23: =INDEX('Capital base input'!$H$27:$XFD$76, MATCH($E23, 'Capital base input'!$E$27:$E$76, 0), MATCH(Y$4, RAB_years, 0)) -> 0 | Z23: =INDEX('Capital base input'!$H$27:$XFD$76, MATCH($E23, 'Capital base input'!$E$27:$E$76, 0), MATCH(Z$4, RAB_years, 0)) -> 0 | AA23: =INDEX('Capital base input'!$H$27:$XFD$76, MATCH($E23, 'Capital base input'!$E$27:$E$76, 0), MATCH(AA$4, RAB_years, 0)) -> 0 | AB23: =INDEX('Capital base input'!$H$27:$XFD$76, MATCH($E23, 'Capital base input'!$E$27:$E$76, 0), MATCH(AB$4, RAB_years, 0)) -> 0 | AC23: =INDEX('Capital base input'!$H$27:$XFD$76, MATCH($E23, 'Capital base input'!$E$27:$E$76, 0), MATCH(AC$4, RAB_years, 0)) -> 0 | AD23: =INDEX('Capital base input'!$H$27:$XFD$76, MATCH($E23, 'Capital base input'!$E$27:$E$76, 0), MATCH(AD$4, RAB_years, 0)) -> 0 | AE23: =INDEX('Capital base input'!$H$27:$XFD$76, MATCH($E23, 'Capital base input'!$E$27:$E$76, 0), MATCH(AE$4, RAB_years, 0)) -> 0 | AF23: =INDEX('Capital base input'!$H$27:$XFD$76, MATCH($E23, 'Capital base input'!$E$27:$E$76, 0), MATCH(AF$4, RAB_years, 0)) -> 0 | AG23: =INDEX('Capital base input'!$H$27:$XFD$76, MATCH($E23, 'Capital base input'!$E$27:$E$76, 0), MATCH(AG$4, RAB_years, 0)) -> 0 | AH23: =INDEX('Capital base input'!$H$27:$XFD$76, MATCH($E23, 'Capital base input'!$E$27:$E$76, 0), MATCH(AH$4, RAB_years, 0)) -> 0 | AI23: =INDEX('Capital base input'!$H$27:$XFD$76, MATCH($E23, 'Capital base input'!$E$27:$E$76, 0), MATCH(AI$4, RAB_years, 0)) -> 0 | AJ23: =INDEX('Capital base input'!$H$27:$XFD$76, MATCH($E23, 'Capital base input'!$E$27:$E$76, 0), MATCH(AJ$4, RAB_years, 0)) -> 0 | AK23: =INDEX('Capital base input'!$H$27:$XFD$76, MATCH($E23, 'Capital base input'!$E$27:$E$76, 0), MATCH(AK$4, RAB_years, 0)) -> 0 | AL23: =INDEX('Capital base input'!$H$27:$XFD$76, MATCH($E23, 'Capital base input'!$E$27:$E$76, 0), MATCH(AL$4, RAB_years, 0)) -> 0 | AM23: =INDEX('Capital base input'!$H$27:$XFD$76, MATCH($E23, 'Capital base input'!$E$27:$E$76, 0), MATCH(AM$4, RAB_years, 0)) -> 0 | AN23: =INDEX('Capital base input'!$H$27:$XFD$76, MATCH($E23, 'Capital base input'!$E$27:$E$76, 0), MATCH(AN$4, RAB_years, 0)) -> 0 | AO23: =INDEX('Capital base input'!$H$27:$XFD$76, MATCH($E23, 'Capital base input'!$E$27:$E$76, 0), MATCH(AO$4, RAB_years, 0)) -> 0 | AP23: =INDEX('Capital base input'!$H$27:$XFD$76, MATCH($E23, 'Capital base input'!$E$27:$E$76, 0), MATCH(AP$4, RAB_years, 0)) -> 0 | AQ23: =INDEX('Capital base input'!$H$27:$XFD$76, MATCH($E23, 'Capital base input'!$E$27:$E$76, 0), MATCH(AQ$4, RAB_years, 0)) -> 0 | AR23: =INDEX('Capital base input'!$H$27:$XFD$76, MATCH($E23, 'Capital base input'!$E$27:$E$76, 0), MATCH(AR$4, RAB_years, 0)) -> 0 | AS23: =INDEX('Capital base input'!$H$27:$XFD$76, MATCH($E23, 'Capital base input'!$E$27:$E$76, 0), MATCH(AS$4, RAB_years, 0)) -> 0 | AT23: =INDEX('Capital base input'!$H$27:$XFD$76, MATCH($E23, 'Capital base input'!$E$27:$E$76, 0), MATCH(AT$4, RAB_years, 0)) -> 0 | AU23: =INDEX('Capital base input'!$H$27:$XFD$76, MATCH($E23, 'Capital base input'!$E$27:$E$76, 0), MATCH(AU$4, RAB_years, 0)) -> 0 | AV23: =INDEX('Capital base input'!$H$27:$XFD$76, MATCH($E23, 'Capital base input'!$E$27:$E$76, 0), MATCH(AV$4, RAB_years, 0)) -> 0 | AW23: =INDEX('Capital base input'!$H$27:$XFD$76, MATCH($E23, 'Capital base input'!$E$27:$E$76, 0), MATCH(AW$4, RAB_years, 0)) -> 0 | AX23: =INDEX('Capital base input'!$H$27:$XFD$76, MATCH($E23, 'Capital base input'!$E$27:$E$76, 0), MATCH(AX$4, RAB_years, 0)) -> 0 | AY23: =INDEX('Capital base input'!$H$27:$XFD$76, MATCH($E23, 'Capital base input'!$E$27:$E$76, 0), MATCH(AY$4, RAB_years, 0)) -> 0 | AZ23: =INDEX('Capital base input'!$H$27:$XFD$76, MATCH($E23, 'Capital base input'!$E$27:$E$76, 0), MATCH(AZ$4, RAB_years, 0)) -> 0 | BA23: =INDEX('Capital base input'!$H$27:$XFD$76, MATCH($E23, 'Capital base input'!$E$27:$E$76, 0), MATCH(BA$4, RAB_years, 0)) -> 0 | BB23: =INDEX('Capital base input'!$H$27:$XFD$76, MATCH($E23, 'Capital base input'!$E$27:$E$76, 0), MATCH(BB$4, RAB_years, 0)) -> 0 | BC23: =INDEX('Capital base input'!$H$27:$XFD$76, MATCH($E23, 'Capital base input'!$E$27:$E$76, 0), MATCH(BC$4, RAB_years, 0)) -> 0 | BD23: =INDEX('Capital base input'!$H$27:$XFD$76, MATCH($E23, 'Capital base input'!$E$27:$E$76, 0), MATCH(BD$4, RAB_years, 0)) -> 0 | BE23: =INDEX('Capital base input'!$H$27:$XFD$76, MATCH($E23, 'Capital base input'!$E$27:$E$76, 0), MATCH(BE$4, RAB_years, 0)) -> 0 | BF23: =INDEX('Capital base input'!$H$27:$XFD$76, MATCH($E23, 'Capital base input'!$E$27:$E$76, 0), MATCH(BF$4, RAB_years, 0)) -> 0 | BG23: =INDEX('Capital base input'!$H$27:$XFD$76, MATCH($E23, 'Capital base input'!$E$27:$E$76, 0), MATCH(BG$4, RAB_years, 0)) -> 0 | BH23: =INDEX('Capital base input'!$H$27:$XFD$76, MATCH($E23, 'Capital base input'!$E$27:$E$76, 0), MATCH(BH$4, RAB_years, 0)) -> 0 | BI23: =INDEX('Capital base input'!$H$27:$XFD$76, MATCH($E23, 'Capital base input'!$E$27:$E$76, 0), MATCH(BI$4, RAB_years, 0)) -> 0 | BJ23: =INDEX('Capital base input'!$H$27:$XFD$76, MATCH($E23, 'Capital base input'!$E$27:$E$76, 0), MATCH(BJ$4, RAB_years, 0)) -> 0 | BK23: =INDEX('Capital base input'!$H$27:$XFD$76, MATCH($E23, 'Capital base input'!$E$27:$E$76, 0), MATCH(BK$4, RAB_years, 0)) -> 0 | BL23: =INDEX('Capital base input'!$H$27:$XFD$76, MATCH($E23, 'Capital base input'!$E$27:$E$76, 0), MATCH(BL$4, RAB_years, 0)) -> 0 | BM23: =INDEX('Capital base input'!$H$27:$XFD$76, MATCH($E23, 'Capital base input'!$E$27:$E$76, 0), MATCH(BM$4, RAB_years, 0)) -> 0 | BN23: =INDEX('Capital base input'!$H$27:$XFD$76, MATCH($E23, 'Capital base input'!$E$27:$E$76, 0), MATCH(BN$4, RAB_years, 0)) -> 0 | BO23: =INDEX('Capital base input'!$H$27:$XFD$76, MATCH($E23, 'Capital base input'!$E$27:$E$76, 0), MATCH(BO$4, RAB_years, 0)) -> 0 | BP23: =INDEX('Capital base input'!$H$27:$XFD$76, MATCH($E23, 'Capital base input'!$E$27:$E$76, 0), MATCH(BP$4, RAB_years, 0)) -> 0 | BQ23: =INDEX('Capital base input'!$H$27:$XFD$76, MATCH($E23, 'Capital base input'!$E$27:$E$76, 0), MATCH(BQ$4, RAB_years, 0)) -> 0 | BR23: =INDEX('Capital base input'!$H$27:$XFD$76, MATCH($E23, 'Capital base input'!$E$27:$E$76, 0), MATCH(BR$4, RAB_years, 0)) -> 0 | BS23: =INDEX('Capital base input'!$H$27:$XFD$76, MATCH($E23, 'Capital base input'!$E$27:$E$76, 0), MATCH(BS$4, RAB_years, 0)) -> 0 | BT23: =INDEX('Capital base input'!$H$27:$XFD$76, MATCH($E23, 'Capital base input'!$E$27:$E$76, 0), MATCH(BT$4, RAB_years, 0)) -> 0 | BU23: =INDEX('Capital base input'!$H$27:$XFD$76, MATCH($E23, 'Capital base input'!$E$27:$E$76, 0), MATCH(BU$4, RAB_years, 0)) -> 0 | BV23: =INDEX('Capital base input'!$H$27:$XFD$76, MATCH($E23, 'Capital base input'!$E$27:$E$76, 0), MATCH(BV$4, RAB_years, 0)) -> 0 | BW23: =INDEX('Capital base input'!$H$27:$XFD$76, MATCH($E23, 'Capital base input'!$E$27:$E$76, 0), MATCH(BW$4, RAB_years, 0)) -> 0 | BX23: =INDEX('Capital base input'!$H$27:$XFD$76, MATCH($E23, 'Capital base input'!$E$27:$E$76, 0), MATCH(BX$4, RAB_years, 0)) -> 0 | BY23: =INDEX('Capital base input'!$H$27:$XFD$76, MATCH($E23, 'Capital base input'!$E$27:$E$76, 0), MATCH(BY$4, RAB_years, 0)) -> 0 | BZ23: =INDEX('Capital base input'!$H$27:$XFD$76, MATCH($E23, 'Capital base input'!$E$27:$E$76, 0), MATCH(BZ$4, RAB_years, 0)) -> 0 | CA23: =INDEX('Capital base input'!$H$27:$XFD$76, MATCH($E23, 'Capital base input'!$E$27:$E$76, 0), MATCH(CA$4, RAB_years, 0)) -> 0 | CB23: =INDEX('Capital base input'!$H$27:$XFD$76, MATCH($E23, 'Capital base input'!$E$27:$E$76, 0), MATCH(CB$4, RAB_years, 0)) -> 0 | CC23: =INDEX('Capital base input'!$H$27:$XFD$76, MATCH($E23, 'Capital base input'!$E$27:$E$76, 0), MATCH(CC$4, RAB_years, 0)) -> 0 | CD23: =INDEX('Capital base input'!$H$27:$XFD$76, MATCH($E23, 'Capital base input'!$E$27:$E$76, 0), MATCH(CD$4, RAB_years, 0)) -> 0 | CE23: =INDEX('Capital base input'!$H$27:$XFD$76, MATCH($E23, 'Capital base input'!$E$27:$E$76, 0), MATCH(CE$4, RAB_years, 0)) -> 0 | CF23: =INDEX('Capital base input'!$H$27:$XFD$76, MATCH($E23, 'Capital base input'!$E$27:$E$76, 0), MATCH(CF$4, RAB_years, 0)) -> 0 | CG23: =INDEX('Capital base input'!$H$27:$XFD$76, MATCH($E23, 'Capital base input'!$E$27:$E$76, 0), MATCH(CG$4, RAB_years, 0)) -> 0 | CH23: =INDEX('Capital base input'!$H$27:$XFD$76, MATCH($E23, 'Capital base input'!$E$27:$E$76, 0), MATCH(CH$4, RAB_years, 0)) -> 0 | CI23: =INDEX('Capital base input'!$H$27:$XFD$76, MATCH($E23, 'Capital base input'!$E$27:$E$76, 0), MATCH(CI$4, RAB_years, 0)) -> 0 | CJ23: =INDEX('Capital base input'!$H$27:$XFD$76, MATCH($E23, 'Capital base input'!$E$27:$E$76, 0), MATCH(CJ$4, RAB_years, 0)) -> 0 | CK23: =INDEX('Capital base input'!$H$27:$XFD$76, MATCH($E23, 'Capital base input'!$E$27:$E$76, 0), MATCH(CK$4, RAB_years, 0)) -> 0 | CL23: =INDEX('Capital base input'!$H$27:$XFD$76, MATCH($E23, 'Capital base input'!$E$27:$E$76, 0), MATCH(CL$4, RAB_years, 0)) -> 0 | CM23: =INDEX('Capital base input'!$H$27:$XFD$76, MATCH($E23, 'Capital base input'!$E$27:$E$76, 0), MATCH(CM$4, RAB_years, 0)) -> 0 | CN23: =INDEX('Capital base input'!$H$27:$XFD$76, MATCH($E23, 'Capital base input'!$E$27:$E$76, 0), MATCH(CN$4, RAB_years, 0)) -> 0 | CO23: =INDEX('Capital base input'!$H$27:$XFD$76, MATCH($E23, 'Capital base input'!$E$27:$E$76, 0), MATCH(CO$4, RAB_years, 0)) -> 0 | CP23: =INDEX('Capital base input'!$H$27:$XFD$76, MATCH($E23, 'Capital base input'!$E$27:$E$76, 0), MATCH(CP$4, RAB_years, 0)) -> 0
D24: 7 | E24: ='Capital base input'!E33 -> HP Services | G24: 11.0802797 | H24: =INDEX('Capital base input'!$H$27:$XFD$76, MATCH($E24, 'Capital base input'!$E$27:$E$76, 0), MATCH(H$4, RAB_years, 0)) -> 2.16521874 | I24: =INDEX('Capital base input'!$H$27:$XFD$76, MATCH($E24, 'Capital base input'!$E$27:$E$76, 0), MATCH(I$4, RAB_years, 0)) -> 1.14676942 | J24: =INDEX('Capital base input'!$H$27:$XFD$76, MATCH($E24, 'Capital base input'!$E$27:$E$76, 0), MATCH(J$4, RAB_years, 0)) -> 0.70300238 | K24: =INDEX('Capital base input'!$H$27:$XFD$76, MATCH($E24, 'Capital base input'!$E$27:$E$76, 0), MATCH(K$4, RAB_years, 0)) -> 0.94803924 | L24: =INDEX('Capital base input'!$H$27:$XFD$76, MATCH($E24, 'Capital base input'!$E$27:$E$76, 0), MATCH(L$4, RAB_years, 0)) -> 1.40172421 | M24: =INDEX('Capital base input'!$H$27:$XFD$76, MATCH($E24, 'Capital base input'!$E$27:$E$76, 0), MATCH(M$4, RAB_years, 0)) -> 0 | N24: =INDEX('Capital base input'!$H$27:$XFD$76, MATCH($E24, 'Capital base input'!$E$27:$E$76, 0), MATCH(N$4, RAB_years, 0)) -> 0 | O24: =INDEX('Capital base input'!$H$27:$XFD$76, MATCH($E24, 'Capital base input'!$E$27:$E$76, 0), MATCH(O$4, RAB_years, 0)) -> 0 | P24: =INDEX('Capital base input'!$H$27:$XFD$76, MATCH($E24, 'Capital base input'!$E$27:$E$76, 0), MATCH(P$4, RAB_years, 0)) -> 0 | Q24: =INDEX('Capital base input'!$H$27:$XFD$76, MATCH($E24, 'Capital base input'!$E$27:$E$76, 0), MATCH(Q$4, RAB_years, 0)) -> 0 | R24: =INDEX('Capital base input'!$H$27:$XFD$76, MATCH($E24, 'Capital base input'!$E$27:$E$76, 0), MATCH(R$4, RAB_years, 0)) -> 0 | S24: =INDEX('Capital base input'!$H$27:$XFD$76, MATCH($E24, 'Capital base input'!$E$27:$E$76, 0), MATCH(S$4, RAB_years, 0)) -> 0 | T24: =INDEX('Capital base input'!$H$27:$XFD$76, MATCH($E24, 'Capital base input'!$E$27:$E$76, 0), MATCH(T$4, RAB_years, 0)) -> 0 | U24: =INDEX('Capital base input'!$H$27:$XFD$76, MATCH($E24, 'Capital base input'!$E$27:$E$76, 0), MATCH(U$4, RAB_years, 0)) -> 0 | V24: =INDEX('Capital base input'!$H$27:$XFD$76, MATCH($E24, 'Capital base input'!$E$27:$E$76, 0), MATCH(V$4, RAB_years, 0)) -> 0 | W24: =INDEX('Capital base input'!$H$27:$XFD$76, MATCH($E24, 'Capital base input'!$E$27:$E$76, 0), MATCH(W$4, RAB_years, 0)) -> 0 | X24: =INDEX('Capital base input'!$H$27:$XFD$76, MATCH($E24, 'Capital base input'!$E$27:$E$76, 0), MATCH(X$4, RAB_years, 0)) -> 0 | Y24: =INDEX('Capital base input'!$H$27:$XFD$76, MATCH($E24, 'Capital base input'!$E$27:$E$76, 0), MATCH(Y$4, RAB_years, 0)) -> 0 | Z24: =INDEX('Capital base input'!$H$27:$XFD$76, MATCH($E24, 'Capital base input'!$E$27:$E$76, 0), MATCH(Z$4, RAB_years, 0)) -> 0 | AA24: =INDEX('Capital base input'!$H$27:$XFD$76, MATCH($E24, 'Capital base input'!$E$27:$E$76, 0), MATCH(AA$4, RAB_years, 0)) -> 0 | AB24: =INDEX('Capital base input'!$H$27:$XFD$76, MATCH($E24, 'Capital base input'!$E$27:$E$76, 0), MATCH(AB$4, RAB_years, 0)) -> 0 | AC24: =INDEX('Capital base input'!$H$27:$XFD$76, MATCH($E24, 'Capital base input'!$E$27:$E$76, 0), MATCH(AC$4, RAB_years, 0)) -> 0 | AD24: =INDEX('Capital base input'!$H$27:$XFD$76, MATCH($E24, 'Capital base input'!$E$27:$E$76, 0), MATCH(AD$4, RAB_years, 0)) -> 0 | AE24: =INDEX('Capital base input'!$H$27:$XFD$76, MATCH($E24, 'Capital base input'!$E$27:$E$76, 0), MATCH(AE$4, RAB_years, 0)) -> 0 | AF24: =INDEX('Capital base input'!$H$27:$XFD$76, MATCH($E24, 'Capital base input'!$E$27:$E$76, 0), MATCH(AF$4, RAB_years, 0)) -> 0 | AG24: =INDEX('Capital base input'!$H$27:$XFD$76, MATCH($E24, 'Capital base input'!$E$27:$E$76, 0), MATCH(AG$4, RAB_years, 0)) -> 0 | AH24: =INDEX('Capital base input'!$H$27:$XFD$76, MATCH($E24, 'Capital base input'!$E$27:$E$76, 0), MATCH(AH$4, RAB_years, 0)) -> 0 | AI24: =INDEX('Capital base input'!$H$27:$XFD$76, MATCH($E24, 'Capital base input'!$E$27:$E$76, 0), MATCH(AI$4, RAB_years, 0)) -> 0 | AJ24: =INDEX('Capital base input'!$H$27:$XFD$76, MATCH($E24, 'Capital base input'!$E$27:$E$76, 0), MATCH(AJ$4, RAB_years, 0)) -> 0 | AK24: =INDEX('Capital base input'!$H$27:$XFD$76, MATCH($E24, 'Capital base input'!$E$27:$E$76, 0), MATCH(AK$4, RAB_years, 0)) -> 0 | AL24: =INDEX('Capital base input'!$H$27:$XFD$76, MATCH($E24, 'Capital base input'!$E$27:$E$76, 0), MATCH(AL$4, RAB_years, 0)) -> 0 | AM24: =INDEX('Capital base input'!$H$27:$XFD$76, MATCH($E24, 'Capital base input'!$E$27:$E$76, 0), MATCH(AM$4, RAB_years, 0)) -> 0 | AN24: =INDEX('Capital base input'!$H$27:$XFD$76, MATCH($E24, 'Capital base input'!$E$27:$E$76, 0), MATCH(AN$4, RAB_years, 0)) -> 0 | AO24: =INDEX('Capital base input'!$H$27:$XFD$76, MATCH($E24, 'Capital base input'!$E$27:$E$76, 0), MATCH(AO$4, RAB_years, 0)) -> 0 | AP24: =INDEX('Capital base input'!$H$27:$XFD$76, MATCH($E24, 'Capital base input'!$E$27:$E$76, 0), MATCH(AP$4, RAB_years, 0)) -> 0 | AQ24: =INDEX('Capital base input'!$H$27:$XFD$76, MATCH($E24, 'Capital base input'!$E$27:$E$76, 0), MATCH(AQ$4, RAB_years, 0)) -> 0 | AR24: =INDEX('Capital base input'!$H$27:$XFD$76, MATCH($E24, 'Capital base input'!$E$27:$E$76, 0), MATCH(AR$4, RAB_years, 0)) -> 0 | AS24: =INDEX('Capital base input'!$H$27:$XFD$76, MATCH($E24, 'Capital base input'!$E$27:$E$76, 0), MATCH(AS$4, RAB_years, 0)) -> 0 | AT24: =INDEX('Capital base input'!$H$27:$XFD$76, MATCH($E24, 'Capital base input'!$E$27:$E$76, 0), MATCH(AT$4, RAB_years, 0)) -> 0 | AU24: =INDEX('Capital base input'!$H$27:$XFD$76, MATCH($E24, 'Capital base input'!$E$27:$E$76, 0), MATCH(AU$4, RAB_years, 0)) -> 0 | AV24: =INDEX('Capital base input'!$H$27:$XFD$76, MATCH($E24, 'Capital base input'!$E$27:$E$76, 0), MATCH(AV$4, RAB_years, 0)) -> 0 | AW24: =INDEX('Capital base input'!$H$27:$XFD$76, MATCH($E24, 'Capital base input'!$E$27:$E$76, 0), MATCH(AW$4, RAB_years, 0)) -> 0 | AX24: =INDEX('Capital base input'!$H$27:$XFD$76, MATCH($E24, 'Capital base input'!$E$27:$E$76, 0), MATCH(AX$4, RAB_years, 0)) -> 0 | AY24: =INDEX('Capital base input'!$H$27:$XFD$76, MATCH($E24, 'Capital base input'!$E$27:$E$76, 0), MATCH(AY$4, RAB_years, 0)) -> 0 | AZ24: =INDEX('Capital base input'!$H$27:$XFD$76, MATCH($E24, 'Capital base input'!$E$27:$E$76, 0), MATCH(AZ$4, RAB_years, 0)) -> 0 | BA24: =INDEX('Capital base input'!$H$27:$XFD$76, MATCH($E24, 'Capital base input'!$E$27:$E$76, 0), MATCH(BA$4, RAB_years, 0)) -> 0 | BB24: =INDEX('Capital base input'!$H$27:$XFD$76, MATCH($E24, 'Capital base input'!$E$27:$E$76, 0), MATCH(BB$4, RAB_years, 0)) -> 0 | BC24: =INDEX('Capital base input'!$H$27:$XFD$76, MATCH($E24, 'Capital base input'!$E$27:$E$76, 0), MATCH(BC$4, RAB_years, 0)) -> 0 | BD24: =INDEX('Capital base input'!$H$27:$XFD$76, MATCH($E24, 'Capital base input'!$E$27:$E$76, 0), MATCH(BD$4, RAB_years, 0)) -> 0 | BE24: =INDEX('Capital base input'!$H$27:$XFD$76, MATCH($E24, 'Capital base input'!$E$27:$E$76, 0), MATCH(BE$4, RAB_years, 0)) -> 0 | BF24: =INDEX('Capital base input'!$H$27:$XFD$76, MATCH($E24, 'Capital base input'!$E$27:$E$76, 0), MATCH(BF$4, RAB_years, 0)) -> 0 | BG24: =INDEX('Capital base input'!$H$27:$XFD$76, MATCH($E24, 'Capital base input'!$E$27:$E$76, 0), MATCH(BG$4, RAB_years, 0)) -> 0 | BH24: =INDEX('Capital base input'!$H$27:$XFD$76, MATCH($E24, 'Capital base input'!$E$27:$E$76, 0), MATCH(BH$4, RAB_years, 0)) -> 0 | BI24: =INDEX('Capital base input'!$H$27:$XFD$76, MATCH($E24, 'Capital base input'!$E$27:$E$76, 0), MATCH(BI$4, RAB_years, 0)) -> 0 | BJ24: =INDEX('Capital base input'!$H$27:$XFD$76, MATCH($E24, 'Capital base input'!$E$27:$E$76, 0), MATCH(BJ$4, RAB_years, 0)) -> 0 | BK24: =INDEX('Capital base input'!$H$27:$XFD$76, MATCH($E24, 'Capital base input'!$E$27:$E$76, 0), MATCH(BK$4, RAB_years, 0)) -> 0 | BL24: =INDEX('Capital base input'!$H$27:$XFD$76, MATCH($E24, 'Capital base input'!$E$27:$E$76, 0), MATCH(BL$4, RAB_years, 0)) -> 0 | BM24: =INDEX('Capital base input'!$H$27:$XFD$76, MATCH($E24, 'Capital base input'!$E$27:$E$76, 0), MATCH(BM$4, RAB_years, 0)) -> 0 | BN24: =INDEX('Capital base input'!$H$27:$XFD$76, MATCH($E24, 'Capital base input'!$E$27:$E$76, 0), MATCH(BN$4, RAB_years, 0)) -> 0 | BO24: =INDEX('Capital base input'!$H$27:$XFD$76, MATCH($E24, 'Capital base input'!$E$27:$E$76, 0), MATCH(BO$4, RAB_years, 0)) -> 0 | BP24: =INDEX('Capital base input'!$H$27:$XFD$76, MATCH($E24, 'Capital base input'!$E$27:$E$76, 0), MATCH(BP$4, RAB_years, 0)) -> 0 | BQ24: =INDEX('Capital base input'!$H$27:$XFD$76, MATCH($E24, 'Capital base input'!$E$27:$E$76, 0), MATCH(BQ$4, RAB_years, 0)) -> 0 | BR24: =INDEX('Capital base input'!$H$27:$XFD$76, MATCH($E24, 'Capital base input'!$E$27:$E$76, 0), MATCH(BR$4, RAB_years, 0)) -> 0 | BS24: =INDEX('Capital base input'!$H$27:$XFD$76, MATCH($E24, 'Capital base input'!$E$27:$E$76, 0), MATCH(BS$4, RAB_years, 0)) -> 0 | BT24: =INDEX('Capital base input'!$H$27:$XFD$76, MATCH($E24, 'Capital base input'!$E$27:$E$76, 0), MATCH(BT$4, RAB_years, 0)) -> 0 | BU24: =INDEX('Capital base input'!$H$27:$XFD$76, MATCH($E24, 'Capital base input'!$E$27:$E$76, 0), MATCH(BU$4, RAB_years, 0)) -> 0 | BV24: =INDEX('Capital base input'!$H$27:$XFD$76, MATCH($E24, 'Capital base input'!$E$27:$E$76, 0), MATCH(BV$4, RAB_years, 0)) -> 0 | BW24: =INDEX('Capital base input'!$H$27:$XFD$76, MATCH($E24, 'Capital base input'!$E$27:$E$76, 0), MATCH(BW$4, RAB_years, 0)) -> 0 | BX24: =INDEX('Capital base input'!$H$27:$XFD$76, MATCH($E24, 'Capital base input'!$E$27:$E$76, 0), MATCH(BX$4, RAB_years, 0)) -> 0 | BY24: =INDEX('Capital base input'!$H$27:$XFD$76, MATCH($E24, 'Capital base input'!$E$27:$E$76, 0), MATCH(BY$4, RAB_years, 0)) -> 0 | BZ24: =INDEX('Capital base input'!$H$27:$XFD$76, MATCH($E24, 'Capital base input'!$E$27:$E$76, 0), MATCH(BZ$4, RAB_years, 0)) -> 0 | CA24: =INDEX('Capital base input'!$H$27:$XFD$76, MATCH($E24, 'Capital base input'!$E$27:$E$76, 0), MATCH(CA$4, RAB_years, 0)) -> 0 | CB24: =INDEX('Capital base input'!$H$27:$XFD$76, MATCH($E24, 'Capital base input'!$E$27:$E$76, 0), MATCH(CB$4, RAB_years, 0)) -> 0 | CC24: =INDEX('Capital base input'!$H$27:$XFD$76, MATCH($E24, 'Capital base input'!$E$27:$E$76, 0), MATCH(CC$4, RAB_years, 0)) -> 0 | CD24: =INDEX('Capital base input'!$H$27:$XFD$76, MATCH($E24, 'Capital base input'!$E$27:$E$76, 0), MATCH(CD$4, RAB_years, 0)) -> 0 | CE24: =INDEX('Capital base input'!$H$27:$XFD$76, MATCH($E24, 'Capital base input'!$E$27:$E$76, 0), MATCH(CE$4, RAB_years, 0)) -> 0 | CF24: =INDEX('Capital base input'!$H$27:$XFD$76, MATCH($E24, 'Capital base input'!$E$27:$E$76, 0), MATCH(CF$4, RAB_years, 0)) -> 0 | CG24: =INDEX('Capital base input'!$H$27:$XFD$76, MATCH($E24, 'Capital base input'!$E$27:$E$76, 0), MATCH(CG$4, RAB_years, 0)) -> 0 | CH24: =INDEX('Capital base input'!$H$27:$XFD$76, MATCH($E24, 'Capital base input'!$E$27:$E$76, 0), MATCH(CH$4, RAB_years, 0)) -> 0 | CI24: =INDEX('Capital base input'!$H$27:$XFD$76, MATCH($E24, 'Capital base input'!$E$27:$E$76, 0), MATCH(CI$4, RAB_years, 0)) -> 0 | CJ24: =INDEX('Capital base input'!$H$27:$XFD$76, MATCH($E24, 'Capital base input'!$E$27:$E$76, 0), MATCH(CJ$4, RAB_years, 0)) -> 0 | CK24: =INDEX('Capital base input'!$H$27:$XFD$76, MATCH($E24, 'Capital base input'!$E$27:$E$76, 0), MATCH(CK$4, RAB_years, 0)) -> 0 | CL24: =INDEX('Capital base input'!$H$27:$XFD$76, MATCH($E24, 'Capital base input'!$E$27:$E$76, 0), MATCH(CL$4, RAB_years, 0)) -> 0 | CM24: =INDEX('Capital base input'!$H$27:$XFD$76, MATCH($E24, 'Capital base input'!$E$27:$E$76, 0), MATCH(CM$4, RAB_years, 0)) -> 0 | CN24: =INDEX('Capital base input'!$H$27:$XFD$76, MATCH($E24, 'Capital base input'!$E$27:$E$76, 0), MATCH(CN$4, RAB_years, 0)) -> 0 | CO24: =INDEX('Capital base input'!$H$27:$XFD$76, MATCH($E24, 'Capital base input'!$E$27:$E$76, 0), MATCH(CO$4, RAB_years, 0)) -> 0 | CP24: =INDEX('Capital base input'!$H$27:$XFD$76, MATCH($E24, 'Capital base input'!$E$27:$E$76, 0), MATCH(CP$4, RAB_years, 0)) -> 0
D25: 8 | E25: ='Capital base input'!E34 -> MP Mains | G25: 215.0492152 | H25: =INDEX('Capital base input'!$H$27:$XFD$76, MATCH($E25, 'Capital base input'!$E$27:$E$76, 0), MATCH(H$4, RAB_years, 0)) -> 28.71986193 | I25: =INDEX('Capital base input'!$H$27:$XFD$76, MATCH($E25, 'Capital base input'!$E$27:$E$76, 0), MATCH(I$4, RAB_years, 0)) -> 35.39975586 | J25: =INDEX('Capital base input'!$H$27:$XFD$76, MATCH($E25, 'Capital base input'!$E$27:$E$76, 0), MATCH(J$4, RAB_years, 0)) -> 25.58070682 | K25: =INDEX('Capital base input'!$H$27:$XFD$76, MATCH($E25, 'Capital base input'!$E$27:$E$76, 0), MATCH(K$4, RAB_years, 0)) -> 26.99692125 | L25: =INDEX('Capital base input'!$H$27:$XFD$76, MATCH($E25, 'Capital base input'!$E$27:$E$76, 0), MATCH(L$4, RAB_years, 0)) -> 31.64712185 | M25: =INDEX('Capital base input'!$H$27:$XFD$76, MATCH($E25, 'Capital base input'!$E$27:$E$76, 0), MATCH(M$4, RAB_years, 0)) -> 0 | N25: =INDEX('Capital base input'!$H$27:$XFD$76, MATCH($E25, 'Capital base input'!$E$27:$E$76, 0), MATCH(N$4, RAB_years, 0)) -> 0 | O25: =INDEX('Capital base input'!$H$27:$XFD$76, MATCH($E25, 'Capital base input'!$E$27:$E$76, 0), MATCH(O$4, RAB_years, 0)) -> 0 | P25: =INDEX('Capital base input'!$H$27:$XFD$76, MATCH($E25, 'Capital base input'!$E$27:$E$76, 0), MATCH(P$4, RAB_years, 0)) -> 0 | Q25: =INDEX('Capital base input'!$H$27:$XFD$76, MATCH($E25, 'Capital base input'!$E$27:$E$76, 0), MATCH(Q$4, RAB_years, 0)) -> 0 | R25: =INDEX('Capital base input'!$H$27:$XFD$76, MATCH($E25, 'Capital base input'!$E$27:$E$76, 0), MATCH(R$4, RAB_years, 0)) -> 0 | S25: =INDEX('Capital base input'!$H$27:$XFD$76, MATCH($E25, 'Capital base input'!$E$27:$E$76, 0), MATCH(S$4, RAB_years, 0)) -> 0 | T25: =INDEX('Capital base input'!$H$27:$XFD$76, MATCH($E25, 'Capital base input'!$E$27:$E$76, 0), MATCH(T$4, RAB_years, 0)) -> 0 | U25: =INDEX('Capital base input'!$H$27:$XFD$76, MATCH($E25, 'Capital base input'!$E$27:$E$76, 0), MATCH(U$4, RAB_years, 0)) -> 0 | V25: =INDEX('Capital base input'!$H$27:$XFD$76, MATCH($E25, 'Capital base input'!$E$27:$E$76, 0), MATCH(V$4, RAB_years, 0)) -> 0 | W25: =INDEX('Capital base input'!$H$27:$XFD$76, MATCH($E25, 'Capital base input'!$E$27:$E$76, 0), MATCH(W$4, RAB_years, 0)) -> 0 | X25: =INDEX('Capital base input'!$H$27:$XFD$76, MATCH($E25, 'Capital base input'!$E$27:$E$76, 0), MATCH(X$4, RAB_years, 0)) -> 0 | Y25: =INDEX('Capital base input'!$H$27:$XFD$76, MATCH($E25, 'Capital base input'!$E$27:$E$76, 0), MATCH(Y$4, RAB_years, 0)) -> 0 | Z25: =INDEX('Capital base input'!$H$27:$XFD$76, MATCH($E25, 'Capital base input'!$E$27:$E$76, 0), MATCH(Z$4, RAB_years, 0)) -> 0 | AA25: =INDEX('Capital base input'!$H$27:$XFD$76, MATCH($E25, 'Capital base input'!$E$27:$E$76, 0), MATCH(AA$4, RAB_years, 0)) -> 0 | AB25: =INDEX('Capital base input'!$H$27:$XFD$76, MATCH($E25, 'Capital base input'!$E$27:$E$76, 0), MATCH(AB$4, RAB_years, 0)) -> 0 | AC25: =INDEX('Capital base input'!$H$27:$XFD$76, MATCH($E25, 'Capital base input'!$E$27:$E$76, 0), MATCH(AC$4, RAB_years, 0)) -> 0 | AD25: =INDEX('Capital base input'!$H$27:$XFD$76, MATCH($E25, 'Capital base input'!$E$27:$E$76, 0), MATCH(AD$4, RAB_years, 0)) -> 0 | AE25: =INDEX('Capital base input'!$H$27:$XFD$76, MATCH($E25, 'Capital base input'!$E$27:$E$76, 0), MATCH(AE$4, RAB_years, 0)) -> 0 | AF25: =INDEX('Capital base input'!$H$27:$XFD$76, MATCH($E25, 'Capital base input'!$E$27:$E$76, 0), MATCH(AF$4, RAB_years, 0)) -> 0 | AG25: =INDEX('Capital base input'!$H$27:$XFD$76, MATCH($E25, 'Capital base input'!$E$27:$E$76, 0), MATCH(AG$4, RAB_years, 0)) -> 0 | AH25: =INDEX('Capital base input'!$H$27:$XFD$76, MATCH($E25, 'Capital base input'!$E$27:$E$76, 0), MATCH(AH$4, RAB_years, 0)) -> 0 | AI25: =INDEX('Capital base input'!$H$27:$XFD$76, MATCH($E25, 'Capital base input'!$E$27:$E$76, 0), MATCH(AI$4, RAB_years, 0)) -> 0 | AJ25: =INDEX('Capital base input'!$H$27:$XFD$76, MATCH($E25, 'Capital base input'!$E$27:$E$76, 0), MATCH(AJ$4, RAB_years, 0)) -> 0 | AK25: =INDEX('Capital base input'!$H$27:$XFD$76, MATCH($E25, 'Capital base input'!$E$27:$E$76, 0), MATCH(AK$4, RAB_years, 0)) -> 0 | AL25: =INDEX('Capital base input'!$H$27:$XFD$76, MATCH($E25, 'Capital base input'!$E$27:$E$76, 0), MATCH(AL$4, RAB_years, 0)) -> 0 | AM25: =INDEX('Capital base input'!$H$27:$XFD$76, MATCH($E25, 'Capital base input'!$E$27:$E$76, 0), MATCH(AM$4, RAB_years, 0)) -> 0 | AN25: =INDEX('Capital base input'!$H$27:$XFD$76, MATCH($E25, 'Capital base input'!$E$27:$E$76, 0), MATCH(AN$4, RAB_years, 0)) -> 0 | AO25: =INDEX('Capital base input'!$H$27:$XFD$76, MATCH($E25, 'Capital base input'!$E$27:$E$76, 0), MATCH(AO$4, RAB_years, 0)) -> 0 | AP25: =INDEX('Capital base input'!$H$27:$XFD$76, MATCH($E25, 'Capital base input'!$E$27:$E$76, 0), MATCH(AP$4, RAB_years, 0)) -> 0 | AQ25: =INDEX('Capital base input'!$H$27:$XFD$76, MATCH($E25, 'Capital base input'!$E$27:$E$76, 0), MATCH(AQ$4, RAB_years, 0)) -> 0 | AR25: =INDEX('Capital base input'!$H$27:$XFD$76, MATCH($E25, 'Capital base input'!$E$27:$E$76, 0), MATCH(AR$4, RAB_years, 0)) -> 0 | AS25: =INDEX('Capital base input'!$H$27:$XFD$76, MATCH($E25, 'Capital base input'!$E$27:$E$76, 0), MATCH(AS$4, RAB_years, 0)) -> 0 | AT25: =INDEX('Capital base input'!$H$27:$XFD$76, MATCH($E25, 'Capital base input'!$E$27:$E$76, 0), MATCH(AT$4, RAB_years, 0)) -> 0 | AU25: =INDEX('Capital base input'!$H$27:$XFD$76, MATCH($E25, 'Capital base input'!$E$27:$E$76, 0), MATCH(AU$4, RAB_years, 0)) -> 0 | AV25: =INDEX('Capital base input'!$H$27:$XFD$76, MATCH($E25, 'Capital base input'!$E$27:$E$76, 0), MATCH(AV$4, RAB_years, 0)) -> 0 | AW25: =INDEX('Capital base input'!$H$27:$XFD$76, MATCH($E25, 'Capital base input'!$E$27:$E$76, 0), MATCH(AW$4, RAB_years, 0)) -> 0 | AX25: =INDEX('Capital base input'!$H$27:$XFD$76, MATCH($E25, 'Capital base input'!$E$27:$E$76, 0), MATCH(AX$4, RAB_years, 0)) -> 0 | AY25: =INDEX('Capital base input'!$H$27:$XFD$76, MATCH($E25, 'Capital base input'!$E$27:$E$76, 0), MATCH(AY$4, RAB_years, 0)) -> 0 | AZ25: =INDEX('Capital base input'!$H$27:$XFD$76, MATCH($E25, 'Capital base input'!$E$27:$E$76, 0), MATCH(AZ$4, RAB_years, 0)) -> 0 | BA25: =INDEX('Capital base input'!$H$27:$XFD$76, MATCH($E25, 'Capital base input'!$E$27:$E$76, 0), MATCH(BA$4, RAB_years, 0)) -> 0 | BB25: =INDEX('Capital base input'!$H$27:$XFD$76, MATCH($E25, 'Capital base input'!$E$27:$E$76, 0), MATCH(BB$4, RAB_years, 0)) -> 0 | BC25: =INDEX('Capital base input'!$H$27:$XFD$76, MATCH($E25, 'Capital base input'!$E$27:$E$76, 0), MATCH(BC$4, RAB_years, 0)) -> 0 | BD25: =INDEX('Capital base input'!$H$27:$XFD$76, MATCH($E25, 'Capital base input'!$E$27:$E$76, 0), MATCH(BD$4, RAB_years, 0)) -> 0 | BE25: =INDEX('Capital base input'!$H$27:$XFD$76, MATCH($E25, 'Capital base input'!$E$27:$E$76, 0), MATCH(BE$4, RAB_years, 0)) -> 0 | BF25: =INDEX('Capital base input'!$H$27:$XFD$76, MATCH($E25, 'Capital base input'!$E$27:$E$76, 0), MATCH(BF$4, RAB_years, 0)) -> 0 | BG25: =INDEX('Capital base input'!$H$27:$XFD$76, MATCH($E25, 'Capital base input'!$E$27:$E$76, 0), MATCH(BG$4, RAB_years, 0)) -> 0 | BH25: =INDEX('Capital base input'!$H$27:$XFD$76, MATCH($E25, 'Capital base input'!$E$27:$E$76, 0), MATCH(BH$4, RAB_years, 0)) -> 0 | BI25: =INDEX('Capital base input'!$H$27:$XFD$76, MATCH($E25, 'Capital base input'!$E$27:$E$76, 0), MATCH(BI$4, RAB_years, 0)) -> 0 | BJ25: =INDEX('Capital base input'!$H$27:$XFD$76, MATCH($E25, 'Capital base input'!$E$27:$E$76, 0), MATCH(BJ$4, RAB_years, 0)) -> 0 | BK25: =INDEX('Capital base input'!$H$27:$XFD$76, MATCH($E25, 'Capital base input'!$E$27:$E$76, 0), MATCH(BK$4, RAB_years, 0)) -> 0 | BL25: =INDEX('Capital base input'!$H$27:$XFD$76, MATCH($E25, 'Capital base input'!$E$27:$E$76, 0), MATCH(BL$4, RAB_years, 0)) -> 0 | BM25: =INDEX('Capital base input'!$H$27:$XFD$76, MATCH($E25, 'Capital base input'!$E$27:$E$76, 0), MATCH(BM$4, RAB_years, 0)) -> 0 | BN25: =INDEX('Capital base input'!$H$27:$XFD$76, MATCH($E25, 'Capital base input'!$E$27:$E$76, 0), MATCH(BN$4, RAB_years, 0)) -> 0 | BO25: =INDEX('Capital base input'!$H$27:$XFD$76, MATCH($E25, 'Capital base input'!$E$27:$E$76, 0), MATCH(BO$4, RAB_years, 0)) -> 0 | BP25: =INDEX('Capital base input'!$H$27:$XFD$76, MATCH($E25, 'Capital base input'!$E$27:$E$76, 0), MATCH(BP$4, RAB_years, 0)) -> 0 | BQ25: =INDEX('Capital base input'!$H$27:$XFD$76, MATCH($E25, 'Capital base input'!$E$27:$E$76, 0), MATCH(BQ$4, RAB_years, 0)) -> 0 | BR25: =INDEX('Capital base input'!$H$27:$XFD$76, MATCH($E25, 'Capital base input'!$E$27:$E$76, 0), MATCH(BR$4, RAB_years, 0)) -> 0 | BS25: =INDEX('Capital base input'!$H$27:$XFD$76, MATCH($E25, 'Capital base input'!$E$27:$E$76, 0), MATCH(BS$4, RAB_years, 0)) -> 0 | BT25: =INDEX('Capital base input'!$H$27:$XFD$76, MATCH($E25, 'Capital base input'!$E$27:$E$76, 0), MATCH(BT$4, RAB_years, 0)) -> 0 | BU25: =INDEX('Capital base input'!$H$27:$XFD$76, MATCH($E25, 'Capital base input'!$E$27:$E$76, 0), MATCH(BU$4, RAB_years, 0)) -> 0 | BV25: =INDEX('Capital base input'!$H$27:$XFD$76, MATCH($E25, 'Capital base input'!$E$27:$E$76, 0), MATCH(BV$4, RAB_years, 0)) -> 0 | BW25: =INDEX('Capital base input'!$H$27:$XFD$76, MATCH($E25, 'Capital base input'!$E$27:$E$76, 0), MATCH(BW$4, RAB_years, 0)) -> 0 | BX25: =INDEX('Capital base input'!$H$27:$XFD$76, MATCH($E25, 'Capital base input'!$E$27:$E$76, 0), MATCH(BX$4, RAB_years, 0)) -> 0 | BY25: =INDEX('Capital base input'!$H$27:$XFD$76, MATCH($E25, 'Capital base input'!$E$27:$E$76, 0), MATCH(BY$4, RAB_years, 0)) -> 0 | BZ25: =INDEX('Capital base input'!$H$27:$XFD$76, MATCH($E25, 'Capital base input'!$E$27:$E$76, 0), MATCH(BZ$4, RAB_years, 0)) -> 0 | CA25: =INDEX('Capital base input'!$H$27:$XFD$76, MATCH($E25, 'Capital base input'!$E$27:$E$76, 0), MATCH(CA$4, RAB_years, 0)) -> 0 | CB25: =INDEX('Capital base input'!$H$27:$XFD$76, MATCH($E25, 'Capital base input'!$E$27:$E$76, 0), MATCH(CB$4, RAB_years, 0)) -> 0 | CC25: =INDEX('Capital base input'!$H$27:$XFD$76, MATCH($E25, 'Capital base input'!$E$27:$E$76, 0), MATCH(CC$4, RAB_years, 0)) -> 0 | CD25: =INDEX('Capital base input'!$H$27:$XFD$76, MATCH($E25, 'Capital base input'!$E$27:$E$76, 0), MATCH(CD$4, RAB_years, 0)) -> 0 | CE25: =INDEX('Capital base input'!$H$27:$XFD$76, MATCH($E25, 'Capital base input'!$E$27:$E$76, 0), MATCH(CE$4, RAB_years, 0)) -> 0 | CF25: =INDEX('Capital base input'!$H$27:$XFD$76, MATCH($E25, 'Capital base input'!$E$27:$E$76, 0), MATCH(CF$4, RAB_years, 0)) -> 0 | CG25: =INDEX('Capital base input'!$H$27:$XFD$76, MATCH($E25, 'Capital base input'!$E$27:$E$76, 0), MATCH(CG$4, RAB_years, 0)) -> 0 | CH25: =INDEX('Capital base input'!$H$27:$XFD$76, MATCH($E25, 'Capital base input'!$E$27:$E$76, 0), MATCH(CH$4, RAB_years, 0)) -> 0 | CI25: =INDEX('Capital base input'!$H$27:$XFD$76, MATCH($E25, 'Capital base input'!$E$27:$E$76, 0), MATCH(CI$4, RAB_years, 0)) -> 0 | CJ25: =INDEX('Capital base input'!$H$27:$XFD$76, MATCH($E25, 'Capital base input'!$E$27:$E$76, 0), MATCH(CJ$4, RAB_years, 0)) -> 0 | CK25: =INDEX('Capital base input'!$H$27:$XFD$76, MATCH($E25, 'Capital base input'!$E$27:$E$76, 0), MATCH(CK$4, RAB_years, 0)) -> 0 | CL25: =INDEX('Capital base input'!$H$27:$XFD$76, MATCH($E25, 'Capital base input'!$E$27:$E$76, 0), MATCH(CL$4, RAB_years, 0)) -> 0 | CM25: =INDEX('Capital base input'!$H$27:$XFD$76, MATCH($E25, 'Capital base input'!$E$27:$E$76, 0), MATCH(CM$4, RAB_years, 0)) -> 0 | CN25: =INDEX('Capital base input'!$H$27:$XFD$76, MATCH($E25, 'Capital base input'!$E$27:$E$76, 0), MATCH(CN$4, RAB_years, 0)) -> 0 | CO25: =INDEX('Capital base input'!$H$27:$XFD$76, MATCH($E25, 'Capital base input'!$E$27:$E$76, 0), MATCH(CO$4, RAB_years, 0)) -> 0 | CP25: =INDEX('Capital base input'!$H$27:$XFD$76, MATCH($E25, 'Capital base input'!$E$27:$E$76, 0), MATCH(CP$4, RAB_years, 0)) -> 0
D26: 9 | E26: ='Capital base input'!E35 -> MP Services | G26: 389.4627203 | H26: =INDEX('Capital base input'!$H$27:$XFD$76, MATCH($E26, 'Capital base input'!$E$27:$E$76, 0), MATCH(H$4, RAB_years, 0)) -> 59.70510481 | I26: =INDEX('Capital base input'!$H$27:$XFD$76, MATCH($E26, 'Capital base input'!$E$27:$E$76, 0), MATCH(I$4, RAB_years, 0)) -> 49.52781467 | J26: =INDEX('Capital base input'!$H$27:$XFD$76, MATCH($E26, 'Capital base input'!$E$27:$E$76, 0), MATCH(J$4, RAB_years, 0)) -> 59.37048054 | K26: =INDEX('Capital base input'!$H$27:$XFD$76, MATCH($E26, 'Capital base input'!$E$27:$E$76, 0), MATCH(K$4, RAB_years, 0)) -> 57.30105666 | L26: =INDEX('Capital base input'!$H$27:$XFD$76, MATCH($E26, 'Capital base input'!$E$27:$E$76, 0), MATCH(L$4, RAB_years, 0)) -> 54.49248832 | M26: =INDEX('Capital base input'!$H$27:$XFD$76, MATCH($E26, 'Capital base input'!$E$27:$E$76, 0), MATCH(M$4, RAB_years, 0)) -> 0 | N26: =INDEX('Capital base input'!$H$27:$XFD$76, MATCH($E26, 'Capital base input'!$E$27:$E$76, 0), MATCH(N$4, RAB_years, 0)) -> 0 | O26: =INDEX('Capital base input'!$H$27:$XFD$76, MATCH($E26, 'Capital base input'!$E$27:$E$76, 0), MATCH(O$4, RAB_years, 0)) -> 0 | P26: =INDEX('Capital base input'!$H$27:$XFD$76, MATCH($E26, 'Capital base input'!$E$27:$E$76, 0), MATCH(P$4, RAB_years, 0)) -> 0 | Q26: =INDEX('Capital base input'!$H$27:$XFD$76, MATCH($E26, 'Capital base input'!$E$27:$E$76, 0), MATCH(Q$4, RAB_years, 0)) -> 0 | R26: =INDEX('Capital base input'!$H$27:$XFD$76, MATCH($E26, 'Capital base input'!$E$27:$E$76, 0), MATCH(R$4, RAB_years, 0)) -> 0 | S26: =INDEX('Capital base input'!$H$27:$XFD$76, MATCH($E26, 'Capital base input'!$E$27:$E$76, 0), MATCH(S$4, RAB_years, 0)) -> 0 | T26: =INDEX('Capital base input'!$H$27:$XFD$76, MATCH($E26, 'Capital base input'!$E$27:$E$76, 0), MATCH(T$4, RAB_years, 0)) -> 0 | U26: =INDEX('Capital base input'!$H$27:$XFD$76, MATCH($E26, 'Capital base input'!$E$27:$E$76, 0), MATCH(U$4, RAB_years, 0)) -> 0 | V26: =INDEX('Capital base input'!$H$27:$XFD$76, MATCH($E26, 'Capital base input'!$E$27:$E$76, 0), MATCH(V$4, RAB_years, 0)) -> 0 | W26: =INDEX('Capital base input'!$H$27:$XFD$76, MATCH($E26, 'Capital base input'!$E$27:$E$76, 0), MATCH(W$4, RAB_years, 0)) -> 0 | X26: =INDEX('Capital base input'!$H$27:$XFD$76, MATCH($E26, 'Capital base input'!$E$27:$E$76, 0), MATCH(X$4, RAB_years, 0)) -> 0 | Y26: =INDEX('Capital base input'!$H$27:$XFD$76, MATCH($E26, 'Capital base input'!$E$27:$E$76, 0), MATCH(Y$4, RAB_years, 0)) -> 0 | Z26: =INDEX('Capital base input'!$H$27:$XFD$76, MATCH($E26, 'Capital base input'!$E$27:$E$76, 0), MATCH(Z$4, RAB_years, 0)) -> 0 | AA26: =INDEX('Capital base input'!$H$27:$XFD$76, MATCH($E26, 'Capital base input'!$E$27:$E$76, 0), MATCH(AA$4, RAB_years, 0)) -> 0 | AB26: =INDEX('Capital base input'!$H$27:$XFD$76, MATCH($E26, 'Capital base input'!$E$27:$E$76, 0), MATCH(AB$4, RAB_years, 0)) -> 0 | AC26: =INDEX('Capital base input'!$H$27:$XFD$76, MATCH($E26, 'Capital base input'!$E$27:$E$76, 0), MATCH(AC$4, RAB_years, 0)) -> 0 | AD26: =INDEX('Capital base input'!$H$27:$XFD$76, MATCH($E26, 'Capital base input'!$E$27:$E$76, 0), MATCH(AD$4, RAB_years, 0)) -> 0 | AE26: =INDEX('Capital base input'!$H$27:$XFD$76, MATCH($E26, 'Capital base input'!$E$27:$E$76, 0), MATCH(AE$4, RAB_years, 0)) -> 0 | AF26: =INDEX('Capital base input'!$H$27:$XFD$76, MATCH($E26, 'Capital base input'!$E$27:$E$76, 0), MATCH(AF$4, RAB_years, 0)) -> 0 | AG26: =INDEX('Capital base input'!$H$27:$XFD$76, MATCH($E26, 'Capital base input'!$E$27:$E$76, 0), MATCH(AG$4, RAB_years, 0)) -> 0 | AH26: =INDEX('Capital base input'!$H$27:$XFD$76, MATCH($E26, 'Capital base input'!$E$27:$E$76, 0), MATCH(AH$4, RAB_years, 0)) -> 0 | AI26: =INDEX('Capital base input'!$H$27:$XFD$76, MATCH($E26, 'Capital base input'!$E$27:$E$76, 0), MATCH(AI$4, RAB_years, 0)) -> 0 | AJ26: =INDEX('Capital base input'!$H$27:$XFD$76, MATCH($E26, 'Capital base input'!$E$27:$E$76, 0), MATCH(AJ$4, RAB_years, 0)) -> 0 | AK26: =INDEX('Capital base input'!$H$27:$XFD$76, MATCH($E26, 'Capital base input'!$E$27:$E$76, 0), MATCH(AK$4, RAB_years, 0)) -> 0 | AL26: =INDEX('Capital base input'!$H$27:$XFD$76, MATCH($E26, 'Capital base input'!$E$27:$E$76, 0), MATCH(AL$4, RAB_years, 0)) -> 0 | AM26: =INDEX('Capital base input'!$H$27:$XFD$76, MATCH($E26, 'Capital base input'!$E$27:$E$76, 0), MATCH(AM$4, RAB_years, 0)) -> 0 | AN26: =INDEX('Capital base input'!$H$27:$XFD$76, MATCH($E26, 'Capital base input'!$E$27:$E$76, 0), MATCH(AN$4, RAB_years, 0)) -> 0 | AO26: =INDEX('Capital base input'!$H$27:$XFD$76, MATCH($E26, 'Capital base input'!$E$27:$E$76, 0), MATCH(AO$4, RAB_years, 0)) -> 0 | AP26: =INDEX('Capital base input'!$H$27:$XFD$76, MATCH($E26, 'Capital base input'!$E$27:$E$76, 0), MATCH(AP$4, RAB_years, 0)) -> 0 | AQ26: =INDEX('Capital base input'!$H$27:$XFD$76, MATCH($E26, 'Capital base input'!$E$27:$E$76, 0), MATCH(AQ$4, RAB_years, 0)) -> 0 | AR26: =INDEX('Capital base input'!$H$27:$XFD$76, MATCH($E26, 'Capital base input'!$E$27:$E$76, 0), MATCH(AR$4, RAB_years, 0)) -> 0 | AS26: =INDEX('Capital base input'!$H$27:$XFD$76, MATCH($E26, 'Capital base input'!$E$27:$E$76, 0), MATCH(AS$4, RAB_years, 0)) -> 0 | AT26: =INDEX('Capital base input'!$H$27:$XFD$76, MATCH($E26, 'Capital base input'!$E$27:$E$76, 0), MATCH(AT$4, RAB_years, 0)) -> 0 | AU26: =INDEX('Capital base input'!$H$27:$XFD$76, MATCH($E26, 'Capital base input'!$E$27:$E$76, 0), MATCH(AU$4, RAB_years, 0)) -> 0 | AV26: =INDEX('Capital base input'!$H$27:$XFD$76, MATCH($E26, 'Capital base input'!$E$27:$E$76, 0), MATCH(AV$4, RAB_years, 0)) -> 0 | AW26: =INDEX('Capital base input'!$H$27:$XFD$76, MATCH($E26, 'Capital base input'!$E$27:$E$76, 0), MATCH(AW$4, RAB_years, 0)) -> 0 | AX26: =INDEX('Capital base input'!$H$27:$XFD$76, MATCH($E26, 'Capital base input'!$E$27:$E$76, 0), MATCH(AX$4, RAB_years, 0)) -> 0 | AY26: =INDEX('Capital base input'!$H$27:$XFD$76, MATCH($E26, 'Capital base input'!$E$27:$E$76, 0), MATCH(AY$4, RAB_years, 0)) -> 0 | AZ26: =INDEX('Capital base input'!$H$27:$XFD$76, MATCH($E26, 'Capital base input'!$E$27:$E$76, 0), MATCH(AZ$4, RAB_years, 0)) -> 0 | BA26: =INDEX('Capital base input'!$H$27:$XFD$76, MATCH($E26, 'Capital base input'!$E$27:$E$76, 0), MATCH(BA$4, RAB_years, 0)) -> 0 | BB26: =INDEX('Capital base input'!$H$27:$XFD$76, MATCH($E26, 'Capital base input'!$E$27:$E$76, 0), MATCH(BB$4, RAB_years, 0)) -> 0 | BC26: =INDEX('Capital base input'!$H$27:$XFD$76, MATCH($E26, 'Capital base input'!$E$27:$E$76, 0), MATCH(BC$4, RAB_years, 0)) -> 0 | BD26: =INDEX('Capital base input'!$H$27:$XFD$76, MATCH($E26, 'Capital base input'!$E$27:$E$76, 0), MATCH(BD$4, RAB_years, 0)) -> 0 | BE26: =INDEX('Capital base input'!$H$27:$XFD$76, MATCH($E26, 'Capital base input'!$E$27:$E$76, 0), MATCH(BE$4, RAB_years, 0)) -> 0 | BF26: =INDEX('Capital base input'!$H$27:$XFD$76, MATCH($E26, 'Capital base input'!$E$27:$E$76, 0), MATCH(BF$4, RAB_years, 0)) -> 0 | BG26: =INDEX('Capital base input'!$H$27:$XFD$76, MATCH($E26, 'Capital base input'!$E$27:$E$76, 0), MATCH(BG$4, RAB_years, 0)) -> 0 | BH26: =INDEX('Capital base input'!$H$27:$XFD$76, MATCH($E26, 'Capital base input'!$E$27:$E$76, 0), MATCH(BH$4, RAB_years, 0)) -> 0 | BI26: =INDEX('Capital base input'!$H$27:$XFD$76, MATCH($E26, 'Capital base input'!$E$27:$E$76, 0), MATCH(BI$4, RAB_years, 0)) -> 0 | BJ26: =INDEX('Capital base input'!$H$27:$XFD$76, MATCH($E26, 'Capital base input'!$E$27:$E$76, 0), MATCH(BJ$4, RAB_years, 0)) -> 0 | BK26: =INDEX('Capital base input'!$H$27:$XFD$76, MATCH($E26, 'Capital base input'!$E$27:$E$76, 0), MATCH(BK$4, RAB_years, 0)) -> 0 | BL26: =INDEX('Capital base input'!$H$27:$XFD$76, MATCH($E26, 'Capital base input'!$E$27:$E$76, 0), MATCH(BL$4, RAB_years, 0)) -> 0 | BM26: =INDEX('Capital base input'!$H$27:$XFD$76, MATCH($E26, 'Capital base input'!$E$27:$E$76, 0), MATCH(BM$4, RAB_years, 0)) -> 0 | BN26: =INDEX('Capital base input'!$H$27:$XFD$76, MATCH($E26, 'Capital base input'!$E$27:$E$76, 0), MATCH(BN$4, RAB_years, 0)) -> 0 | BO26: =INDEX('Capital base input'!$H$27:$XFD$76, MATCH($E26, 'Capital base input'!$E$27:$E$76, 0), MATCH(BO$4, RAB_years, 0)) -> 0 | BP26: =INDEX('Capital base input'!$H$27:$XFD$76, MATCH($E26, 'Capital base input'!$E$27:$E$76, 0), MATCH(BP$4, RAB_years, 0)) -> 0 | BQ26: =INDEX('Capital base input'!$H$27:$XFD$76, MATCH($E26, 'Capital base input'!$E$27:$E$76, 0), MATCH(BQ$4, RAB_years, 0)) -> 0 | BR26: =INDEX('Capital base input'!$H$27:$XFD$76, MATCH($E26, 'Capital base input'!$E$27:$E$76, 0), MATCH(BR$4, RAB_years, 0)) -> 0 | BS26: =INDEX('Capital base input'!$H$27:$XFD$76, MATCH($E26, 'Capital base input'!$E$27:$E$76, 0), MATCH(BS$4, RAB_years, 0)) -> 0 | BT26: =INDEX('Capital base input'!$H$27:$XFD$76, MATCH($E26, 'Capital base input'!$E$27:$E$76, 0), MATCH(BT$4, RAB_years, 0)) -> 0 | BU26: =INDEX('Capital base input'!$H$27:$XFD$76, MATCH($E26, 'Capital base input'!$E$27:$E$76, 0), MATCH(BU$4, RAB_years, 0)) -> 0 | BV26: =INDEX('Capital base input'!$H$27:$XFD$76, MATCH($E26, 'Capital base input'!$E$27:$E$76, 0), MATCH(BV$4, RAB_years, 0)) -> 0 | BW26: =INDEX('Capital base input'!$H$27:$XFD$76, MATCH($E26, 'Capital base input'!$E$27:$E$76, 0), MATCH(BW$4, RAB_years, 0)) -> 0 | BX26: =INDEX('Capital base input'!$H$27:$XFD$76, MATCH($E26, 'Capital base input'!$E$27:$E$76, 0), MATCH(BX$4, RAB_years, 0)) -> 0 | BY26: =INDEX('Capital base input'!$H$27:$XFD$76, MATCH($E26, 'Capital base input'!$E$27:$E$76, 0), MATCH(BY$4, RAB_years, 0)) -> 0 | BZ26: =INDEX('Capital base input'!$H$27:$XFD$76, MATCH($E26, 'Capital base input'!$E$27:$E$76, 0), MATCH(BZ$4, RAB_years, 0)) -> 0 | CA26: =INDEX('Capital base input'!$H$27:$XFD$76, MATCH($E26, 'Capital base input'!$E$27:$E$76, 0), MATCH(CA$4, RAB_years, 0)) -> 0 | CB26: =INDEX('Capital base input'!$H$27:$XFD$76, MATCH($E26, 'Capital base input'!$E$27:$E$76, 0), MATCH(CB$4, RAB_years, 0)) -> 0 | CC26: =INDEX('Capital base input'!$H$27:$XFD$76, MATCH($E26, 'Capital base input'!$E$27:$E$76, 0), MATCH(CC$4, RAB_years, 0)) -> 0 | CD26: =INDEX('Capital base input'!$H$27:$XFD$76, MATCH($E26, 'Capital base input'!$E$27:$E$76, 0), MATCH(CD$4, RAB_years, 0)) -> 0 | CE26: =INDEX('Capital base input'!$H$27:$XFD$76, MATCH($E26, 'Capital base input'!$E$27:$E$76, 0), MATCH(CE$4, RAB_years, 0)) -> 0 | CF26: =INDEX('Capital base input'!$H$27:$XFD$76, MATCH($E26, 'Capital base input'!$E$27:$E$76, 0), MATCH(CF$4, RAB_years, 0)) -> 0 | CG26: =INDEX('Capital base input'!$H$27:$XFD$76, MATCH($E26, 'Capital base input'!$E$27:$E$76, 0), MATCH(CG$4, RAB_years, 0)) -> 0 | CH26: =INDEX('Capital base input'!$H$27:$XFD$76, MATCH($E26, 'Capital base input'!$E$27:$E$76, 0), MATCH(CH$4, RAB_years, 0)) -> 0 | CI26: =INDEX('Capital base input'!$H$27:$XFD$76, MATCH($E26, 'Capital base input'!$E$27:$E$76, 0), MATCH(CI$4, RAB_years, 0)) -> 0 | CJ26: =INDEX('Capital base input'!$H$27:$XFD$76, MATCH($E26, 'Capital base input'!$E$27:$E$76, 0), MATCH(CJ$4, RAB_years, 0)) -> 0 | CK26: =INDEX('Capital base input'!$H$27:$XFD$76, MATCH($E26, 'Capital base input'!$E$27:$E$76, 0), MATCH(CK$4, RAB_years, 0)) -> 0 | CL26: =INDEX('Capital base input'!$H$27:$XFD$76, MATCH($E26, 'Capital base input'!$E$27:$E$76, 0), MATCH(CL$4, RAB_years, 0)) -> 0 | CM26: =INDEX('Capital base input'!$H$27:$XFD$76, MATCH($E26, 'Capital base input'!$E$27:$E$76, 0), MATCH(CM$4, RAB_years, 0)) -> 0 | CN26: =INDEX('Capital base input'!$H$27:$XFD$76, MATCH($E26, 'Capital base input'!$E$27:$E$76, 0), MATCH(CN$4, RAB_years, 0)) -> 0 | CO26: =INDEX('Capital base input'!$H$27:$XFD$76, MATCH($E26, 'Capital base input'!$E$27:$E$76, 0), MATCH(CO$4, RAB_years, 0)) -> 0 | CP26: =INDEX('Capital base input'!$H$27:$XFD$76, MATCH($E26, 'Capital base input'!$E$27:$E$76, 0), MATCH(CP$4, RAB_years, 0)) -> 0
D27: 10 | E27: ='Capital base input'!E36 -> Meter Reading Devices | G27: 33.56453512 | H27: =INDEX('Capital base input'!$H$27:$XFD$76, MATCH($E27, 'Capital base input'!$E$27:$E$76, 0), MATCH(H$4, RAB_years, 0)) -> 2.35979003 | I27: =INDEX('Capital base input'!$H$27:$XFD$76, MATCH($E27, 'Capital base input'!$E$27:$E$76, 0), MATCH(I$4, RAB_years, 0)) -> 1.39261144 | J27: =INDEX('Capital base input'!$H$27:$XFD$76, MATCH($E27, 'Capital base input'!$E$27:$E$76, 0), MATCH(J$4, RAB_years, 0)) -> 2.45238701 | K27: =INDEX('Capital base input'!$H$27:$XFD$76, MATCH($E27, 'Capital base input'!$E$27:$E$76, 0), MATCH(K$4, RAB_years, 0)) -> 4.61763867 | L27: =INDEX('Capital base input'!$H$27:$XFD$76, MATCH($E27, 'Capital base input'!$E$27:$E$76, 0), MATCH(L$4, RAB_years, 0)) -> 1.348802517 | M27: =INDEX('Capital base input'!$H$27:$XFD$76, MATCH($E27, 'Capital base input'!$E$27:$E$76, 0), MATCH(M$4, RAB_years, 0)) -> 0 | N27: =INDEX('Capital base input'!$H$27:$XFD$76, MATCH($E27, 'Capital base input'!$E$27:$E$76, 0), MATCH(N$4, RAB_years, 0)) -> 0 | O27: =INDEX('Capital base input'!$H$27:$XFD$76, MATCH($E27, 'Capital base input'!$E$27:$E$76, 0), MATCH(O$4, RAB_years, 0)) -> 0 | P27: =INDEX('Capital base input'!$H$27:$XFD$76, MATCH($E27, 'Capital base input'!$E$27:$E$76, 0), MATCH(P$4, RAB_years, 0)) -> 0 | Q27: =INDEX('Capital base input'!$H$27:$XFD$76, MATCH($E27, 'Capital base input'!$E$27:$E$76, 0), MATCH(Q$4, RAB_years, 0)) -> 0 | R27: =INDEX('Capital base input'!$H$27:$XFD$76, MATCH($E27, 'Capital base input'!$E$27:$E$76, 0), MATCH(R$4, RAB_years, 0)) -> 0 | S27: =INDEX('Capital base input'!$H$27:$XFD$76, MATCH($E27, 'Capital base input'!$E$27:$E$76, 0), MATCH(S$4, RAB_years, 0)) -> 0 | T27: =INDEX('Capital base input'!$H$27:$XFD$76, MATCH($E27, 'Capital base input'!$E$27:$E$76, 0), MATCH(T$4, RAB_years, 0)) -> 0 | U27: =INDEX('Capital base input'!$H$27:$XFD$76, MATCH($E27, 'Capital base input'!$E$27:$E$76, 0), MATCH(U$4, RAB_years, 0)) -> 0 | V27: =INDEX('Capital base input'!$H$27:$XFD$76, MATCH($E27, 'Capital base input'!$E$27:$E$76, 0), MATCH(V$4, RAB_years, 0)) -> 0 | W27: =INDEX('Capital base input'!$H$27:$XFD$76, MATCH($E27, 'Capital base input'!$E$27:$E$76, 0), MATCH(W$4, RAB_years, 0)) -> 0 | X27: =INDEX('Capital base input'!$H$27:$XFD$76, MATCH($E27, 'Capital base input'!$E$27:$E$76, 0), MATCH(X$4, RAB_years, 0)) -> 0 | Y27: =INDEX('Capital base input'!$H$27:$XFD$76, MATCH($E27, 'Capital base input'!$E$27:$E$76, 0), MATCH(Y$4, RAB_years, 0)) -> 0 | Z27: =INDEX('Capital base input'!$H$27:$XFD$76, MATCH($E27, 'Capital base input'!$E$27:$E$76, 0), MATCH(Z$4, RAB_years, 0)) -> 0 | AA27: =INDEX('Capital base input'!$H$27:$XFD$76, MATCH($E27, 'Capital base input'!$E$27:$E$76, 0), MATCH(AA$4, RAB_years, 0)) -> 0 | AB27: =INDEX('Capital base input'!$H$27:$XFD$76, MATCH($E27, 'Capital base input'!$E$27:$E$76, 0), MATCH(AB$4, RAB_years, 0)) -> 0 | AC27: =INDEX('Capital base input'!$H$27:$XFD$76, MATCH($E27, 'Capital base input'!$E$27:$E$76, 0), MATCH(AC$4, RAB_years, 0)) -> 0 | AD27: =INDEX('Capital base input'!$H$27:$XFD$76, MATCH($E27, 'Capital base input'!$E$27:$E$76, 0), MATCH(AD$4, RAB_years, 0)) -> 0 | AE27: =INDEX('Capital base input'!$H$27:$XFD$76, MATCH($E27, 'Capital base input'!$E$27:$E$76, 0), MATCH(AE$4, RAB_years, 0)) -> 0 | AF27: =INDEX('Capital base input'!$H$27:$XFD$76, MATCH($E27, 'Capital base input'!$E$27:$E$76, 0), MATCH(AF$4, RAB_years, 0)) -> 0 | AG27: =INDEX('Capital base input'!$H$27:$XFD$76, MATCH($E27, 'Capital base input'!$E$27:$E$76, 0), MATCH(AG$4, RAB_years, 0)) -> 0 | AH27: =INDEX('Capital base input'!$H$27:$XFD$76, MATCH($E27, 'Capital base input'!$E$27:$E$76, 0), MATCH(AH$4, RAB_years, 0)) -> 0 | AI27: =INDEX('Capital base input'!$H$27:$XFD$76, MATCH($E27, 'Capital base input'!$E$27:$E$76, 0), MATCH(AI$4, RAB_years, 0)) -> 0 | AJ27: =INDEX('Capital base input'!$H$27:$XFD$76, MATCH($E27, 'Capital base input'!$E$27:$E$76, 0), MATCH(AJ$4, RAB_years, 0)) -> 0 | AK27: =INDEX('Capital base input'!$H$27:$XFD$76, MATCH($E27, 'Capital base input'!$E$27:$E$76, 0), MATCH(AK$4, RAB_years, 0)) -> 0 | AL27: =INDEX('Capital base input'!$H$27:$XFD$76, MATCH($E27, 'Capital base input'!$E$27:$E$76, 0), MATCH(AL$4, RAB_years, 0)) -> 0 | AM27: =INDEX('Capital base input'!$H$27:$XFD$76, MATCH($E27, 'Capital base input'!$E$27:$E$76, 0), MATCH(AM$4, RAB_years, 0)) -> 0 | AN27: =INDEX('Capital base input'!$H$27:$XFD$76, MATCH($E27, 'Capital base input'!$E$27:$E$76, 0), MATCH(AN$4, RAB_years, 0)) -> 0 | AO27: =INDEX('Capital base input'!$H$27:$XFD$76, MATCH($E27, 'Capital base input'!$E$27:$E$76, 0), MATCH(AO$4, RAB_years, 0)) -> 0 | AP27: =INDEX('Capital base input'!$H$27:$XFD$76, MATCH($E27, 'Capital base input'!$E$27:$E$76, 0), MATCH(AP$4, RAB_years, 0)) -> 0 | AQ27: =INDEX('Capital base input'!$H$27:$XFD$76, MATCH($E27, 'Capital base input'!$E$27:$E$76, 0), MATCH(AQ$4, RAB_years, 0)) -> 0 | AR27: =INDEX('Capital base input'!$H$27:$XFD$76, MATCH($E27, 'Capital base input'!$E$27:$E$76, 0), MATCH(AR$4, RAB_years, 0)) -> 0 | AS27: =INDEX('Capital base input'!$H$27:$XFD$76, MATCH($E27, 'Capital base input'!$E$27:$E$76, 0), MATCH(AS$4, RAB_years, 0)) -> 0 | AT27: =INDEX('Capital base input'!$H$27:$XFD$76, MATCH($E27, 'Capital base input'!$E$27:$E$76, 0), MATCH(AT$4, RAB_years, 0)) -> 0 | AU27: =INDEX('Capital base input'!$H$27:$XFD$76, MATCH($E27, 'Capital base input'!$E$27:$E$76, 0), MATCH(AU$4, RAB_years, 0)) -> 0 | AV27: =INDEX('Capital base input'!$H$27:$XFD$76, MATCH($E27, 'Capital base input'!$E$27:$E$76, 0), MATCH(AV$4, RAB_years, 0)) -> 0 | AW27: =INDEX('Capital base input'!$H$27:$XFD$76, MATCH($E27, 'Capital base input'!$E$27:$E$76, 0), MATCH(AW$4, RAB_years, 0)) -> 0 | AX27: =INDEX('Capital base input'!$H$27:$XFD$76, MATCH($E27, 'Capital base input'!$E$27:$E$76, 0), MATCH(AX$4, RAB_years, 0)) -> 0 | AY27: =INDEX('Capital base input'!$H$27:$XFD$76, MATCH($E27, 'Capital base input'!$E$27:$E$76, 0), MATCH(AY$4, RAB_years, 0)) -> 0 | AZ27: =INDEX('Capital base input'!$H$27:$XFD$76, MATCH($E27, 'Capital base input'!$E$27:$E$76, 0), MATCH(AZ$4, RAB_years, 0)) -> 0 | BA27: =INDEX('Capital base input'!$H$27:$XFD$76, MATCH($E27, 'Capital base input'!$E$27:$E$76, 0), MATCH(BA$4, RAB_years, 0)) -> 0 | BB27: =INDEX('Capital base input'!$H$27:$XFD$76, MATCH($E27, 'Capital base input'!$E$27:$E$76, 0), MATCH(BB$4, RAB_years, 0)) -> 0 | BC27: =INDEX('Capital base input'!$H$27:$XFD$76, MATCH($E27, 'Capital base input'!$E$27:$E$76, 0), MATCH(BC$4, RAB_years, 0)) -> 0 | BD27: =INDEX('Capital base input'!$H$27:$XFD$76, MATCH($E27, 'Capital base input'!$E$27:$E$76, 0), MATCH(BD$4, RAB_years, 0)) -> 0 | BE27: =INDEX('Capital base input'!$H$27:$XFD$76, MATCH($E27, 'Capital base input'!$E$27:$E$76, 0), MATCH(BE$4, RAB_years, 0)) -> 0 | BF27: =INDEX('Capital base input'!$H$27:$XFD$76, MATCH($E27, 'Capital base input'!$E$27:$E$76, 0), MATCH(BF$4, RAB_years, 0)) -> 0 | BG27: =INDEX('Capital base input'!$H$27:$XFD$76, MATCH($E27, 'Capital base input'!$E$27:$E$76, 0), MATCH(BG$4, RAB_years, 0)) -> 0 | BH27: =INDEX('Capital base input'!$H$27:$XFD$76, MATCH($E27, 'Capital base input'!$E$27:$E$76, 0), MATCH(BH$4, RAB_years, 0)) -> 0 | BI27: =INDEX('Capital base input'!$H$27:$XFD$76, MATCH($E27, 'Capital base input'!$E$27:$E$76, 0), MATCH(BI$4, RAB_years, 0)) -> 0 | BJ27: =INDEX('Capital base input'!$H$27:$XFD$76, MATCH($E27, 'Capital base input'!$E$27:$E$76, 0), MATCH(BJ$4, RAB_years, 0)) -> 0 | BK27: =INDEX('Capital base input'!$H$27:$XFD$76, MATCH($E27, 'Capital base input'!$E$27:$E$76, 0), MATCH(BK$4, RAB_years, 0)) -> 0 | BL27: =INDEX('Capital base input'!$H$27:$XFD$76, MATCH($E27, 'Capital base input'!$E$27:$E$76, 0), MATCH(BL$4, RAB_years, 0)) -> 0 | BM27: =INDEX('Capital base input'!$H$27:$XFD$76, MATCH($E27, 'Capital base input'!$E$27:$E$76, 0), MATCH(BM$4, RAB_years, 0)) -> 0 | BN27: =INDEX('Capital base input'!$H$27:$XFD$76, MATCH($E27, 'Capital base input'!$E$27:$E$76, 0), MATCH(BN$4, RAB_years, 0)) -> 0 | BO27: =INDEX('Capital base input'!$H$27:$XFD$76, MATCH($E27, 'Capital base input'!$E$27:$E$76, 0), MATCH(BO$4, RAB_years, 0)) -> 0 | BP27: =INDEX('Capital base input'!$H$27:$XFD$76, MATCH($E27, 'Capital base input'!$E$27:$E$76, 0), MATCH(BP$4, RAB_years, 0)) -> 0 | BQ27: =INDEX('Capital base input'!$H$27:$XFD$76, MATCH($E27, 'Capital base input'!$E$27:$E$76, 0), MATCH(BQ$4, RAB_years, 0)) -> 0 | BR27: =INDEX('Capital base input'!$H$27:$XFD$76, MATCH($E27, 'Capital base input'!$E$27:$E$76, 0), MATCH(BR$4, RAB_years, 0)) -> 0 | BS27: =INDEX('Capital base input'!$H$27:$XFD$76, MATCH($E27, 'Capital base input'!$E$27:$E$76, 0), MATCH(BS$4, RAB_years, 0)) -> 0 | BT27: =INDEX('Capital base input'!$H$27:$XFD$76, MATCH($E27, 'Capital base input'!$E$27:$E$76, 0), MATCH(BT$4, RAB_years, 0)) -> 0 | BU27: =INDEX('Capital base input'!$H$27:$XFD$76, MATCH($E27, 'Capital base input'!$E$27:$E$76, 0), MATCH(BU$4, RAB_years, 0)) -> 0 | BV27: =INDEX('Capital base input'!$H$27:$XFD$76, MATCH($E27, 'Capital base input'!$E$27:$E$76, 0), MATCH(BV$4, RAB_years, 0)) -> 0 | BW27: =INDEX('Capital base input'!$H$27:$XFD$76, MATCH($E27, 'Capital base input'!$E$27:$E$76, 0), MATCH(BW$4, RAB_years, 0)) -> 0 | BX27: =INDEX('Capital base input'!$H$27:$XFD$76, MATCH($E27, 'Capital base input'!$E$27:$E$76, 0), MATCH(BX$4, RAB_years, 0)) -> 0 | BY27: =INDEX('Capital base input'!$H$27:$XFD$76, MATCH($E27, 'Capital base input'!$E$27:$E$76, 0), MATCH(BY$4, RAB_years, 0)) -> 0 | BZ27: =INDEX('Capital base input'!$H$27:$XFD$76, MATCH($E27, 'Capital base input'!$E$27:$E$76, 0), MATCH(BZ$4, RAB_years, 0)) -> 0 | CA27: =INDEX('Capital base input'!$H$27:$XFD$76, MATCH($E27, 'Capital base input'!$E$27:$E$76, 0), MATCH(CA$4, RAB_years, 0)) -> 0 | CB27: =INDEX('Capital base input'!$H$27:$XFD$76, MATCH($E27, 'Capital base input'!$E$27:$E$76, 0), MATCH(CB$4, RAB_years, 0)) -> 0 | CC27: =INDEX('Capital base input'!$H$27:$XFD$76, MATCH($E27, 'Capital base input'!$E$27:$E$76, 0), MATCH(CC$4, RAB_years, 0)) -> 0 | CD27: =INDEX('Capital base input'!$H$27:$XFD$76, MATCH($E27, 'Capital base input'!$E$27:$E$76, 0), MATCH(CD$4, RAB_years, 0)) -> 0 | CE27: =INDEX('Capital base input'!$H$27:$XFD$76, MATCH($E27, 'Capital base input'!$E$27:$E$76, 0), MATCH(CE$4, RAB_years, 0)) -> 0 | CF27: =INDEX('Capital base input'!$H$27:$XFD$76, MATCH($E27, 'Capital base input'!$E$27:$E$76, 0), MATCH(CF$4, RAB_years, 0)) -> 0 | CG27: =INDEX('Capital base input'!$H$27:$XFD$76, MATCH($E27, 'Capital base input'!$E$27:$E$76, 0), MATCH(CG$4, RAB_years, 0)) -> 0 | CH27: =INDEX('Capital base input'!$H$27:$XFD$76, MATCH($E27, 'Capital base input'!$E$27:$E$76, 0), MATCH(CH$4, RAB_years, 0)) -> 0 | CI27: =INDEX('Capital base input'!$H$27:$XFD$76, MATCH($E27, 'Capital base input'!$E$27:$E$76, 0), MATCH(CI$4, RAB_years, 0)) -> 0 | CJ27: =INDEX('Capital base input'!$H$27:$XFD$76, MATCH($E27, 'Capital base input'!$E$27:$E$76, 0), MATCH(CJ$4, RAB_years, 0)) -> 0 | CK27: =INDEX('Capital base input'!$H$27:$XFD$76, MATCH($E27, 'Capital base input'!$E$27:$E$76, 0), MATCH(CK$4, RAB_years, 0)) -> 0 | CL27: =INDEX('Capital base input'!$H$27:$XFD$76, MATCH($E27, 'Capital base input'!$E$27:$E$76, 0), MATCH(CL$4, RAB_years, 0)) -> 0 | CM27: =INDEX('Capital base input'!$H$27:$XFD$76, MATCH($E27, 'Capital base input'!$E$27:$E$76, 0), MATCH(CM$4, RAB_years, 0)) -> 0 | CN27: =INDEX('Capital base input'!$H$27:$XFD$76, MATCH($E27, 'Capital base input'!$E$27:$E$76, 0), MATCH(CN$4, RAB_years, 0)) -> 0 | CO27: =INDEX('Capital base input'!$H$27:$XFD$76, MATCH($E27, 'Capital base input'!$E$27:$E$76, 0), MATCH(CO$4, RAB_years, 0)) -> 0 | CP27: =INDEX('Capital base input'!$H$27:$XFD$76, MATCH($E27, 'Capital base input'!$E$27:$E$76, 0), MATCH(CP$4, RAB_years, 0)) -> 0
D28: 11 | E28: ='Capital base input'!E37 -> Country POTS | G28: 5.706318791 | H28: =INDEX('Capital base input'!$H$27:$XFD$76, MATCH($E28, 'Capital base input'!$E$27:$E$76, 0), MATCH(H$4, RAB_years, 0)) -> 0.01381048 | I28: =INDEX('Capital base input'!$H$27:$XFD$76, MATCH($E28, 'Capital base input'!$E$27:$E$76, 0), MATCH(I$4, RAB_years, 0)) -> 0.15449233 | J28: =INDEX('Capital base input'!$H$27:$XFD$76, MATCH($E28, 'Capital base input'!$E$27:$E$76, 0), MATCH(J$4, RAB_years, 0)) -> 0.35513613 | K28: =INDEX('Capital base input'!$H$27:$XFD$76, MATCH($E28, 'Capital base input'!$E$27:$E$76, 0), MATCH(K$4, RAB_years, 0)) -> 0.06160743 | L28: =INDEX('Capital base input'!$H$27:$XFD$76, MATCH($E28, 'Capital base input'!$E$27:$E$76, 0), MATCH(L$4, RAB_years, 0)) -> 0 | M28: =INDEX('Capital base input'!$H$27:$XFD$76, MATCH($E28, 'Capital base input'!$E$27:$E$76, 0), MATCH(M$4, RAB_years, 0)) -> 0 | N28: =INDEX('Capital base input'!$H$27:$XFD$76, MATCH($E28, 'Capital base input'!$E$27:$E$76, 0), MATCH(N$4, RAB_years, 0)) -> 0 | O28: =INDEX('Capital base input'!$H$27:$XFD$76, MATCH($E28, 'Capital base input'!$E$27:$E$76, 0), MATCH(O$4, RAB_years, 0)) -> 0 | P28: =INDEX('Capital base input'!$H$27:$XFD$76, MATCH($E28, 'Capital base input'!$E$27:$E$76, 0), MATCH(P$4, RAB_years, 0)) -> 0 | Q28: =INDEX('Capital base input'!$H$27:$XFD$76, MATCH($E28, 'Capital base input'!$E$27:$E$76, 0), MATCH(Q$4, RAB_years, 0)) -> 0 | R28: =INDEX('Capital base input'!$H$27:$XFD$76, MATCH($E28, 'Capital base input'!$E$27:$E$76, 0), MATCH(R$4, RAB_years, 0)) -> 0 | S28: =INDEX('Capital base input'!$H$27:$XFD$76, MATCH($E28, 'Capital base input'!$E$27:$E$76, 0), MATCH(S$4, RAB_years, 0)) -> 0 | T28: =INDEX('Capital base input'!$H$27:$XFD$76, MATCH($E28, 'Capital base input'!$E$27:$E$76, 0), MATCH(T$4, RAB_years, 0)) -> 0 | U28: =INDEX('Capital base input'!$H$27:$XFD$76, MATCH($E28, 'Capital base input'!$E$27:$E$76, 0), MATCH(U$4, RAB_years, 0)) -> 0 | V28: =INDEX('Capital base input'!$H$27:$XFD$76, MATCH($E28, 'Capital base input'!$E$27:$E$76, 0), MATCH(V$4, RAB_years, 0)) -> 0 | W28: =INDEX('Capital base input'!$H$27:$XFD$76, MATCH($E28, 'Capital base input'!$E$27:$E$76, 0), MATCH(W$4, RAB_years, 0)) -> 0 | X28: =INDEX('Capital base input'!$H$27:$XFD$76, MATCH($E28, 'Capital base input'!$E$27:$E$76, 0), MATCH(X$4, RAB_years, 0)) -> 0 | Y28: =INDEX('Capital base input'!$H$27:$XFD$76, MATCH($E28, 'Capital base input'!$E$27:$E$76, 0), MATCH(Y$4, RAB_years, 0)) -> 0 | Z28: =INDEX('Capital base input'!$H$27:$XFD$76, MATCH($E28, 'Capital base input'!$E$27:$E$76, 0), MATCH(Z$4, RAB_years, 0)) -> 0 | AA28: =INDEX('Capital base input'!$H$27:$XFD$76, MATCH($E28, 'Capital base input'!$E$27:$E$76, 0), MATCH(AA$4, RAB_years, 0)) -> 0 | AB28: =INDEX('Capital base input'!$H$27:$XFD$76, MATCH($E28, 'Capital base input'!$E$27:$E$76, 0), MATCH(AB$4, RAB_years, 0)) -> 0 | AC28: =INDEX('Capital base input'!$H$27:$XFD$76, MATCH($E28, 'Capital base input'!$E$27:$E$76, 0), MATCH(AC$4, RAB_years, 0)) -> 0 | AD28: =INDEX('Capital base input'!$H$27:$XFD$76, MATCH($E28, 'Capital base input'!$E$27:$E$76, 0), MATCH(AD$4, RAB_years, 0)) -> 0 | AE28: =INDEX('Capital base input'!$H$27:$XFD$76, MATCH($E28, 'Capital base input'!$E$27:$E$76, 0), MATCH(AE$4, RAB_years, 0)) -> 0 | AF28: =INDEX('Capital base input'!$H$27:$XFD$76, MATCH($E28, 'Capital base input'!$E$27:$E$76, 0), MATCH(AF$4, RAB_years, 0)) -> 0 | AG28: =INDEX('Capital base input'!$H$27:$XFD$76, MATCH($E28, 'Capital base input'!$E$27:$E$76, 0), MATCH(AG$4, RAB_years, 0)) -> 0 | AH28: =INDEX('Capital base input'!$H$27:$XFD$76, MATCH($E28, 'Capital base input'!$E$27:$E$76, 0), MATCH(AH$4, RAB_years, 0)) -> 0 | AI28: =INDEX('Capital base input'!$H$27:$XFD$76, MATCH($E28, 'Capital base input'!$E$27:$E$76, 0), MATCH(AI$4, RAB_years, 0)) -> 0 | AJ28: =INDEX('Capital base input'!$H$27:$XFD$76, MATCH($E28, 'Capital base input'!$E$27:$E$76, 0), MATCH(AJ$4, RAB_years, 0)) -> 0 | AK28: =INDEX('Capital base input'!$H$27:$XFD$76, MATCH($E28, 'Capital base input'!$E$27:$E$76, 0), MATCH(AK$4, RAB_years, 0)) -> 0 | AL28: =INDEX('Capital base input'!$H$27:$XFD$76, MATCH($E28, 'Capital base input'!$E$27:$E$76, 0), MATCH(AL$4, RAB_years, 0)) -> 0 | AM28: =INDEX('Capital base input'!$H$27:$XFD$76, MATCH($E28, 'Capital base input'!$E$27:$E$76, 0), MATCH(AM$4, RAB_years, 0)) -> 0 | AN28: =INDEX('Capital base input'!$H$27:$XFD$76, MATCH($E28, 'Capital base input'!$E$27:$E$76, 0), MATCH(AN$4, RAB_years, 0)) -> 0 | AO28: =INDEX('Capital base input'!$H$27:$XFD$76, MATCH($E28, 'Capital base input'!$E$27:$E$76, 0), MATCH(AO$4, RAB_years, 0)) -> 0 | AP28: =INDEX('Capital base input'!$H$27:$XFD$76, MATCH($E28, 'Capital base input'!$E$27:$E$76, 0), MATCH(AP$4, RAB_years, 0)) -> 0 | AQ28: =INDEX('Capital base input'!$H$27:$XFD$76, MATCH($E28, 'Capital base input'!$E$27:$E$76, 0), MATCH(AQ$4, RAB_years, 0)) -> 0 | AR28: =INDEX('Capital base input'!$H$27:$XFD$76, MATCH($E28, 'Capital base input'!$E$27:$E$76, 0), MATCH(AR$4, RAB_years, 0)) -> 0 | AS28: =INDEX('Capital base input'!$H$27:$XFD$76, MATCH($E28, 'Capital base input'!$E$27:$E$76, 0), MATCH(AS$4, RAB_years, 0)) -> 0 | AT28: =INDEX('Capital base input'!$H$27:$XFD$76, MATCH($E28, 'Capital base input'!$E$27:$E$76, 0), MATCH(AT$4, RAB_years, 0)) -> 0 | AU28: =INDEX('Capital base input'!$H$27:$XFD$76, MATCH($E28, 'Capital base input'!$E$27:$E$76, 0), MATCH(AU$4, RAB_years, 0)) -> 0 | AV28: =INDEX('Capital base input'!$H$27:$XFD$76, MATCH($E28, 'Capital base input'!$E$27:$E$76, 0), MATCH(AV$4, RAB_years, 0)) -> 0 | AW28: =INDEX('Capital base input'!$H$27:$XFD$76, MATCH($E28, 'Capital base input'!$E$27:$E$76, 0), MATCH(AW$4, RAB_years, 0)) -> 0 | AX28: =INDEX('Capital base input'!$H$27:$XFD$76, MATCH($E28, 'Capital base input'!$E$27:$E$76, 0), MATCH(AX$4, RAB_years, 0)) -> 0 | AY28: =INDEX('Capital base input'!$H$27:$XFD$76, MATCH($E28, 'Capital base input'!$E$27:$E$76, 0), MATCH(AY$4, RAB_years, 0)) -> 0 | AZ28: =INDEX('Capital base input'!$H$27:$XFD$76, MATCH($E28, 'Capital base input'!$E$27:$E$76, 0), MATCH(AZ$4, RAB_years, 0)) -> 0 | BA28: =INDEX('Capital base input'!$H$27:$XFD$76, MATCH($E28, 'Capital base input'!$E$27:$E$76, 0), MATCH(BA$4, RAB_years, 0)) -> 0 | BB28: =INDEX('Capital base input'!$H$27:$XFD$76, MATCH($E28, 'Capital base input'!$E$27:$E$76, 0), MATCH(BB$4, RAB_years, 0)) -> 0 | BC28: =INDEX('Capital base input'!$H$27:$XFD$76, MATCH($E28, 'Capital base input'!$E$27:$E$76, 0), MATCH(BC$4, RAB_years, 0)) -> 0 | BD28: =INDEX('Capital base input'!$H$27:$XFD$76, MATCH($E28, 'Capital base input'!$E$27:$E$76, 0), MATCH(BD$4, RAB_years, 0)) -> 0 | BE28: =INDEX('Capital base input'!$H$27:$XFD$76, MATCH($E28, 'Capital base input'!$E$27:$E$76, 0), MATCH(BE$4, RAB_years, 0)) -> 0 | BF28: =INDEX('Capital base input'!$H$27:$XFD$76, MATCH($E28, 'Capital base input'!$E$27:$E$76, 0), MATCH(BF$4, RAB_years, 0)) -> 0 | BG28: =INDEX('Capital base input'!$H$27:$XFD$76, MATCH($E28, 'Capital base input'!$E$27:$E$76, 0), MATCH(BG$4, RAB_years, 0)) -> 0 | BH28: =INDEX('Capital base input'!$H$27:$XFD$76, MATCH($E28, 'Capital base input'!$E$27:$E$76, 0), MATCH(BH$4, RAB_years, 0)) -> 0 | BI28: =INDEX('Capital base input'!$H$27:$XFD$76, MATCH($E28, 'Capital base input'!$E$27:$E$76, 0), MATCH(BI$4, RAB_years, 0)) -> 0 | BJ28: =INDEX('Capital base input'!$H$27:$XFD$76, MATCH($E28, 'Capital base input'!$E$27:$E$76, 0), MATCH(BJ$4, RAB_years, 0)) -> 0 | BK28: =INDEX('Capital base input'!$H$27:$XFD$76, MATCH($E28, 'Capital base input'!$E$27:$E$76, 0), MATCH(BK$4, RAB_years, 0)) -> 0 | BL28: =INDEX('Capital base input'!$H$27:$XFD$76, MATCH($E28, 'Capital base input'!$E$27:$E$76, 0), MATCH(BL$4, RAB_years, 0)) -> 0 | BM28: =INDEX('Capital base input'!$H$27:$XFD$76, MATCH($E28, 'Capital base input'!$E$27:$E$76, 0), MATCH(BM$4, RAB_years, 0)) -> 0 | BN28: =INDEX('Capital base input'!$H$27:$XFD$76, MATCH($E28, 'Capital base input'!$E$27:$E$76, 0), MATCH(BN$4, RAB_years, 0)) -> 0 | BO28: =INDEX('Capital base input'!$H$27:$XFD$76, MATCH($E28, 'Capital base input'!$E$27:$E$76, 0), MATCH(BO$4, RAB_years, 0)) -> 0 | BP28: =INDEX('Capital base input'!$H$27:$XFD$76, MATCH($E28, 'Capital base input'!$E$27:$E$76, 0), MATCH(BP$4, RAB_years, 0)) -> 0 | BQ28: =INDEX('Capital base input'!$H$27:$XFD$76, MATCH($E28, 'Capital base input'!$E$27:$E$76, 0), MATCH(BQ$4, RAB_years, 0)) -> 0 | BR28: =INDEX('Capital base input'!$H$27:$XFD$76, MATCH($E28, 'Capital base input'!$E$27:$E$76, 0), MATCH(BR$4, RAB_years, 0)) -> 0 | BS28: =INDEX('Capital base input'!$H$27:$XFD$76, MATCH($E28, 'Capital base input'!$E$27:$E$76, 0), MATCH(BS$4, RAB_years, 0)) -> 0 | BT28: =INDEX('Capital base input'!$H$27:$XFD$76, MATCH($E28, 'Capital base input'!$E$27:$E$76, 0), MATCH(BT$4, RAB_years, 0)) -> 0 | BU28: =INDEX('Capital base input'!$H$27:$XFD$76, MATCH($E28, 'Capital base input'!$E$27:$E$76, 0), MATCH(BU$4, RAB_years, 0)) -> 0 | BV28: =INDEX('Capital base input'!$H$27:$XFD$76, MATCH($E28, 'Capital base input'!$E$27:$E$76, 0), MATCH(BV$4, RAB_years, 0)) -> 0 | BW28: =INDEX('Capital base input'!$H$27:$XFD$76, MATCH($E28, 'Capital base input'!$E$27:$E$76, 0), MATCH(BW$4, RAB_years, 0)) -> 0 | BX28: =INDEX('Capital base input'!$H$27:$XFD$76, MATCH($E28, 'Capital base input'!$E$27:$E$76, 0), MATCH(BX$4, RAB_years, 0)) -> 0 | BY28: =INDEX('Capital base input'!$H$27:$XFD$76, MATCH($E28, 'Capital base input'!$E$27:$E$76, 0), MATCH(BY$4, RAB_years, 0)) -> 0 | BZ28: =INDEX('Capital base input'!$H$27:$XFD$76, MATCH($E28, 'Capital base input'!$E$27:$E$76, 0), MATCH(BZ$4, RAB_years, 0)) -> 0 | CA28: =INDEX('Capital base input'!$H$27:$XFD$76, MATCH($E28, 'Capital base input'!$E$27:$E$76, 0), MATCH(CA$4, RAB_years, 0)) -> 0 | CB28: =INDEX('Capital base input'!$H$27:$XFD$76, MATCH($E28, 'Capital base input'!$E$27:$E$76, 0), MATCH(CB$4, RAB_years, 0)) -> 0 | CC28: =INDEX('Capital base input'!$H$27:$XFD$76, MATCH($E28, 'Capital base input'!$E$27:$E$76, 0), MATCH(CC$4, RAB_years, 0)) -> 0 | CD28: =INDEX('Capital base input'!$H$27:$XFD$76, MATCH($E28, 'Capital base input'!$E$27:$E$76, 0), MATCH(CD$4, RAB_years, 0)) -> 0 | CE28: =INDEX('Capital base input'!$H$27:$XFD$76, MATCH($E28, 'Capital base input'!$E$27:$E$76, 0), MATCH(CE$4, RAB_years, 0)) -> 0 | CF28: =INDEX('Capital base input'!$H$27:$XFD$76, MATCH($E28, 'Capital base input'!$E$27:$E$76, 0), MATCH(CF$4, RAB_years, 0)) -> 0 | CG28: =INDEX('Capital base input'!$H$27:$XFD$76, MATCH($E28, 'Capital base input'!$E$27:$E$76, 0), MATCH(CG$4, RAB_years, 0)) -> 0 | CH28: =INDEX('Capital base input'!$H$27:$XFD$76, MATCH($E28, 'Capital base input'!$E$27:$E$76, 0), MATCH(CH$4, RAB_years, 0)) -> 0 | CI28: =INDEX('Capital base input'!$H$27:$XFD$76, MATCH($E28, 'Capital base input'!$E$27:$E$76, 0), MATCH(CI$4, RAB_years, 0)) -> 0 | CJ28: =INDEX('Capital base input'!$H$27:$XFD$76, MATCH($E28, 'Capital base input'!$E$27:$E$76, 0), MATCH(CJ$4, RAB_years, 0)) -> 0 | CK28: =INDEX('Capital base input'!$H$27:$XFD$76, MATCH($E28, 'Capital base input'!$E$27:$E$76, 0), MATCH(CK$4, RAB_years, 0)) -> 0 | CL28: =INDEX('Capital base input'!$H$27:$XFD$76, MATCH($E28, 'Capital base input'!$E$27:$E$76, 0), MATCH(CL$4, RAB_years, 0)) -> 0 | CM28: =INDEX('Capital base input'!$H$27:$XFD$76, MATCH($E28, 'Capital base input'!$E$27:$E$76, 0), MATCH(CM$4, RAB_years, 0)) -> 0 | CN28: =INDEX('Capital base input'!$H$27:$XFD$76, MATCH($E28, 'Capital base input'!$E$27:$E$76, 0), MATCH(CN$4, RAB_years, 0)) -> 0 | CO28: =INDEX('Capital base input'!$H$27:$XFD$76, MATCH($E28, 'Capital base input'!$E$27:$E$76, 0), MATCH(CO$4, RAB_years, 0)) -> 0 | CP28: =INDEX('Capital base input'!$H$27:$XFD$76, MATCH($E28, 'Capital base input'!$E$27:$E$76, 0), MATCH(CP$4, RAB_years, 0)) -> 0
D29: 12 | E29: ='Capital base input'!E38 -> Tariff Meters | G29: 250.8856347 | H29: =INDEX('Capital base input'!$H$27:$XFD$76, MATCH($E29, 'Capital base input'!$E$27:$E$76, 0), MATCH(H$4, RAB_years, 0)) -> 28.16053507 | I29: =INDEX('Capital base input'!$H$27:$XFD$76, MATCH($E29, 'Capital base input'!$E$27:$E$76, 0), MATCH(I$4, RAB_years, 0)) -> 21.22789769 | J29: =INDEX('Capital base input'!$H$27:$XFD$76, MATCH($E29, 'Capital base input'!$E$27:$E$76, 0), MATCH(J$4, RAB_years, 0)) -> 25.48015299 | K29: =INDEX('Capital base input'!$H$27:$XFD$76, MATCH($E29, 'Capital base input'!$E$27:$E$76, 0), MATCH(K$4, RAB_years, 0)) -> 29.56438985 | L29: =INDEX('Capital base input'!$H$27:$XFD$76, MATCH($E29, 'Capital base input'!$E$27:$E$76, 0), MATCH(L$4, RAB_years, 0)) -> 31.65648277 | M29: =INDEX('Capital base input'!$H$27:$XFD$76, MATCH($E29, 'Capital base input'!$E$27:$E$76, 0), MATCH(M$4, RAB_years, 0)) -> 0 | N29: =INDEX('Capital base input'!$H$27:$XFD$76, MATCH($E29, 'Capital base input'!$E$27:$E$76, 0), MATCH(N$4, RAB_years, 0)) -> 0 | O29: =INDEX('Capital base input'!$H$27:$XFD$76, MATCH($E29, 'Capital base input'!$E$27:$E$76, 0), MATCH(O$4, RAB_years, 0)) -> 0 | P29: =INDEX('Capital base input'!$H$27:$XFD$76, MATCH($E29, 'Capital base input'!$E$27:$E$76, 0), MATCH(P$4, RAB_years, 0)) -> 0 | Q29: =INDEX('Capital base input'!$H$27:$XFD$76, MATCH($E29, 'Capital base input'!$E$27:$E$76, 0), MATCH(Q$4, RAB_years, 0)) -> 0 | R29: =INDEX('Capital base input'!$H$27:$XFD$76, MATCH($E29, 'Capital base input'!$E$27:$E$76, 0), MATCH(R$4, RAB_years, 0)) -> 0 | S29: =INDEX('Capital base input'!$H$27:$XFD$76, MATCH($E29, 'Capital base input'!$E$27:$E$76, 0), MATCH(S$4, RAB_years, 0)) -> 0 | T29: =INDEX('Capital base input'!$H$27:$XFD$76, MATCH($E29, 'Capital base input'!$E$27:$E$76, 0), MATCH(T$4, RAB_years, 0)) -> 0 | U29: =INDEX('Capital base input'!$H$27:$XFD$76, MATCH($E29, 'Capital base input'!$E$27:$E$76, 0), MATCH(U$4, RAB_years, 0)) -> 0 | V29: =INDEX('Capital base input'!$H$27:$XFD$76, MATCH($E29, 'Capital base input'!$E$27:$E$76, 0), MATCH(V$4, RAB_years, 0)) -> 0 | W29: =INDEX('Capital base input'!$H$27:$XFD$76, MATCH($E29, 'Capital base input'!$E$27:$E$76, 0), MATCH(W$4, RAB_years, 0)) -> 0 | X29: =INDEX('Capital base input'!$H$27:$XFD$76, MATCH($E29, 'Capital base input'!$E$27:$E$76, 0), MATCH(X$4, RAB_years, 0)) -> 0 | Y29: =INDEX('Capital base input'!$H$27:$XFD$76, MATCH($E29, 'Capital base input'!$E$27:$E$76, 0), MATCH(Y$4, RAB_years, 0)) -> 0 | Z29: =INDEX('Capital base input'!$H$27:$XFD$76, MATCH($E29, 'Capital base input'!$E$27:$E$76, 0), MATCH(Z$4, RAB_years, 0)) -> 0 | AA29: =INDEX('Capital base input'!$H$27:$XFD$76, MATCH($E29, 'Capital base input'!$E$27:$E$76, 0), MATCH(AA$4, RAB_years, 0)) -> 0 | AB29: =INDEX('Capital base input'!$H$27:$XFD$76, MATCH($E29, 'Capital base input'!$E$27:$E$76, 0), MATCH(AB$4, RAB_years, 0)) -> 0 | AC29: =INDEX('Capital base input'!$H$27:$XFD$76, MATCH($E29, 'Capital base input'!$E$27:$E$76, 0), MATCH(AC$4, RAB_years, 0)) -> 0 | AD29: =INDEX('Capital base input'!$H$27:$XFD$76, MATCH($E29, 'Capital base input'!$E$27:$E$76, 0), MATCH(AD$4, RAB_years, 0)) -> 0 | AE29: =INDEX('Capital base input'!$H$27:$XFD$76, MATCH($E29, 'Capital base input'!$E$27:$E$76, 0), MATCH(AE$4, RAB_years, 0)) -> 0 | AF29: =INDEX('Capital base input'!$H$27:$XFD$76, MATCH($E29, 'Capital base input'!$E$27:$E$76, 0), MATCH(AF$4, RAB_years, 0)) -> 0 | AG29: =INDEX('Capital base input'!$H$27:$XFD$76, MATCH($E29, 'Capital base input'!$E$27:$E$76, 0), MATCH(AG$4, RAB_years, 0)) -> 0 | AH29: =INDEX('Capital base input'!$H$27:$XFD$76, MATCH($E29, 'Capital base input'!$E$27:$E$76, 0), MATCH(AH$4, RAB_years, 0)) -> 0 | AI29: =INDEX('Capital base input'!$H$27:$XFD$76, MATCH($E29, 'Capital base input'!$E$27:$E$76, 0), MATCH(AI$4, RAB_years, 0)) -> 0 | AJ29: =INDEX('Capital base input'!$H$27:$XFD$76, MATCH($E29, 'Capital base input'!$E$27:$E$76, 0), MATCH(AJ$4, RAB_years, 0)) -> 0 | AK29: =INDEX('Capital base input'!$H$27:$XFD$76, MATCH($E29, 'Capital base input'!$E$27:$E$76, 0), MATCH(AK$4, RAB_years, 0)) -> 0 | AL29: =INDEX('Capital base input'!$H$27:$XFD$76, MATCH($E29, 'Capital base input'!$E$27:$E$76, 0), MATCH(AL$4, RAB_years, 0)) -> 0 | AM29: =INDEX('Capital base input'!$H$27:$XFD$76, MATCH($E29, 'Capital base input'!$E$27:$E$76, 0), MATCH(AM$4, RAB_years, 0)) -> 0 | AN29: =INDEX('Capital base input'!$H$27:$XFD$76, MATCH($E29, 'Capital base input'!$E$27:$E$76, 0), MATCH(AN$4, RAB_years, 0)) -> 0 | AO29: =INDEX('Capital base input'!$H$27:$XFD$76, MATCH($E29, 'Capital base input'!$E$27:$E$76, 0), MATCH(AO$4, RAB_years, 0)) -> 0 | AP29: =INDEX('Capital base input'!$H$27:$XFD$76, MATCH($E29, 'Capital base input'!$E$27:$E$76, 0), MATCH(AP$4, RAB_years, 0)) -> 0 | AQ29: =INDEX('Capital base input'!$H$27:$XFD$76, MATCH($E29, 'Capital base input'!$E$27:$E$76, 0), MATCH(AQ$4, RAB_years, 0)) -> 0 | AR29: =INDEX('Capital base input'!$H$27:$XFD$76, MATCH($E29, 'Capital base input'!$E$27:$E$76, 0), MATCH(AR$4, RAB_years, 0)) -> 0 | AS29: =INDEX('Capital base input'!$H$27:$XFD$76, MATCH($E29, 'Capital base input'!$E$27:$E$76, 0), MATCH(AS$4, RAB_years, 0)) -> 0 | AT29: =INDEX('Capital base input'!$H$27:$XFD$76, MATCH($E29, 'Capital base input'!$E$27:$E$76, 0), MATCH(AT$4, RAB_years, 0)) -> 0 | AU29: =INDEX('Capital base input'!$H$27:$XFD$76, MATCH($E29, 'Capital base input'!$E$27:$E$76, 0), MATCH(AU$4, RAB_years, 0)) -> 0 | AV29: =INDEX('Capital base input'!$H$27:$XFD$76, MATCH($E29, 'Capital base input'!$E$27:$E$76, 0), MATCH(AV$4, RAB_years, 0)) -> 0 | AW29: =INDEX('Capital base input'!$H$27:$XFD$76, MATCH($E29, 'Capital base input'!$E$27:$E$76, 0), MATCH(AW$4, RAB_years, 0)) -> 0 | AX29: =INDEX('Capital base input'!$H$27:$XFD$76, MATCH($E29, 'Capital base input'!$E$27:$E$76, 0), MATCH(AX$4, RAB_years, 0)) -> 0 | AY29: =INDEX('Capital base input'!$H$27:$XFD$76, MATCH($E29, 'Capital base input'!$E$27:$E$76, 0), MATCH(AY$4, RAB_years, 0)) -> 0 | AZ29: =INDEX('Capital base input'!$H$27:$XFD$76, MATCH($E29, 'Capital base input'!$E$27:$E$76, 0), MATCH(AZ$4, RAB_years, 0)) -> 0 | BA29: =INDEX('Capital base input'!$H$27:$XFD$76, MATCH($E29, 'Capital base input'!$E$27:$E$76, 0), MATCH(BA$4, RAB_years, 0)) -> 0 | BB29: =INDEX('Capital base input'!$H$27:$XFD$76, MATCH($E29, 'Capital base input'!$E$27:$E$76, 0), MATCH(BB$4, RAB_years, 0)) -> 0 | BC29: =INDEX('Capital base input'!$H$27:$XFD$76, MATCH($E29, 'Capital base input'!$E$27:$E$76, 0), MATCH(BC$4, RAB_years, 0)) -> 0 | BD29: =INDEX('Capital base input'!$H$27:$XFD$76, MATCH($E29, 'Capital base input'!$E$27:$E$76, 0), MATCH(BD$4, RAB_years, 0)) -> 0 | BE29: =INDEX('Capital base input'!$H$27:$XFD$76, MATCH($E29, 'Capital base input'!$E$27:$E$76, 0), MATCH(BE$4, RAB_years, 0)) -> 0 | BF29: =INDEX('Capital base input'!$H$27:$XFD$76, MATCH($E29, 'Capital base input'!$E$27:$E$76, 0), MATCH(BF$4, RAB_years, 0)) -> 0 | BG29: =INDEX('Capital base input'!$H$27:$XFD$76, MATCH($E29, 'Capital base input'!$E$27:$E$76, 0), MATCH(BG$4, RAB_years, 0)) -> 0 | BH29: =INDEX('Capital base input'!$H$27:$XFD$76, MATCH($E29, 'Capital base input'!$E$27:$E$76, 0), MATCH(BH$4, RAB_years, 0)) -> 0 | BI29: =INDEX('Capital base input'!$H$27:$XFD$76, MATCH($E29, 'Capital base input'!$E$27:$E$76, 0), MATCH(BI$4, RAB_years, 0)) -> 0 | BJ29: =INDEX('Capital base input'!$H$27:$XFD$76, MATCH($E29, 'Capital base input'!$E$27:$E$76, 0), MATCH(BJ$4, RAB_years, 0)) -> 0 | BK29: =INDEX('Capital base input'!$H$27:$XFD$76, MATCH($E29, 'Capital base input'!$E$27:$E$76, 0), MATCH(BK$4, RAB_years, 0)) -> 0 | BL29: =INDEX('Capital base input'!$H$27:$XFD$76, MATCH($E29, 'Capital base input'!$E$27:$E$76, 0), MATCH(BL$4, RAB_years, 0)) -> 0 | BM29: =INDEX('Capital base input'!$H$27:$XFD$76, MATCH($E29, 'Capital base input'!$E$27:$E$76, 0), MATCH(BM$4, RAB_years, 0)) -> 0 | BN29: =INDEX('Capital base input'!$H$27:$XFD$76, MATCH($E29, 'Capital base input'!$E$27:$E$76, 0), MATCH(BN$4, RAB_years, 0)) -> 0 | BO29: =INDEX('Capital base input'!$H$27:$XFD$76, MATCH($E29, 'Capital base input'!$E$27:$E$76, 0), MATCH(BO$4, RAB_years, 0)) -> 0 | BP29: =INDEX('Capital base input'!$H$27:$XFD$76, MATCH($E29, 'Capital base input'!$E$27:$E$76, 0), MATCH(BP$4, RAB_years, 0)) -> 0 | BQ29: =INDEX('Capital base input'!$H$27:$XFD$76, MATCH($E29, 'Capital base input'!$E$27:$E$76, 0), MATCH(BQ$4, RAB_years, 0)) -> 0 | BR29: =INDEX('Capital base input'!$H$27:$XFD$76, MATCH($E29, 'Capital base input'!$E$27:$E$76, 0), MATCH(BR$4, RAB_years, 0)) -> 0 | BS29: =INDEX('Capital base input'!$H$27:$XFD$76, MATCH($E29, 'Capital base input'!$E$27:$E$76, 0), MATCH(BS$4, RAB_years, 0)) -> 0 | BT29: =INDEX('Capital base input'!$H$27:$XFD$76, MATCH($E29, 'Capital base input'!$E$27:$E$76, 0), MATCH(BT$4, RAB_years, 0)) -> 0 | BU29: =INDEX('Capital base input'!$H$27:$XFD$76, MATCH($E29, 'Capital base input'!$E$27:$E$76, 0), MATCH(BU$4, RAB_years, 0)) -> 0 | BV29: =INDEX('Capital base input'!$H$27:$XFD$76, MATCH($E29, 'Capital base input'!$E$27:$E$76, 0), MATCH(BV$4, RAB_years, 0)) -> 0 | BW29: =INDEX('Capital base input'!$H$27:$XFD$76, MATCH($E29, 'Capital base input'!$E$27:$E$76, 0), MATCH(BW$4, RAB_years, 0)) -> 0 | BX29: =INDEX('Capital base input'!$H$27:$XFD$76, MATCH($E29, 'Capital base input'!$E$27:$E$76, 0), MATCH(BX$4, RAB_years, 0)) -> 0 | BY29: =INDEX('Capital base input'!$H$27:$XFD$76, MATCH($E29, 'Capital base input'!$E$27:$E$76, 0), MATCH(BY$4, RAB_years, 0)) -> 0 | BZ29: =INDEX('Capital base input'!$H$27:$XFD$76, MATCH($E29, 'Capital base input'!$E$27:$E$76, 0), MATCH(BZ$4, RAB_years, 0)) -> 0 | CA29: =INDEX('Capital base input'!$H$27:$XFD$76, MATCH($E29, 'Capital base input'!$E$27:$E$76, 0), MATCH(CA$4, RAB_years, 0)) -> 0 | CB29: =INDEX('Capital base input'!$H$27:$XFD$76, MATCH($E29, 'Capital base input'!$E$27:$E$76, 0), MATCH(CB$4, RAB_years, 0)) -> 0 | CC29: =INDEX('Capital base input'!$H$27:$XFD$76, MATCH($E29, 'Capital base input'!$E$27:$E$76, 0), MATCH(CC$4, RAB_years, 0)) -> 0 | CD29: =INDEX('Capital base input'!$H$27:$XFD$76, MATCH($E29, 'Capital base input'!$E$27:$E$76, 0), MATCH(CD$4, RAB_years, 0)) -> 0 | CE29: =INDEX('Capital base input'!$H$27:$XFD$76, MATCH($E29, 'Capital base input'!$E$27:$E$76, 0), MATCH(CE$4, RAB_years, 0)) -> 0 | CF29: =INDEX('Capital base input'!$H$27:$XFD$76, MATCH($E29, 'Capital base input'!$E$27:$E$76, 0), MATCH(CF$4, RAB_years, 0)) -> 0 | CG29: =INDEX('Capital base input'!$H$27:$XFD$76, MATCH($E29, 'Capital base input'!$E$27:$E$76, 0), MATCH(CG$4, RAB_years, 0)) -> 0 | CH29: =INDEX('Capital base input'!$H$27:$XFD$76, MATCH($E29, 'Capital base input'!$E$27:$E$76, 0), MATCH(CH$4, RAB_years, 0)) -> 0 | CI29: =INDEX('Capital base input'!$H$27:$XFD$76, MATCH($E29, 'Capital base input'!$E$27:$E$76, 0), MATCH(CI$4, RAB_years, 0)) -> 0 | CJ29: =INDEX('Capital base input'!$H$27:$XFD$76, MATCH($E29, 'Capital base input'!$E$27:$E$76, 0), MATCH(CJ$4, RAB_years, 0)) -> 0 | CK29: =INDEX('Capital base input'!$H$27:$XFD$76, MATCH($E29, 'Capital base input'!$E$27:$E$76, 0), MATCH(CK$4, RAB_years, 0)) -> 0 | CL29: =INDEX('Capital base input'!$H$27:$XFD$76, MATCH($E29, 'Capital base input'!$E$27:$E$76, 0), MATCH(CL$4, RAB_years, 0)) -> 0 | CM29: =INDEX('Capital base input'!$H$27:$XFD$76, MATCH($E29, 'Capital base input'!$E$27:$E$76, 0), MATCH(CM$4, RAB_years, 0)) -> 0 | CN29: =INDEX('Capital base input'!$H$27:$XFD$76, MATCH($E29, 'Capital base input'!$E$27:$E$76, 0), MATCH(CN$4, RAB_years, 0)) -> 0 | CO29: =INDEX('Capital base input'!$H$27:$XFD$76, MATCH($E29, 'Capital base input'!$E$27:$E$76, 0), MATCH(CO$4, RAB_years, 0)) -> 0 | CP29: =INDEX('Capital base input'!$H$27:$XFD$76, MATCH($E29, 'Capital base input'!$E$27:$E$76, 0), MATCH(CP$4, RAB_years, 0)) -> 0
D30: 13 | E30: ='Capital base input'!E39 -> Computers - IT Infrastructure | G30: 3.078976596 | H30: =INDEX('Capital base input'!$H$27:$XFD$76, MATCH($E30, 'Capital base input'!$E$27:$E$76, 0), MATCH(H$4, RAB_years, 0)) -> 1.32858082 | I30: =INDEX('Capital base input'!$H$27:$XFD$76, MATCH($E30, 'Capital base input'!$E$27:$E$76, 0), MATCH(I$4, RAB_years, 0)) -> 1.49379304 | J30: =INDEX('Capital base input'!$H$27:$XFD$76, MATCH($E30, 'Capital base input'!$E$27:$E$76, 0), MATCH(J$4, RAB_years, 0)) -> 2.91892447 | K30: =INDEX('Capital base input'!$H$27:$XFD$76, MATCH($E30, 'Capital base input'!$E$27:$E$76, 0), MATCH(K$4, RAB_years, 0)) -> 3.08003957 | L30: =INDEX('Capital base input'!$H$27:$XFD$76, MATCH($E30, 'Capital base input'!$E$27:$E$76, 0), MATCH(L$4, RAB_years, 0)) -> 0.1793898644 | M30: =INDEX('Capital base input'!$H$27:$XFD$76, MATCH($E30, 'Capital base input'!$E$27:$E$76, 0), MATCH(M$4, RAB_years, 0)) -> 0 | N30: =INDEX('Capital base input'!$H$27:$XFD$76, MATCH($E30, 'Capital base input'!$E$27:$E$76, 0), MATCH(N$4, RAB_years, 0)) -> 0 | O30: =INDEX('Capital base input'!$H$27:$XFD$76, MATCH($E30, 'Capital base input'!$E$27:$E$76, 0), MATCH(O$4, RAB_years, 0)) -> 0 | P30: =INDEX('Capital base input'!$H$27:$XFD$76, MATCH($E30, 'Capital base input'!$E$27:$E$76, 0), MATCH(P$4, RAB_years, 0)) -> 0 | Q30: =INDEX('Capital base input'!$H$27:$XFD$76, MATCH($E30, 'Capital base input'!$E$27:$E$76, 0), MATCH(Q$4, RAB_years, 0)) -> 0 | R30: =INDEX('Capital base input'!$H$27:$XFD$76, MATCH($E30, 'Capital base input'!$E$27:$E$76, 0), MATCH(R$4, RAB_years, 0)) -> 0 | S30: =INDEX('Capital base input'!$H$27:$XFD$76, MATCH($E30, 'Capital base input'!$E$27:$E$76, 0), MATCH(S$4, RAB_years, 0)) -> 0 | T30: =INDEX('Capital base input'!$H$27:$XFD$76, MATCH($E30, 'Capital base input'!$E$27:$E$76, 0), MATCH(T$4, RAB_years, 0)) -> 0 | U30: =INDEX('Capital base input'!$H$27:$XFD$76, MATCH($E30, 'Capital base input'!$E$27:$E$76, 0), MATCH(U$4, RAB_years, 0)) -> 0 | V30: =INDEX('Capital base input'!$H$27:$XFD$76, MATCH($E30, 'Capital base input'!$E$27:$E$76, 0), MATCH(V$4, RAB_years, 0)) -> 0 | W30: =INDEX('Capital base input'!$H$27:$XFD$76, MATCH($E30, 'Capital base input'!$E$27:$E$76, 0), MATCH(W$4, RAB_years, 0)) -> 0 | X30: =INDEX('Capital base input'!$H$27:$XFD$76, MATCH($E30, 'Capital base input'!$E$27:$E$76, 0), MATCH(X$4, RAB_years, 0)) -> 0 | Y30: =INDEX('Capital base input'!$H$27:$XFD$76, MATCH($E30, 'Capital base input'!$E$27:$E$76, 0), MATCH(Y$4, RAB_years, 0)) -> 0 | Z30: =INDEX('Capital base input'!$H$27:$XFD$76, MATCH($E30, 'Capital base input'!$E$27:$E$76, 0), MATCH(Z$4, RAB_years, 0)) -> 0 | AA30: =INDEX('Capital base input'!$H$27:$XFD$76, MATCH($E30, 'Capital base input'!$E$27:$E$76, 0), MATCH(AA$4, RAB_years, 0)) -> 0 | AB30: =INDEX('Capital base input'!$H$27:$XFD$76, MATCH($E30, 'Capital base input'!$E$27:$E$76, 0), MATCH(AB$4, RAB_years, 0)) -> 0 | AC30: =INDEX('Capital base input'!$H$27:$XFD$76, MATCH($E30, 'Capital base input'!$E$27:$E$76, 0), MATCH(AC$4, RAB_years, 0)) -> 0 | AD30: =INDEX('Capital base input'!$H$27:$XFD$76, MATCH($E30, 'Capital base input'!$E$27:$E$76, 0), MATCH(AD$4, RAB_years, 0)) -> 0 | AE30: =INDEX('Capital base input'!$H$27:$XFD$76, MATCH($E30, 'Capital base input'!$E$27:$E$76, 0), MATCH(AE$4, RAB_years, 0)) -> 0 | AF30: =INDEX('Capital base input'!$H$27:$XFD$76, MATCH($E30, 'Capital base input'!$E$27:$E$76, 0), MATCH(AF$4, RAB_years, 0)) -> 0 | AG30: =INDEX('Capital base input'!$H$27:$XFD$76, MATCH($E30, 'Capital base input'!$E$27:$E$76, 0), MATCH(AG$4, RAB_years, 0)) -> 0 | AH30: =INDEX('Capital base input'!$H$27:$XFD$76, MATCH($E30, 'Capital base input'!$E$27:$E$76, 0), MATCH(AH$4, RAB_years, 0)) -> 0 | AI30: =INDEX('Capital base input'!$H$27:$XFD$76, MATCH($E30, 'Capital base input'!$E$27:$E$76, 0), MATCH(AI$4, RAB_years, 0)) -> 0 | AJ30: =INDEX('Capital base input'!$H$27:$XFD$76, MATCH($E30, 'Capital base input'!$E$27:$E$76, 0), MATCH(AJ$4, RAB_years, 0)) -> 0 | AK30: =INDEX('Capital base input'!$H$27:$XFD$76, MATCH($E30, 'Capital base input'!$E$27:$E$76, 0), MATCH(AK$4, RAB_years, 0)) -> 0 | AL30: =INDEX('Capital base input'!$H$27:$XFD$76, MATCH($E30, 'Capital base input'!$E$27:$E$76, 0), MATCH(AL$4, RAB_years, 0)) -> 0 | AM30: =INDEX('Capital base input'!$H$27:$XFD$76, MATCH($E30, 'Capital base input'!$E$27:$E$76, 0), MATCH(AM$4, RAB_years, 0)) -> 0 | AN30: =INDEX('Capital base input'!$H$27:$XFD$76, MATCH($E30, 'Capital base input'!$E$27:$E$76, 0), MATCH(AN$4, RAB_years, 0)) -> 0 | AO30: =INDEX('Capital base input'!$H$27:$XFD$76, MATCH($E30, 'Capital base input'!$E$27:$E$76, 0), MATCH(AO$4, RAB_years, 0)) -> 0 | AP30: =INDEX('Capital base input'!$H$27:$XFD$76, MATCH($E30, 'Capital base input'!$E$27:$E$76, 0), MATCH(AP$4, RAB_years, 0)) -> 0 | AQ30: =INDEX('Capital base input'!$H$27:$XFD$76, MATCH($E30, 'Capital base input'!$E$27:$E$76, 0), MATCH(AQ$4, RAB_years, 0)) -> 0 | AR30: =INDEX('Capital base input'!$H$27:$XFD$76, MATCH($E30, 'Capital base input'!$E$27:$E$76, 0), MATCH(AR$4, RAB_years, 0)) -> 0 | AS30: =INDEX('Capital base input'!$H$27:$XFD$76, MATCH($E30, 'Capital base input'!$E$27:$E$76, 0), MATCH(AS$4, RAB_years, 0)) -> 0 | AT30: =INDEX('Capital base input'!$H$27:$XFD$76, MATCH($E30, 'Capital base input'!$E$27:$E$76, 0), MATCH(AT$4, RAB_years, 0)) -> 0 | AU30: =INDEX('Capital base input'!$H$27:$XFD$76, MATCH($E30, 'Capital base input'!$E$27:$E$76, 0), MATCH(AU$4, RAB_years, 0)) -> 0 | AV30: =INDEX('Capital base input'!$H$27:$XFD$76, MATCH($E30, 'Capital base input'!$E$27:$E$76, 0), MATCH(AV$4, RAB_years, 0)) -> 0 | AW30: =INDEX('Capital base input'!$H$27:$XFD$76, MATCH($E30, 'Capital base input'!$E$27:$E$76, 0), MATCH(AW$4, RAB_years, 0)) -> 0 | AX30: =INDEX('Capital base input'!$H$27:$XFD$76, MATCH($E30, 'Capital base input'!$E$27:$E$76, 0), MATCH(AX$4, RAB_years, 0)) -> 0 | AY30: =INDEX('Capital base input'!$H$27:$XFD$76, MATCH($E30, 'Capital base input'!$E$27:$E$76, 0), MATCH(AY$4, RAB_years, 0)) -> 0 | AZ30: =INDEX('Capital base input'!$H$27:$XFD$76, MATCH($E30, 'Capital base input'!$E$27:$E$76, 0), MATCH(AZ$4, RAB_years, 0)) -> 0 | BA30: =INDEX('Capital base input'!$H$27:$XFD$76, MATCH($E30, 'Capital base input'!$E$27:$E$76, 0), MATCH(BA$4, RAB_years, 0)) -> 0 | BB30: =INDEX('Capital base input'!$H$27:$XFD$76, MATCH($E30, 'Capital base input'!$E$27:$E$76, 0), MATCH(BB$4, RAB_years, 0)) -> 0 | BC30: =INDEX('Capital base input'!$H$27:$XFD$76, MATCH($E30, 'Capital base input'!$E$27:$E$76, 0), MATCH(BC$4, RAB_years, 0)) -> 0 | BD30: =INDEX('Capital base input'!$H$27:$XFD$76, MATCH($E30, 'Capital base input'!$E$27:$E$76, 0), MATCH(BD$4, RAB_years, 0)) -> 0 | BE30: =INDEX('Capital base input'!$H$27:$XFD$76, MATCH($E30, 'Capital base input'!$E$27:$E$76, 0), MATCH(BE$4, RAB_years, 0)) -> 0 | BF30: =INDEX('Capital base input'!$H$27:$XFD$76, MATCH($E30, 'Capital base input'!$E$27:$E$76, 0), MATCH(BF$4, RAB_years, 0)) -> 0 | BG30: =INDEX('Capital base input'!$H$27:$XFD$76, MATCH($E30, 'Capital base input'!$E$27:$E$76, 0), MATCH(BG$4, RAB_years, 0)) -> 0 | BH30: =INDEX('Capital base input'!$H$27:$XFD$76, MATCH($E30, 'Capital base input'!$E$27:$E$76, 0), MATCH(BH$4, RAB_years, 0)) -> 0 | BI30: =INDEX('Capital base input'!$H$27:$XFD$76, MATCH($E30, 'Capital base input'!$E$27:$E$76, 0), MATCH(BI$4, RAB_years, 0)) -> 0 | BJ30: =INDEX('Capital base input'!$H$27:$XFD$76, MATCH($E30, 'Capital base input'!$E$27:$E$76, 0), MATCH(BJ$4, RAB_years, 0)) -> 0 | BK30: =INDEX('Capital base input'!$H$27:$XFD$76, MATCH($E30, 'Capital base input'!$E$27:$E$76, 0), MATCH(BK$4, RAB_years, 0)) -> 0 | BL30: =INDEX('Capital base input'!$H$27:$XFD$76, MATCH($E30, 'Capital base input'!$E$27:$E$76, 0), MATCH(BL$4, RAB_years, 0)) -> 0 | BM30: =INDEX('Capital base input'!$H$27:$XFD$76, MATCH($E30, 'Capital base input'!$E$27:$E$76, 0), MATCH(BM$4, RAB_years, 0)) -> 0 | BN30: =INDEX('Capital base input'!$H$27:$XFD$76, MATCH($E30, 'Capital base input'!$E$27:$E$76, 0), MATCH(BN$4, RAB_years, 0)) -> 0 | BO30: =INDEX('Capital base input'!$H$27:$XFD$76, MATCH($E30, 'Capital base input'!$E$27:$E$76, 0), MATCH(BO$4, RAB_years, 0)) -> 0 | BP30: =INDEX('Capital base input'!$H$27:$XFD$76, MATCH($E30, 'Capital base input'!$E$27:$E$76, 0), MATCH(BP$4, RAB_years, 0)) -> 0 | BQ30: =INDEX('Capital base input'!$H$27:$XFD$76, MATCH($E30, 'Capital base input'!$E$27:$E$76, 0), MATCH(BQ$4, RAB_years, 0)) -> 0 | BR30: =INDEX('Capital base input'!$H$27:$XFD$76, MATCH($E30, 'Capital base input'!$E$27:$E$76, 0), MATCH(BR$4, RAB_years, 0)) -> 0 | BS30: =INDEX('Capital base input'!$H$27:$XFD$76, MATCH($E30, 'Capital base input'!$E$27:$E$76, 0), MATCH(BS$4, RAB_years, 0)) -> 0 | BT30: =INDEX('Capital base input'!$H$27:$XFD$76, MATCH($E30, 'Capital base input'!$E$27:$E$76, 0), MATCH(BT$4, RAB_years, 0)) -> 0 | BU30: =INDEX('Capital base input'!$H$27:$XFD$76, MATCH($E30, 'Capital base input'!$E$27:$E$76, 0), MATCH(BU$4, RAB_years, 0)) -> 0 | BV30: =INDEX('Capital base input'!$H$27:$XFD$76, MATCH($E30, 'Capital base input'!$E$27:$E$76, 0), MATCH(BV$4, RAB_years, 0)) -> 0 | BW30: =INDEX('Capital base input'!$H$27:$XFD$76, MATCH($E30, 'Capital base input'!$E$27:$E$76, 0), MATCH(BW$4, RAB_years, 0)) -> 0 | BX30: =INDEX('Capital base input'!$H$27:$XFD$76, MATCH($E30, 'Capital base input'!$E$27:$E$76, 0), MATCH(BX$4, RAB_years, 0)) -> 0 | BY30: =INDEX('Capital base input'!$H$27:$XFD$76, MATCH($E30, 'Capital base input'!$E$27:$E$76, 0), MATCH(BY$4, RAB_years, 0)) -> 0 | BZ30: =INDEX('Capital base input'!$H$27:$XFD$76, MATCH($E30, 'Capital base input'!$E$27:$E$76, 0), MATCH(BZ$4, RAB_years, 0)) -> 0 | CA30: =INDEX('Capital base input'!$H$27:$XFD$76, MATCH($E30, 'Capital base input'!$E$27:$E$76, 0), MATCH(CA$4, RAB_years, 0)) -> 0 | CB30: =INDEX('Capital base input'!$H$27:$XFD$76, MATCH($E30, 'Capital base input'!$E$27:$E$76, 0), MATCH(CB$4, RAB_years, 0)) -> 0 | CC30: =INDEX('Capital base input'!$H$27:$XFD$76, MATCH($E30, 'Capital base input'!$E$27:$E$76, 0), MATCH(CC$4, RAB_years, 0)) -> 0 | CD30: =INDEX('Capital base input'!$H$27:$XFD$76, MATCH($E30, 'Capital base input'!$E$27:$E$76, 0), MATCH(CD$4, RAB_years, 0)) -> 0 | CE30: =INDEX('Capital base input'!$H$27:$XFD$76, MATCH($E30, 'Capital base input'!$E$27:$E$76, 0), MATCH(CE$4, RAB_years, 0)) -> 0 | CF30: =INDEX('Capital base input'!$H$27:$XFD$76, MATCH($E30, 'Capital base input'!$E$27:$E$76, 0), MATCH(CF$4, RAB_years, 0)) -> 0 | CG30: =INDEX('Capital base input'!$H$27:$XFD$76, MATCH($E30, 'Capital base input'!$E$27:$E$76, 0), MATCH(CG$4, RAB_years, 0)) -> 0 | CH30: =INDEX('Capital base input'!$H$27:$XFD$76, MATCH($E30, 'Capital base input'!$E$27:$E$76, 0), MATCH(CH$4, RAB_years, 0)) -> 0 | CI30: =INDEX('Capital base input'!$H$27:$XFD$76, MATCH($E30, 'Capital base input'!$E$27:$E$76, 0), MATCH(CI$4, RAB_years, 0)) -> 0 | CJ30: =INDEX('Capital base input'!$H$27:$XFD$76, MATCH($E30, 'Capital base input'!$E$27:$E$76, 0), MATCH(CJ$4, RAB_years, 0)) -> 0 | CK30: =INDEX('Capital base input'!$H$27:$XFD$76, MATCH($E30, 'Capital base input'!$E$27:$E$76, 0), MATCH(CK$4, RAB_years, 0)) -> 0 | CL30: =INDEX('Capital base input'!$H$27:$XFD$76, MATCH($E30, 'Capital base input'!$E$27:$E$76, 0), MATCH(CL$4, RAB_years, 0)) -> 0 | CM30: =INDEX('Capital base input'!$H$27:$XFD$76, MATCH($E30, 'Capital base input'!$E$27:$E$76, 0), MATCH(CM$4, RAB_years, 0)) -> 0 | CN30: =INDEX('Capital base input'!$H$27:$XFD$76, MATCH($E30, 'Capital base input'!$E$27:$E$76, 0), MATCH(CN$4, RAB_years, 0)) -> 0 | CO30: =INDEX('Capital base input'!$H$27:$XFD$76, MATCH($E30, 'Capital base input'!$E$27:$E$76, 0), MATCH(CO$4, RAB_years, 0)) -> 0 | CP30: =INDEX('Capital base input'!$H$27:$XFD$76, MATCH($E30, 'Capital base input'!$E$27:$E$76, 0), MATCH(CP$4, RAB_years, 0)) -> 0
D31: 14 | E31: ='Capital base input'!E40 -> Fixed Plant | G31: 3.416705114 | H31: =INDEX('Capital base input'!$H$27:$XFD$76, MATCH($E31, 'Capital base input'!$E$27:$E$76, 0), MATCH(H$4, RAB_years, 0)) -> 0.25640404 | I31: =INDEX('Capital base input'!$H$27:$XFD$76, MATCH($E31, 'Capital base input'!$E$27:$E$76, 0), MATCH(I$4, RAB_years, 0)) -> 0.40570216 | J31: =INDEX('Capital base input'!$H$27:$XFD$76, MATCH($E31, 'Capital base input'!$E$27:$E$76, 0), MATCH(J$4, RAB_years, 0)) -> 0.70141975 | K31: =INDEX('Capital base input'!$H$27:$XFD$76, MATCH($E31, 'Capital base input'!$E$27:$E$76, 0), MATCH(K$4, RAB_years, 0)) -> 0.34289392 | L31: =INDEX('Capital base input'!$H$27:$XFD$76, MATCH($E31, 'Capital base input'!$E$27:$E$76, 0), MATCH(L$4, RAB_years, 0)) -> 0 | M31: =INDEX('Capital base input'!$H$27:$XFD$76, MATCH($E31, 'Capital base input'!$E$27:$E$76, 0), MATCH(M$4, RAB_years, 0)) -> 0 | N31: =INDEX('Capital base input'!$H$27:$XFD$76, MATCH($E31, 'Capital base input'!$E$27:$E$76, 0), MATCH(N$4, RAB_years, 0)) -> 0 | O31: =INDEX('Capital base input'!$H$27:$XFD$76, MATCH($E31, 'Capital base input'!$E$27:$E$76, 0), MATCH(O$4, RAB_years, 0)) -> 0 | P31: =INDEX('Capital base input'!$H$27:$XFD$76, MATCH($E31, 'Capital base input'!$E$27:$E$76, 0), MATCH(P$4, RAB_years, 0)) -> 0 | Q31: =INDEX('Capital base input'!$H$27:$XFD$76, MATCH($E31, 'Capital base input'!$E$27:$E$76, 0), MATCH(Q$4, RAB_years, 0)) -> 0 | R31: =INDEX('Capital base input'!$H$27:$XFD$76, MATCH($E31, 'Capital base input'!$E$27:$E$76, 0), MATCH(R$4, RAB_years, 0)) -> 0 | S31: =INDEX('Capital base input'!$H$27:$XFD$76, MATCH($E31, 'Capital base input'!$E$27:$E$76, 0), MATCH(S$4, RAB_years, 0)) -> 0 | T31: =INDEX('Capital base input'!$H$27:$XFD$76, MATCH($E31, 'Capital base input'!$E$27:$E$76, 0), MATCH(T$4, RAB_years, 0)) -> 0 | U31: =INDEX('Capital base input'!$H$27:$XFD$76, MATCH($E31, 'Capital base input'!$E$27:$E$76, 0), MATCH(U$4, RAB_years, 0)) -> 0 | V31: =INDEX('Capital base input'!$H$27:$XFD$76, MATCH($E31, 'Capital base input'!$E$27:$E$76, 0), MATCH(V$4, RAB_years, 0)) -> 0 | W31: =INDEX('Capital base input'!$H$27:$XFD$76, MATCH($E31, 'Capital base input'!$E$27:$E$76, 0), MATCH(W$4, RAB_years, 0)) -> 0 | X31: =INDEX('Capital base input'!$H$27:$XFD$76, MATCH($E31, 'Capital base input'!$E$27:$E$76, 0), MATCH(X$4, RAB_years, 0)) -> 0 | Y31: =INDEX('Capital base input'!$H$27:$XFD$76, MATCH($E31, 'Capital base input'!$E$27:$E$76, 0), MATCH(Y$4, RAB_years, 0)) -> 0 | Z31: =INDEX('Capital base input'!$H$27:$XFD$76, MATCH($E31, 'Capital base input'!$E$27:$E$76, 0), MATCH(Z$4, RAB_years, 0)) -> 0 | AA31: =INDEX('Capital base input'!$H$27:$XFD$76, MATCH($E31, 'Capital base input'!$E$27:$E$76, 0), MATCH(AA$4, RAB_years, 0)) -> 0 | AB31: =INDEX('Capital base input'!$H$27:$XFD$76, MATCH($E31, 'Capital base input'!$E$27:$E$76, 0), MATCH(AB$4, RAB_years, 0)) -> 0 | AC31: =INDEX('Capital base input'!$H$27:$XFD$76, MATCH($E31, 'Capital base input'!$E$27:$E$76, 0), MATCH(AC$4, RAB_years, 0)) -> 0 | AD31: =INDEX('Capital base input'!$H$27:$XFD$76, MATCH($E31, 'Capital base input'!$E$27:$E$76, 0), MATCH(AD$4, RAB_years, 0)) -> 0 | AE31: =INDEX('Capital base input'!$H$27:$XFD$76, MATCH($E31, 'Capital base input'!$E$27:$E$76, 0), MATCH(AE$4, RAB_years, 0)) -> 0 | AF31: =INDEX('Capital base input'!$H$27:$XFD$76, MATCH($E31, 'Capital base input'!$E$27:$E$76, 0), MATCH(AF$4, RAB_years, 0)) -> 0 | AG31: =INDEX('Capital base input'!$H$27:$XFD$76, MATCH($E31, 'Capital base input'!$E$27:$E$76, 0), MATCH(AG$4, RAB_years, 0)) -> 0 | AH31: =INDEX('Capital base input'!$H$27:$XFD$76, MATCH($E31, 'Capital base input'!$E$27:$E$76, 0), MATCH(AH$4, RAB_years, 0)) -> 0 | AI31: =INDEX('Capital base input'!$H$27:$XFD$76, MATCH($E31, 'Capital base input'!$E$27:$E$76, 0), MATCH(AI$4, RAB_years, 0)) -> 0 | AJ31: =INDEX('Capital base input'!$H$27:$XFD$76, MATCH($E31, 'Capital base input'!$E$27:$E$76, 0), MATCH(AJ$4, RAB_years, 0)) -> 0 | AK31: =INDEX('Capital base input'!$H$27:$XFD$76, MATCH($E31, 'Capital base input'!$E$27:$E$76, 0), MATCH(AK$4, RAB_years, 0)) -> 0 | AL31: =INDEX('Capital base input'!$H$27:$XFD$76, MATCH($E31, 'Capital base input'!$E$27:$E$76, 0), MATCH(AL$4, RAB_years, 0)) -> 0 | AM31: =INDEX('Capital base input'!$H$27:$XFD$76, MATCH($E31, 'Capital base input'!$E$27:$E$76, 0), MATCH(AM$4, RAB_years, 0)) -> 0 | AN31: =INDEX('Capital base input'!$H$27:$XFD$76, MATCH($E31, 'Capital base input'!$E$27:$E$76, 0), MATCH(AN$4, RAB_years, 0)) -> 0 | AO31: =INDEX('Capital base input'!$H$27:$XFD$76, MATCH($E31, 'Capital base input'!$E$27:$E$76, 0), MATCH(AO$4, RAB_years, 0)) -> 0 | AP31: =INDEX('Capital base input'!$H$27:$XFD$76, MATCH($E31, 'Capital base input'!$E$27:$E$76, 0), MATCH(AP$4, RAB_years, 0)) -> 0 | AQ31: =INDEX('Capital base input'!$H$27:$XFD$76, MATCH($E31, 'Capital base input'!$E$27:$E$76, 0), MATCH(AQ$4, RAB_years, 0)) -> 0 | AR31: =INDEX('Capital base input'!$H$27:$XFD$76, MATCH($E31, 'Capital base input'!$E$27:$E$76, 0), MATCH(AR$4, RAB_years, 0)) -> 0 | AS31: =INDEX('Capital base input'!$H$27:$XFD$76, MATCH($E31, 'Capital base input'!$E$27:$E$76, 0), MATCH(AS$4, RAB_years, 0)) -> 0 | AT31: =INDEX('Capital base input'!$H$27:$XFD$76, MATCH($E31, 'Capital base input'!$E$27:$E$76, 0), MATCH(AT$4, RAB_years, 0)) -> 0 | AU31: =INDEX('Capital base input'!$H$27:$XFD$76, MATCH($E31, 'Capital base input'!$E$27:$E$76, 0), MATCH(AU$4, RAB_years, 0)) -> 0 | AV31: =INDEX('Capital base input'!$H$27:$XFD$76, MATCH($E31, 'Capital base input'!$E$27:$E$76, 0), MATCH(AV$4, RAB_years, 0)) -> 0 | AW31: =INDEX('Capital base input'!$H$27:$XFD$76, MATCH($E31, 'Capital base input'!$E$27:$E$76, 0), MATCH(AW$4, RAB_years, 0)) -> 0 | AX31: =INDEX('Capital base input'!$H$27:$XFD$76, MATCH($E31, 'Capital base input'!$E$27:$E$76, 0), MATCH(AX$4, RAB_years, 0)) -> 0 | AY31: =INDEX('Capital base input'!$H$27:$XFD$76, MATCH($E31, 'Capital base input'!$E$27:$E$76, 0), MATCH(AY$4, RAB_years, 0)) -> 0 | AZ31: =INDEX('Capital base input'!$H$27:$XFD$76, MATCH($E31, 'Capital base input'!$E$27:$E$76, 0), MATCH(AZ$4, RAB_years, 0)) -> 0 | BA31: =INDEX('Capital base input'!$H$27:$XFD$76, MATCH($E31, 'Capital base input'!$E$27:$E$76, 0), MATCH(BA$4, RAB_years, 0)) -> 0 | BB31: =INDEX('Capital base input'!$H$27:$XFD$76, MATCH($E31, 'Capital base input'!$E$27:$E$76, 0), MATCH(BB$4, RAB_years, 0)) -> 0 | BC31: =INDEX('Capital base input'!$H$27:$XFD$76, MATCH($E31, 'Capital base input'!$E$27:$E$76, 0), MATCH(BC$4, RAB_years, 0)) -> 0 | BD31: =INDEX('Capital base input'!$H$27:$XFD$76, MATCH($E31, 'Capital base input'!$E$27:$E$76, 0), MATCH(BD$4, RAB_years, 0)) -> 0 | BE31: =INDEX('Capital base input'!$H$27:$XFD$76, MATCH($E31, 'Capital base input'!$E$27:$E$76, 0), MATCH(BE$4, RAB_years, 0)) -> 0 | BF31: =INDEX('Capital base input'!$H$27:$XFD$76, MATCH($E31, 'Capital base input'!$E$27:$E$76, 0), MATCH(BF$4, RAB_years, 0)) -> 0 | BG31: =INDEX('Capital base input'!$H$27:$XFD$76, MATCH($E31, 'Capital base input'!$E$27:$E$76, 0), MATCH(BG$4, RAB_years, 0)) -> 0 | BH31: =INDEX('Capital base input'!$H$27:$XFD$76, MATCH($E31, 'Capital base input'!$E$27:$E$76, 0), MATCH(BH$4, RAB_years, 0)) -> 0 | BI31: =INDEX('Capital base input'!$H$27:$XFD$76, MATCH($E31, 'Capital base input'!$E$27:$E$76, 0), MATCH(BI$4, RAB_years, 0)) -> 0 | BJ31: =INDEX('Capital base input'!$H$27:$XFD$76, MATCH($E31, 'Capital base input'!$E$27:$E$76, 0), MATCH(BJ$4, RAB_years, 0)) -> 0 | BK31: =INDEX('Capital base input'!$H$27:$XFD$76, MATCH($E31, 'Capital base input'!$E$27:$E$76, 0), MATCH(BK$4, RAB_years, 0)) -> 0 | BL31: =INDEX('Capital base input'!$H$27:$XFD$76, MATCH($E31, 'Capital base input'!$E$27:$E$76, 0), MATCH(BL$4, RAB_years, 0)) -> 0 | BM31: =INDEX('Capital base input'!$H$27:$XFD$76, MATCH($E31, 'Capital base input'!$E$27:$E$76, 0), MATCH(BM$4, RAB_years, 0)) -> 0 | BN31: =INDEX('Capital base input'!$H$27:$XFD$76, MATCH($E31, 'Capital base input'!$E$27:$E$76, 0), MATCH(BN$4, RAB_years, 0)) -> 0 | BO31: =INDEX('Capital base input'!$H$27:$XFD$76, MATCH($E31, 'Capital base input'!$E$27:$E$76, 0), MATCH(BO$4, RAB_years, 0)) -> 0 | BP31: =INDEX('Capital base input'!$H$27:$XFD$76, MATCH($E31, 'Capital base input'!$E$27:$E$76, 0), MATCH(BP$4, RAB_years, 0)) -> 0 | BQ31: =INDEX('Capital base input'!$H$27:$XFD$76, MATCH($E31, 'Capital base input'!$E$27:$E$76, 0), MATCH(BQ$4, RAB_years, 0)) -> 0 | BR31: =INDEX('Capital base input'!$H$27:$XFD$76, MATCH($E31, 'Capital base input'!$E$27:$E$76, 0), MATCH(BR$4, RAB_years, 0)) -> 0 | BS31: =INDEX('Capital base input'!$H$27:$XFD$76, MATCH($E31, 'Capital base input'!$E$27:$E$76, 0), MATCH(BS$4, RAB_years, 0)) -> 0 | BT31: =INDEX('Capital base input'!$H$27:$XFD$76, MATCH($E31, 'Capital base input'!$E$27:$E$76, 0), MATCH(BT$4, RAB_years, 0)) -> 0 | BU31: =INDEX('Capital base input'!$H$27:$XFD$76, MATCH($E31, 'Capital base input'!$E$27:$E$76, 0), MATCH(BU$4, RAB_years, 0)) -> 0 | BV31: =INDEX('Capital base input'!$H$27:$XFD$76, MATCH($E31, 'Capital base input'!$E$27:$E$76, 0), MATCH(BV$4, RAB_years, 0)) -> 0 | BW31: =INDEX('Capital base input'!$H$27:$XFD$76, MATCH($E31, 'Capital base input'!$E$27:$E$76, 0), MATCH(BW$4, RAB_years, 0)) -> 0 | BX31: =INDEX('Capital base input'!$H$27:$XFD$76, MATCH($E31, 'Capital base input'!$E$27:$E$76, 0), MATCH(BX$4, RAB_years, 0)) -> 0 | BY31: =INDEX('Capital base input'!$H$27:$XFD$76, MATCH($E31, 'Capital base input'!$E$27:$E$76, 0), MATCH(BY$4, RAB_years, 0)) -> 0 | BZ31: =INDEX('Capital base input'!$H$27:$XFD$76, MATCH($E31, 'Capital base input'!$E$27:$E$76, 0), MATCH(BZ$4, RAB_years, 0)) -> 0 | CA31: =INDEX('Capital base input'!$H$27:$XFD$76, MATCH($E31, 'Capital base input'!$E$27:$E$76, 0), MATCH(CA$4, RAB_years, 0)) -> 0 | CB31: =INDEX('Capital base input'!$H$27:$XFD$76, MATCH($E31, 'Capital base input'!$E$27:$E$76, 0), MATCH(CB$4, RAB_years, 0)) -> 0 | CC31: =INDEX('Capital base input'!$H$27:$XFD$76, MATCH($E31, 'Capital base input'!$E$27:$E$76, 0), MATCH(CC$4, RAB_years, 0)) -> 0 | CD31: =INDEX('Capital base input'!$H$27:$XFD$76, MATCH($E31, 'Capital base input'!$E$27:$E$76, 0), MATCH(CD$4, RAB_years, 0)) -> 0 | CE31: =INDEX('Capital base input'!$H$27:$XFD$76, MATCH($E31, 'Capital base input'!$E$27:$E$76, 0), MATCH(CE$4, RAB_years, 0)) -> 0 | CF31: =INDEX('Capital base input'!$H$27:$XFD$76, MATCH($E31, 'Capital base input'!$E$27:$E$76, 0), MATCH(CF$4, RAB_years, 0)) -> 0 | CG31: =INDEX('Capital base input'!$H$27:$XFD$76, MATCH($E31, 'Capital base input'!$E$27:$E$76, 0), MATCH(CG$4, RAB_years, 0)) -> 0 | CH31: =INDEX('Capital base input'!$H$27:$XFD$76, MATCH($E31, 'Capital base input'!$E$27:$E$76, 0), MATCH(CH$4, RAB_years, 0)) -> 0 | CI31: =INDEX('Capital base input'!$H$27:$XFD$76, MATCH($E31, 'Capital base input'!$E$27:$E$76, 0), MATCH(CI$4, RAB_years, 0)) -> 0 | CJ31: =INDEX('Capital base input'!$H$27:$XFD$76, MATCH($E31, 'Capital base input'!$E$27:$E$76, 0), MATCH(CJ$4, RAB_years, 0)) -> 0 | CK31: =INDEX('Capital base input'!$H$27:$XFD$76, MATCH($E31, 'Capital base input'!$E$27:$E$76, 0), MATCH(CK$4, RAB_years, 0)) -> 0 | CL31: =INDEX('Capital base input'!$H$27:$XFD$76, MATCH($E31, 'Capital base input'!$E$27:$E$76, 0), MATCH(CL$4, RAB_years, 0)) -> 0 | CM31: =INDEX('Capital base input'!$H$27:$XFD$76, MATCH($E31, 'Capital base input'!$E$27:$E$76, 0), MATCH(CM$4, RAB_years, 0)) -> 0 | CN31: =INDEX('Capital base input'!$H$27:$XFD$76, MATCH($E31, 'Capital base input'!$E$27:$E$76, 0), MATCH(CN$4, RAB_years, 0)) -> 0 | CO31: =INDEX('Capital base input'!$H$27:$XFD$76, MATCH($E31, 'Capital base input'!$E$27:$E$76, 0), MATCH(CO$4, RAB_years, 0)) -> 0 | CP31: =INDEX('Capital base input'!$H$27:$XFD$76, MATCH($E31, 'Capital base input'!$E$27:$E$76, 0), MATCH(CP$4, RAB_years, 0)) -> 0
D32: 15 | E32: ='Capital base input'!E41 -> Furniture | G32: 0.08860290941 | H32: =INDEX('Capital base input'!$H$27:$XFD$76, MATCH($E32, 'Capital base input'!$E$27:$E$76, 0), MATCH(H$4, RAB_years, 0)) -> 0 | I32: =INDEX('Capital base input'!$H$27:$XFD$76, MATCH($E32, 'Capital base input'!$E$27:$E$76, 0), MATCH(I$4, RAB_years, 0)) -> 0 | J32: =INDEX('Capital base input'!$H$27:$XFD$76, MATCH($E32, 'Capital base input'!$E$27:$E$76, 0), MATCH(J$4, RAB_years, 0)) -> 0 | K32: =INDEX('Capital base input'!$H$27:$XFD$76, MATCH($E32, 'Capital base input'!$E$27:$E$76, 0), MATCH(K$4, RAB_years, 0)) -> 0 | L32: =INDEX('Capital base input'!$H$27:$XFD$76, MATCH($E32, 'Capital base input'!$E$27:$E$76, 0), MATCH(L$4, RAB_years, 0)) -> 0 | M32: =INDEX('Capital base input'!$H$27:$XFD$76, MATCH($E32, 'Capital base input'!$E$27:$E$76, 0), MATCH(M$4, RAB_years, 0)) -> 0 | N32: =INDEX('Capital base input'!$H$27:$XFD$76, MATCH($E32, 'Capital base input'!$E$27:$E$76, 0), MATCH(N$4, RAB_years, 0)) -> 0 | O32: =INDEX('Capital base input'!$H$27:$XFD$76, MATCH($E32, 'Capital base input'!$E$27:$E$76, 0), MATCH(O$4, RAB_years, 0)) -> 0 | P32: =INDEX('Capital base input'!$H$27:$XFD$76, MATCH($E32, 'Capital base input'!$E$27:$E$76, 0), MATCH(P$4, RAB_years, 0)) -> 0 | Q32: =INDEX('Capital base input'!$H$27:$XFD$76, MATCH($E32, 'Capital base input'!$E$27:$E$76, 0), MATCH(Q$4, RAB_years, 0)) -> 0 | R32: =INDEX('Capital base input'!$H$27:$XFD$76, MATCH($E32, 'Capital base input'!$E$27:$E$76, 0), MATCH(R$4, RAB_years, 0)) -> 0 | S32: =INDEX('Capital base input'!$H$27:$XFD$76, MATCH($E32, 'Capital base input'!$E$27:$E$76, 0), MATCH(S$4, RAB_years, 0)) -> 0 | T32: =INDEX('Capital base input'!$H$27:$XFD$76, MATCH($E32, 'Capital base input'!$E$27:$E$76, 0), MATCH(T$4, RAB_years, 0)) -> 0 | U32: =INDEX('Capital base input'!$H$27:$XFD$76, MATCH($E32, 'Capital base input'!$E$27:$E$76, 0), MATCH(U$4, RAB_years, 0)) -> 0 | V32: =INDEX('Capital base input'!$H$27:$XFD$76, MATCH($E32, 'Capital base input'!$E$27:$E$76, 0), MATCH(V$4, RAB_years, 0)) -> 0 | W32: =INDEX('Capital base input'!$H$27:$XFD$76, MATCH($E32, 'Capital base input'!$E$27:$E$76, 0), MATCH(W$4, RAB_years, 0)) -> 0 | X32: =INDEX('Capital base input'!$H$27:$XFD$76, MATCH($E32, 'Capital base input'!$E$27:$E$76, 0), MATCH(X$4, RAB_years, 0)) -> 0 | Y32: =INDEX('Capital base input'!$H$27:$XFD$76, MATCH($E32, 'Capital base input'!$E$27:$E$76, 0), MATCH(Y$4, RAB_years, 0)) -> 0 | Z32: =INDEX('Capital base input'!$H$27:$XFD$76, MATCH($E32, 'Capital base input'!$E$27:$E$76, 0), MATCH(Z$4, RAB_years, 0)) -> 0 | AA32: =INDEX('Capital base input'!$H$27:$XFD$76, MATCH($E32, 'Capital base input'!$E$27:$E$76, 0), MATCH(AA$4, RAB_years, 0)) -> 0 | AB32: =INDEX('Capital base input'!$H$27:$XFD$76, MATCH($E32, 'Capital base input'!$E$27:$E$76, 0), MATCH(AB$4, RAB_years, 0)) -> 0 | AC32: =INDEX('Capital base input'!$H$27:$XFD$76, MATCH($E32, 'Capital base input'!$E$27:$E$76, 0), MATCH(AC$4, RAB_years, 0)) -> 0 | AD32: =INDEX('Capital base input'!$H$27:$XFD$76, MATCH($E32, 'Capital base input'!$E$27:$E$76, 0), MATCH(AD$4, RAB_years, 0)) -> 0 | AE32: =INDEX('Capital base input'!$H$27:$XFD$76, MATCH($E32, 'Capital base input'!$E$27:$E$76, 0), MATCH(AE$4, RAB_years, 0)) -> 0 | AF32: =INDEX('Capital base input'!$H$27:$XFD$76, MATCH($E32, 'Capital base input'!$E$27:$E$76, 0), MATCH(AF$4, RAB_years, 0)) -> 0 | AG32: =INDEX('Capital base input'!$H$27:$XFD$76, MATCH($E32, 'Capital base input'!$E$27:$E$76, 0), MATCH(AG$4, RAB_years, 0)) -> 0 | AH32: =INDEX('Capital base input'!$H$27:$XFD$76, MATCH($E32, 'Capital base input'!$E$27:$E$76, 0), MATCH(AH$4, RAB_years, 0)) -> 0 | AI32: =INDEX('Capital base input'!$H$27:$XFD$76, MATCH($E32, 'Capital base input'!$E$27:$E$76, 0), MATCH(AI$4, RAB_years, 0)) -> 0 | AJ32: =INDEX('Capital base input'!$H$27:$XFD$76, MATCH($E32, 'Capital base input'!$E$27:$E$76, 0), MATCH(AJ$4, RAB_years, 0)) -> 0 | AK32: =INDEX('Capital base input'!$H$27:$XFD$76, MATCH($E32, 'Capital base input'!$E$27:$E$76, 0), MATCH(AK$4, RAB_years, 0)) -> 0 | AL32: =INDEX('Capital base input'!$H$27:$XFD$76, MATCH($E32, 'Capital base input'!$E$27:$E$76, 0), MATCH(AL$4, RAB_years, 0)) -> 0 | AM32: =INDEX('Capital base input'!$H$27:$XFD$76, MATCH($E32, 'Capital base input'!$E$27:$E$76, 0), MATCH(AM$4, RAB_years, 0)) -> 0 | AN32: =INDEX('Capital base input'!$H$27:$XFD$76, MATCH($E32, 'Capital base input'!$E$27:$E$76, 0), MATCH(AN$4, RAB_years, 0)) -> 0 | AO32: =INDEX('Capital base input'!$H$27:$XFD$76, MATCH($E32, 'Capital base input'!$E$27:$E$76, 0), MATCH(AO$4, RAB_years, 0)) -> 0 | AP32: =INDEX('Capital base input'!$H$27:$XFD$76, MATCH($E32, 'Capital base input'!$E$27:$E$76, 0), MATCH(AP$4, RAB_years, 0)) -> 0 | AQ32: =INDEX('Capital base input'!$H$27:$XFD$76, MATCH($E32, 'Capital base input'!$E$27:$E$76, 0), MATCH(AQ$4, RAB_years, 0)) -> 0 | AR32: =INDEX('Capital base input'!$H$27:$XFD$76, MATCH($E32, 'Capital base input'!$E$27:$E$76, 0), MATCH(AR$4, RAB_years, 0)) -> 0 | AS32: =INDEX('Capital base input'!$H$27:$XFD$76, MATCH($E32, 'Capital base input'!$E$27:$E$76, 0), MATCH(AS$4, RAB_years, 0)) -> 0 | AT32: =INDEX('Capital base input'!$H$27:$XFD$76, MATCH($E32, 'Capital base input'!$E$27:$E$76, 0), MATCH(AT$4, RAB_years, 0)) -> 0 | AU32: =INDEX('Capital base input'!$H$27:$XFD$76, MATCH($E32, 'Capital base input'!$E$27:$E$76, 0), MATCH(AU$4, RAB_years, 0)) -> 0 | AV32: =INDEX('Capital base input'!$H$27:$XFD$76, MATCH($E32, 'Capital base input'!$E$27:$E$76, 0), MATCH(AV$4, RAB_years, 0)) -> 0 | AW32: =INDEX('Capital base input'!$H$27:$XFD$76, MATCH($E32, 'Capital base input'!$E$27:$E$76, 0), MATCH(AW$4, RAB_years, 0)) -> 0 | AX32: =INDEX('Capital base input'!$H$27:$XFD$76, MATCH($E32, 'Capital base input'!$E$27:$E$76, 0), MATCH(AX$4, RAB_years, 0)) -> 0 | AY32: =INDEX('Capital base input'!$H$27:$XFD$76, MATCH($E32, 'Capital base input'!$E$27:$E$76, 0), MATCH(AY$4, RAB_years, 0)) -> 0 | AZ32: =INDEX('Capital base input'!$H$27:$XFD$76, MATCH($E32, 'Capital base input'!$E$27:$E$76, 0), MATCH(AZ$4, RAB_years, 0)) -> 0 | BA32: =INDEX('Capital base input'!$H$27:$XFD$76, MATCH($E32, 'Capital base input'!$E$27:$E$76, 0), MATCH(BA$4, RAB_years, 0)) -> 0 | BB32: =INDEX('Capital base input'!$H$27:$XFD$76, MATCH($E32, 'Capital base input'!$E$27:$E$76, 0), MATCH(BB$4, RAB_years, 0)) -> 0 | BC32: =INDEX('Capital base input'!$H$27:$XFD$76, MATCH($E32, 'Capital base input'!$E$27:$E$76, 0), MATCH(BC$4, RAB_years, 0)) -> 0 | BD32: =INDEX('Capital base input'!$H$27:$XFD$76, MATCH($E32, 'Capital base input'!$E$27:$E$76, 0), MATCH(BD$4, RAB_years, 0)) -> 0 | BE32: =INDEX('Capital base input'!$H$27:$XFD$76, MATCH($E32, 'Capital base input'!$E$27:$E$76, 0), MATCH(BE$4, RAB_years, 0)) -> 0 | BF32: =INDEX('Capital base input'!$H$27:$XFD$76, MATCH($E32, 'Capital base input'!$E$27:$E$76, 0), MATCH(BF$4, RAB_years, 0)) -> 0 | BG32: =INDEX('Capital base input'!$H$27:$XFD$76, MATCH($E32, 'Capital base input'!$E$27:$E$76, 0), MATCH(BG$4, RAB_years, 0)) -> 0 | BH32: =INDEX('Capital base input'!$H$27:$XFD$76, MATCH($E32, 'Capital base input'!$E$27:$E$76, 0), MATCH(BH$4, RAB_years, 0)) -> 0 | BI32: =INDEX('Capital base input'!$H$27:$XFD$76, MATCH($E32, 'Capital base input'!$E$27:$E$76, 0), MATCH(BI$4, RAB_years, 0)) -> 0 | BJ32: =INDEX('Capital base input'!$H$27:$XFD$76, MATCH($E32, 'Capital base input'!$E$27:$E$76, 0), MATCH(BJ$4, RAB_years, 0)) -> 0 | BK32: =INDEX('Capital base input'!$H$27:$XFD$76, MATCH($E32, 'Capital base input'!$E$27:$E$76, 0), MATCH(BK$4, RAB_years, 0)) -> 0 | BL32: =INDEX('Capital base input'!$H$27:$XFD$76, MATCH($E32, 'Capital base input'!$E$27:$E$76, 0), MATCH(BL$4, RAB_years, 0)) -> 0 | BM32: =INDEX('Capital base input'!$H$27:$XFD$76, MATCH($E32, 'Capital base input'!$E$27:$E$76, 0), MATCH(BM$4, RAB_years, 0)) -> 0 | BN32: =INDEX('Capital base input'!$H$27:$XFD$76, MATCH($E32, 'Capital base input'!$E$27:$E$76, 0), MATCH(BN$4, RAB_years, 0)) -> 0 | BO32: =INDEX('Capital base input'!$H$27:$XFD$76, MATCH($E32, 'Capital base input'!$E$27:$E$76, 0), MATCH(BO$4, RAB_years, 0)) -> 0 | BP32: =INDEX('Capital base input'!$H$27:$XFD$76, MATCH($E32, 'Capital base input'!$E$27:$E$76, 0), MATCH(BP$4, RAB_years, 0)) -> 0 | BQ32: =INDEX('Capital base input'!$H$27:$XFD$76, MATCH($E32, 'Capital base input'!$E$27:$E$76, 0), MATCH(BQ$4, RAB_years, 0)) -> 0 | BR32: =INDEX('Capital base input'!$H$27:$XFD$76, MATCH($E32, 'Capital base input'!$E$27:$E$76, 0), MATCH(BR$4, RAB_years, 0)) -> 0 | BS32: =INDEX('Capital base input'!$H$27:$XFD$76, MATCH($E32, 'Capital base input'!$E$27:$E$76, 0), MATCH(BS$4, RAB_years, 0)) -> 0 | BT32: =INDEX('Capital base input'!$H$27:$XFD$76, MATCH($E32, 'Capital base input'!$E$27:$E$76, 0), MATCH(BT$4, RAB_years, 0)) -> 0 | BU32: =INDEX('Capital base input'!$H$27:$XFD$76, MATCH($E32, 'Capital base input'!$E$27:$E$76, 0), MATCH(BU$4, RAB_years, 0)) -> 0 | BV32: =INDEX('Capital base input'!$H$27:$XFD$76, MATCH($E32, 'Capital base input'!$E$27:$E$76, 0), MATCH(BV$4, RAB_years, 0)) -> 0 | BW32: =INDEX('Capital base input'!$H$27:$XFD$76, MATCH($E32, 'Capital base input'!$E$27:$E$76, 0), MATCH(BW$4, RAB_years, 0)) -> 0 | BX32: =INDEX('Capital base input'!$H$27:$XFD$76, MATCH($E32, 'Capital base input'!$E$27:$E$76, 0), MATCH(BX$4, RAB_years, 0)) -> 0 | BY32: =INDEX('Capital base input'!$H$27:$XFD$76, MATCH($E32, 'Capital base input'!$E$27:$E$76, 0), MATCH(BY$4, RAB_years, 0)) -> 0 | BZ32: =INDEX('Capital base input'!$H$27:$XFD$76, MATCH($E32, 'Capital base input'!$E$27:$E$76, 0), MATCH(BZ$4, RAB_years, 0)) -> 0 | CA32: =INDEX('Capital base input'!$H$27:$XFD$76, MATCH($E32, 'Capital base input'!$E$27:$E$76, 0), MATCH(CA$4, RAB_years, 0)) -> 0 | CB32: =INDEX('Capital base input'!$H$27:$XFD$76, MATCH($E32, 'Capital base input'!$E$27:$E$76, 0), MATCH(CB$4, RAB_years, 0)) -> 0 | CC32: =INDEX('Capital base input'!$H$27:$XFD$76, MATCH($E32, 'Capital base input'!$E$27:$E$76, 0), MATCH(CC$4, RAB_years, 0)) -> 0 | CD32: =INDEX('Capital base input'!$H$27:$XFD$76, MATCH($E32, 'Capital base input'!$E$27:$E$76, 0), MATCH(CD$4, RAB_years, 0)) -> 0 | CE32: =INDEX('Capital base input'!$H$27:$XFD$76, MATCH($E32, 'Capital base input'!$E$27:$E$76, 0), MATCH(CE$4, RAB_years, 0)) -> 0 | CF32: =INDEX('Capital base input'!$H$27:$XFD$76, MATCH($E32, 'Capital base input'!$E$27:$E$76, 0), MATCH(CF$4, RAB_years, 0)) -> 0 | CG32: =INDEX('Capital base input'!$H$27:$XFD$76, MATCH($E32, 'Capital base input'!$E$27:$E$76, 0), MATCH(CG$4, RAB_years, 0)) -> 0 | CH32: =INDEX('Capital base input'!$H$27:$XFD$76, MATCH($E32, 'Capital base input'!$E$27:$E$76, 0), MATCH(CH$4, RAB_years, 0)) -> 0 | CI32: =INDEX('Capital base input'!$H$27:$XFD$76, MATCH($E32, 'Capital base input'!$E$27:$E$76, 0), MATCH(CI$4, RAB_years, 0)) -> 0 | CJ32: =INDEX('Capital base input'!$H$27:$XFD$76, MATCH($E32, 'Capital base input'!$E$27:$E$76, 0), MATCH(CJ$4, RAB_years, 0)) -> 0 | CK32: =INDEX('Capital base input'!$H$27:$XFD$76, MATCH($E32, 'Capital base input'!$E$27:$E$76, 0), MATCH(CK$4, RAB_years, 0)) -> 0 | CL32: =INDEX('Capital base input'!$H$27:$XFD$76, MATCH($E32, 'Capital base input'!$E$27:$E$76, 0), MATCH(CL$4, RAB_years, 0)) -> 0 | CM32: =INDEX('Capital base input'!$H$27:$XFD$76, MATCH($E32, 'Capital base input'!$E$27:$E$76, 0), MATCH(CM$4, RAB_years, 0)) -> 0 | CN32: =INDEX('Capital base input'!$H$27:$XFD$76, MATCH($E32, 'Capital base input'!$E$27:$E$76, 0), MATCH(CN$4, RAB_years, 0)) -> 0 | CO32: =INDEX('Capital base input'!$H$27:$XFD$76, MATCH($E32, 'Capital base input'!$E$27:$E$76, 0), MATCH(CO$4, RAB_years, 0)) -> 0 | CP32: =INDEX('Capital base input'!$H$27:$XFD$76, MATCH($E32, 'Capital base input'!$E$27:$E$76, 0), MATCH(CP$4, RAB_years, 0)) -> 0
D33: 16 | E33: ='Capital base input'!E42 -> Land | G33: 3.534620386 | H33: =INDEX('Capital base input'!$H$27:$XFD$76, MATCH($E33, 'Capital base input'!$E$27:$E$76, 0), MATCH(H$4, RAB_years, 0)) -> 0.14089057 | I33: =INDEX('Capital base input'!$H$27:$XFD$76, MATCH($E33, 'Capital base input'!$E$27:$E$76, 0), MATCH(I$4, RAB_years, 0)) -> 0 | J33: =INDEX('Capital base input'!$H$27:$XFD$76, MATCH($E33, 'Capital base input'!$E$27:$E$76, 0), MATCH(J$4, RAB_years, 0)) -> 0 | K33: =INDEX('Capital base input'!$H$27:$XFD$76, MATCH($E33, 'Capital base input'!$E$27:$E$76, 0), MATCH(K$4, RAB_years, 0)) -> 0 | L33: =INDEX('Capital base input'!$H$27:$XFD$76, MATCH($E33, 'Capital base input'!$E$27:$E$76, 0), MATCH(L$4, RAB_years, 0)) -> 0 | M33: =INDEX('Capital base input'!$H$27:$XFD$76, MATCH($E33, 'Capital base input'!$E$27:$E$76, 0), MATCH(M$4, RAB_years, 0)) -> 0 | N33: =INDEX('Capital base input'!$H$27:$XFD$76, MATCH($E33, 'Capital base input'!$E$27:$E$76, 0), MATCH(N$4, RAB_years, 0)) -> 0 | O33: =INDEX('Capital base input'!$H$27:$XFD$76, MATCH($E33, 'Capital base input'!$E$27:$E$76, 0), MATCH(O$4, RAB_years, 0)) -> 0 | P33: =INDEX('Capital base input'!$H$27:$XFD$76, MATCH($E33, 'Capital base input'!$E$27:$E$76, 0), MATCH(P$4, RAB_years, 0)) -> 0 | Q33: =INDEX('Capital base input'!$H$27:$XFD$76, MATCH($E33, 'Capital base input'!$E$27:$E$76, 0), MATCH(Q$4, RAB_years, 0)) -> 0 | R33: =INDEX('Capital base input'!$H$27:$XFD$76, MATCH($E33, 'Capital base input'!$E$27:$E$76, 0), MATCH(R$4, RAB_years, 0)) -> 0 | S33: =INDEX('Capital base input'!$H$27:$XFD$76, MATCH($E33, 'Capital base input'!$E$27:$E$76, 0), MATCH(S$4, RAB_years, 0)) -> 0 | T33: =INDEX('Capital base input'!$H$27:$XFD$76, MATCH($E33, 'Capital base input'!$E$27:$E$76, 0), MATCH(T$4, RAB_years, 0)) -> 0 | U33: =INDEX('Capital base input'!$H$27:$XFD$76, MATCH($E33, 'Capital base input'!$E$27:$E$76, 0), MATCH(U$4, RAB_years, 0)) -> 0 | V33: =INDEX('Capital base input'!$H$27:$XFD$76, MATCH($E33, 'Capital base input'!$E$27:$E$76, 0), MATCH(V$4, RAB_years, 0)) -> 0 | W33: =INDEX('Capital base input'!$H$27:$XFD$76, MATCH($E33, 'Capital base input'!$E$27:$E$76, 0), MATCH(W$4, RAB_years, 0)) -> 0 | X33: =INDEX('Capital base input'!$H$27:$XFD$76, MATCH($E33, 'Capital base input'!$E$27:$E$76, 0), MATCH(X$4, RAB_years, 0)) -> 0 | Y33: =INDEX('Capital base input'!$H$27:$XFD$76, MATCH($E33, 'Capital base input'!$E$27:$E$76, 0), MATCH(Y$4, RAB_years, 0)) -> 0 | Z33: =INDEX('Capital base input'!$H$27:$XFD$76, MATCH($E33, 'Capital base input'!$E$27:$E$76, 0), MATCH(Z$4, RAB_years, 0)) -> 0 | AA33: =INDEX('Capital base input'!$H$27:$XFD$76, MATCH($E33, 'Capital base input'!$E$27:$E$76, 0), MATCH(AA$4, RAB_years, 0)) -> 0 | AB33: =INDEX('Capital base input'!$H$27:$XFD$76, MATCH($E33, 'Capital base input'!$E$27:$E$76, 0), MATCH(AB$4, RAB_years, 0)) -> 0 | AC33: =INDEX('Capital base input'!$H$27:$XFD$76, MATCH($E33, 'Capital base input'!$E$27:$E$76, 0), MATCH(AC$4, RAB_years, 0)) -> 0 | AD33: =INDEX('Capital base input'!$H$27:$XFD$76, MATCH($E33, 'Capital base input'!$E$27:$E$76, 0), MATCH(AD$4, RAB_years, 0)) -> 0 | AE33: =INDEX('Capital base input'!$H$27:$XFD$76, MATCH($E33, 'Capital base input'!$E$27:$E$76, 0), MATCH(AE$4, RAB_years, 0)) -> 0 | AF33: =INDEX('Capital base input'!$H$27:$XFD$76, MATCH($E33, 'Capital base input'!$E$27:$E$76, 0), MATCH(AF$4, RAB_years, 0)) -> 0 | AG33: =INDEX('Capital base input'!$H$27:$XFD$76, MATCH($E33, 'Capital base input'!$E$27:$E$76, 0), MATCH(AG$4, RAB_years, 0)) -> 0 | AH33: =INDEX('Capital base input'!$H$27:$XFD$76, MATCH($E33, 'Capital base input'!$E$27:$E$76, 0), MATCH(AH$4, RAB_years, 0)) -> 0 | AI33: =INDEX('Capital base input'!$H$27:$XFD$76, MATCH($E33, 'Capital base input'!$E$27:$E$76, 0), MATCH(AI$4, RAB_years, 0)) -> 0 | AJ33: =INDEX('Capital base input'!$H$27:$XFD$76, MATCH($E33, 'Capital base input'!$E$27:$E$76, 0), MATCH(AJ$4, RAB_years, 0)) -> 0 | AK33: =INDEX('Capital base input'!$H$27:$XFD$76, MATCH($E33, 'Capital base input'!$E$27:$E$76, 0), MATCH(AK$4, RAB_years, 0)) -> 0 | AL33: =INDEX('Capital base input'!$H$27:$XFD$76, MATCH($E33, 'Capital base input'!$E$27:$E$76, 0), MATCH(AL$4, RAB_years, 0)) -> 0 | AM33: =INDEX('Capital base input'!$H$27:$XFD$76, MATCH($E33, 'Capital base input'!$E$27:$E$76, 0), MATCH(AM$4, RAB_years, 0)) -> 0 | AN33: =INDEX('Capital base input'!$H$27:$XFD$76, MATCH($E33, 'Capital base input'!$E$27:$E$76, 0), MATCH(AN$4, RAB_years, 0)) -> 0 | AO33: =INDEX('Capital base input'!$H$27:$XFD$76, MATCH($E33, 'Capital base input'!$E$27:$E$76, 0), MATCH(AO$4, RAB_years, 0)) -> 0 | AP33: =INDEX('Capital base input'!$H$27:$XFD$76, MATCH($E33, 'Capital base input'!$E$27:$E$76, 0), MATCH(AP$4, RAB_years, 0)) -> 0 | AQ33: =INDEX('Capital base input'!$H$27:$XFD$76, MATCH($E33, 'Capital base input'!$E$27:$E$76, 0), MATCH(AQ$4, RAB_years, 0)) -> 0 | AR33: =INDEX('Capital base input'!$H$27:$XFD$76, MATCH($E33, 'Capital base input'!$E$27:$E$76, 0), MATCH(AR$4, RAB_years, 0)) -> 0 | AS33: =INDEX('Capital base input'!$H$27:$XFD$76, MATCH($E33, 'Capital base input'!$E$27:$E$76, 0), MATCH(AS$4, RAB_years, 0)) -> 0 | AT33: =INDEX('Capital base input'!$H$27:$XFD$76, MATCH($E33, 'Capital base input'!$E$27:$E$76, 0), MATCH(AT$4, RAB_years, 0)) -> 0 | AU33: =INDEX('Capital base input'!$H$27:$XFD$76, MATCH($E33, 'Capital base input'!$E$27:$E$76, 0), MATCH(AU$4, RAB_years, 0)) -> 0 | AV33: =INDEX('Capital base input'!$H$27:$XFD$76, MATCH($E33, 'Capital base input'!$E$27:$E$76, 0), MATCH(AV$4, RAB_years, 0)) -> 0 | AW33: =INDEX('Capital base input'!$H$27:$XFD$76, MATCH($E33, 'Capital base input'!$E$27:$E$76, 0), MATCH(AW$4, RAB_years, 0)) -> 0 | AX33: =INDEX('Capital base input'!$H$27:$XFD$76, MATCH($E33, 'Capital base input'!$E$27:$E$76, 0), MATCH(AX$4, RAB_years, 0)) -> 0 | AY33: =INDEX('Capital base input'!$H$27:$XFD$76, MATCH($E33, 'Capital base input'!$E$27:$E$76, 0), MATCH(AY$4, RAB_years, 0)) -> 0 | AZ33: =INDEX('Capital base input'!$H$27:$XFD$76, MATCH($E33, 'Capital base input'!$E$27:$E$76, 0), MATCH(AZ$4, RAB_years, 0)) -> 0 | BA33: =INDEX('Capital base input'!$H$27:$XFD$76, MATCH($E33, 'Capital base input'!$E$27:$E$76, 0), MATCH(BA$4, RAB_years, 0)) -> 0 | BB33: =INDEX('Capital base input'!$H$27:$XFD$76, MATCH($E33, 'Capital base input'!$E$27:$E$76, 0), MATCH(BB$4, RAB_years, 0)) -> 0 | BC33: =INDEX('Capital base input'!$H$27:$XFD$76, MATCH($E33, 'Capital base input'!$E$27:$E$76, 0), MATCH(BC$4, RAB_years, 0)) -> 0 | BD33: =INDEX('Capital base input'!$H$27:$XFD$76, MATCH($E33, 'Capital base input'!$E$27:$E$76, 0), MATCH(BD$4, RAB_years, 0)) -> 0 | BE33: =INDEX('Capital base input'!$H$27:$XFD$76, MATCH($E33, 'Capital base input'!$E$27:$E$76, 0), MATCH(BE$4, RAB_years, 0)) -> 0 | BF33: =INDEX('Capital base input'!$H$27:$XFD$76, MATCH($E33, 'Capital base input'!$E$27:$E$76, 0), MATCH(BF$4, RAB_years, 0)) -> 0 | BG33: =INDEX('Capital base input'!$H$27:$XFD$76, MATCH($E33, 'Capital base input'!$E$27:$E$76, 0), MATCH(BG$4, RAB_years, 0)) -> 0 | BH33: =INDEX('Capital base input'!$H$27:$XFD$76, MATCH($E33, 'Capital base input'!$E$27:$E$76, 0), MATCH(BH$4, RAB_years, 0)) -> 0 | BI33: =INDEX('Capital base input'!$H$27:$XFD$76, MATCH($E33, 'Capital base input'!$E$27:$E$76, 0), MATCH(BI$4, RAB_years, 0)) -> 0 | BJ33: =INDEX('Capital base input'!$H$27:$XFD$76, MATCH($E33, 'Capital base input'!$E$27:$E$76, 0), MATCH(BJ$4, RAB_years, 0)) -> 0 | BK33: =INDEX('Capital base input'!$H$27:$XFD$76, MATCH($E33, 'Capital base input'!$E$27:$E$76, 0), MATCH(BK$4, RAB_years, 0)) -> 0 | BL33: =INDEX('Capital base input'!$H$27:$XFD$76, MATCH($E33, 'Capital base input'!$E$27:$E$76, 0), MATCH(BL$4, RAB_years, 0)) -> 0 | BM33: =INDEX('Capital base input'!$H$27:$XFD$76, MATCH($E33, 'Capital base input'!$E$27:$E$76, 0), MATCH(BM$4, RAB_years, 0)) -> 0 | BN33: =INDEX('Capital base input'!$H$27:$XFD$76, MATCH($E33, 'Capital base input'!$E$27:$E$76, 0), MATCH(BN$4, RAB_years, 0)) -> 0 | BO33: =INDEX('Capital base input'!$H$27:$XFD$76, MATCH($E33, 'Capital base input'!$E$27:$E$76, 0), MATCH(BO$4, RAB_years, 0)) -> 0 | BP33: =INDEX('Capital base input'!$H$27:$XFD$76, MATCH($E33, 'Capital base input'!$E$27:$E$76, 0), MATCH(BP$4, RAB_years, 0)) -> 0 | BQ33: =INDEX('Capital base input'!$H$27:$XFD$76, MATCH($E33, 'Capital base input'!$E$27:$E$76, 0), MATCH(BQ$4, RAB_years, 0)) -> 0 | BR33: =INDEX('Capital base input'!$H$27:$XFD$76, MATCH($E33, 'Capital base input'!$E$27:$E$76, 0), MATCH(BR$4, RAB_years, 0)) -> 0 | BS33: =INDEX('Capital base input'!$H$27:$XFD$76, MATCH($E33, 'Capital base input'!$E$27:$E$76, 0), MATCH(BS$4, RAB_years, 0)) -> 0 | BT33: =INDEX('Capital base input'!$H$27:$XFD$76, MATCH($E33, 'Capital base input'!$E$27:$E$76, 0), MATCH(BT$4, RAB_years, 0)) -> 0 | BU33: =INDEX('Capital base input'!$H$27:$XFD$76, MATCH($E33, 'Capital base input'!$E$27:$E$76, 0), MATCH(BU$4, RAB_years, 0)) -> 0 | BV33: =INDEX('Capital base input'!$H$27:$XFD$76, MATCH($E33, 'Capital base input'!$E$27:$E$76, 0), MATCH(BV$4, RAB_years, 0)) -> 0 | BW33: =INDEX('Capital base input'!$H$27:$XFD$76, MATCH($E33, 'Capital base input'!$E$27:$E$76, 0), MATCH(BW$4, RAB_years, 0)) -> 0 | BX33: =INDEX('Capital base input'!$H$27:$XFD$76, MATCH($E33, 'Capital base input'!$E$27:$E$76, 0), MATCH(BX$4, RAB_years, 0)) -> 0 | BY33: =INDEX('Capital base input'!$H$27:$XFD$76, MATCH($E33, 'Capital base input'!$E$27:$E$76, 0), MATCH(BY$4, RAB_years, 0)) -> 0 | BZ33: =INDEX('Capital base input'!$H$27:$XFD$76, MATCH($E33, 'Capital base input'!$E$27:$E$76, 0), MATCH(BZ$4, RAB_years, 0)) -> 0 | CA33: =INDEX('Capital base input'!$H$27:$XFD$76, MATCH($E33, 'Capital base input'!$E$27:$E$76, 0), MATCH(CA$4, RAB_years, 0)) -> 0 | CB33: =INDEX('Capital base input'!$H$27:$XFD$76, MATCH($E33, 'Capital base input'!$E$27:$E$76, 0), MATCH(CB$4, RAB_years, 0)) -> 0 | CC33: =INDEX('Capital base input'!$H$27:$XFD$76, MATCH($E33, 'Capital base input'!$E$27:$E$76, 0), MATCH(CC$4, RAB_years, 0)) -> 0 | CD33: =INDEX('Capital base input'!$H$27:$XFD$76, MATCH($E33, 'Capital base input'!$E$27:$E$76, 0), MATCH(CD$4, RAB_years, 0)) -> 0 | CE33: =INDEX('Capital base input'!$H$27:$XFD$76, MATCH($E33, 'Capital base input'!$E$27:$E$76, 0), MATCH(CE$4, RAB_years, 0)) -> 0 | CF33: =INDEX('Capital base input'!$H$27:$XFD$76, MATCH($E33, 'Capital base input'!$E$27:$E$76, 0), MATCH(CF$4, RAB_years, 0)) -> 0 | CG33: =INDEX('Capital base input'!$H$27:$XFD$76, MATCH($E33, 'Capital base input'!$E$27:$E$76, 0), MATCH(CG$4, RAB_years, 0)) -> 0 | CH33: =INDEX('Capital base input'!$H$27:$XFD$76, MATCH($E33, 'Capital base input'!$E$27:$E$76, 0), MATCH(CH$4, RAB_years, 0)) -> 0 | CI33: =INDEX('Capital base input'!$H$27:$XFD$76, MATCH($E33, 'Capital base input'!$E$27:$E$76, 0), MATCH(CI$4, RAB_years, 0)) -> 0 | CJ33: =INDEX('Capital base input'!$H$27:$XFD$76, MATCH($E33, 'Capital base input'!$E$27:$E$76, 0), MATCH(CJ$4, RAB_years, 0)) -> 0 | CK33: =INDEX('Capital base input'!$H$27:$XFD$76, MATCH($E33, 'Capital base input'!$E$27:$E$76, 0), MATCH(CK$4, RAB_years, 0)) -> 0 | CL33: =INDEX('Capital base input'!$H$27:$XFD$76, MATCH($E33, 'Capital base input'!$E$27:$E$76, 0), MATCH(CL$4, RAB_years, 0)) -> 0 | CM33: =INDEX('Capital base input'!$H$27:$XFD$76, MATCH($E33, 'Capital base input'!$E$27:$E$76, 0), MATCH(CM$4, RAB_years, 0)) -> 0 | CN33: =INDEX('Capital base input'!$H$27:$XFD$76, MATCH($E33, 'Capital base input'!$E$27:$E$76, 0), MATCH(CN$4, RAB_years, 0)) -> 0 | CO33: =INDEX('Capital base input'!$H$27:$XFD$76, MATCH($E33, 'Capital base input'!$E$27:$E$76, 0), MATCH(CO$4, RAB_years, 0)) -> 0 | CP33: =INDEX('Capital base input'!$H$27:$XFD$76, MATCH($E33, 'Capital base input'!$E$27:$E$76, 0), MATCH(CP$4, RAB_years, 0)) -> 0
D34: 17 | E34: ='Capital base input'!E43 -> Low value assets | G34: 8.853271582e-07 | H34: =INDEX('Capital base input'!$H$27:$XFD$76, MATCH($E34, 'Capital base input'!$E$27:$E$76, 0), MATCH(H$4, RAB_years, 0)) -> 0 | I34: =INDEX('Capital base input'!$H$27:$XFD$76, MATCH($E34, 'Capital base input'!$E$27:$E$76, 0), MATCH(I$4, RAB_years, 0)) -> 0 | J34: =INDEX('Capital base input'!$H$27:$XFD$76, MATCH($E34, 'Capital base input'!$E$27:$E$76, 0), MATCH(J$4, RAB_years, 0)) -> 0 | K34: =INDEX('Capital base input'!$H$27:$XFD$76, MATCH($E34, 'Capital base input'!$E$27:$E$76, 0), MATCH(K$4, RAB_years, 0)) -> 0 | L34: =INDEX('Capital base input'!$H$27:$XFD$76, MATCH($E34, 'Capital base input'!$E$27:$E$76, 0), MATCH(L$4, RAB_years, 0)) -> 0 | M34: =INDEX('Capital base input'!$H$27:$XFD$76, MATCH($E34, 'Capital base input'!$E$27:$E$76, 0), MATCH(M$4, RAB_years, 0)) -> 0 | N34: =INDEX('Capital base input'!$H$27:$XFD$76, MATCH($E34, 'Capital base input'!$E$27:$E$76, 0), MATCH(N$4, RAB_years, 0)) -> 0 | O34: =INDEX('Capital base input'!$H$27:$XFD$76, MATCH($E34, 'Capital base input'!$E$27:$E$76, 0), MATCH(O$4, RAB_years, 0)) -> 0 | P34: =INDEX('Capital base input'!$H$27:$XFD$76, MATCH($E34, 'Capital base input'!$E$27:$E$76, 0), MATCH(P$4, RAB_years, 0)) -> 0 | Q34: =INDEX('Capital base input'!$H$27:$XFD$76, MATCH($E34, 'Capital base input'!$E$27:$E$76, 0), MATCH(Q$4, RAB_years, 0)) -> 0 | R34: =INDEX('Capital base input'!$H$27:$XFD$76, MATCH($E34, 'Capital base input'!$E$27:$E$76, 0), MATCH(R$4, RAB_years, 0)) -> 0 | S34: =INDEX('Capital base input'!$H$27:$XFD$76, MATCH($E34, 'Capital base input'!$E$27:$E$76, 0), MATCH(S$4, RAB_years, 0)) -> 0 | T34: =INDEX('Capital base input'!$H$27:$XFD$76, MATCH($E34, 'Capital base input'!$E$27:$E$76, 0), MATCH(T$4, RAB_years, 0)) -> 0 | U34: =INDEX('Capital base input'!$H$27:$XFD$76, MATCH($E34, 'Capital base input'!$E$27:$E$76, 0), MATCH(U$4, RAB_years, 0)) -> 0 | V34: =INDEX('Capital base input'!$H$27:$XFD$76, MATCH($E34, 'Capital base input'!$E$27:$E$76, 0), MATCH(V$4, RAB_years, 0)) -> 0 | W34: =INDEX('Capital base input'!$H$27:$XFD$76, MATCH($E34, 'Capital base input'!$E$27:$E$76, 0), MATCH(W$4, RAB_years, 0)) -> 0 | X34: =INDEX('Capital base input'!$H$27:$XFD$76, MATCH($E34, 'Capital base input'!$E$27:$E$76, 0), MATCH(X$4, RAB_years, 0)) -> 0 | Y34: =INDEX('Capital base input'!$H$27:$XFD$76, MATCH($E34, 'Capital base input'!$E$27:$E$76, 0), MATCH(Y$4, RAB_years, 0)) -> 0 | Z34: =INDEX('Capital base input'!$H$27:$XFD$76, MATCH($E34, 'Capital base input'!$E$27:$E$76, 0), MATCH(Z$4, RAB_years, 0)) -> 0 | AA34: =INDEX('Capital base input'!$H$27:$XFD$76, MATCH($E34, 'Capital base input'!$E$27:$E$76, 0), MATCH(AA$4, RAB_years, 0)) -> 0 | AB34: =INDEX('Capital base input'!$H$27:$XFD$76, MATCH($E34, 'Capital base input'!$E$27:$E$76, 0), MATCH(AB$4, RAB_years, 0)) -> 0 | AC34: =INDEX('Capital base input'!$H$27:$XFD$76, MATCH($E34, 'Capital base input'!$E$27:$E$76, 0), MATCH(AC$4, RAB_years, 0)) -> 0 | AD34: =INDEX('Capital base input'!$H$27:$XFD$76, MATCH($E34, 'Capital base input'!$E$27:$E$76, 0), MATCH(AD$4, RAB_years, 0)) -> 0 | AE34: =INDEX('Capital base input'!$H$27:$XFD$76, MATCH($E34, 'Capital base input'!$E$27:$E$76, 0), MATCH(AE$4, RAB_years, 0)) -> 0 | AF34: =INDEX('Capital base input'!$H$27:$XFD$76, MATCH($E34, 'Capital base input'!$E$27:$E$76, 0), MATCH(AF$4, RAB_years, 0)) -> 0 | AG34: =INDEX('Capital base input'!$H$27:$XFD$76, MATCH($E34, 'Capital base input'!$E$27:$E$76, 0), MATCH(AG$4, RAB_years, 0)) -> 0 | AH34: =INDEX('Capital base input'!$H$27:$XFD$76, MATCH($E34, 'Capital base input'!$E$27:$E$76, 0), MATCH(AH$4, RAB_years, 0)) -> 0 | AI34: =INDEX('Capital base input'!$H$27:$XFD$76, MATCH($E34, 'Capital base input'!$E$27:$E$76, 0), MATCH(AI$4, RAB_years, 0)) -> 0 | AJ34: =INDEX('Capital base input'!$H$27:$XFD$76, MATCH($E34, 'Capital base input'!$E$27:$E$76, 0), MATCH(AJ$4, RAB_years, 0)) -> 0 | AK34: =INDEX('Capital base input'!$H$27:$XFD$76, MATCH($E34, 'Capital base input'!$E$27:$E$76, 0), MATCH(AK$4, RAB_years, 0)) -> 0 | AL34: =INDEX('Capital base input'!$H$27:$XFD$76, MATCH($E34, 'Capital base input'!$E$27:$E$76, 0), MATCH(AL$4, RAB_years, 0)) -> 0 | AM34: =INDEX('Capital base input'!$H$27:$XFD$76, MATCH($E34, 'Capital base input'!$E$27:$E$76, 0), MATCH(AM$4, RAB_years, 0)) -> 0 | AN34: =INDEX('Capital base input'!$H$27:$XFD$76, MATCH($E34, 'Capital base input'!$E$27:$E$76, 0), MATCH(AN$4, RAB_years, 0)) -> 0 | AO34: =INDEX('Capital base input'!$H$27:$XFD$76, MATCH($E34, 'Capital base input'!$E$27:$E$76, 0), MATCH(AO$4, RAB_years, 0)) -> 0 | AP34: =INDEX('Capital base input'!$H$27:$XFD$76, MATCH($E34, 'Capital base input'!$E$27:$E$76, 0), MATCH(AP$4, RAB_years, 0)) -> 0 | AQ34: =INDEX('Capital base input'!$H$27:$XFD$76, MATCH($E34, 'Capital base input'!$E$27:$E$76, 0), MATCH(AQ$4, RAB_years, 0)) -> 0 | AR34: =INDEX('Capital base input'!$H$27:$XFD$76, MATCH($E34, 'Capital base input'!$E$27:$E$76, 0), MATCH(AR$4, RAB_years, 0)) -> 0 | AS34: =INDEX('Capital base input'!$H$27:$XFD$76, MATCH($E34, 'Capital base input'!$E$27:$E$76, 0), MATCH(AS$4, RAB_years, 0)) -> 0 | AT34: =INDEX('Capital base input'!$H$27:$XFD$76, MATCH($E34, 'Capital base input'!$E$27:$E$76, 0), MATCH(AT$4, RAB_years, 0)) -> 0 | AU34: =INDEX('Capital base input'!$H$27:$XFD$76, MATCH($E34, 'Capital base input'!$E$27:$E$76, 0), MATCH(AU$4, RAB_years, 0)) -> 0 | AV34: =INDEX('Capital base input'!$H$27:$XFD$76, MATCH($E34, 'Capital base input'!$E$27:$E$76, 0), MATCH(AV$4, RAB_years, 0)) -> 0 | AW34: =INDEX('Capital base input'!$H$27:$XFD$76, MATCH($E34, 'Capital base input'!$E$27:$E$76, 0), MATCH(AW$4, RAB_years, 0)) -> 0 | AX34: =INDEX('Capital base input'!$H$27:$XFD$76, MATCH($E34, 'Capital base input'!$E$27:$E$76, 0), MATCH(AX$4, RAB_years, 0)) -> 0 | AY34: =INDEX('Capital base input'!$H$27:$XFD$76, MATCH($E34, 'Capital base input'!$E$27:$E$76, 0), MATCH(AY$4, RAB_years, 0)) -> 0 | AZ34: =INDEX('Capital base input'!$H$27:$XFD$76, MATCH($E34, 'Capital base input'!$E$27:$E$76, 0), MATCH(AZ$4, RAB_years, 0)) -> 0 | BA34: =INDEX('Capital base input'!$H$27:$XFD$76, MATCH($E34, 'Capital base input'!$E$27:$E$76, 0), MATCH(BA$4, RAB_years, 0)) -> 0 | BB34: =INDEX('Capital base input'!$H$27:$XFD$76, MATCH($E34, 'Capital base input'!$E$27:$E$76, 0), MATCH(BB$4, RAB_years, 0)) -> 0 | BC34: =INDEX('Capital base input'!$H$27:$XFD$76, MATCH($E34, 'Capital base input'!$E$27:$E$76, 0), MATCH(BC$4, RAB_years, 0)) -> 0 | BD34: =INDEX('Capital base input'!$H$27:$XFD$76, MATCH($E34, 'Capital base input'!$E$27:$E$76, 0), MATCH(BD$4, RAB_years, 0)) -> 0 | BE34: =INDEX('Capital base input'!$H$27:$XFD$76, MATCH($E34, 'Capital base input'!$E$27:$E$76, 0), MATCH(BE$4, RAB_years, 0)) -> 0 | BF34: =INDEX('Capital base input'!$H$27:$XFD$76, MATCH($E34, 'Capital base input'!$E$27:$E$76, 0), MATCH(BF$4, RAB_years, 0)) -> 0 | BG34: =INDEX('Capital base input'!$H$27:$XFD$76, MATCH($E34, 'Capital base input'!$E$27:$E$76, 0), MATCH(BG$4, RAB_years, 0)) -> 0 | BH34: =INDEX('Capital base input'!$H$27:$XFD$76, MATCH($E34, 'Capital base input'!$E$27:$E$76, 0), MATCH(BH$4, RAB_years, 0)) -> 0 | BI34: =INDEX('Capital base input'!$H$27:$XFD$76, MATCH($E34, 'Capital base input'!$E$27:$E$76, 0), MATCH(BI$4, RAB_years, 0)) -> 0 | BJ34: =INDEX('Capital base input'!$H$27:$XFD$76, MATCH($E34, 'Capital base input'!$E$27:$E$76, 0), MATCH(BJ$4, RAB_years, 0)) -> 0 | BK34: =INDEX('Capital base input'!$H$27:$XFD$76, MATCH($E34, 'Capital base input'!$E$27:$E$76, 0), MATCH(BK$4, RAB_years, 0)) -> 0 | BL34: =INDEX('Capital base input'!$H$27:$XFD$76, MATCH($E34, 'Capital base input'!$E$27:$E$76, 0), MATCH(BL$4, RAB_years, 0)) -> 0 | BM34: =INDEX('Capital base input'!$H$27:$XFD$76, MATCH($E34, 'Capital base input'!$E$27:$E$76, 0), MATCH(BM$4, RAB_years, 0)) -> 0 | BN34: =INDEX('Capital base input'!$H$27:$XFD$76, MATCH($E34, 'Capital base input'!$E$27:$E$76, 0), MATCH(BN$4, RAB_years, 0)) -> 0 | BO34: =INDEX('Capital base input'!$H$27:$XFD$76, MATCH($E34, 'Capital base input'!$E$27:$E$76, 0), MATCH(BO$4, RAB_years, 0)) -> 0 | BP34: =INDEX('Capital base input'!$H$27:$XFD$76, MATCH($E34, 'Capital base input'!$E$27:$E$76, 0), MATCH(BP$4, RAB_years, 0)) -> 0 | BQ34: =INDEX('Capital base input'!$H$27:$XFD$76, MATCH($E34, 'Capital base input'!$E$27:$E$76, 0), MATCH(BQ$4, RAB_years, 0)) -> 0 | BR34: =INDEX('Capital base input'!$H$27:$XFD$76, MATCH($E34, 'Capital base input'!$E$27:$E$76, 0), MATCH(BR$4, RAB_years, 0)) -> 0 | BS34: =INDEX('Capital base input'!$H$27:$XFD$76, MATCH($E34, 'Capital base input'!$E$27:$E$76, 0), MATCH(BS$4, RAB_years, 0)) -> 0 | BT34: =INDEX('Capital base input'!$H$27:$XFD$76, MATCH($E34, 'Capital base input'!$E$27:$E$76, 0), MATCH(BT$4, RAB_years, 0)) -> 0 | BU34: =INDEX('Capital base input'!$H$27:$XFD$76, MATCH($E34, 'Capital base input'!$E$27:$E$76, 0), MATCH(BU$4, RAB_years, 0)) -> 0 | BV34: =INDEX('Capital base input'!$H$27:$XFD$76, MATCH($E34, 'Capital base input'!$E$27:$E$76, 0), MATCH(BV$4, RAB_years, 0)) -> 0 | BW34: =INDEX('Capital base input'!$H$27:$XFD$76, MATCH($E34, 'Capital base input'!$E$27:$E$76, 0), MATCH(BW$4, RAB_years, 0)) -> 0 | BX34: =INDEX('Capital base input'!$H$27:$XFD$76, MATCH($E34, 'Capital base input'!$E$27:$E$76, 0), MATCH(BX$4, RAB_years, 0)) -> 0 | BY34: =INDEX('Capital base input'!$H$27:$XFD$76, MATCH($E34, 'Capital base input'!$E$27:$E$76, 0), MATCH(BY$4, RAB_years, 0)) -> 0 | BZ34: =INDEX('Capital base input'!$H$27:$XFD$76, MATCH($E34, 'Capital base input'!$E$27:$E$76, 0), MATCH(BZ$4, RAB_years, 0)) -> 0 | CA34: =INDEX('Capital base input'!$H$27:$XFD$76, MATCH($E34, 'Capital base input'!$E$27:$E$76, 0), MATCH(CA$4, RAB_years, 0)) -> 0 | CB34: =INDEX('Capital base input'!$H$27:$XFD$76, MATCH($E34, 'Capital base input'!$E$27:$E$76, 0), MATCH(CB$4, RAB_years, 0)) -> 0 | CC34: =INDEX('Capital base input'!$H$27:$XFD$76, MATCH($E34, 'Capital base input'!$E$27:$E$76, 0), MATCH(CC$4, RAB_years, 0)) -> 0 | CD34: =INDEX('Capital base input'!$H$27:$XFD$76, MATCH($E34, 'Capital base input'!$E$27:$E$76, 0), MATCH(CD$4, RAB_years, 0)) -> 0 | CE34: =INDEX('Capital base input'!$H$27:$XFD$76, MATCH($E34, 'Capital base input'!$E$27:$E$76, 0), MATCH(CE$4, RAB_years, 0)) -> 0 | CF34: =INDEX('Capital base input'!$H$27:$XFD$76, MATCH($E34, 'Capital base input'!$E$27:$E$76, 0), MATCH(CF$4, RAB_years, 0)) -> 0 | CG34: =INDEX('Capital base input'!$H$27:$XFD$76, MATCH($E34, 'Capital base input'!$E$27:$E$76, 0), MATCH(CG$4, RAB_years, 0)) -> 0 | CH34: =INDEX('Capital base input'!$H$27:$XFD$76, MATCH($E34, 'Capital base input'!$E$27:$E$76, 0), MATCH(CH$4, RAB_years, 0)) -> 0 | CI34: =INDEX('Capital base input'!$H$27:$XFD$76, MATCH($E34, 'Capital base input'!$E$27:$E$76, 0), MATCH(CI$4, RAB_years, 0)) -> 0 | CJ34: =INDEX('Capital base input'!$H$27:$XFD$76, MATCH($E34, 'Capital base input'!$E$27:$E$76, 0), MATCH(CJ$4, RAB_years, 0)) -> 0 | CK34: =INDEX('Capital base input'!$H$27:$XFD$76, MATCH($E34, 'Capital base input'!$E$27:$E$76, 0), MATCH(CK$4, RAB_years, 0)) -> 0 | CL34: =INDEX('Capital base input'!$H$27:$XFD$76, MATCH($E34, 'Capital base input'!$E$27:$E$76, 0), MATCH(CL$4, RAB_years, 0)) -> 0 | CM34: =INDEX('Capital base input'!$H$27:$XFD$76, MATCH($E34, 'Capital base input'!$E$27:$E$76, 0), MATCH(CM$4, RAB_years, 0)) -> 0 | CN34: =INDEX('Capital base input'!$H$27:$XFD$76, MATCH($E34, 'Capital base input'!$E$27:$E$76, 0), MATCH(CN$4, RAB_years, 0)) -> 0 | CO34: =INDEX('Capital base input'!$H$27:$XFD$76, MATCH($E34, 'Capital base input'!$E$27:$E$76, 0), MATCH(CO$4, RAB_years, 0)) -> 0 | CP34: =INDEX('Capital base input'!$H$27:$XFD$76, MATCH($E34, 'Capital base input'!$E$27:$E$76, 0), MATCH(CP$4, RAB_years, 0)) -> 0
